Workbook

Sheet PreCadastroProjeto
C2: DADOS DO CLIENTE
C4: NOME | I4: Nº Pedido | J4: =TODAY() -> 2022-07-01
C5: ENDEREÇO
C6: CIDADE | F6: CEP | H6: ESTADO
C7: TELEFONE FIXO | F7: RAMAL | H7: CELULAR | M7: 7838345944
C8: E-MAIL
C9: CPF/ CNPJ | F9: INSC. PROD.
C10: DISTÂNCIA
C12: DADOS DO PROJETO
M13: DADOS DOS PRODUTOS
C14: =IF(QTDE_DE_GALPÃO=1,"QTDE DE GALPÃO",IF(QTDE_DE_GALPÃO>=2,"QTDE DE GALPÕES")) -> QTDE DE GALPÃO | D14: 1 | F14: DATA DO ORÇAMENTO | G14: =TODAY() -> 2022-07-01 | M14: FORRAÇÃO | N14: TRUE | O14: N14
F15: TABELA ATUALIZADA EM | G15: 2021-03-04 | M15: CORTINA EXTERNA | N15: TRUE | O15: N15
M16: CORTINA INTERNA | N16: TRUE | O16: N16
C17: ESPECIFICAÇÕES DO GALPÃO | F17: DADOS DOS PRODUTOS | M17: SIST. DE LEVANT. EXTERNO | N17: TRUE | O17: N17 | Q17: 9999
M18: SIST. DE LEVANT. INTERNO | N18: TRUE | O18: N18
C19: COMPRIMENTO | D19: 50 | M19: ENVELOPE | N19: TRUE | O19: N19
C20: ALTURA PE DIREITO | D20: 2 | M20: TELA | N20: TRUE | O20: N20
C21: LARGURA GALPÃO | D21: 5 | M21: SILO | N21: TRUE | O21: N21
C22: ALTURA MURETA | D22: 1 | M22: LONA ESTERQUEIRA | N22: TRUE | O22: N22
C23: BANDO | D23: 2 | G23: N° FOLHAS | H23: 10 | M23: CARINHO DE RAÇÃO | N23: TRUE | O23: N23
C24: DIST. ENTRE VÃOS | D24: 5 | G24: LARG. MÃO FRANC | H24: 55 | M24: KIT CATRACA CARREGADOR | N24: TRUE | O24: N24
C25: ESTRUTURA GALPÃO | D25: Pré-moldado | G25: LARG. ENV. | H25: 3 | M25: BEBEDOURO | N25: TRUE | O25: N25
M26: ESTRUTURA GALPÃO
M27: Madeira Roliça
C28: Nº BAIAS SUGERIDO | D28: Nº BAIAS REAL | M28: Madeira Serrada
C29: 32 | D29: 32 | M29: Mista
M30: Metálica
M31: Pré-moldado
M32: REDE DE ENERGIA | N32: 1
M33: AQUECIMENTO | N33: TRUE | O33: N33
M34: BOMBAS - NEBULIZAÇÃO | N34: TRUE | O34: N34
M35: PISO | N35: TRUE | O35: N35
M36: Manual | N36: 1
M37: Automatico

Sheet Cortinado
AJ2: CH INDUSTRIA E COMERCIO LTDA
F3: CORTINADO | AJ3: Rod. SC 114 Nº 1225, Sitio Peters - Pouso Redondo - SC | BG3: s
AJ4: FONE (047)3545-1026 – (047) 99250-3707
AJ5: CNPJ: 09.609.712/0001-87 Inscrição Estadual: 255.655.789
AH7: Cliente: | AI7: =IF('PreCadastroProjeto '!D4=0," ",'PreCadastroProjeto '!D4) -> 
AK8: VENDEDOR: | AL8: ROMUALDO M.GOMES
AH9: =CONCATENATE("Data da Proposta: ",IF('PreCadastroProjeto '!G14=0," ",TEXT('PreCadastroProjeto '!G14,"dd/mm/aaaa"))) -> Data da Proposta: 01/07/2022 | AK9: REPRESENTANTE: | AL9: HERMES CHIAMOLERA
B10: CORTINADO EXTERNO
C11: QTDE | D11: UN | E11: COD | F11: DESCRIÇÃO | G11: COMPRIMENTO | H11: ALTURA | I11: BAINHA | J11: EMENDA | K11: M² | L11: PRECO TECIDO R$ CUSTO | M11: VALOR TOTAL R$ CUSTO | N11: N° COSTURAS | O11: MT COSTURADOS | P11: CUSTO TOTAL | Q11: CUSTO COSTURA | R11: PANO | AH11: QTDE | AI11: CODIGO | AJ11: DESCRICAO | AK11: UNIT | AL11: TOTAL
B12: LATERAL EX | C12: =C59 -> 2 | D12: PC | E12: =IFERROR(VLOOKUP(F12,CADASTROS!$AB$3:$AC$11,2,TRUE)," ") -> 654 | F12: 000654 - CORTINA PLAST.AMARELA 125 GR | G12: =C60 -> 50 | H12: =IF(C12=0,0,C61) -> 1 | I12: =IF(G12>0,0.12,0) -> 0.12 | J12: =IF(N12=2,0)+IF(N12=3,0.04)+IF(N12=4,0.08)+IF(N12=5,0.12,0) -> 0 | K12: =((G12+I12)*(H12+I12+J12))*C12 -> 112.2688 | L12: =VLOOKUP(E12,PROD[],6,) -> 7.379064 | M12: =(K12*L12)+P12 -> 869.2386604 | N12: =IF(E12=$E$52,IF(H12>=2.77,4,IF(H12>=1.39,3,IF(H12<=1.38,2))))+IF(E12=$E$53,IF(H12>=2.77,4,IF(H12>=1.39,3,IF(H12<=1.38,2))))+IF(E12=$E$54,IF(H12>=5.97,4,IF(H12>=2.99,3,IF(H12<=2.98,2))))+IF(E12=$E$55,IF(H12>=5.97,4,IF(H12>=2.99,3,IF(H12<=2.98,2))))+IF(E12=$E$56,IF(H12>=2.77,4,IF(H12>=1.39,3,IF(H12<=1.38,2))))+IF(E12=$E$57,IF(H12>=6.01,5,IF(H12>=4.01,4,IF(H12>=2.01,3,IF(H12<=2,2)))))+IF(E12=$E$58,IF(H12>=2.97,4,IF(H12>=1.49,3,IF(H12<=1.48,2))))+IF(E12=$E$59,IF(H12>=2.97,4,IF(H12>=1.49,3,IF(H12<=1.48,2))))+IF(E12=$E$60,IF(H12>=4.37,4,IF(H12>=2.19,3,IF(H12<=2.18,2)))) -> 2 | O12: =((N12*G12)+(H12*2))*C12 -> 204 | P12: =O12*Q12 -> 40.8 | Q12: =$G$64 -> 0.2 | AH12: CORTINA EXTERNA
B13: BANDO | C13: =C69 -> 2 | D13: PC | E13: =IFERROR(VLOOKUP(F13,CADASTROS!$AB$3:$AC$11,2,TRUE)," ") -> 654 | F13: 000654 - CORTINA PLAST.AMARELA 125 GR | G13: =C70 -> 50.5 | H13: =C71 -> 0.4 | I13: 0.12 | J13: 0 | K13: 52.6448 | L13: =+IF(E13=$E$52,$I$52)+IF(E13=$E$53,$I$53)+IF(E13=$E$54,$I$54)+IF(E13=$E$55,$I$55)+IF(E13=$E$56,$I$56)+IF(E13=$E$57,$I$57)+IF(E13=$E$58,$I$58)+IF(E13=$E$59,$I$59)+IF(E13=$E$60,$I$60) -> 6.70824 | M13: =(K13*L13)+P13 -> 393.8739532 | N13: 2 | O13: 203.6 | P13: 40.72 | Q13: 0.2 | AH13: =IF(K18>0.05,K18,0) -> 181.8096 | AI13: =IF(AH13=0," ",E12) -> 654 | AJ13: =IF(AH13=0," ",VLOOKUP(AI13,PROD[#All],2,0)) -> CORTINA PLAST.AMARELA 125 GR | AK13: =IF(AH13=0," ",IF(AI13=2865,VLOOKUP(AI13,TabelaPreco[],11,FALSE),IF(AI13=2935,VLOOKUP(AI13,TabelaPreco[],11,FALSE),(($L$18*(1+('Negociação '!L12+'Negociação '!L11+'Negociação '!L4))))))) -> 10.05016992 | AL13: =IF(AH13=0," ",AK13*AH13) -> 1827.217372 | AM13: =VLOOKUP(AI13,TabelaPreco[],8,0) -> 8.197992
B14: ENVELOPES | C14: =C74 -> 4 | D14: PC | E14: =IFERROR(VLOOKUP(F14,CADASTROS!$AB$3:$AC$11,2,TRUE)," ") -> 654 | F14: 000654 - CORTINA PLAST.AMARELA 125 GR | G14: =C76 -> 1.2 | H14: =C75 -> 3 | I14: 0.12 | J14: 0.08 | K14: 16.896 | L14: 6.70824 | M14: 121.982423 | N14: 4 | O14: 43.2 | P14: 8.64 | Q14: 0.2 | AH14: 1 | AI14: =IF(AH14=0," ",640) -> 640 | AJ14: =IF(AH14=0," ",VLOOKUP(Cortinado!AI14,TabelaPreco[],2,0)) -> KIT SISTEMA DE LEVANTAMENTO EXTERNO | AK14: =IF(AH14=0," ",IF(AI14=2865,VLOOKUP(AI14,TabelaPreco[],11,FALSE),IF(AI14=2935,VLOOKUP(AI14,TabelaPreco[],11,FALSE),VLOOKUP(AI14,TabelaPreco[],8,0)))) -> 132.1917788 | AL14: =IF(AH14=0," ",AK14*AH14) -> 132.1917788 | AM14: =(AK15*(1+('Negociação '!L12+'Negociação '!L11+'Negociação '!L5))*(1+'Negociação '!L4)) -> 132.1917788
D15: PC | E15: =IFERROR(VLOOKUP(F15,CADASTROS!$AB$3:$AC$11,2,TRUE)," ") ->  | I15: 0 | J15: 0 | K15: 0 | L15: 0 | M15: 0 | N15: 0 | O15: 0 | P15: 0 | Q15: 0.2 | AH15: 1 | AI15: =IF(AH15=0," ",640) -> 640 | AJ15: =IF(AH15=0," ",VLOOKUP(Cortinado!AI15,TabelaPreco[],2,0)) -> KIT SISTEMA DE LEVANTAMENTO EXTERNO | AK15: =IF(AH15=0," ",IF(AI15=2865,VLOOKUP(AI15,TabelaPreco[],11,FALSE),IF(AI15=2935,VLOOKUP(AI15,TabelaPreco[],11,FALSE),VLOOKUP(AI15,TabelaPreco[],6,0)))) -> 88.686935 | AL15: 88.686935
E16: =IFERROR(VLOOKUP(F16,CADASTROS!$AB$3:$AC$11,2,TRUE)," ") ->  | I16: 0 | J16: 0 | K16: 0 | L16: 0 | M16: 0 | N16: 0 | O16: 0 | P16: 0 | Q16: 0.2 | AH16: =IF('PreCadastroProjeto '!N17,IF('PreCadastroProjeto '!D19>=40,1*'PreCadastroProjeto '!D14,0),0) -> 1 | AI16: =IF(AH16=0," ",638) -> 638 | AJ16: =IF(AH16=0," ",VLOOKUP(Cortinado!AI16,TabelaPreco[],2)) -> KIT MOITAO GRANJAS ACIMA DE 40 METROS | AK16: =IF(AH16=0," ",IF(AI16=2865,VLOOKUP(AI16,TabelaPreco[],11,FALSE),IF(AI16=2935,VLOOKUP(AI16,TabelaPreco[],11,FALSE),VLOOKUP(AI16,TabelaPreco[],8,0)))) -> 138.7212037 | AL16: 138.7212037
E17: =IFERROR(VLOOKUP(F17,CADASTROS!$AB$3:$AC$11,2,TRUE)," ") ->  | I17: 0 | J17: 0 | K17: 0 | L17: 0 | M17: 0 | N17: 0 | O17: 0 | P17: 0 | Q17: 0.2 | AH17: =IF('PreCadastroProjeto '!N15,4*'PreCadastroProjeto '!D14,0) -> 4 | AI17: =IF(AH17=0," ",2) -> 2 | AJ17: =IF(AH17=0," ",VLOOKUP(Cortinado!AI17,TabelaPreco[],2,0)) -> CATRACA C/ ROSETA P/ EST.ARAME LISO | AK17: =IF(AH17=0," ",IF(AI17=2865,VLOOKUP(AI17,TabelaPreco[],11,FALSE),IF(AI17=2935,VLOOKUP(AI17,TabelaPreco[],11,FALSE),VLOOKUP(AI17,TabelaPreco[],8,0)))) -> 9.688536 | AL17: 38.754144
K18: =SUM(K12:K17) -> 181.8096 | L18: =IF(M18>0.03,M18/K18,0.01) -> 7.618382289 | M18: =SUM(M12:M17) -> 1385.095037 | O18: 0 | P18: 0 | Q18: 0.2 | AH18: =(AH17*'PreCadastroProjeto '!D19)*110% -> 220 | AI18: =IF(AH18=0," ",87) -> 87 | AJ18: =IF(AH18=0," ",VLOOKUP(Cortinado!AI18,TabelaPreco[],2,0)) -> ARAME GL FRUTIFIO | AK18: =IF(AH18=0," ",IF(AI18=2865,VLOOKUP(AI18,TabelaPreco[],11,FALSE),IF(AI18=2935,VLOOKUP(AI18,TabelaPreco[],11,FALSE),VLOOKUP(AI18,TabelaPreco[],8,0)))) -> 0.9688536 | AL18: 213.147792
AH19: =IF('PreCadastroProjeto '!N17=FALSE,0,'PreCadastroProjeto '!$D$19*0.045)*'PreCadastroProjeto '!D14 -> 2.25 | AI19: =IF(AH19=0," ",95) -> 95 | AJ19: =IF(AH19=0," ",VLOOKUP(Cortinado!AI19,TabelaPreco[],2,0)) -> GRAMPO GALV 1 X 9 | AK19: =IF(AH19=0," ",IF(AI19=2865,VLOOKUP(AI19,TabelaPreco[],11,FALSE),IF(AI19=2935,VLOOKUP(AI19,TabelaPreco[],11,FALSE),VLOOKUP(AI19,TabelaPreco[],8,0)))) -> 23.6996496 | AL19: 53.3242116
B20: CORTINADO INTERNO | AH20: =IF('PreCadastroProjeto '!N19=FALSE,0,IF('PreCadastroProjeto '!D20<=3,2*'PreCadastroProjeto '!D14)+IF('PreCadastroProjeto '!D20>=3.5,3*'PreCadastroProjeto '!D14)) -> 2 | AI20: =IF(AH20=0," ",2573) -> 2573 | AJ20: =IF(AH20=0," ",VLOOKUP(Cortinado!AI20,TabelaPreco[],2,)) -> TUBO DE CORTINA ACO ZINCADO | AK20: =IF(AH20=0," ",IF(AI20=2865,VLOOKUP(AI20,TabelaPreco[],11,FALSE),IF(AI20=2935,VLOOKUP(AI20,TabelaPreco[],11,FALSE),VLOOKUP(AI20,TabelaPreco[],8,0)))) -> 47.697408 | AL20: =IF(AH20=0," ",AK20*AH20) -> 95.394816
C21: QTDE | D21: UN | E21: COD | F21: DESCRIÇÃO | G21: COMPRIMENTO | H21: ALTURA | I21: BAINHA | J21: EMENDA | K21: M² | L21: PRECO TECIDO R$ CUSTO | M21: VALOR TOTAL R$ CUSTO | N21: N° COSTURAS | O21: MT COSTURADOS | P21: CUSTO TOTAL | Q21: CUSTO COSTURA | R21: PANO | AH21: 1 | AI21: 2865 | AJ21: =IF(AH21=0," ",VLOOKUP(Cortinado!AI21,TabelaPreco[],2,0)) -> CONJUNTO AMBIENTE INOBRAN | AK21: =IF(AH21=0," ",IF(AI21=2865,VLOOKUP(AI21,TabelaPreco[],11,FALSE),IF(AI21=2935,VLOOKUP(AI21,TabelaPreco[],11,FALSE),VLOOKUP(AI21,TabelaPreco[],8,0)))) -> 17640 | AL21: =IF(AH21=0," ",AK21*AH21) -> 17640
B22: LATERAL INTERNA | C22: =C64 -> 2 | D22: PC | E22: =IFERROR(VLOOKUP(F22,CADASTROS!$AB$3:$AC$11,2,TRUE)," ") -> 654 | F22: 000654 - CORTINA PLAST.AMARELA 125 GR | G22: =C65 -> 50 | H22: =IF(C22=0,0,C66) -> 1 | I22: =IF(G22>0,0.12,0) -> 0.12 | J22: =IF(N22=2,0)+IF(N22=3,0.04)+IF(N22=4,0.08)+IF(N22=5,0.12,0) -> 0 | K22: =IF(C22=0,0,((G22+I22)*(H22+I22+J22))*C22) -> 112.2688 | L22: =IFERROR(IF(E22>0,VLOOKUP(E22,PROD[[#All],[CODIGO]:[Lista ]],5)," "),0) -> 6.70824 | M22: =($K$22*$L$22)+$P$22 -> 793.9260549 | N22: =IF(E22=$E$52,IF(H22>=2.77,4,IF(H22>=1.39,2,IF(H22<=1.38,2)))) +IF(E22=$E$53,IF(H22>=2.77,4,IF(H22>=1.39,2,IF(H22<=1.38,2)))) +IF(E22=$E$57,IF(H22>=5.97,4,IF(H22>=2.99,2,IF(H22<=2.98,2)))) +IF(E22=$E$54,IF(H22>=5.97,4,IF(H22>=2.99,2,IF(H22<=2.98,2)))) +IF(E22=$E$55,IF(H22>=2.77,4,IF(H22>=1.39,2,IF(H22<=1.38,2)))) +IF(E22=$E$56,IF(H22>=6.01,5,IF(H22>=4.01,4,IF(H22>=2.01,2,IF(H22<=2,2))))) +IF(E22=$E$58,IF(H22>=2.97,4,IF(H22>=1.49,,IF(H22<=1.48,2)))) +IF(E22=$E$59,IF(H22>=2.97,4,IF(H22>=1.49,3,IF(H22<=1.48,2)))) +IF(E22=$E$60,IF(H22>=4.37,4,IF(H22>=2.19,3,IF(H22<=2.18,2)))) -> 2 | O22: =((N22*G22)+(H22*2))*C22 -> 204 | P22: =O22*Q22 -> 40.8 | Q22: =$G$64 -> 0.2 | AH22: =IF('PreCadastroProjeto '!N17,IF('PreCadastroProjeto '!N36=2,2*'PreCadastroProjeto '!D14,0),0) -> 0 | AI22: =IF(AH22=0," ",IF('PreCadastroProjeto '!N36=2,2935," ")) ->  | AJ22: =IF(AH22=0," ",VLOOKUP(Cortinado!AI22,TabelaPreco[],2,0)) ->  | AK22: =IF(AH22=0," ",IF(AI22=2865,VLOOKUP(AI22,TabelaPreco[],11,FALSE),IF(AI22=2935,VLOOKUP(AI22,TabelaPreco[],11,FALSE),VLOOKUP(AI22,TabelaPreco[],8,0)))) -> 
B23: LATERAL INTERNA EXTRA 1 | C23: =C79 -> 0 | D23: PC | E23: =IFERROR(VLOOKUP(F23,CADASTROS!$AB$3:$AC$11,2,TRUE)," ") ->  | G23: =C80 -> 0 | H23: =IF(C23=0,0,C81) -> 0 | I23: =IF(G23>0,0.12,0) -> 0 | J23: =IF(N23=2,0)+IF(N23=3,0.04)+IF(N23=4,0.08)+IF(N23=5,0.12,0) -> 0 | K23: 0 | L23: =IFERROR(IF(E23>0,VLOOKUP(E23,PROD[[#All],[CODIGO]:[Lista ]],5)," "),0) -> 0 | M23: =IFERROR((K23*L23)+P23,0) -> 0 | N23: 0 | O23: =IFERROR((N23*G23)+(H23*2),0) -> 0 | P23: =O23*Q23 -> 0 | Q23: 0.2 | AH23: =IF(AL23=0," ","TOTAL CORTINADO EXTERNO...................................................................................................................") -> TOTAL CORTINADO EXTERNO................................................................................................................... | AL23: =SUM(AL13:AL22) -> 20227.43825
B24: LATERAL INTERNA EXTRA 2 | C24: =C84 -> 0 | D24: PC | E24: =IFERROR(VLOOKUP(F24,CADASTROS!$AB$3:$AC$11,2,TRUE)," ") ->  | G24: =C85 -> 0 | H24: =IF(C24=0,0,C86) -> 0 | I24: 0 | J24: 0 | K24: 0 | L24: =IFERROR(IF(E24>0,VLOOKUP(E24,PROD[[#All],[CODIGO]:[Lista ]],5)," "),0) -> 0 | M24: =IFERROR((K24*L24)+P24,0) -> 0 | N24: 0 | O24: =IFERROR((N24*G24)+(H24*2),0) -> 0 | P24: 0 | Q24: 0.2 | AH24: FORRAÇÃO
E25: =IFERROR(VLOOKUP(F25,CADASTROS!$AB$3:$AC$11,2,TRUE)," ") ->  | I25: 0 | J25: 0 | K25: 0 | L25: =IFERROR(IF(E25>0,VLOOKUP(E25,PROD[[#All],[CODIGO]:[Lista ]],5)," "),0) -> 0 | M25: 0 | N25: 0 | O25: 0 | P25: 0 | Q25: 0.2 | AH25: =IF(K38>0.05,K38,0) -> 447.4808 | AI25: =IF(AH25=0," ",E32) -> 655 | AJ25: =IF(AI25=" "," ",VLOOKUP(AI25,TabelaPreco[],2,0)) -> CORTINA RAFIA AMARELA 90 GR | AK25: =IF(AH25=0," ",(($L$38*(1+('Negociação '!L12+'Negociação '!L11+'Negociação '!L4))))) -> 6.473943964 | AL25: =IF(AH25=0," ",AH25*AK25) -> 2896.965624 | AM25: =VLOOKUP(AI25,TabelaPreco[],8,0) -> 5.216904
E26: =IFERROR(VLOOKUP(F26,CADASTROS!$AB$3:$AC$11,2,TRUE)," ") ->  | I26: 0 | J26: 0 | K26: 0 | L26: =IFERROR(IF(E26>0,VLOOKUP(E26,PROD[[#All],[CODIGO]:[Lista ]],5)," "),0) -> 0 | M26: 0 | N26: 0 | O26: 0 | P26: 0 | Q26: 0.2 | AH26: =IF('PreCadastroProjeto '!N14,(SUM(Cortinado!C32:C33)*3+(Cortinado!C34*2)),0) -> 34 | AI26: =IF(AH26=0," ",2) -> 2 | AJ26: =IF(AH26=0," ",VLOOKUP(AI26,TabelaPreco[],2,0)) -> CATRACA C/ ROSETA P/ EST.ARAME LISO | AK26: =IF(AH26=0," ",VLOOKUP(AI26,TabelaPreco[],8,0)) -> 9.688536 | AL26: =IF(AH26=0," ",AH26*AK26) -> 329.410224
E27: =IFERROR(VLOOKUP(F27,CADASTROS!$AB$3:$AC$11,2,TRUE)," ") ->  | I27: 0 | J27: 0 | K27: 0 | L27: =IFERROR(IF(E27>0,VLOOKUP(E27,PROD[[#All],[CODIGO]:[Lista ]],5)," "),0) -> 0 | M27: 0 | N27: 0 | O27: 0 | P27: 0 | Q27: 0.2 | AH27: =IF('PreCadastroProjeto '!N14,AH26*('PreCadastroProjeto '!D19*105%),0) -> 1785 | AI27: =IF(AH27=0," ",87) -> 87 | AJ27: =IF(AH27=0," ",VLOOKUP(AI27,TabelaPreco[],2,0)) -> ARAME GL FRUTIFIO | AK27: =IF(AH27=0," ",VLOOKUP(AI27,TabelaPreco[],8,0)) -> 0.9688536 | AL27: =IF(AH27=0," ",AH27*AK27) -> 1729.403676
K28: =SUM(K22:K27) -> 112.2688 | L28: =IF(K28>0.03,M28/K28,0.01) -> 7.071653522 | M28: =SUM(M22:M27) -> 793.9260549 | O28: =SUM(O22:O27) -> 204 | P28: =SUM(P22:P27) -> 40.8 | AH28: =IF('PreCadastroProjeto '!N14,0.075*'PreCadastroProjeto '!D19*'PreCadastroProjeto '!D14,0) -> 3.75 | AI28: =IF(AH28=0," ",95) -> 95 | AJ28: =IF(AH28=0," ",VLOOKUP(AI28,TabelaPreco[],2,0)) -> GRAMPO GALV 1 X 9 | AK28: =IF(AH28=0," ",VLOOKUP(AI28,TabelaPreco[],8,0)) -> 23.6996496 | AL28: =IF(AH28=0," ",AH28*AK28) -> 88.873686
AJ29: =IF(AH29=0," ",VLOOKUP(AI29,TabelaPreco[],2,0)) ->  | AK29: =IF(AH29=0," ",VLOOKUP(AI29,TabelaPreco[],8,0)) ->  | AL29: =IF(AH29=0," ",AH29*AK29) -> 
B30: FORRAÇÃO | AJ30: =IF(AH30=0," ",VLOOKUP(AI30,TabelaPreco[],2,0)) ->  | AK30: =IF(AH30=0," ",VLOOKUP(AI30,TabelaPreco[],8,0)) -> 
C31: QTDE | D31: UN | E31: COD | F31: DESCRIÇÃO | G31: COMPRIMENTO | H31: LARGURA | I31: BAINHA | J31: EMENDA | K31: M² | L31: PRECO TECIDO R$ CUSTO | M31: VALOR TOTAL R$ CUSTO | N31: N° COSTURAS | O31: MT COSTURADOS | P31: CUSTO TOTAL | Q31: CUSTO COSTURA | R31: PANO | AH31: =IF(AL31=0," ","TOTAL FORRACÃO.................................................................................................................................") -> TOTAL FORRACÃO................................................................................................................................. | AL31: =SUM(AL25:AL30) -> 5044.65321
B32: FORRAÇÃO | C32: =IF(C33=0,C52,2*'PreCadastroProjeto '!$D$14) -> 10 | D32: PC | E32: =IFERROR(VLOOKUP(F32,CADASTROS!$AB$3:$AC$11,2,TRUE)," ") -> 655 | F32: 000655 - CORTINA RAFIA AMARELA 90 GR | G32: =C53 -> 50.5 | H32: =IF(H33=0,C54,IF('PreCadastroProjeto '!D21=8,3)) -> -10.3 | I32: =IF(G32>0,0.12,0) -> 0.12 | J32: =IF(N32=2,0)+IF(N32=3,0.04)+IF(N32=4,0.08)+IF(N32=5,0.12,0) -> 0 | K32: =((G32+I32)*(H32+I32+J32))*C32 -> -5153.116 | L32: =IFERROR(IF(E32=0," ",VLOOKUP(E32,PROD[[#All],[CODIGO]:[Lista ]],5)),0) -> 4.26888 | M32: =IF(L32=" "," ",(K32*L32)+P32) -> -21837.23383 | N32: =IF(E32=$E$52,IF(H32>=2.77,4,IF(H32>=1.39,3,IF(H32<=1.38,2)))) +IF(E32=$E$53,IF(H32>=2.77,4,IF(H32>=1.39,3,IF(H32<=1.38,2)))) +IF(E32=$E$57,IF(H32>=5.97,4,IF(H32>=2.99,3,IF(H32<=2.98,2)))) +IF(E32=$E$54,IF(H32>=5.97,4,IF(H32>=2.99,3,IF(H32<=2.98,2)))) +IF(E32=$E$55,IF(H32>=2.77,4,IF(H32>=1.39,3,IF(H32<=1.38,2)))) +IF(E32=$E$56,IF(H32>=6.01,5,IF(H32>=4.01,4,IF(H32>=2.01,3,IF(H32<=2,2))))) +IF(E32=$E$58,IF(H32>=2.97,4,IF(H32>=1.49,3,IF(H32<=1.48,2)))) +IF(E32=$E$59,IF(H32>=2.97,4,IF(H32>=1.49,3,IF(H32<=1.48,2)))) +IF(E32=$E$60,IF(H32>=4.37,4,IF(H32>=2.19,3,IF(H32<=2.18,2)))) -> 2 | O32: =((N32*G32)+(H32*2))*C32 -> 804 | P32: =O32*Q32 -> 160.8 | Q32: =$G$64 -> 0.2 | AH32: CORTINA INTERNA
B33: FORRAÇÃO | C33: =IF('PreCadastroProjeto '!H23=3,IF('PreCadastroProjeto '!D21=8,1*'PreCadastroProjeto '!$D$14,0),0) -> 0 | D33: PC | E33: =IFERROR(VLOOKUP(F33,CADASTROS!$AB$3:$AC$11,2,TRUE)," ") ->  | G33: =IF(C33>0,C53,0) -> 0 | H33: =IF(C33<>0,IF('PreCadastroProjeto '!D21=8,2.7,0),0) -> 0 | I33: =IF(G33>0,0.12,0) -> 0 | K33: 0 | L33: =IFERROR(IF(E33=0," ",VLOOKUP(E33,PROD[[#All],[CODIGO]:[Lista ]],5)),0) -> 0 | M33: 0 | N33: 0 | O33: 0 | P33: =O33*Q33 -> 0 | Q33: 0.2 | AH33: =IF(K28>0.05,K28,0) -> 112.2688 | AI33: =IF(AH33=0," ",E22) -> 654 | AJ33: =IF(AH33=0," ",VLOOKUP(AI33,TabelaPreco[],2,0)) -> CORTINA PLAST.AMARELA 125 GR | AK33: =IF(AH33=0," ",(($L$28*(1+('Negociação '!L12+'Negociação '!L11+'Negociação '!L4))))) -> 9.328925326 | AL33: =IF(AH33=0," ",AH33*AK33) -> 1047.347252 | AM33: =VLOOKUP(AI33,TabelaPreco[],8,0) -> 8.197992
B34: MÃO FRANCESA | C34: =C56 -> 2 | D34: PC | E34: =IFERROR(VLOOKUP(F34,CADASTROS!$AB$3:$AC$11,2,TRUE)," ") -> 655 | F34: 000655 - CORTINA RAFIA AMARELA 90 GR | G34: =IF(C56>1,C53,0) -> 50.5 | H34: =IF(C34=" "," ",C55) -> 55.2 | I34: 0.12 | K34: 5600.5968 | L34: =IFERROR(IF(E34=0," ",VLOOKUP(E34,PROD[[#All],[CODIGO]:[Lista ]],5)),0) -> 4.26888 | M34: 24033.23567 | N34: 4 | O34: 624.8 | P34: 124.96 | Q34: 0.2 | AH34: =ROUNDUP(IF('PreCadastroProjeto '!N18,COMPRIMENTO*2/6)*QTDE_DE_GALPÃO,0) -> 17 | AI34: =IF(AH34=0," ",1396) -> 1396 | AJ34: =IF(AH34=0," ",VLOOKUP(AI34,TabelaPreco[],2,0)) -> KIT SISTEMA DE LEVANTAMENTO INTERNO | AK34: =IF(AH34=0," ",VLOOKUP(AI34,TabelaPreco[],8,0)) -> 113.7090332 | AL34: 1933.053565
E35: =IFERROR(VLOOKUP(F35,CADASTROS!$AB$3:$AC$11,2,TRUE)," ") ->  | I35: 0 | K35: 0 | L35: =IFERROR(IF(E35=0," ",VLOOKUP(E35,PROD[[#All],[CODIGO]:[Lista ]],5)),0) -> 0 | M35: 0 | N35: 0 | O35: 0 | P35: 0 | Q35: 0.2 | AH35: =IF('PreCadastroProjeto '!N18,QTDE_DE_GALPÃO*2,0) -> 2 | AI35: =IF(AH35=0," ",636) -> 636 | AJ35: =IF(AH35=0," ",VLOOKUP(AI35,TabelaPreco[],2,0)) -> KIT CATRACA RC 1015 COMPLETO | AK35: =IF(AH35=0," ",VLOOKUP(AI35,TabelaPreco[],8,0)) -> 286.422935 | AL35: 572.8458701
E36: =IFERROR(VLOOKUP(F36,CADASTROS!$AB$3:$AC$11,2,TRUE)," ") ->  | I36: 0 | K36: 0 | L36: =IFERROR(IF(E36=0," ",VLOOKUP(E36,PROD[[#All],[CODIGO]:[Lista ]],5)),0) -> 0 | M36: =IF(L36=" "," ",(K36*L36)+P36) -> 0 | N36: 0 | O36: 0 | P36: 0 | Q36: 0.2 | AH36: =IF('PreCadastroProjeto '!N16,4*QTDE_DE_GALPÃO,0) -> 4 | AI36: =IF(AH36=0," ",2) -> 2 | AJ36: =IF(AH36=0," ",VLOOKUP(AI36,TabelaPreco[],2,0)) -> CATRACA C/ ROSETA P/ EST.ARAME LISO | AK36: =IF(AH36=0," ",VLOOKUP(AI36,TabelaPreco[],8,0)) -> 9.688536 | AL36: 38.754144
E37: =IFERROR(VLOOKUP(F37,CADASTROS!$AB$3:$AC$11,2,TRUE)," ") ->  | I37: 0 | K37: 0 | L37: =IFERROR(IF(E37=0," ",VLOOKUP(E37,PROD[[#All],[CODIGO]:[Lista ]],5)),0) -> 0 | M37: 0 | N37: 0 | O37: 0 | P37: 0 | Q37: 0.2 | AH37: =((AH36*COMPRIMENTO)*110%) -> 220 | AI37: =IF(AH37=0," ",87) -> 87 | AJ37: =IF(AH37=0," ",VLOOKUP(AI37,TabelaPreco[],2,0)) -> ARAME GL FRUTIFIO | AK37: =IF(AH37=0," ",VLOOKUP(AI37,TabelaPreco[],8,0)) -> 0.9688536 | AL37: 213.147792
K38: =SUM(K32:K37) -> 447.4808 | L38: =IF(K38>0.03,M38/K38,0.01) -> 4.907477231 | M38: =SUM(M32:M37) -> 2196.001838 | O38: =SUM(O32:O37) -> 1428.8 | P38: =SUM(P32:P37) -> 285.76 | AH38: =IF('PreCadastroProjeto '!N16,0.01*COMPRIMENTO*QTDE_DE_GALPÃO,0) -> 0.5 | AI38: =IF(AH38=0," ",95) -> 95 | AJ38: =IF(AH38=0," ",VLOOKUP(AI38,TabelaPreco[],2,0)) -> GRAMPO GALV 1 X 9 | AK38: =IF(AH38=0," ",VLOOKUP(AI38,TabelaPreco[],8,0)) -> 23.6996496 | AL38: 11.8498248
AJ39: =IF(AH39=0," ",VLOOKUP(AI39,TabelaPreco[],2,0)) ->  | AK39: =IF(AH39=0," ",VLOOKUP(AI39,TabelaPreco[],8,0)) -> 
B40: OUTRAS CORTINAS | AJ40: =IF(AH40=0," ",VLOOKUP(AI40,TabelaPreco[],2,0)) ->  | AK40: =IF(AH40=0," ",VLOOKUP(AI40,TabelaPreco[],8,0)) -> 
C41: QTDE | D41: UN | E41: COD | F41: DESCRIÇÃO | G41: COMPRIMENTO | H41: ALTURA | I41: BAINHA | J41: EMENDA | K41: M² | L41: PRECO TECIDO R$ CUSTO | M41: VALOR TOTAL R$ CUSTO | N41: N° COSTURAS | O41: MT COSTURADOS | P41: CUSTO TOTAL | Q41: CUSTO COSTURA | R41: PANO | AH41: =IF(AL41=0," ","TOTAL FORRAÇÃO.................................................................................................................................") -> TOTAL FORRAÇÃO................................................................................................................................. | AL41: =SUM(AL33:AL40) -> 3816.998448
D42: PC | I42: =IF(G42>0,0.12,0) -> 0 | J42: =IF(N42=2,0)+IF(N42=3,0.04)+IF(N42=4,0.08)+IF(N42=5,0.12,0) -> 0 | K42: =((G42+I42)*(H42+I42+J42))*C42 -> 0 | L42: =IF(E42=" ",0,VLOOKUP(E42,PROD[[#All],[CODIGO]:[Lista ]],5)) ->  | M42: =IF(L42=" "," ",(K42*L42)+P42) ->  | N42: =IF(E42=$E$52,IF(H42>=2.77,4,IF(H42>=1.39,3,IF(H42<=1.38,2)))) +IF(E42=$E$53,IF(H42>=2.77,4,IF(H42>=1.39,3,IF(H42<=1.38,2)))) +IF(E42=$E$57,IF(H42>=5.97,4,IF(H42>=2.99,3,IF(H42<=2.98,2)))) +IF(E42=$E$54,IF(H42>=5.97,4,IF(H42>=2.99,3,IF(H42<=2.98,2)))) +IF(E42=$E$55,IF(H42>=2.77,4,IF(H42>=1.39,3,IF(H42<=1.38,2)))) +IF(E42=$E$56,IF(H42>=6.01,5,IF(H42>=4.01,4,IF(H42>=2.01,3,IF(H42<=2,2))))) +IF(E42=$E$58,IF(H42>=2.97,4,IF(H42>=1.49,3,IF(H42<=1.48,2)))) +IF(E42=$E$59,IF(H42>=2.97,4,IF(H42>=1.49,3,IF(H42<=1.48,2)))) +IF(E42=$E$60,IF(H42>=4.37,4,IF(H42>=2.19,3,IF(H42<=2.18,2)))) -> 0 | O42: =((N42*G42)+(H42*2))*C42 -> 0 | P42: =O42*Q42 -> 0 | Q42: =$G$64 -> 0.2 | AH42: OUTRAS CORTINAS
D43: PC | E43: =IFERROR(VLOOKUP(F43,CADASTROS!$AB$3:$AC$11,2,TRUE)," ") ->  | I43: =IF(G43>0,0.12,0) -> 0 | J43: =IF(N43=2,0)+IF(N43=3,0.04)+IF(N43=4,0.08)+IF(N43=5,0.12,0) -> 0 | K43: 0 | L43: =IF(E43=" ",0,VLOOKUP(E43,PROD[[#All],[CODIGO]:[Lista ]],5)) -> 0 | M43: =IF(L43=" "," ",(K43*L43)+P43) -> 0 | N43: 0 | O43: 0 | P43: =O43*Q43 -> 0 | Q43: 0.2 | AH43: 2 | AI43: 1 | AK43: =IF(AH43=0," ",IF(AI43=2865,VLOOKUP(AI43,TabelaPreco[],11,FALSE),IF(AI43=2935,VLOOKUP(AI43,TabelaPreco[],11,FALSE)*(($L$48*(1+('Negociação '!L12+'Negociação '!L11+'Negociação '!L4))))))) -> FALSE | AL43: =IF(AH43=0," ",AH43*AK43) -> 0
I44: 0 | J44: 0 | K44: 0 | L44: =IF(E44=" ",0,VLOOKUP(E44,PROD[[#All],[CODIGO]:[Lista ]],5)) ->  | N44: 0 | O44: 0 | P44: 0 | Q44: 0.2 | AI44: =IF(AH44=0," ",E43) ->  | AJ44: =IFERROR(IF(AH44=0," ",VLOOKUP(AI44,TabelaPreco[],2,0))," ") ->  | AK44: =IF(AH44=0," ",IF(AI44=2865,VLOOKUP(AI44,TabelaPreco[],11,FALSE),IF(AI44=2935,VLOOKUP(AI44,TabelaPreco[],11,FALSE),VLOOKUP(AI44,TabelaPreco[],8,0)))) ->  | AL44: =IF(AH44=0," ",AH44*AK44) -> 
E45: =IFERROR(VLOOKUP(F45,CADASTROS!$AB$3:$AC$11,2,TRUE)," ") ->  | I45: 0 | J45: 0 | K45: 0 | L45: =IF(E45=" ",0,VLOOKUP(E45,PROD[[#All],[CODIGO]:[Lista ]],5)) -> 0 | M45: 0 | N45: 0 | O45: 0 | P45: 0 | Q45: 0.2 | AH45: =IF(C44=0," ",C44) ->  | AI45: =IF(AH45=" "," ",E44) ->  | AJ45: =IFERROR(IF(AH45=0," ",VLOOKUP(AI45,TabelaPreco[],2,0))," ") ->  | AK45: =IF(AH45=" "," ",IF(AI45=2865,VLOOKUP(AI45,TabelaPreco[],11,FALSE),IF(AI45=2935,VLOOKUP(AI45,TabelaPreco[],11,FALSE),VLOOKUP(AI45,TabelaPreco[],8,0)))) ->  | AL45: =IF(AH45=" "," ",AH45*AK45) -> 
E46: =IFERROR(VLOOKUP(F46,CADASTROS!$AB$3:$AC$11,2,TRUE)," ") ->  | I46: 0 | J46: 0 | K46: 0 | L46: =IF(E46=" ",0,VLOOKUP(E46,PROD[[#All],[CODIGO]:[Lista ]],5)) -> 0 | M46: 0 | N46: 0 | O46: 0 | P46: 0 | Q46: 0.2 | AJ46: =IFERROR(IF(AH46=0," ",VLOOKUP(AI46,TabelaPreco[],2,0))," ") ->  | AK46: =IF(AH46=" "," ",IF(AI46=2865,VLOOKUP(AI46,TabelaPreco[],11,FALSE),IF(AI46=2935,VLOOKUP(AI46,TabelaPreco[],11,FALSE),VLOOKUP(AI46,TabelaPreco[],8,0)))) -> 
E47: =IFERROR(VLOOKUP(F47,CADASTROS!$AB$3:$AC$11,2,TRUE)," ") ->  | I47: 0 | J47: 0 | K47: 0 | L47: =IF(E47=" ",0,VLOOKUP(E47,PROD[[#All],[CODIGO]:[Lista ]],5)) -> 0 | M47: 0 | N47: 0 | O47: 0 | P47: 0 | Q47: 0.2 | AJ47: =IFERROR(IF(AH47=0," ",VLOOKUP(AI47,TabelaPreco[],2,0))," ") ->  | AK47: =IF(AH47=" "," ",IF(AI47=2865,VLOOKUP(AI47,TabelaPreco[],11,FALSE),IF(AI47=2935,VLOOKUP(AI47,TabelaPreco[],11,FALSE),VLOOKUP(AI47,TabelaPreco[],8,0)))) -> 
K48: =SUM(K42:K47) -> 0 | L48: =IF(K48>0.03,M48/K48,0.01) -> 0.01 | M48: =SUM(M42:M47) ->  | AJ48: =IFERROR(IF(AH48=0," ",VLOOKUP(AI48,TabelaPreco[],2,0))," ") ->  | AK48: =IF(AH48=" "," ",IF(AI48=2865,VLOOKUP(AI48,TabelaPreco[],11,FALSE),IF(AI48=2935,VLOOKUP(AI48,TabelaPreco[],11,FALSE),VLOOKUP(AI48,TabelaPreco[],8,0)))) -> 
AH49: =IF(AL49=0," ","OUTRAS CORTINAS.................................................................................................................................") ->  | AL49: =SUM(AL43:AL48) -> 0
AK50: SUB-TOTAL | AL50: =AL23+AL31+AL41+AL49 -> 29089.08991
B51: FORRACAO | E51: CODIGO | F51: DESCRIÇÃO | G51: TECIDO | H51: FRETE | I51: COMPRA | J51: PREÇO BASE PRA VENDA | K51: Lista
B52: QUANTIDADE | C52: =IF('PreCadastroProjeto '!N14,'PreCadastroProjeto '!H23*'PreCadastroProjeto '!D14,0) -> 10 | E52: 654 | F52: =VLOOKUP(E52,Cadastroinsumos[],2) -> CORTINA PLAST.AMARELA 125 GR | G52: =VLOOKUP(PROD[[#This Row],[CODIGO]],TabelaPreco[],6,0) -> 5.5 | H52: =PROD[[#This Row],[TECIDO]]*$E$64 -> 5.544 | I52: =PROD[[#This Row],[FRETE]]*($F$64+11%) -> 6.70824 | J52: =PROD[[#This Row],[COMPRA]]*$G$67 -> 7.379064
B53: COMPRIMENTO | C53: =IF('PreCadastroProjeto '!N14,'PreCadastroProjeto '!D19+0.5,0) -> 50.5 | E53: 655 | F53: =VLOOKUP(E53,Cadastroinsumos[],2) -> CORTINA RAFIA AMARELA 90 GR | G53: =VLOOKUP(PROD[[#This Row],[CODIGO]],TabelaPreco[],6,0) -> 3.5 | H53: =PROD[[#This Row],[TECIDO]]*$E$64 -> 3.528 | I53: =PROD[[#This Row],[FRETE]]*($F$64+11%) -> 4.26888 | J53: =PROD[[#This Row],[COMPRA]]*$G$67 -> 4.695768
B54: LARGURA | C54: =IF('PreCadastroProjeto '!N14,(('PreCadastroProjeto '!D21-'PreCadastroProjeto '!H24-'PreCadastroProjeto '!H24)+(0.2*'PreCadastroProjeto '!H23))/'PreCadastroProjeto '!H23,0) -> -10.3 | E54: 659 | F54: =VLOOKUP(E54,Cadastroinsumos[],2) -> CORTINA PLAST. BRANCA 125 GR | G54: =VLOOKUP(PROD[[#This Row],[CODIGO]],TabelaPreco[],6,0) -> 5.5 | H54: =PROD[[#This Row],[TECIDO]]*$E$64 -> 5.544 | I54: =PROD[[#This Row],[FRETE]]*($F$64+11%) -> 6.70824 | J54: =PROD[[#This Row],[COMPRA]]*$G$67 -> 7.379064
B55: MAO FRANCESA | C55: =IF(C56>1,'PreCadastroProjeto '!H24+0.2,0) -> 55.2 | E55: 872 | F55: =VLOOKUP(E55,Cadastroinsumos[],2) -> CORTINA AZUL RAFIA 90 GR | G55: =VLOOKUP(PROD[[#This Row],[CODIGO]],TabelaPreco[],6,0) -> 3.3 | H55: =PROD[[#This Row],[TECIDO]]*$E$64 -> 3.3264 | I55: =PROD[[#This Row],[FRETE]]*($F$64+11%) -> 4.024944 | J55: =PROD[[#This Row],[COMPRA]]*$G$67 -> 4.4274384
B56: QTDE MAO FRANC. | C56: =IF('PreCadastroProjeto '!H24>=0.98,2*'PreCadastroProjeto '!D14,0) -> 2 | E56: 893 | F56: =VLOOKUP(E56,Cadastroinsumos[],2) -> CORTINA PLAST. AZUL 120 GR | G56: =VLOOKUP(PROD[[#This Row],[CODIGO]],TabelaPreco[],6,0) -> 4.8 | H56: =PROD[[#This Row],[TECIDO]]*$E$64 -> 4.8384 | I56: =PROD[[#This Row],[FRETE]]*($F$64+11%) -> 5.854464 | J56: =PROD[[#This Row],[COMPRA]]*$G$67 -> 6.4399104
E57: 933 | F57: =VLOOKUP(E57,Cadastroinsumos[],2) -> CORTINA PLAST. PRETA PRATA | G57: =VLOOKUP(PROD[[#This Row],[CODIGO]],TabelaPreco[],6,0) -> 7.8 | H57: =PROD[[#This Row],[TECIDO]]*$E$64 -> 7.8624 | I57: =PROD[[#This Row],[FRETE]]*($F$64+11%) -> 9.513504 | J57: =PROD[[#This Row],[COMPRA]]*$G$67 -> 10.4648544
B58: CORTINADO EXTERNO | E58: 966 | F58: =VLOOKUP(E58,Cadastroinsumos[],2) -> CORTINA PLAST. PRETA | G58: =VLOOKUP(PROD[[#This Row],[CODIGO]],TabelaPreco[],6,0) -> 6.3 | H58: =PROD[[#This Row],[TECIDO]]*$E$64 -> 6.3504 | I58: =PROD[[#This Row],[FRETE]]*($F$64+11%) -> 7.683984 | J58: =PROD[[#This Row],[COMPRA]]*$G$67 -> 8.4523824
B59: QUANTIDADE | C59: =IF('PreCadastroProjeto '!N15,2*'PreCadastroProjeto '!D14,0) -> 2 | E59: 1634 | F59: =VLOOKUP(E59,Cadastroinsumos[],2) -> CORTINA DPLST 40 AMARELA 170 GR | G59: =VLOOKUP(PROD[[#This Row],[CODIGO]],TabelaPreco[],6,0) -> 7 | H59: =PROD[[#This Row],[TECIDO]]*$E$64 -> 7.056 | I59: =PROD[[#This Row],[FRETE]]*($F$64+11%) -> 8.53776 | J59: =PROD[[#This Row],[COMPRA]]*$G$67 -> 9.391536
B60: COMPRIMENTO | C60: =IF('PreCadastroProjeto '!N15,'PreCadastroProjeto '!D19,0) -> 50 | E60: 2531 | F60: =VLOOKUP(E60,Cadastroinsumos[],2) -> CORTINA SOLDADA PLASTIFICADA 8032 125 GR | G60: =VLOOKUP(PROD[[#This Row],[CODIGO]],TabelaPreco[],6,0) -> 5.5 | H60: =PROD[[#This Row],[TECIDO]]*$E$64 -> 5.544 | I60: =PROD[[#This Row],[FRETE]]*($F$64+11%) -> 6.70824 | J60: =PROD[[#This Row],[COMPRA]]*$G$67 -> 7.379064
B61: ALTURA | C61: =IF('PreCadastroProjeto '!N15=FALSE," ",'PreCadastroProjeto '!D20-'PreCadastroProjeto '!D22) -> 1
B63: CORTINADO INTERNO | E63: FRETE | F63: CUSTO DE COMPRA 1 | G63: COSTURA
B64: QUANTIDADE | C64: =IF('PreCadastroProjeto '!N16,2*'PreCadastroProjeto '!D14,0) -> 2 | E64: 1.008 | F64: 1.1 | G64: 0.2
B65: COMPRIMENTO | C65: =IF('PreCadastroProjeto '!N16,'PreCadastroProjeto '!D19,0) -> 50
B66: ALTURA | C66: =IF('PreCadastroProjeto '!N16=FALSE," ",'PreCadastroProjeto '!D20-'PreCadastroProjeto '!D22) -> 1 | F66: CUSTO COMPRA 2 | G66: % LUCRO
F67: =L13 -> 6.70824 | G67: 1.1
B68: BANDOS
B69: QUANTIDADE | C69: =C59 -> 2
B70: COMPRIMENTO | C70: =IF('PreCadastroProjeto '!N15,'PreCadastroProjeto '!D19+0.5,0) -> 50.5
B71: ALTURA | C71: =IF(C70=0,0,0.4) -> 0.4
B73: ENVELOPES
B74: QUANTIDADE | C74: =IF('PreCadastroProjeto '!N19=FALSE,0,4*'PreCadastroProjeto '!D14) -> 4
B75: ALTURA | C75: =IF('PreCadastroProjeto '!N19=FALSE,0,'PreCadastroProjeto '!H25) -> 3
B76: COMPRIMENTO | C76: =IF('PreCadastroProjeto '!N19=FALSE,0,H12+0.2) -> 1.2
B78: CORTINADO INTERNO EXTRA 1
B79: QUANTIDADE
B80: COMPRIMENTO
B81: ALTURA
B83: CORTINADO INTERNO EXTRA 2
B84: QUANTIDADE
B85: COMPRIMENTO
B86: ALTURA

Sheet Menu
R1: Versão: | S1: VS0030

Sheet VendaDireta (hidden)
D2: Rod. SC 114 Nº 1225, Sitio Peters - Pouso Redondo - SC
D3: FONE (047) 3545-1026 – (047) 99250-3707
D4: CNPJ: 09.609.712/0001-87 Inscrição Estadual: 255.655.789
B6: =CONCATENATE("Pouso Redondo: ",TEXT(TODAY(),"dd/mm/aaaa")) -> Pouso Redondo: 01/07/2022 | E6: VENDAS AVULSAS
B8: Data | C8: Entrega | D8: Cond. Pgto | F8: Vendedor
B10: Cliente | F10: Fone Contato
B12: Cidade / Estado
B14: QUANT | C14: COD | D14: DESCRIÇÃO | E14: UNID | F14: Preço Unitario | G14: TOTAL
D15: =IF(C15=0," ",VLOOKUP(C15,Cadastroinsumos[],2,TRUE)) ->  | E15: =IF(D15=" "," ",VLOOKUP(C15,Cadastroinsumos[],10,TRUE)) ->  | F15: =IF(E15=" "," ",VLOOKUP(C15,TabelaPreco[],8,FALSE)) ->  | G15: =IF(B15=0," ",F15*B15) -> 
D16: =IF(C16=0," ",VLOOKUP(C16,Cadastroinsumos[],2,TRUE)) ->  | E16: =IF(D16=" "," ",VLOOKUP(C16,Cadastroinsumos[],10,TRUE)) ->  | F16: =IF(E16=" "," ",VLOOKUP(C16,TabelaPreco[],8,FALSE)) ->  | G16: =IF(B16=0," ",F16*B16) -> 
D17: =IF(C17=0," ",VLOOKUP(C17,Cadastroinsumos[],2,TRUE)) ->  | E17: =IF(D17=" "," ",VLOOKUP(C17,Cadastroinsumos[],10,TRUE)) ->  | F17: =IF(E17=" "," ",VLOOKUP(C17,TabelaPreco[],8,FALSE)) -> 
D18: =IF(C18=0," ",VLOOKUP(C18,Cadastroinsumos[],2,TRUE)) ->  | E18: =IF(D18=" "," ",VLOOKUP(C18,Cadastroinsumos[],10,TRUE)) ->  | F18: =IF(E18=" "," ",VLOOKUP(C18,TabelaPreco[],8,FALSE)) -> 
D19: =IF(C19=0," ",VLOOKUP(C19,Cadastroinsumos[],2,TRUE)) ->  | E19: =IF(D19=" "," ",VLOOKUP(C19,Cadastroinsumos[],10,TRUE)) ->  | F19: =IF(E19=" "," ",VLOOKUP(C19,TabelaPreco[],8,FALSE)) -> 
D20: =IF(C20=0," ",VLOOKUP(C20,Cadastroinsumos[],2,TRUE)) ->  | E20: =IF(D20=" "," ",VLOOKUP(C20,Cadastroinsumos[],10,TRUE)) ->  | F20: =IF(E20=" "," ",VLOOKUP(C20,TabelaPreco[],8,FALSE)) -> 
D21: =IF(C21=0," ",VLOOKUP(C21,Cadastroinsumos[],2,TRUE)) ->  | E21: =IF(D21=" "," ",VLOOKUP(C21,Cadastroinsumos[],10,TRUE)) ->  | F21: =IF(E21=" "," ",VLOOKUP(C21,TabelaPreco[],8,FALSE)) -> 
D22: =IF(C22=0," ",VLOOKUP(C22,Cadastroinsumos[],2,TRUE)) ->  | E22: =IF(D22=" "," ",VLOOKUP(C22,Cadastroinsumos[],10,TRUE)) ->  | F22: =IF(E22=" "," ",VLOOKUP(C22,TabelaPreco[],8,FALSE)) ->  | G22: =IF(B22=0," ",F22*B22) -> 
D23: =IF(C23=0," ",VLOOKUP(C23,Cadastroinsumos[],2,TRUE)) ->  | E23: =IF(D23=" "," ",VLOOKUP(C23,Cadastroinsumos[],10,TRUE)) ->  | F23: =IF(E23=" "," ",VLOOKUP(C23,TabelaPreco[],8,FALSE)) -> 
D24: =IF(C24=0," ",VLOOKUP(C24,Cadastroinsumos[],2,TRUE)) ->  | E24: =IF(D24=" "," ",VLOOKUP(C24,Cadastroinsumos[],10,TRUE)) ->  | F24: =IF(E24=" "," ",VLOOKUP(C24,TabelaPreco[],8,FALSE)) -> 
D25: =IF(C25=0," ",VLOOKUP(C25,Cadastroinsumos[],2,TRUE)) ->  | E25: =IF(D25=" "," ",VLOOKUP(C25,Cadastroinsumos[],10,TRUE)) ->  | F25: =IF(E25=" "," ",VLOOKUP(C25,TabelaPreco[],8,FALSE)) -> 
D26: =IF(C26=0," ",VLOOKUP(C26,Cadastroinsumos[],2,TRUE)) ->  | E26: =IF(D26=" "," ",VLOOKUP(C26,Cadastroinsumos[],10,TRUE)) ->  | F26: =IF(E26=" "," ",VLOOKUP(C26,TabelaPreco[],8,FALSE)) -> 
D27: =IF(C27=0," ",VLOOKUP(C27,Cadastroinsumos[],2,TRUE)) ->  | E27: =IF(D27=" "," ",VLOOKUP(C27,Cadastroinsumos[],10,TRUE)) ->  | F27: =IF(E27=" "," ",VLOOKUP(C27,TabelaPreco[],8,FALSE)) -> 
D28: =IF(C28=0," ",VLOOKUP(C28,Cadastroinsumos[],2,TRUE)) ->  | E28: =IF(D28=" "," ",VLOOKUP(C28,Cadastroinsumos[],10,TRUE)) ->  | F28: =IF(E28=" "," ",VLOOKUP(C28,TabelaPreco[],8,FALSE)) -> 
D29: =IF(C29=0," ",VLOOKUP(C29,Cadastroinsumos[],2,TRUE)) ->  | E29: =IF(D29=" "," ",VLOOKUP(C29,Cadastroinsumos[],10,TRUE)) ->  | F29: =IF(E29=" "," ",VLOOKUP(C29,TabelaPreco[],8,FALSE)) -> 
D30: =IF(C30=0," ",VLOOKUP(C30,Cadastroinsumos[],2,TRUE)) ->  | E30: =IF(D30=" "," ",VLOOKUP(C30,Cadastroinsumos[],10,TRUE)) ->  | F30: =IF(E30=" "," ",VLOOKUP(C30,TabelaPreco[],8,FALSE)) -> 
D31: =IF(C31=0," ",VLOOKUP(C31,Cadastroinsumos[],2,TRUE)) ->  | E31: =IF(D31=" "," ",VLOOKUP(C31,Cadastroinsumos[],10,TRUE)) ->  | F31: =IF(E31=" "," ",VLOOKUP(C31,TabelaPreco[],8,FALSE)) -> 
D32: =IF(C32=0," ",VLOOKUP(C32,Cadastroinsumos[],2,TRUE)) ->  | E32: =IF(D32=" "," ",VLOOKUP(C32,Cadastroinsumos[],10,TRUE)) ->  | F32: =IF(E32=" "," ",VLOOKUP(C32,TabelaPreco[],8,FALSE)) -> 
D33: =IF(C33=0," ",VLOOKUP(C33,Cadastroinsumos[],2,TRUE)) ->  | E33: =IF(D33=" "," ",VLOOKUP(C33,Cadastroinsumos[],10,TRUE)) ->  | F33: =IF(E33=" "," ",VLOOKUP(C33,TabelaPreco[],8,FALSE)) -> 
D34: =IF(C34=0," ",VLOOKUP(C34,Cadastroinsumos[],2,TRUE)) ->  | E34: =IF(D34=" "," ",VLOOKUP(C34,Cadastroinsumos[],10,TRUE)) ->  | F34: =IF(E34=" "," ",VLOOKUP(C34,TabelaPreco[],8,FALSE)) -> 
D35: =IF(C35=0," ",VLOOKUP(C35,Cadastroinsumos[],2,TRUE)) ->  | E35: =IF(D35=" "," ",VLOOKUP(C35,Cadastroinsumos[],10,TRUE)) ->  | F35: =IF(E35=" "," ",VLOOKUP(C35,TabelaPreco[],8,FALSE)) -> 
D36: =IF(C36=0," ",VLOOKUP(C36,Cadastroinsumos[],2,TRUE)) ->  | E36: =IF(D36=" "," ",VLOOKUP(C36,Cadastroinsumos[],10,TRUE)) ->  | F36: =IF(E36=" "," ",VLOOKUP(C36,TabelaPreco[],8,FALSE)) -> 
D37: =IF(C37=0," ",VLOOKUP(C37,Cadastroinsumos[],2,TRUE)) ->  | E37: =IF(D37=" "," ",VLOOKUP(C37,Cadastroinsumos[],10,TRUE)) ->  | F37: =IF(E37=" "," ",VLOOKUP(C37,TabelaPreco[],8,FALSE)) -> 
B38: TOTAL: | F38: =SUM(G15:G37) -> 0
B41: Observações:

Sheet NEGOC
G1: Comissão Vendedor | H1: 10
B2: ='Negociação '!B2 -> CH | C2: ='Negociação '!C2 -> CORTINA EXTERNA | D2: ='Negociação '!D2 -> 20227.43825
B3: ='Negociação '!B3 -> CH | C3: ='Negociação '!C3 -> FORRAÇÃO | D3: ='Negociação '!D3 -> 5044.65321 | G3: PARCEIROS | N3: CONFERÊNCIA DAS TELAS
B4: ='Negociação '!B4 -> CH | C4: ='Negociação '!C4 -> CORTINA INTERNA | D4: ='Negociação '!D4 -> 3816.998448 | N4: NEGOCIAÇÃO
B5: ='Negociação '!B5 -> CH | C5: ='Negociação '!C5 -> TELA PLASTICA | D5: ='Negociação '!D5 -> 3301.741278 | N5: =D29 -> 
B6: ='Negociação '!B6 -> PRC | C6: ='Negociação '!C6 ->  | D6: ='Negociação '!D6 -> 0 | N6: PROPOSTA FINAL
B7: ='Negociação '!B7 -> PRC | C7: ='Negociação '!C7 ->  | D7: ='Negociação '!D7 -> 0 | N7: =PropostaFinal!F398 ->  | O7: 2
B8: ='Negociação '!B8 -> CH | C8: ='Negociação '!C8 ->  | D8: ='Negociação '!D8 -> 0 | G8: FORMA DE PAGAMENTO | N8: FECHAMENTO
B9: ='Negociação '!B9 -> CH | C9: ='Negociação '!C9 -> CARRINHO PARA RACAO | D9: ='Negociação '!D9 -> 1512.90216 | N9: =Fechamento!G373 -> 
B10: ='Negociação '!B10 -> CH | C10: ='Negociação '!C10 -> CJ DESCARREGADOR DE SUINOS | D10: ='Negociação '!D10 -> 386.289383 | N10: #
B11: ='Negociação '!B11 -> CH | C11: ='Negociação '!C11 -> BEBEDOUROS | D11: ='Negociação '!D11 -> 8188.461462 | N11: =(N5-N7)-(N7-N9)-(N9-N5) -> 
B12: ='Negociação '!B12 -> CH | C12: ='Negociação '!C12 -> EQUIP. CAIXA D'AGUA | D12: ='Negociação '!D12 -> 4894.946496
B13: ='Negociação '!B13 -> PRC | C13: ='Negociação '!C13 ->  | D13: ='Negociação '!D13 -> 0
B14: ='Negociação '!B14 -> PRC | C14: ='Negociação '!C14 ->  | D14: ='Negociação '!D14 -> 0
B15: ='Negociação '!B15 -> CH | C15: ='Negociação '!C15 ->  | D15: ='Negociação '!D15 -> 0
B16: ='Negociação '!B16 -> PRC | C16: ='Negociação '!C16 ->  | D16: ='Negociação '!D16 -> 
B17: ='Negociação '!B17 -> CH | C17: ='Negociação '!C17 ->  | D17: ='Negociação '!D17 -> 0
B18: ='Negociação '!B18 -> CH | C18: ='Negociação '!C18 ->  | D18: ='Negociação '!D18 -> 0
B19: ='Negociação '!B19 -> CH | C19: ='Negociação '!C19 ->  | D19: ='Negociação '!D19 -> 0
C20: ='Negociação '!C20 -> Total do Orçamento | D20: ='Negociação '!D20 -> 
C21: ='Negociação '!C21 -> MONTAGEM | D21: 0
C22: ='Negociação '!C22 -> FRETE | D22: 0
C23: ='Negociação '!C23 -> GUINCHO SILO | D23: 0
C24: ='Negociação '!C24 -> ALIMENTAÇÃO MONTAGEM | D24: 0
C25: ='Negociação '!C25 -> OUTRAS COBRANÇAS | D25: 0
C26: ='Negociação '!C26 -> TOTAL GERAL | D26: ='Negociação '!D26 -> 
C28: ='Negociação '!C28 -> DESCONTOS CONCEDIDOS | D28: 0
C29: ='Negociação '!C29 -> TOTAL FECHAMENTO | D29: ='Negociação '!D29 -> 
Q33: d

Sheet Negociação
B2: =IF(C2>1,"CH") -> CH | C2: =IFERROR(IF(D2>1,Cortinado!AH12," ")," ") -> CORTINA EXTERNA | D2: =Cortinado!AL23*'Negociação '!$L$10% -> 20227.43825 | K2: %
B3: =IF(C3>1,"CH") -> CH | C3: =IFERROR(IF(D3>1,Cortinado!AH24," ")," ") -> FORRAÇÃO | D3: =Cortinado!AL31*'Negociação '!$L$10% -> 5044.65321 | N3: CONFERÊNCIA DAS TELAS
B4: CH | C4: =IFERROR(IF(D4>1,Cortinado!AH32," ")," ") -> CORTINA INTERNA | D4: =Cortinado!AL41*'Negociação '!$L$10% -> 3816.998448 | J4: IMPOSTOS CH | K4: 12.92 | L4: =K4/100 -> 0.1292 | N4: NEGOCIAÇÃO
B5: CH | C5: =IFERROR(IF(D5>1,"TELA PLASTICA"," ")," ") -> TELA PLASTICA | D5: ='Tela '!AD31*'Negociação '!$L$10% -> 3301.741278 | J5: INDICE CUSTO FIXO | K5: 13 | L5: =(K5/100) -> 0.13 | N5: =D29 -> 
B6: PRC | C6: =IFERROR(IF(D6>1,ArmazenagemRação!C12," ")," ") ->  | D6: =(ArmazenagemRação!G23)*'Negociação '!$L$10% -> 0 | J6: MONT. CORTINADO | K6: 0.125 | N6: PROPOSTA FINAL
B7: PRC | C7: =IFERROR(IF(D7>1,ArmazenagemRação!C25," ")," ") ->  | D7: =ArmazenagemRação!G41*'Negociação '!$L$10% -> 0 | J7: MONTAGEM GERAL | K7: 0.1 | N7: =PropostaFinal!F398 -> 
B8: =IF(C8>1,"CH") -> CH | C8: =IFERROR(IF(D8>1,ArmazenagemRação!C43," ")," ") ->  | D8: =((ArmazenagemRação!G65)*'Negociação '!$L$10%) -> 0 | J8: MONTAGEM SILO | K8: 400 | N8: FECHAMENTO
B9: =IF(C9>1,"CH") -> CH | C9: =IFERROR(IF(D9>1,ArmazenagemRação!C67," ")," ") -> CARRINHO PARA RACAO | D9: =ArmazenagemRação!G70*'Negociação '!$L$10% -> 1512.90216 | J9: MONTAGEM PISO | K9: 0.1 | N9: =Fechamento!D6 -> 
B10: =IF(C10>1,"CH") -> CH | C10: =IFERROR(IF(D10>1,ArmazenagemRação!C72," ")," ") -> CJ DESCARREGADOR DE SUINOS | D10: =ArmazenagemRação!G75*'Negociação '!$L$10% -> 386.289383 | J10: FORMA DE PAGTO | K10: 3 | L10: =IF(K10=1,100-0,IF(K10=2,100-0,IF(K10=3,100-0,IF(K10=4,100+2)))) -> 100 | N10: #
B11: CH | C11: =IFERROR(IF(D11>1,"BEBEDOUROS"," ")," ") -> BEBEDOUROS | D11: ='Bebedouros '!AF44*'Negociação '!$L$10% -> 8188.461462 | J11: Margem Fixa (Segurança) | K11: 5 | L11: =(K11/100) -> 0.05 | N11: =(N5-N7)-(N7-N9)-(N9-N5) -> 
B12: CH | C12: =IFERROR(IF(D12>1,"EQUIP. CAIXA D'AGUA"," ")," ") -> EQUIP. CAIXA D'AGUA | D12: ='Bebedouros '!AF81*'Negociação '!$L$10% -> 4894.946496 | J12: Margem Com Vend +Hermes | K12: =(NEGOC!H1*2)-6 -> 14 | L12: =K12/100 -> 0.14
B13: PRC | C13: =IFERROR(IF(D13>1,"LONA ESTERQUEIRA"," ")," ") ->  | D13: =Outros!I18*'Negociação '!$L$10% -> 0
B14: PRC | C14: =IFERROR(IF(D14>1,"PISO PLASTICO"," ")," ") ->  | D14: =Piso!AE30*'Negociação '!$L$10% -> 0 | J14: BIOTER | K14: FALSE
B15: CH | C15: =IFERROR(IF(D15>1,"COMEDOUROS"," ")," ") ->  | D15: ='Comedouros '!AE37*'Negociação '!$L$10% -> 0 | J15: BIG DULTCHMAN | K15: FALSE
B16: PRC | C16: =IFERROR(IF(D16>1,"AQUECEDOR"," ")," ") ->  | D16: =Outros!I25*'Negociação '!$L$10% ->  | J16: DEBONA | K16: FALSE
B17: CH | C17: =IFERROR(IF(D17>0.01,"OUTROS"," ")," ") ->  | D17: =(Outros!AG44+Outros!AG99+Outros!AG119+Outros!AG74)*'Negociação '!$L$10% -> 0 | O17: =(((L4+L11+L12)+1)) -> 1.3192
B18: CH | C18: =IFERROR(IF(D18>0.01,"ELÉTRICA"," ")," ") ->  | D18: =((Elética!AG69)-Elética!I67)*'Negociação '!$L$10% -> 0 | J18: Margem Desejada | K18: 40 | L18: =(K18+100)/100 -> 1.4
B19: CH | C19: =IFERROR(IF(D19>0.01,"MÃO DE OBRA ELÉTRICA"," ")," ") ->  | D19: =((Elética!I67)*'Negociação '!$L$10%) -> 0 | J19: Margem BIG | K19: 28 | L19: =(K19+100)/100 -> 1.28
C20: Total do Orçamento | D20: =SUM(D2:D19) -> 
C21: MONTAGEM | D21: =NEGOC!D21 -> 0
C22: FRETE | D22: =NEGOC!D22 -> 0
C23: GUINCHO SILO | D23: =NEGOC!D23 -> 0
C24: ALIMENTAÇÃO MONTAGEM | D24: =NEGOC!D24 -> 0
C25: OUTRAS COBRANÇAS | D25: =NEGOC!D25 -> 0
C26: TOTAL GERAL | D26: =SUM(D21:D25)+D20 -> 
C28: DESCONTOS CONCEDIDOS | D28: =NEGOC!D28 -> 0
C29: TOTAL FECHAMENTO | D29: =D26+D28 -> 

Sheet PropostaFinal
C2: C.H INDUSTRIA E COMÉRCIO LTDA.
C3: Rod. SC 114 Nº 1225, Sitio Peters - Pouso Redondo - SC
C4: FONE (47) 3545-1026 – (47) 9.8835-8441
C5: CNPJ: 09.609.712/0001-87 Inscrição Estadual: 255.655.789
B7: =CONCATENATE("Pouso Redondo: ",IF('PreCadastroProjeto '!G14=0," ",TEXT('PreCadastroProjeto '!G14,"dd/mm/aaaa"))) -> Pouso Redondo: 01/07/2022
B9: A(o) | D9: =IF(D10=" "," ","CPF") ->  | E9: =IF(E10=" "," ","INSC. PROD. RURAL ") -> 
B10: =IF('PreCadastroProjeto '!D4=0," ",'PreCadastroProjeto '!D4) ->  | D10: =IF('PreCadastroProjeto '!D9=0," ",'PreCadastroProjeto '!D9) ->  | E10: =IF('PreCadastroProjeto '!G9=0," ",'PreCadastroProjeto '!G9) -> 
B12: =IF('PreCadastroProjeto '!D6=0," ",CONCATENATE('PreCadastroProjeto '!D6,"-",'PreCadastroProjeto '!I6)) ->  | D12: =IF('PreCadastroProjeto '!D7=0," ",CONCATENATE("FONE: ",'PreCadastroProjeto '!D7," / ",'PreCadastroProjeto '!I7)) -> 
B13: =IF('PreCadastroProjeto '!D8=0," ",CONCATENATE("E-mail: ",IF('PreCadastroProjeto '!D8=0," ",'PreCadastroProjeto '!D8))) -> 
B15: NÃO VALIDO COMO ORÇAMENTO BANCÁRIO
B17: =IF(QTDE_DE_GALPÃO=1,"QTDE DE GALPÃO",IF(QTDE_DE_GALPÃO>=2,"QTDE DE GALPÕES")) -> QTDE DE GALPÃO | C17: ='PreCadastroProjeto '!D14 -> 1
B18: COMPRIMENTO | C18: ='PreCadastroProjeto '!D19 -> 50 | D18: ESTRUTURA GALPÃO | E18: ='PreCadastroProjeto '!D25 -> Pré-moldado
B19: ALTURA PE DIREITO | C19: ='PreCadastroProjeto '!D20 -> 2 | D19: REDE ELÉTRICA | E19: =IF('PreCadastroProjeto '!N32=1,"MONOFASICO 220V",IF('PreCadastroProjeto '!N32=2,"TRIFASICO 380V",IF('PreCadastroProjeto '!N32=3,"BIFASICO 220/440V"))) -> MONOFASICO 220V
B20: LARGURA GALPÃO | C20: ='PreCadastroProjeto '!D21 -> 5
D21: VALIDADE DO ORÇAMENTO: 30 DIAS
B23: COD | C23: DESCRIÇÃO | D23: UNID | E23: QUANT | F23: TOTAL | G23: TOTAL ANTES NEGOC
B24: =IF(F35>0,"CORTINA EXTERNA "," ") -> CORTINA EXTERNA
B25: =IF(Cortinado!AI13>0.01,Cortinado!AI13," ") -> 654 | C25: =IF(B25=" "," ",VLOOKUP(B25,Cadastroinsumos[],2,TRUE)) -> CORTINA PLAST.AMARELA 125 GR | D25: =IF(B25=" "," ",VLOOKUP(B25,Cadastroinsumos[],10,TRUE)) -> M² | E25: =IF(Cortinado!AH13>0.01,Cortinado!AH13," ") -> 181.8096 | F25: =IF(" "=B25," ",G25*'Negociação '!$L$10%) -> 1827.217372 | G25: =IF(Cortinado!AL13>0.01,Cortinado!AL13," ") -> 1827.217372
B26: =IF(Cortinado!AI14>0.01,Cortinado!AI14," ") -> 640 | C26: =IF(B26=" "," ",VLOOKUP(B26,Cadastroinsumos[],2,TRUE)) -> KIT SISTEMA DE LEVANTAMENTO EXTERNO | D26: =IF(B26=" "," ",VLOOKUP(B26,Cadastroinsumos[],10,TRUE)) -> CJ | E26: =IF(Cortinado!AH14>0.01,Cortinado!AH14," ") -> 1 | F26: =IF(" "=B26," ",G26*'Negociação '!$L$10%) -> 132.1917788 | G26: =IF(Cortinado!AL14>0.01,Cortinado!AL14," ") -> 132.1917788
B27: =IF(Cortinado!AI15>0.01,Cortinado!AI15," ") -> 640 | C27: =IF(B27=" "," ",VLOOKUP(B27,Cadastroinsumos[],2,TRUE)) -> KIT SISTEMA DE LEVANTAMENTO EXTERNO | D27: =IF(B27=" "," ",VLOOKUP(B27,Cadastroinsumos[],10,TRUE)) -> CJ | E27: =IF(Cortinado!AH15>0.01,Cortinado!AH15," ") -> 1 | F27: =IF(" "=B27," ",G27*'Negociação '!$L$10%) -> 88.686935 | G27: =IF(Cortinado!AL15>0.01,Cortinado!AL15," ") -> 88.686935
B28: =IF(Cortinado!AI16>0.01,Cortinado!AI16," ") -> 638 | C28: =IF(B28=" "," ",VLOOKUP(B28,Cadastroinsumos[],2,TRUE)) -> KIT MOITAO GRANJAS ACIMA DE 40 METROS | D28: =IF(B28=" "," ",VLOOKUP(B28,Cadastroinsumos[],10,TRUE)) -> CJ | E28: =IF(Cortinado!AH16>0.01,Cortinado!AH16," ") -> 1 | F28: =IF(" "=B28," ",G28*'Negociação '!$L$10%) -> 138.7212037 | G28: =IF(Cortinado!AL16>0.01,Cortinado!AL16," ") -> 138.7212037
B29: =IF(Cortinado!AI17>0.01,Cortinado!AI17," ") -> 2 | C29: =IF(B29=" "," ",VLOOKUP(B29,Cadastroinsumos[],2,TRUE)) -> CATRACA C/ ROSETA P/ EST.ARAME LISO | D29: =IF(B29=" "," ",VLOOKUP(B29,Cadastroinsumos[],10,TRUE)) -> UN | E29: =IF(Cortinado!AH17>0.01,Cortinado!AH17," ") -> 4 | F29: =IF(" "=B29," ",G29*'Negociação '!$L$10%) -> 38.754144 | G29: =IF(Cortinado!AL17>0.01,Cortinado!AL17," ") -> 38.754144
B30: =IF(Cortinado!AI18>0.01,Cortinado!AI18," ") -> 87 | C30: =IF(B30=" "," ",VLOOKUP(B30,Cadastroinsumos[],2,TRUE)) -> ARAME GL FRUTIFIO | D30: =IF(B30=" "," ",VLOOKUP(B30,Cadastroinsumos[],10,TRUE)) -> MT | E30: =IF(Cortinado!AH18>0.01,Cortinado!AH18," ") -> 220 | F30: =IF(" "=B30," ",G30*'Negociação '!$L$10%) -> 213.147792 | G30: =IF(Cortinado!AL18>0.01,Cortinado!AL18," ") -> 213.147792
B31: =IF(Cortinado!AI19>0.01,Cortinado!AI19," ") -> 95 | C31: =IF(B31=" "," ",VLOOKUP(B31,Cadastroinsumos[],2,TRUE)) -> GRAMPO GALV 1 X 9 | D31: =IF(B31=" "," ",VLOOKUP(B31,Cadastroinsumos[],10,TRUE)) -> KG | E31: =IF(Cortinado!AH19>0.01,Cortinado!AH19," ") -> 2.25 | F31: =IF(" "=B31," ",G31*'Negociação '!$L$10%) -> 53.3242116 | G31: =IF(Cortinado!AL19>0.01,Cortinado!AL19," ") -> 53.3242116
B32: =IF(Cortinado!AI20>0.01,Cortinado!AI20," ") -> 2573 | C32: =IF(B32=" "," ",VLOOKUP(B32,Cadastroinsumos[],2,TRUE)) -> TUBO DE CORTINA ACO ZINCADO | D32: =IF(B32=" "," ",VLOOKUP(B32,Cadastroinsumos[],10,TRUE)) -> BR | E32: =IF(Cortinado!AH20>0.01,Cortinado!AH20," ") -> 2 | F32: =IF(" "=B32," ",G32*'Negociação '!$L$10%) -> 95.394816 | G32: =IF(Cortinado!AL20>0.01,Cortinado!AL20," ") -> 95.394816
B33: =IF(Cortinado!AI21>0.01,Cortinado!AI21," ") -> 2865 | C33: =IF(B33=" "," ",VLOOKUP(B33,Cadastroinsumos[],2,TRUE)) -> CONJUNTO AMBIENTE INOBRAN | D33: =IF(B33=" "," ",VLOOKUP(B33,Cadastroinsumos[],10,TRUE)) -> CJ | E33: =IF(Cortinado!AH21>0.01,Cortinado!AH21," ") -> 1 | F33: =IF(" "=B33," ",G33*'Negociação '!$L$10%) -> 17640 | G33: =IF(Cortinado!AL21>0.01,Cortinado!AL21," ") -> 17640
B34: =IF(Cortinado!AI22>0.01,Cortinado!AI22," ") ->  | C34: =IF(B34=" "," ",VLOOKUP(B34,Cadastroinsumos[],2,TRUE)) ->  | D34: =IF(B34=" "," ",VLOOKUP(B34,Cadastroinsumos[],10,TRUE)) ->  | E34: =IF(Cortinado!AH22>0.01,Cortinado!AH22," ") ->  | F34: =IF(" "=B34," ",G34*'Negociação '!$L$10%) ->  | G34: =IF(Cortinado!AL22>0.01,Cortinado!AL22," ") -> 
B35: =IF(F35>0,"=>"," ") -> => | E35: SUBTOTAL | F35: =SUM(F25:F34) -> 20227.43825 | G35: =SUM(G25:G34) -> 20227.43825
B36: =IF(F43>0,"FORRAÇÃO"," ") -> FORRAÇÃO
B37: =IF(Cortinado!AI25>0.01,Cortinado!AI25," ") -> 655 | C37: =IF(B37=" "," ",VLOOKUP(B37,Cadastroinsumos[],2,TRUE)) -> CORTINA RAFIA AMARELA 90 GR | D37: =IF(B37=" "," ",VLOOKUP(B37,Cadastroinsumos[],10,TRUE)) -> M² | E37: =IF(Cortinado!AH25>0.01,Cortinado!AH25," ") -> 447.4808 | F37: =IF(" "=B37," ",G37*'Negociação '!$L$10%) -> 2896.965624 | G37: =IF(Cortinado!AL25>0.01,Cortinado!AL25," ") -> 2896.965624
B38: =IF(Cortinado!AI26>0.01,Cortinado!AI26," ") -> 2 | C38: =IF(B38=" "," ",VLOOKUP(B38,Cadastroinsumos[],2,TRUE)) -> CATRACA C/ ROSETA P/ EST.ARAME LISO | D38: =IF(B38=" "," ",VLOOKUP(B38,Cadastroinsumos[],10,TRUE)) -> UN | E38: =IF(Cortinado!AH26>0.01,Cortinado!AH26," ") -> 34 | F38: =IF(" "=B38," ",G38*'Negociação '!$L$10%) -> 329.410224 | G38: =IF(Cortinado!AL26>0.01,Cortinado!AL26," ") -> 329.410224
B39: =IF(Cortinado!AI27>0.01,Cortinado!AI27," ") -> 87 | C39: =IF(B39=" "," ",VLOOKUP(B39,Cadastroinsumos[],2,TRUE)) -> ARAME GL FRUTIFIO | D39: =IF(B39=" "," ",VLOOKUP(B39,Cadastroinsumos[],10,TRUE)) -> MT | E39: =IF(Cortinado!AH27>0.01,Cortinado!AH27," ") -> 1785 | F39: =IF(" "=B39," ",G39*'Negociação '!$L$10%) -> 1729.403676 | G39: =IF(Cortinado!AL27>0.01,Cortinado!AL27," ") -> 1729.403676
B40: =IF(Cortinado!AI28>0.01,Cortinado!AI28," ") -> 95 | C40: =IF(B40=" "," ",VLOOKUP(B40,Cadastroinsumos[],2,TRUE)) -> GRAMPO GALV 1 X 9 | D40: =IF(B40=" "," ",VLOOKUP(B40,Cadastroinsumos[],10,TRUE)) -> KG | E40: =IF(Cortinado!AH28>0.01,Cortinado!AH28," ") -> 3.75 | F40: =IF(" "=B40," ",G40*'Negociação '!$L$10%) -> 88.873686 | G40: =IF(Cortinado!AL28>0.01,Cortinado!AL28," ") -> 88.873686
B41: =IF(Cortinado!AI29>0.01,Cortinado!AI29," ") ->  | C41: =IF(B41=" "," ",VLOOKUP(B41,Cadastroinsumos[],2,TRUE)) ->  | D41: =IF(B41=" "," ",VLOOKUP(B41,Cadastroinsumos[],10,TRUE)) ->  | E41: =IF(Cortinado!AH29>0.01,Cortinado!AH29," ") ->  | F41: =IF(" "=B41," ",G41*'Negociação '!$L$10%) ->  | G41: =IF(Cortinado!AL29>0.01,Cortinado!AL29," ") -> 
B42: =IF(Cortinado!AI30>0.01,Cortinado!AI30," ") ->  | C42: =IF(B42=" "," ",VLOOKUP(B42,Cadastroinsumos[],2,TRUE)) ->  | D42: =IF(B42=" "," ",VLOOKUP(B42,Cadastroinsumos[],10,TRUE)) ->  | E42: =IF(Cortinado!AH30>0.01,Cortinado!AH30," ") ->  | F42: =IF(" "=B42," ",G42*'Negociação '!$L$10%) ->  | G42: =IF(Cortinado!AL30>0.01,Cortinado!AL30," ") -> 
B43: =IF(F43>0,"=>"," ") -> => | E43: SUBTOTAL | F43: =SUM(F37:F42) -> 5044.65321 | G43: =SUM(G37:G42) -> 5044.65321
B44: =IF(F53>0,"CORTINA INTERNA"," ") -> CORTINA INTERNA
B45: =IF(Cortinado!AI33>0.01,Cortinado!AI33," ") -> 654 | C45: =IF(B45=" "," ",VLOOKUP(B45,Cadastroinsumos[],2,TRUE)) -> CORTINA PLAST.AMARELA 125 GR | D45: =IF(B45=" "," ",VLOOKUP(B45,Cadastroinsumos[],10,TRUE)) -> M² | E45: =IF(Cortinado!AH33>0.01,Cortinado!AH33," ") -> 112.2688 | F45: =IF(" "=B45," ",G45*'Negociação '!$L$10%) -> 1047.347252 | G45: =IF(Cortinado!AL33>0.01,Cortinado!AL33," ") -> 1047.347252
B46: =IF(Cortinado!AI34>0.01,Cortinado!AI34," ") -> 1396 | C46: =IF(B46=" "," ",VLOOKUP(B46,Cadastroinsumos[],2,TRUE)) -> KIT SISTEMA DE LEVANTAMENTO INTERNO | D46: =IF(B46=" "," ",VLOOKUP(B46,Cadastroinsumos[],10,TRUE)) -> CJ | E46: =IF(Cortinado!AH34>0.01,Cortinado!AH34," ") -> 17 | F46: =IF(" "=B46," ",G46*'Negociação '!$L$10%) -> 1933.053565 | G46: =IF(Cortinado!AL34>0.01,Cortinado!AL34," ") -> 1933.053565
B47: =IF(Cortinado!AI35>0.01,Cortinado!AI35," ") -> 636 | C47: =IF(B47=" "," ",VLOOKUP(B47,Cadastroinsumos[],2,TRUE)) -> KIT CATRACA RC 1015 COMPLETO | D47: =IF(B47=" "," ",VLOOKUP(B47,Cadastroinsumos[],10,TRUE)) -> CJ | E47: =IF(Cortinado!AH35>0.01,Cortinado!AH35," ") -> 2 | F47: =IF(" "=B47," ",G47*'Negociação '!$L$10%) -> 572.8458701 | G47: =IF(Cortinado!AL35>0.01,Cortinado!AL35," ") -> 572.8458701
B48: =IF(Cortinado!AI36>0.01,Cortinado!AI36," ") -> 2 | C48: =IF(B48=" "," ",VLOOKUP(B48,Cadastroinsumos[],2,TRUE)) -> CATRACA C/ ROSETA P/ EST.ARAME LISO | D48: =IF(B48=" "," ",VLOOKUP(B48,Cadastroinsumos[],10,TRUE)) -> UN | E48: =IF(Cortinado!AH36>0.01,Cortinado!AH36," ") -> 4 | F48: =IF(" "=B48," ",G48*'Negociação '!$L$10%) -> 38.754144 | G48: =IF(Cortinado!AL36>0.01,Cortinado!AL36," ") -> 38.754144
B49: =IF(Cortinado!AI37>0.01,Cortinado!AI37," ") -> 87 | C49: =IF(B49=" "," ",VLOOKUP(B49,Cadastroinsumos[],2,TRUE)) -> ARAME GL FRUTIFIO | D49: =IF(B49=" "," ",VLOOKUP(B49,Cadastroinsumos[],10,TRUE)) -> MT | E49: =IF(Cortinado!AH37>0.01,Cortinado!AH37," ") -> 220 | F49: =IF(" "=B49," ",G49*'Negociação '!$L$10%) -> 213.147792 | G49: =IF(Cortinado!AL37>0.01,Cortinado!AL37," ") -> 213.147792
B50: =IF(Cortinado!AI38>0.01,Cortinado!AI38," ") -> 95 | C50: =IF(B50=" "," ",VLOOKUP(B50,Cadastroinsumos[],2,TRUE)) -> GRAMPO GALV 1 X 9 | D50: =IF(B50=" "," ",VLOOKUP(B50,Cadastroinsumos[],10,TRUE)) -> KG | E50: =IF(Cortinado!AH38>0.01,Cortinado!AH38," ") -> 0.5 | F50: =IF(" "=B50," ",G50*'Negociação '!$L$10%) -> 11.8498248 | G50: =IF(Cortinado!AL38>0.01,Cortinado!AL38," ") -> 11.8498248
B51: =IF(Cortinado!AI39>0.01,Cortinado!AI39," ") ->  | C51: =IF(B51=" "," ",VLOOKUP(B51,Cadastroinsumos[],2,TRUE)) ->  | D51: =IF(B51=" "," ",VLOOKUP(B51,Cadastroinsumos[],10,TRUE)) ->  | E51: =IF(Cortinado!AH39>0.01,Cortinado!AH39," ") ->  | F51: =IF(" "=B51," ",G51*'Negociação '!$L$10%) ->  | G51: =IF(Cortinado!AL39>0.01,Cortinado!AL39," ") -> 
B52: =IF(Cortinado!AI40>0.01,Cortinado!AI40," ") ->  | C52: =IF(B52=" "," ",VLOOKUP(B52,Cadastroinsumos[],2,TRUE)) ->  | D52: =IF(B52=" "," ",VLOOKUP(B52,Cadastroinsumos[],10,TRUE)) ->  | E52: =IF(Cortinado!AH40>0.01,Cortinado!AH40," ") ->  | F52: =IF(" "=B52," ",G52*'Negociação '!$L$10%) ->  | G52: =IF(Cortinado!AL40>0.01,Cortinado!AL40," ") -> 
B53: =IF(F53>0,"=>"," ") -> => | E53: SUBTOTAL | F53: =SUM(F45:F52) -> 3816.998448 | G53: =SUM(G45:G52) -> 3816.998448
B54: =IF(F65>0,"COMEDOUROS"," ") -> 
B55: =IF('Comedouros '!AB13>0.01,'Comedouros '!AB13," ") ->  | C55: =IF(B55=" "," ",VLOOKUP(B55,Cadastroinsumos[],2,TRUE)) ->  | D55: =IF(B55=" "," ",VLOOKUP(B55,Cadastroinsumos[],10,TRUE)) ->  | E55: =IF('Comedouros '!AA13>0.01,'Comedouros '!AA13," ") ->  | F55: =IF(" "=B55," ",G55*'Negociação '!$L$10%) ->  | G55: =IF('Comedouros '!AE13>0.01,'Comedouros '!AE13," ") -> 
B56: =IF('Comedouros '!AB14>0.01,'Comedouros '!AB14," ") ->  | C56: =IF(B56=" "," ",VLOOKUP(B56,Cadastroinsumos[],2,TRUE)) ->  | D56: =IF(B56=" "," ",VLOOKUP(B56,Cadastroinsumos[],10,TRUE)) ->  | E56: =IF('Comedouros '!AA14>0.01,'Comedouros '!AA14," ") ->  | F56: =IF(" "=B56," ",G56*'Negociação '!$L$10%) ->  | G56: =IF('Comedouros '!AE14>0.01,'Comedouros '!AE14," ") -> 
B57: =IF('Comedouros '!AB15>0.01,'Comedouros '!AB15," ") ->  | C57: =IF(B57=" "," ",VLOOKUP(B57,Cadastroinsumos[],2,TRUE)) ->  | D57: =IF(B57=" "," ",VLOOKUP(B57,Cadastroinsumos[],10,TRUE)) ->  | E57: =IF('Comedouros '!AA15>0.01,'Comedouros '!AA15," ") ->  | F57: =IF(" "=B57," ",G57*'Negociação '!$L$10%) ->  | G57: =IF('Comedouros '!AE15>0.01,'Comedouros '!AE15," ") -> 
B58: =IF('Comedouros '!AB16>0.01,'Comedouros '!AB16," ") ->  | C58: =IF(B58=" "," ",VLOOKUP(B58,Cadastroinsumos[],2,TRUE)) ->  | D58: =IF(B58=" "," ",VLOOKUP(B58,Cadastroinsumos[],10,TRUE)) ->  | E58: =IF('Comedouros '!AA16>0.01,'Comedouros '!AA16," ") ->  | F58: =IF(" "=B58," ",G58*'Negociação '!$L$10%) ->  | G58: =IF('Comedouros '!AE16>0.01,'Comedouros '!AE16," ") -> 
B59: =IF('Comedouros '!AB17>0.01,'Comedouros '!AB17," ") ->  | C59: =IF(B59=" "," ",VLOOKUP(B59,Cadastroinsumos[],2,TRUE)) ->  | D59: =IF(B59=" "," ",VLOOKUP(B59,Cadastroinsumos[],10,TRUE)) ->  | E59: =IF('Comedouros '!AA17>0.01,'Comedouros '!AA17," ") ->  | F59: =IF(" "=B59," ",G59*'Negociação '!$L$10%) ->  | G59: =IF('Comedouros '!AE17>0.01,'Comedouros '!AE17," ") -> 
B60: =IF('Comedouros '!AB18>0.01,'Comedouros '!AB18," ") ->  | C60: =IF(B60=" "," ",VLOOKUP(B60,Cadastroinsumos[],2,TRUE)) ->  | D60: =IF(B60=" "," ",VLOOKUP(B60,Cadastroinsumos[],10,TRUE)) ->  | E60: =IF('Comedouros '!AA18>0.01,'Comedouros '!AA18," ") ->  | F60: =IF(" "=B60," ",G60*'Negociação '!$L$10%) ->  | G60: =IF('Comedouros '!AE18>0.01,'Comedouros '!AE18," ") -> 
B61: =IF('Comedouros '!AB19>0.01,'Comedouros '!AB19," ") ->  | C61: =IF(B61=" "," ",VLOOKUP(B61,Cadastroinsumos[],2,TRUE)) ->  | D61: =IF(B61=" "," ",VLOOKUP(B61,Cadastroinsumos[],10,TRUE)) ->  | E61: =IF('Comedouros '!AA19>0.01,'Comedouros '!AA19," ") ->  | F61: =IF(" "=B61," ",G61*'Negociação '!$L$10%) ->  | G61: =IF('Comedouros '!AE19>0.01,'Comedouros '!AE19," ") -> 
B62: =IF('Comedouros '!AB20>0.01,'Comedouros '!AB20," ") -> 1761 | C62: =IF(B62=" "," ",VLOOKUP(B62,Cadastroinsumos[],2,TRUE)) -> COMEDOURO PARA SUINOS WTF - 6 BOCAS INOX | D62: =IF(B62=" "," ",VLOOKUP(B62,Cadastroinsumos[],10,TRUE)) -> PC | E62: =IF('Comedouros '!AA20>0.01,'Comedouros '!AA20," ") ->  | F62: =IF(" "=B62," ",G62*'Negociação '!$L$10%) ->  | G62: =IF('Comedouros '!AE20>0.01,'Comedouros '!AE20," ") -> 
B63: =IF('Comedouros '!AB21>0.01,'Comedouros '!AB21," ") ->  | C63: =IF(B63=" "," ",VLOOKUP(B63,Cadastroinsumos[],2,TRUE)) ->  | D63: =IF(B63=" "," ",VLOOKUP(B63,Cadastroinsumos[],10,TRUE)) ->  | E63: =IF('Comedouros '!AA21>0.01,'Comedouros '!AA21," ") ->  | F63: =IF(" "=B63," ",G63*'Negociação '!$L$10%) ->  | G63: =IF('Comedouros '!AE21>0.01,'Comedouros '!AE21," ") -> 
B64: =IF('Comedouros '!AB22>0.01,'Comedouros '!AB22," ") ->  | C64: =IF(B64=" "," ",VLOOKUP(B64,Cadastroinsumos[],2,TRUE)) ->  | D64: =IF(B64=" "," ",VLOOKUP(B64,Cadastroinsumos[],10,TRUE)) ->  | E64: =IF('Comedouros '!AA22>0.01,'Comedouros '!AA22," ") ->  | F64: =IF(" "=B64," ",G64*'Negociação '!$L$10%) ->  | G64: =IF('Comedouros '!AE22>0.01,'Comedouros '!AE22," ") -> 
B65: =IF(F65>0,"=>"," ") ->  | E65: SUBTOTAL | F65: =SUM(F55:F64) ->  | G65: =SUM(G55:G64) -> 0
B66: =IF(F76>0,"EQUIPAMENTOS COMPLEMENTARES COMEDOUROS"," ") -> 
B67: =IF('Comedouros '!AB25>0.01,'Comedouros '!AB25," ") ->  | C67: =IF(B67=" "," ",VLOOKUP(B67,Cadastroinsumos[],2,TRUE)) ->  | D67: =IF(B67=" "," ",VLOOKUP(B67,Cadastroinsumos[],10,TRUE)) ->  | E67: =IF('Comedouros '!AA25>0.01,'Comedouros '!AA25," ") ->  | F67: =IF(" "=B67," ",G67*'Negociação '!$L$10%) ->  | G67: =IF('Comedouros '!AE25>0.01,'Comedouros '!AE25," ") -> 
B68: =IF('Comedouros '!AB26>0.01,'Comedouros '!AB26," ") ->  | C68: =IF(B68=" "," ",VLOOKUP(B68,Cadastroinsumos[],2,TRUE)) ->  | D68: =IF(B68=" "," ",VLOOKUP(B68,Cadastroinsumos[],10,TRUE)) ->  | E68: =IF('Comedouros '!AA26>0.01,'Comedouros '!AA26," ") ->  | F68: =IF(" "=B68," ",G68*'Negociação '!$L$10%) ->  | G68: =IF('Comedouros '!AE26>0.01,'Comedouros '!AE26," ") -> 
B69: =IF('Comedouros '!AB27>0.01,'Comedouros '!AB27," ") ->  | C69: =IF(B69=" "," ",VLOOKUP(B69,Cadastroinsumos[],2,TRUE)) ->  | D69: =IF(B69=" "," ",VLOOKUP(B69,Cadastroinsumos[],10,TRUE)) ->  | E69: =IF('Comedouros '!AA27>0.01,'Comedouros '!AA27," ") ->  | F69: =IF(" "=B69," ",G69*'Negociação '!$L$10%) ->  | G69: =IF('Comedouros '!AE27>0.01,'Comedouros '!AE27," ") -> 
B70: =IF('Comedouros '!AB28>0.01,'Comedouros '!AB28," ") ->  | C70: =IF(B70=" "," ",VLOOKUP(B70,Cadastroinsumos[],2,TRUE)) ->  | D70: =IF(B70=" "," ",VLOOKUP(B70,Cadastroinsumos[],10,TRUE)) ->  | E70: =IF('Comedouros '!AA28>0.01,'Comedouros '!AA28," ") ->  | F70: =IF(" "=B70," ",G70*'Negociação '!$L$10%) ->  | G70: =IF('Comedouros '!AE28>0.01,'Comedouros '!AE28," ") -> 
B71: =IF('Comedouros '!AB29>0.01,'Comedouros '!AB29," ") ->  | C71: =IF(B71=" "," ",VLOOKUP(B71,Cadastroinsumos[],2,TRUE)) ->  | D71: =IF(B71=" "," ",VLOOKUP(B71,Cadastroinsumos[],10,TRUE)) ->  | E71: =IF('Comedouros '!AA29>0.01,'Comedouros '!AA29," ") ->  | F71: =IF(" "=B71," ",G71*'Negociação '!$L$10%) ->  | G71: =IF('Comedouros '!AE29>0.01,'Comedouros '!AE29," ") -> 
B72: =IF('Comedouros '!AB30>0.01,'Comedouros '!AB30," ") ->  | C72: =IF(B72=" "," ",VLOOKUP(B72,Cadastroinsumos[],2,TRUE)) ->  | D72: =IF(B72=" "," ",VLOOKUP(B72,Cadastroinsumos[],10,TRUE)) ->  | E72: =IF('Comedouros '!AA30>0.01,'Comedouros '!AA30," ") ->  | F72: =IF(" "=B72," ",G72*'Negociação '!$L$10%) ->  | G72: =IF('Comedouros '!AE30>0.01,'Comedouros '!AE30," ") -> 
B73: =IF('Comedouros '!AB31>0.01,'Comedouros '!AB31," ") ->  | C73: =IF(B73=" "," ",VLOOKUP(B73,Cadastroinsumos[],2,TRUE)) ->  | D73: =IF(B73=" "," ",VLOOKUP(B73,Cadastroinsumos[],10,TRUE)) ->  | E73: =IF('Comedouros '!AA31>0.01,'Comedouros '!AA31," ") ->  | F73: =IF(" "=B73," ",G73*'Negociação '!$L$10%) ->  | G73: =IF('Comedouros '!AE31>0.01,'Comedouros '!AE31," ") -> 
B74: =IF('Comedouros '!AB32>0.01,'Comedouros '!AB32," ") ->  | C74: =IF(B74=" "," ",VLOOKUP(B74,Cadastroinsumos[],2,TRUE)) ->  | D74: =IF(B74=" "," ",VLOOKUP(B74,Cadastroinsumos[],10,TRUE)) ->  | E74: =IF('Comedouros '!AA32>0.01,'Comedouros '!AA32," ") ->  | F74: =IF(" "=B74," ",G74*'Negociação '!$L$10%) ->  | G74: =IF('Comedouros '!AE32>0.01,'Comedouros '!AE32," ") -> 
B75: =IF('Comedouros '!AB33>0.01,'Comedouros '!AB33," ") ->  | C75: =IF(B75=" "," ",VLOOKUP(B75,Cadastroinsumos[],2,TRUE)) ->  | D75: =IF(B75=" "," ",VLOOKUP(B75,Cadastroinsumos[],10,TRUE)) ->  | E75: =IF('Comedouros '!AA33>0.01,'Comedouros '!AA33," ") ->  | F75: =IF(" "=B75," ",G75*'Negociação '!$L$10%) ->  | G75: =IF('Comedouros '!AE33>0.01,'Comedouros '!AE33," ") -> 
B76: =IF(F76>0,"=>"," ") ->  | E76: SUBTOTAL | F76: =SUM(F67:F75) -> 0 | G76: =SUM(G67:G75) -> 0
B77: =IF(F84>0,"TELAS PLASTICAS"," ") -> TELAS PLASTICAS
B78: =IF('Tela '!AA13>0.01,'Tela '!AA13," ") -> 1042 | C78: =IF(B78=" "," ",VLOOKUP(B78,Cadastroinsumos[],2,TRUE)) -> TELA PLASTICA N 4 2,15 X 50 M | D78: =IF(B78=" "," ",VLOOKUP(B78,Cadastroinsumos[],10,TRUE)) -> M² | E78: =IF('Tela '!B16>0.01,'Tela '!B16," ") -> 200 | F78: =IF(" "=B78," ",G78*'Negociação '!$L$10%) -> 2325.24864 | G78: =IF('Tela '!G16>0.01,'Tela '!G16," ") -> 2325.24864
B79: =IF('Tela '!AA14>0.01,'Tela '!AA14," ") -> 713 | C79: =IF(B79=" "," ",VLOOKUP(B79,Cadastroinsumos[],2,TRUE)) -> TELA PLASTICA N 4 2,8 X 50 M | D79: =IF(B79=" "," ",VLOOKUP(B79,Cadastroinsumos[],10,TRUE)) -> M² | E79: =IF('Tela '!B17>0.01,'Tela '!B17," ") -> 10 | F79: =IF(" "=B79," ",G79*'Negociação '!$L$10%) -> 116.262432 | G79: =IF('Tela '!G17>0.01,'Tela '!G17," ") -> 116.262432
B80: =IF('Tela '!AA15>0.01,'Tela '!AA15," ") -> 1042 | C80: =IF(B80=" "," ",VLOOKUP(B80,Cadastroinsumos[],2,TRUE)) -> TELA PLASTICA N 4 2,15 X 50 M | D80: =IF(B80=" "," ",VLOOKUP(B80,Cadastroinsumos[],10,TRUE)) -> M² | E80: =IF('Tela '!B18>0.01,'Tela '!B18," ") -> 10 | F80: =IF(" "=B80," ",G80*'Negociação '!$L$10%) -> 116.262432 | G80: =IF('Tela '!G18>0.01,'Tela '!G18," ") -> 116.262432
B81: =IF('Tela '!AA16>0.01,'Tela '!AA16," ") -> 789 | C81: =IF(B81=" "," ",VLOOKUP(B81,Cadastroinsumos[],2,TRUE)) -> TELA PLASTICA N 4 3 X 50 M | D81: =IF(B81=" "," ",VLOOKUP(B81,Cadastroinsumos[],10,TRUE)) -> M² | E81: =IF('Tela '!B19>0.01,'Tela '!B19," ") -> 10 | F81: =IF(" "=B81," ",G81*'Negociação '!$L$10%) -> 116.262432 | G81: =IF('Tela '!G19>0.01,'Tela '!G19," ") -> 116.262432
B82: =IF('Tela '!AA17>0.01,'Tela '!AA17," ") -> 1042 | C82: =IF(B82=" "," ",VLOOKUP(B82,Cadastroinsumos[],2,TRUE)) -> TELA PLASTICA N 4 2,15 X 50 M | D82: =IF(B82=" "," ",VLOOKUP(B82,Cadastroinsumos[],10,TRUE)) -> M² | E82: =IF('Tela '!B20>0.01,'Tela '!B20," ") -> 10 | F82: =IF(" "=B82," ",G82*'Negociação '!$L$10%) -> 116.262432 | G82: =IF('Tela '!G20>0.01,'Tela '!G20," ") -> 116.262432
B83: =IF('Tela '!AA18>0.01,'Tela '!AA18," ") ->  | C83: =IF(B83=" "," ",VLOOKUP(B83,Cadastroinsumos[],2,TRUE)) ->  | D83: =IF(B83=" "," ",VLOOKUP(B83,Cadastroinsumos[],10,TRUE)) ->  | E83: =IF('Tela '!B21>0.01,'Tela '!B21," ") ->  | F83: =IF(" "=B83," ",G83*'Negociação '!$L$10%) ->  | G83: =IF('Tela '!G21>0.01,'Tela '!G21," ") -> 
B84: =IF(F84>0,"=>"," ") -> => | E84: SUBTOTAL | F84: =SUM(F78:F83) -> 2790.298368 | G84: =SUM(G78:G83) -> 2790.298368
B85: =IF(F93>0,"EQUIPAMENTOS COMPLEMENTARES TELA"," ") -> EQUIPAMENTOS COMPLEMENTARES TELA
B86: =IF('Tela '!AA21>0.1,'Tela '!AA21," ") -> 87 | C86: =IF(B86=" "," ",VLOOKUP(B86,Cadastroinsumos[],2,TRUE)) -> ARAME GL FRUTIFIO | D86: =IF(B86=" "," ",VLOOKUP(B86,Cadastroinsumos[],10,TRUE)) -> MT | E86: =IF('Tela '!Z21>0.01,'Tela '!Z21," ") -> 315 | F86: =IF(" "=B86," ",G86*'Negociação '!$L$10%) -> 305.188884 | G86: =IF('Tela '!AD21>0.01,'Tela '!AD21," ") -> 305.188884
B87: =IF('Tela '!AA22>0.1,'Tela '!AA22," ") -> 2 | C87: =IF(B87=" "," ",VLOOKUP(B87,Cadastroinsumos[],2,TRUE)) -> CATRACA C/ ROSETA P/ EST.ARAME LISO | D87: =IF(B87=" "," ",VLOOKUP(B87,Cadastroinsumos[],10,TRUE)) -> UN | E87: =IF('Tela '!Z22>0.01,'Tela '!Z22," ") -> 6 | F87: =IF(" "=B87," ",G87*'Negociação '!$L$10%) -> 58.131216 | G87: =IF('Tela '!AD22>0.01,'Tela '!AD22," ") -> 58.131216
B88: =IF('Tela '!AA23>0.1,'Tela '!AA23," ") -> 86 | C88: =IF(B88=" "," ",VLOOKUP(B88,Cadastroinsumos[],2,TRUE)) -> PREGOS GERDAU 12 X 15 | D88: =IF(B88=" "," ",VLOOKUP(B88,Cadastroinsumos[],10,TRUE)) -> KG | E88: =IF('Tela '!Z23>0.01,'Tela '!Z23," ") -> 0.3 | F88: =IF(" "=B88," ",G88*'Negociação '!$L$10%) -> 5.030586 | G88: =IF('Tela '!AD23>0.01,'Tela '!AD23," ") -> 5.030586
B89: =IF('Tela '!AA24>0.1,'Tela '!AA24," ") -> 983 | C89: =IF(B89=" "," ",VLOOKUP(B89,Cadastroinsumos[],2,TRUE)) -> GRAMPO GALV A-18 | D89: =IF(B89=" "," ",VLOOKUP(B89,Cadastroinsumos[],10,TRUE)) -> UN | E89: =IF('Tela '!Z24>0.01,'Tela '!Z24," ") -> 600 | F89: =IF(" "=B89," ",G89*'Negociação '!$L$10%) -> 143.092224 | G89: =IF('Tela '!AD24>0.01,'Tela '!AD24," ") -> 143.092224
B90: =IF('Tela '!AA25>0.1,'Tela '!AA25," ") ->  | C90: =IF(B90=" "," ",VLOOKUP(B90,Cadastroinsumos[],2,TRUE)) ->  | D90: =IF(B90=" "," ",VLOOKUP(B90,Cadastroinsumos[],10,TRUE)) ->  | E90: =IF('Tela '!Z25>0.01,'Tela '!Z25," ") ->  | F90: =IF(" "=B90," ",G90*'Negociação '!$L$10%) ->  | G90: =IF('Tela '!AD25>0.01,'Tela '!AD25," ") -> 
B91: =IF('Tela '!AA26>0.1,'Tela '!AA26," ") ->  | C91: =IF(B91=" "," ",VLOOKUP(B91,Cadastroinsumos[],2,TRUE)) ->  | D91: =IF(B91=" "," ",VLOOKUP(B91,Cadastroinsumos[],10,TRUE)) ->  | E91: =IF('Tela '!Z26>0.01,'Tela '!Z26," ") ->  | F91: =IF(" "=B91," ",G91*'Negociação '!$L$10%) ->  | G91: =IF('Tela '!AD26>0.01,'Tela '!AD26," ") -> 
B92: =IF('Tela '!AA27>0.1,'Tela '!AA27," ") ->  | C92: =IF(B92=" "," ",VLOOKUP(B92,Cadastroinsumos[],2,TRUE)) ->  | D92: =IF(B92=" "," ",VLOOKUP(B92,Cadastroinsumos[],10,TRUE)) ->  | E92: =IF('Tela '!Z27>0.01,'Tela '!Z27," ") ->  | F92: =IF(" "=B92," ",G92*'Negociação '!$L$10%) ->  | G92: =IF('Tela '!AD27>0.01,'Tela '!AD27," ") -> 
B93: =IF(F93>0,"=>"," ") -> => | E93: SUBTOTAL | F93: =SUM(F86:F92) -> 511.44291 | G93: =SUM(G86:G92) -> 511.44291
B94: =IF(F126>0,"BEBEDOUROS"," ") -> BEBEDOUROS
B95: =IF('Bebedouros '!AC13>0.1,'Bebedouros '!AC13," ") -> 1679 | C95: =IF(B95=" "," ",VLOOKUP(B95,Cadastroinsumos[],2,TRUE)) -> CONJUNTO BEBEDOURO TERMINACAO WTF 32 MM PEAD | D95: =IF(B95=" "," ",VLOOKUP(B95,Cadastroinsumos[],10,TRUE)) -> CJ | E95: =IF('Bebedouros '!AB13>0.01,'Bebedouros '!AB13," ") -> 64 | F95: =IF(" "=B95," ",G95*'Negociação '!$L$10%) -> 2526.054728 | G95: =IF('Bebedouros '!AF13>0.01,'Bebedouros '!AF13," ") -> 2526.054728
B96: =IF('Bebedouros '!AC14>0.1,'Bebedouros '!AC14," ") -> 1675 | C96: =IF(B96=" "," ",VLOOKUP(B96,Cadastroinsumos[],2,TRUE)) -> KIT HIDRAULICO CRECHE WTF 32 MM | D96: =IF(B96=" "," ",VLOOKUP(B96,Cadastroinsumos[],10,TRUE)) -> CJ | E96: =IF('Bebedouros '!AB14>0.01,'Bebedouros '!AB14," ") -> 64 | F96: =IF(" "=B96," ",G96*'Negociação '!$L$10%) -> 2188.261684 | G96: =IF('Bebedouros '!AF14>0.01,'Bebedouros '!AF14," ") -> 2188.261684
B97: =IF('Bebedouros '!AC15>0.1,'Bebedouros '!AC15," ") -> 1712 | C97: =IF(B97=" "," ",VLOOKUP(B97,Cadastroinsumos[],2,TRUE)) -> CONJUNTO REGULAGEM DO BEBEDOURO | D97: =IF(B97=" "," ",VLOOKUP(B97,Cadastroinsumos[],10,TRUE)) -> CJ | E97: =IF('Bebedouros '!AB15>0.01,'Bebedouros '!AB15," ") -> 64 | F97: =IF(" "=B97," ",G97*'Negociação '!$L$10%) -> 431.1845683 | G97: =IF('Bebedouros '!AF15>0.01,'Bebedouros '!AF15," ") -> 431.1845683
B98: =IF('Bebedouros '!AC16>0.1,'Bebedouros '!AC16," ") -> 2855 | C98: =IF(B98=" "," ",VLOOKUP(B98,Cadastroinsumos[],2,TRUE)) -> KIT CATRACA RC 1009 C/SUPORTE EM L | D98: =IF(B98=" "," ",VLOOKUP(B98,Cadastroinsumos[],10,TRUE)) -> CJ | E98: =IF('Bebedouros '!AB16>0.01,'Bebedouros '!AB16," ") -> 2 | F98: =IF(" "=B98," ",G98*'Negociação '!$L$10%) -> 528.1295501 | G98: =IF('Bebedouros '!AF16>0.01,'Bebedouros '!AF16," ") -> 528.1295501
B99: =IF('Bebedouros '!AC17>0.1,'Bebedouros '!AC17," ") -> 259 | C99: =IF(B99=" "," ",VLOOKUP(B99,Cadastroinsumos[],2,TRUE)) -> ARAME PARREIRAL (3 FIOS) | D99: =IF(B99=" "," ",VLOOKUP(B99,Cadastroinsumos[],10,TRUE)) -> MT | E99: =IF('Bebedouros '!AB17>0.01,'Bebedouros '!AB17," ") -> 105 | F99: =IF(" "=B99," ",G99*'Negociação '!$L$10%) -> 367.791732 | G99: =IF('Bebedouros '!AF17>0.01,'Bebedouros '!AF17," ") -> 367.791732
B100: =IF('Bebedouros '!AC18>0.1,'Bebedouros '!AC18," ") -> 87 | C100: =IF(B100=" "," ",VLOOKUP(B100,Cadastroinsumos[],2,TRUE)) -> ARAME GL FRUTIFIO | D100: =IF(B100=" "," ",VLOOKUP(B100,Cadastroinsumos[],10,TRUE)) -> MT | E100: =IF('Bebedouros '!AB18>0.01,'Bebedouros '!AB18," ") -> 105 | F100: =IF(" "=B100," ",G100*'Negociação '!$L$10%) -> 101.729628 | G100: =IF('Bebedouros '!AF18>0.01,'Bebedouros '!AF18," ") -> 101.729628
B101: =IF('Bebedouros '!AC19>0.1,'Bebedouros '!AC19," ") -> 2 | C101: =IF(B101=" "," ",VLOOKUP(B101,Cadastroinsumos[],2,TRUE)) -> CATRACA C/ ROSETA P/ EST.ARAME LISO | D101: =IF(B101=" "," ",VLOOKUP(B101,Cadastroinsumos[],10,TRUE)) -> UN | E101: =IF('Bebedouros '!AB19>0.01,'Bebedouros '!AB19," ") -> 2 | F101: =IF(" "=B101," ",G101*'Negociação '!$L$10%) -> 19.377072 | G101: =IF('Bebedouros '!AF19>0.01,'Bebedouros '!AF19," ") -> 19.377072
B102: =IF('Bebedouros '!AC20>0.1,'Bebedouros '!AC20," ") -> 139 | C102: =IF(B102=" "," ",VLOOKUP(B102,Cadastroinsumos[],2,TRUE)) -> CABO DE ACO AFGCTD 6 X 7 3/16 | D102: =IF(B102=" "," ",VLOOKUP(B102,Cadastroinsumos[],10,TRUE)) -> MT | E102: =IF('Bebedouros '!AB20>0.01,'Bebedouros '!AB20," ") -> 105 | F102: =IF(" "=B102," ",G102*'Negociação '!$L$10%) -> 516.473496 | G102: =IF('Bebedouros '!AF20>0.01,'Bebedouros '!AF20," ") -> 516.473496
B103: =IF('Bebedouros '!AC21>0.1,'Bebedouros '!AC21," ") -> 306 | C103: =IF(B103=" "," ",VLOOKUP(B103,Cadastroinsumos[],2,TRUE)) -> TUBO PVC AGUA FRIA SOLD 32 MM | D103: =IF(B103=" "," ",VLOOKUP(B103,Cadastroinsumos[],10,TRUE)) -> MT | E103: =IF('Bebedouros '!AB21>0.01,'Bebedouros '!AB21," ") -> 111 | F103: =IF(" "=B103," ",G103*'Negociação '!$L$10%) -> 1075.427496 | G103: =IF('Bebedouros '!AF21>0.01,'Bebedouros '!AF21," ") -> 1075.427496
B104: =IF('Bebedouros '!AC22>0.1,'Bebedouros '!AC22," ") -> 340 | C104: =IF(B104=" "," ",VLOOKUP(B104,Cadastroinsumos[],2,TRUE)) -> FITA VEDA ROSCA 18MM X 50 M | D104: =IF(B104=" "," ",VLOOKUP(B104,Cadastroinsumos[],10,TRUE)) -> MT | E104: =IF('Bebedouros '!AB22>0.01,'Bebedouros '!AB22," ") -> 192 | F104: =IF(" "=B104," ",G104*'Negociação '!$L$10%) -> 85.8553344 | G104: =IF('Bebedouros '!AF22>0.01,'Bebedouros '!AF22," ") -> 85.8553344
B105: =IF('Bebedouros '!AC23>0.1,'Bebedouros '!AC23," ") -> 48 | C105: =IF(B105=" "," ",VLOOKUP(B105,Cadastroinsumos[],2,TRUE)) -> REGISTRO ESFERA SOLD 32 MM | D105: =IF(B105=" "," ",VLOOKUP(B105,Cadastroinsumos[],10,TRUE)) -> PC | E105: =IF('Bebedouros '!AB23>0.01,'Bebedouros '!AB23," ") -> 8 | F105: =IF(" "=B105," ",G105*'Negociação '!$L$10%) -> 165.7484928 | G105: =IF('Bebedouros '!AF23>0.01,'Bebedouros '!AF23," ") -> 165.7484928
B106: =IF('Bebedouros '!AC24>0.1,'Bebedouros '!AC24," ") -> 53 | C106: =IF(B106=" "," ",VLOOKUP(B106,Cadastroinsumos[],2,TRUE)) -> JOELHO SOLD 90 32 MM | D106: =IF(B106=" "," ",VLOOKUP(B106,Cadastroinsumos[],10,TRUE)) -> UN | E106: =IF('Bebedouros '!AB24>0.01,'Bebedouros '!AB24," ") -> 4 | F106: =IF(" "=B106," ",G106*'Negociação '!$L$10%) -> 9.5394816 | G106: =IF('Bebedouros '!AF24>0.01,'Bebedouros '!AF24," ") -> 9.5394816
B107: =IF('Bebedouros '!AC25>0.1,'Bebedouros '!AC25," ") -> 810 | C107: =IF(B107=" "," ",VLOOKUP(B107,Cadastroinsumos[],2,TRUE)) -> ADESIVO PLASTICO 175 GR | D107: =IF(B107=" "," ",VLOOKUP(B107,Cadastroinsumos[],10,TRUE)) -> UN | E107: =IF('Bebedouros '!AB25>0.01,'Bebedouros '!AB25," ") -> 1 | F107: =IF(" "=B107," ",G107*'Negociação '!$L$10%) -> 17.886528 | G107: =IF('Bebedouros '!AF25>0.01,'Bebedouros '!AF25," ") -> 17.886528
B108: =IF('Bebedouros '!AC26>0.1,'Bebedouros '!AC26," ") -> 341 | C108: =IF(B108=" "," ",VLOOKUP(B108,Cadastroinsumos[],2,TRUE)) -> LIXA D AGUA 120 | D108: =IF(B108=" "," ",VLOOKUP(B108,Cadastroinsumos[],10,TRUE)) -> UN | E108: =IF('Bebedouros '!AB26>0.01,'Bebedouros '!AB26," ") -> 1 | F108: =IF(" "=B108," ",G108*'Negociação '!$L$10%) -> 2.14638336 | G108: =IF('Bebedouros '!AF26>0.01,'Bebedouros '!AF26," ") -> 2.14638336
B109: =IF('Bebedouros '!AC27>0.1,'Bebedouros '!AC27," ") -> 54 | C109: =IF(B109=" "," ",VLOOKUP(B109,Cadastroinsumos[],2,TRUE)) -> TE SOLD 32 MM | D109: =IF(B109=" "," ",VLOOKUP(B109,Cadastroinsumos[],10,TRUE)) -> PC | E109: =IF('Bebedouros '!AB27>0.01,'Bebedouros '!AB27," ") -> 3 | F109: =IF(" "=B109," ",G109*'Negociação '!$L$10%) -> 11.8498248 | G109: =IF('Bebedouros '!AF27>0.01,'Bebedouros '!AF27," ") -> 11.8498248
B110: =IF('Bebedouros '!AC28>0.1,'Bebedouros '!AC28," ") -> 55 | C110: =IF(B110=" "," ",VLOOKUP(B110,Cadastroinsumos[],2,TRUE)) -> TORNEIRA BOIA 1/2 E 3/4 MASTERFLUX | D110: =IF(B110=" "," ",VLOOKUP(B110,Cadastroinsumos[],10,TRUE)) -> PC | E110: =IF('Bebedouros '!AB28>0.01,'Bebedouros '!AB28," ") -> 2 | F110: =IF(" "=B110," ",G110*'Negociação '!$L$10%) -> 131.167872 | G110: =IF('Bebedouros '!AF28>0.01,'Bebedouros '!AF28," ") -> 131.167872
B111: =IF('Bebedouros '!AC29>0.1,'Bebedouros '!AC29," ") -> 1931 | C111: =IF(B111=" "," ",VLOOKUP(B111,Cadastroinsumos[],2,TRUE)) -> BUCHA REDUCAO SOLD CURTA 60 X 50 | D111: =IF(B111=" "," ",VLOOKUP(B111,Cadastroinsumos[],10,TRUE)) -> UM | E111: =IF('Bebedouros '!AB29>0.01,'Bebedouros '!AB29," ") -> 2 | F111: =IF(" "=B111," ",G111*'Negociação '!$L$10%) -> 9.8375904 | G111: =IF('Bebedouros '!AF29>0.01,'Bebedouros '!AF29," ") -> 9.8375904
B112: =IF('Bebedouros '!AC30>0.1,'Bebedouros '!AC30," ") ->  | C112: =IF(B112=" "," ",VLOOKUP(B112,Cadastroinsumos[],2,TRUE)) ->  | D112: =IF(B112=" "," ",VLOOKUP(B112,Cadastroinsumos[],10,TRUE)) ->  | E112: =IF('Bebedouros '!AB30>0.01,'Bebedouros '!AB30," ") ->  | F112: =IF(" "=B112," ",G112*'Negociação '!$L$10%) ->  | G112: =IF('Bebedouros '!AF30>0.01,'Bebedouros '!AF30," ") -> 
B113: =IF('Bebedouros '!AC31>0.1,'Bebedouros '!AC31," ") ->  | C113: =IF(B113=" "," ",VLOOKUP(B113,Cadastroinsumos[],2,TRUE)) ->  | D113: =IF(B113=" "," ",VLOOKUP(B113,Cadastroinsumos[],10,TRUE)) ->  | E113: =IF('Bebedouros '!AB31>0.01,'Bebedouros '!AB31," ") ->  | F113: =IF(" "=B113," ",G113*'Negociação '!$L$10%) ->  | G113: =IF('Bebedouros '!AF31>0.01,'Bebedouros '!AF31," ") -> 
B114: =IF('Bebedouros '!AC32>0.1,'Bebedouros '!AC32," ") ->  | C114: =IF(B114=" "," ",VLOOKUP(B114,Cadastroinsumos[],2,TRUE)) ->  | D114: =IF(B114=" "," ",VLOOKUP(B114,Cadastroinsumos[],10,TRUE)) ->  | E114: =IF('Bebedouros '!AB32>0.01,'Bebedouros '!AB32," ") ->  | F114: =IF(" "=B114," ",G114*'Negociação '!$L$10%) ->  | G114: =IF('Bebedouros '!AF32>0.01,'Bebedouros '!AF32," ") -> 
B115: =IF('Bebedouros '!AC33>0.1,'Bebedouros '!AC33," ") ->  | C115: =IF(B115=" "," ",VLOOKUP(B115,Cadastroinsumos[],2,TRUE)) ->  | D115: =IF(B115=" "," ",VLOOKUP(B115,Cadastroinsumos[],10,TRUE)) ->  | E115: =IF('Bebedouros '!AB33>0.01,'Bebedouros '!AB33," ") ->  | F115: =IF(" "=B115," ",G115*'Negociação '!$L$10%) ->  | G115: =IF('Bebedouros '!AF33>0.01,'Bebedouros '!AF33," ") -> 
B116: =IF('Bebedouros '!AC34>0.1,'Bebedouros '!AC34," ") ->  | C116: =IF(B116=" "," ",VLOOKUP(B116,Cadastroinsumos[],2,TRUE)) ->  | D116: =IF(B116=" "," ",VLOOKUP(B116,Cadastroinsumos[],10,TRUE)) ->  | E116: =IF('Bebedouros '!AB34>0.01,'Bebedouros '!AB34," ") ->  | F116: =IF(" "=B116," ",G116*'Negociação '!$L$10%) ->  | G116: =IF('Bebedouros '!AF34>0.01,'Bebedouros '!AF34," ") -> 
B117: =IF('Bebedouros '!AC35>0.1,'Bebedouros '!AC35," ") ->  | C117: =IF(B117=" "," ",VLOOKUP(B117,Cadastroinsumos[],2,TRUE)) ->  | D117: =IF(B117=" "," ",VLOOKUP(B117,Cadastroinsumos[],10,TRUE)) ->  | E117: =IF('Bebedouros '!AB35>0.01,'Bebedouros '!AB35," ") ->  | F117: =IF(" "=B117," ",G117*'Negociação '!$L$10%) ->  | G117: =IF('Bebedouros '!AF35>0.01,'Bebedouros '!AF35," ") -> 
B118: =IF('Bebedouros '!AC36>0.1,'Bebedouros '!AC36," ") ->  | C118: =IF(B118=" "," ",VLOOKUP(B118,Cadastroinsumos[],2,TRUE)) ->  | D118: =IF(B118=" "," ",VLOOKUP(B118,Cadastroinsumos[],10,TRUE)) ->  | E118: =IF('Bebedouros '!AB36>0.01,'Bebedouros '!AB36," ") ->  | F118: =IF(" "=B118," ",G118*'Negociação '!$L$10%) ->  | G118: =IF('Bebedouros '!AF36>0.01,'Bebedouros '!AF36," ") -> 
B119: =IF('Bebedouros '!AC37>0.1,'Bebedouros '!AC37," ") ->  | C119: =IF(B119=" "," ",VLOOKUP(B119,Cadastroinsumos[],2,TRUE)) ->  | D119: =IF(B119=" "," ",VLOOKUP(B119,Cadastroinsumos[],10,TRUE)) ->  | E119: =IF('Bebedouros '!AB37>0.01,'Bebedouros '!AB37," ") ->  | F119: =IF(" "=B119," ",G119*'Negociação '!$L$10%) ->  | G119: =IF('Bebedouros '!AF37>0.01,'Bebedouros '!AF37," ") -> 
B120: =IF('Bebedouros '!AC38>0.1,'Bebedouros '!AC38," ") ->  | C120: =IF(B120=" "," ",VLOOKUP(B120,Cadastroinsumos[],2,TRUE)) ->  | D120: =IF(B120=" "," ",VLOOKUP(B120,Cadastroinsumos[],10,TRUE)) ->  | E120: =IF('Bebedouros '!AB38>0.01,'Bebedouros '!AB38," ") ->  | F120: =IF(" "=B120," ",G120*'Negociação '!$L$10%) ->  | G120: =IF('Bebedouros '!AF38>0.01,'Bebedouros '!AF38," ") -> 
B121: =IF('Bebedouros '!AC39>0.1,'Bebedouros '!AC39," ") ->  | C121: =IF(B121=" "," ",VLOOKUP(B121,Cadastroinsumos[],2,TRUE)) ->  | D121: =IF(B121=" "," ",VLOOKUP(B121,Cadastroinsumos[],10,TRUE)) ->  | E121: =IF('Bebedouros '!AB39>0.01,'Bebedouros '!AB39," ") ->  | F121: =IF(" "=B121," ",G121*'Negociação '!$L$10%) ->  | G121: =IF('Bebedouros '!AF39>0.01,'Bebedouros '!AF39," ") -> 
B122: =IF('Bebedouros '!AC40>0.1,'Bebedouros '!AC40," ") ->  | C122: =IF(B122=" "," ",VLOOKUP(B122,Cadastroinsumos[],2,TRUE)) ->  | D122: =IF(B122=" "," ",VLOOKUP(B122,Cadastroinsumos[],10,TRUE)) ->  | E122: =IF('Bebedouros '!AB40>0.01,'Bebedouros '!AB40," ") ->  | F122: =IF(" "=B122," ",G122*'Negociação '!$L$10%) ->  | G122: =IF('Bebedouros '!AF40>0.01,'Bebedouros '!AF40," ") -> 
B123: =IF('Bebedouros '!AC41>0.1,'Bebedouros '!AC41," ") ->  | C123: =IF(B123=" "," ",VLOOKUP(B123,Cadastroinsumos[],2,TRUE)) ->  | D123: =IF(B123=" "," ",VLOOKUP(B123,Cadastroinsumos[],10,TRUE)) ->  | E123: =IF('Bebedouros '!AB41>0.01,'Bebedouros '!AB41," ") ->  | F123: =IF(" "=B123," ",G123*'Negociação '!$L$10%) ->  | G123: =IF('Bebedouros '!AF41>0.01,'Bebedouros '!AF41," ") -> 
B124: =IF('Bebedouros '!AC42>0.1,'Bebedouros '!AC42," ") ->  | C124: =IF(B124=" "," ",VLOOKUP(B124,Cadastroinsumos[],2,TRUE)) ->  | D124: =IF(B124=" "," ",VLOOKUP(B124,Cadastroinsumos[],10,TRUE)) ->  | E124: =IF('Bebedouros '!AB42>0.01,'Bebedouros '!AB42," ") ->  | F124: =IF(" "=B124," ",G124*'Negociação '!$L$10%) ->  | G124: =IF('Bebedouros '!AF42>0.01,'Bebedouros '!AF42," ") -> 
B125: =IF('Bebedouros '!AC43>0.1,'Bebedouros '!AC43," ") ->  | C125: =IF(B125=" "," ",VLOOKUP(B125,Cadastroinsumos[],2,TRUE)) ->  | D125: =IF(B125=" "," ",VLOOKUP(B125,Cadastroinsumos[],10,TRUE)) ->  | E125: =IF('Bebedouros '!AB43>0.01,'Bebedouros '!AB43," ") ->  | F125: =IF(" "=B125," ",G125*'Negociação '!$L$10%) ->  | G125: =IF('Bebedouros '!AF43>0.01,'Bebedouros '!AF43," ") -> 
B126: =IF(F126>0,"=>"," ") -> => | E126: SUBTOTAL | F126: =SUM(F95:F125) -> 8188.461462 | G126: =SUM(G95:G125) -> 8188.461462
B127: =IF(F163>0,"EQUIPAMENTOS COMPLEMENTARES BEBEDOUROS"," ") -> EQUIPAMENTOS COMPLEMENTARES BEBEDOUROS
B128: =IF('Bebedouros '!AC46>0.1,'Bebedouros '!AC46," ") -> 307 | C128: =IF(B128=" "," ",VLOOKUP(B128,Cadastroinsumos[],2,TRUE)) -> TUBO PVC AGUA FRIA SOLD 50 MM | D128: =IF(B128=" "," ",VLOOKUP(B128,Cadastroinsumos[],10,TRUE)) -> MT | E128: =IF('Bebedouros '!AB46>0.01,'Bebedouros '!AB46," ") -> 19.5 | F128: =IF(" "=B128," ",G128*'Negociação '!$L$10%) -> 319.721688 | G128: =IF('Bebedouros '!AF46>0.01,'Bebedouros '!AF46," ") -> 319.721688
B129: =IF('Bebedouros '!AC47>0.1,'Bebedouros '!AC47," ") -> 1339 | C129: =IF(B129=" "," ",VLOOKUP(B129,Cadastroinsumos[],2,TRUE)) -> RESERVATORIO DE POLIETLIENO 5000 LITROS COM TAMPA | D129: =IF(B129=" "," ",VLOOKUP(B129,Cadastroinsumos[],10,TRUE)) -> UN | E129: =IF('Bebedouros '!AB47>0.01,'Bebedouros '!AB47," ") -> 2 | F129: =IF(" "=B129," ",G129*'Negociação '!$L$10%) -> 3655.410106 | G129: =IF('Bebedouros '!AF47>0.01,'Bebedouros '!AF47," ") -> 3655.410106
B130: =IF('Bebedouros '!AC48>0.1,'Bebedouros '!AC48," ") -> 54 | C130: =IF(B130=" "," ",VLOOKUP(B130,Cadastroinsumos[],2,TRUE)) -> TE SOLD 32 MM | D130: =IF(B130=" "," ",VLOOKUP(B130,Cadastroinsumos[],10,TRUE)) -> PC | E130: =IF('Bebedouros '!AB48>0.01,'Bebedouros '!AB48," ") -> 2 | F130: =IF(" "=B130," ",G130*'Negociação '!$L$10%) -> 7.8998832 | G130: =IF('Bebedouros '!AF48>0.01,'Bebedouros '!AF48," ") -> 7.8998832
B131: =IF('Bebedouros '!AC49>0.1,'Bebedouros '!AC49," ") -> 55 | C131: =IF(B131=" "," ",VLOOKUP(B131,Cadastroinsumos[],2,TRUE)) -> TORNEIRA BOIA 1/2 E 3/4 MASTERFLUX | D131: =IF(B131=" "," ",VLOOKUP(B131,Cadastroinsumos[],10,TRUE)) -> PC | E131: =IF('Bebedouros '!AB49>0.01,'Bebedouros '!AB49," ") -> 1 | F131: =IF(" "=B131," ",G131*'Negociação '!$L$10%) -> 65.583936 | G131: =IF('Bebedouros '!AF49>0.01,'Bebedouros '!AF49," ") -> 65.583936
B132: =IF('Bebedouros '!AC50>0.1,'Bebedouros '!AC50," ") -> 196 | C132: =IF(B132=" "," ",VLOOKUP(B132,Cadastroinsumos[],2,TRUE)) -> FLANGE SOLD 50 MM | D132: =IF(B132=" "," ",VLOOKUP(B132,Cadastroinsumos[],10,TRUE)) -> UN | E132: =IF('Bebedouros '!AB50>0.01,'Bebedouros '!AB50," ") -> 2 | F132: =IF(" "=B132," ",G132*'Negociação '!$L$10%) -> 38.754144 | G132: =IF('Bebedouros '!AF50>0.01,'Bebedouros '!AF50," ") -> 38.754144
B133: =IF('Bebedouros '!AC51>0.1,'Bebedouros '!AC51," ") -> 52 | C133: =IF(B133=" "," ",VLOOKUP(B133,Cadastroinsumos[],2,TRUE)) -> REGISTRO ESFERA SOLD 50 MM | D133: =IF(B133=" "," ",VLOOKUP(B133,Cadastroinsumos[],10,TRUE)) -> PC | E133: =IF('Bebedouros '!AB51>0.01,'Bebedouros '!AB51," ") -> 3 | F133: =IF(" "=B133," ",G133*'Negociação '!$L$10%) -> 90.9977112 | G133: =IF('Bebedouros '!AF51>0.01,'Bebedouros '!AF51," ") -> 90.9977112
B134: =IF('Bebedouros '!AC52>0.1,'Bebedouros '!AC52," ") -> 190 | C134: =IF(B134=" "," ",VLOOKUP(B134,Cadastroinsumos[],2,TRUE)) -> TE SOLD 50 MM | D134: =IF(B134=" "," ",VLOOKUP(B134,Cadastroinsumos[],10,TRUE)) -> UN | E134: =IF('Bebedouros '!AB52>0.01,'Bebedouros '!AB52," ") -> 5 | F134: =IF(" "=B134," ",G134*'Negociação '!$L$10%) -> 50.678496 | G134: =IF('Bebedouros '!AF52>0.01,'Bebedouros '!AF52," ") -> 50.678496
B135: =IF('Bebedouros '!AC53>0.1,'Bebedouros '!AC53," ") -> 191 | C135: =IF(B135=" "," ",VLOOKUP(B135,Cadastroinsumos[],2,TRUE)) -> FLANGE SOLD 32 MM X 1 | D135: =IF(B135=" "," ",VLOOKUP(B135,Cadastroinsumos[],10,TRUE)) -> UN | E135: =IF('Bebedouros '!AB53>0.01,'Bebedouros '!AB53," ") -> 1 | F135: =IF(" "=B135," ",G135*'Negociação '!$L$10%) -> 22.9543776 | G135: =IF('Bebedouros '!AF53>0.01,'Bebedouros '!AF53," ") -> 22.9543776
B136: =IF('Bebedouros '!AC54>0.1,'Bebedouros '!AC54," ") -> 53 | C136: =IF(B136=" "," ",VLOOKUP(B136,Cadastroinsumos[],2,TRUE)) -> JOELHO SOLD 90 32 MM | D136: =IF(B136=" "," ",VLOOKUP(B136,Cadastroinsumos[],10,TRUE)) -> UN | E136: =IF('Bebedouros '!AB54>0.01,'Bebedouros '!AB54," ") -> 4 | F136: =IF(" "=B136," ",G136*'Negociação '!$L$10%) -> 9.5394816 | G136: =IF('Bebedouros '!AF54>0.01,'Bebedouros '!AF54," ") -> 9.5394816
B137: =IF('Bebedouros '!AC55>0.1,'Bebedouros '!AC55," ") -> 210 | C137: =IF(B137=" "," ",VLOOKUP(B137,Cadastroinsumos[],2,TRUE)) -> JOELHO SOLD 90 50 MM | D137: =IF(B137=" "," ",VLOOKUP(B137,Cadastroinsumos[],10,TRUE)) -> UN | E137: =IF('Bebedouros '!AB55>0.01,'Bebedouros '!AB55," ") -> 4 | F137: =IF(" "=B137," ",G137*'Negociação '!$L$10%) -> 19.377072 | G137: =IF('Bebedouros '!AF55>0.01,'Bebedouros '!AF55," ") -> 19.377072
B138: =IF('Bebedouros '!AC56>0.1,'Bebedouros '!AC56," ") -> 213 | C138: =IF(B138=" "," ",VLOOKUP(B138,Cadastroinsumos[],2,TRUE)) -> JOELHO SOLD 45 50 MM | D138: =IF(B138=" "," ",VLOOKUP(B138,Cadastroinsumos[],10,TRUE)) -> UN | E138: =IF('Bebedouros '!AB56>0.01,'Bebedouros '!AB56," ") -> 4 | F138: =IF(" "=B138," ",G138*'Negociação '!$L$10%) -> 31.301424 | G138: =IF('Bebedouros '!AF56>0.01,'Bebedouros '!AF56," ") -> 31.301424
B139: =IF('Bebedouros '!AC57>0.1,'Bebedouros '!AC57," ") -> 56 | C139: =IF(B139=" "," ",VLOOKUP(B139,Cadastroinsumos[],2,TRUE)) -> BUCHA REDUCAO SOLD CURTA 50 X 40 MM | D139: =IF(B139=" "," ",VLOOKUP(B139,Cadastroinsumos[],10,TRUE)) -> PC | E139: =IF('Bebedouros '!AB57>0.01,'Bebedouros '!AB57," ") -> 2 | F139: =IF(" "=B139," ",G139*'Negociação '!$L$10%) -> 7.45272 | G139: =IF('Bebedouros '!AF57>0.01,'Bebedouros '!AF57," ") -> 7.45272
B140: =IF('Bebedouros '!AC58>0.1,'Bebedouros '!AC58," ") -> 51 | C140: =IF(B140=" "," ",VLOOKUP(B140,Cadastroinsumos[],2,TRUE)) -> BUCHA REDUCAO SOLD CURTA 40 X 32 MM | D140: =IF(B140=" "," ",VLOOKUP(B140,Cadastroinsumos[],10,TRUE)) -> UM | E140: =IF('Bebedouros '!AB58>0.01,'Bebedouros '!AB58," ") -> 2 | F140: =IF(" "=B140," ",G140*'Negociação '!$L$10%) -> 4.7697408 | G140: =IF('Bebedouros '!AF58>0.01,'Bebedouros '!AF58," ") -> 4.7697408
B141: =IF('Bebedouros '!AC59>0.1,'Bebedouros '!AC59," ") ->  | C141: =IF(B141=" "," ",VLOOKUP(B141,Cadastroinsumos[],2,TRUE)) ->  | D141: =IF(B141=" "," ",VLOOKUP(B141,Cadastroinsumos[],10,TRUE)) ->  | E141: =IF('Bebedouros '!AB59>0.01,'Bebedouros '!AB59," ") ->  | F141: =IF(" "=B141," ",G141*'Negociação '!$L$10%) ->  | G141: =IF('Bebedouros '!AF59>0.01,'Bebedouros '!AF59," ") -> 
B142: =IF('Bebedouros '!AC60>0.1,'Bebedouros '!AC60," ") -> 942 | C142: =IF(B142=" "," ",VLOOKUP(B142,Cadastroinsumos[],2,TRUE)) -> CONJUNTO DOSADOR DE CLORO | D142: =IF(B142=" "," ",VLOOKUP(B142,Cadastroinsumos[],10,TRUE)) -> CJ | E142: =IF('Bebedouros '!AB60>0.01,'Bebedouros '!AB60," ") -> 1 | F142: =IF(" "=B142," ",G142*'Negociação '!$L$10%) -> 570.505716 | G142: =IF('Bebedouros '!AF60>0.01,'Bebedouros '!AF60," ") -> 570.505716
B143: =IF('Bebedouros '!AC61>0.1,'Bebedouros '!AC61," ") ->  | C143: =IF(B143=" "," ",VLOOKUP(B143,Cadastroinsumos[],2,TRUE)) ->  | D143: =IF(B143=" "," ",VLOOKUP(B143,Cadastroinsumos[],10,TRUE)) ->  | E143: =IF('Bebedouros '!AB61>0.01,'Bebedouros '!AB61," ") ->  | F143: =IF(" "=B143," ",G143*'Negociação '!$L$10%) ->  | G143: =IF('Bebedouros '!AF61>0.01,'Bebedouros '!AF61," ") -> 
B144: =IF('Bebedouros '!AC62>0.1,'Bebedouros '!AC62," ") ->  | C144: =IF(B144=" "," ",VLOOKUP(B144,Cadastroinsumos[],2,TRUE)) ->  | D144: =IF(B144=" "," ",VLOOKUP(B144,Cadastroinsumos[],10,TRUE)) ->  | E144: =IF('Bebedouros '!AB62>0.01,'Bebedouros '!AB62," ") ->  | F144: =IF(" "=B144," ",G144*'Negociação '!$L$10%) ->  | G144: =IF('Bebedouros '!AF62>0.01,'Bebedouros '!AF62," ") -> 
B145: =IF('Bebedouros '!AC63>0.1,'Bebedouros '!AC63," ") ->  | C145: =IF(B145=" "," ",VLOOKUP(B145,Cadastroinsumos[],2,TRUE)) ->  | D145: =IF(B145=" "," ",VLOOKUP(B145,Cadastroinsumos[],10,TRUE)) ->  | E145: =IF('Bebedouros '!AB63>0.01,'Bebedouros '!AB63," ") ->  | F145: =IF(" "=B145," ",G145*'Negociação '!$L$10%) ->  | G145: =IF('Bebedouros '!AF63>0.01,'Bebedouros '!AF63," ") -> 
B146: =IF('Bebedouros '!AC64>0.1,'Bebedouros '!AC64," ") ->  | C146: =IF(B146=" "," ",VLOOKUP(B146,Cadastroinsumos[],2,TRUE)) ->  | D146: =IF(B146=" "," ",VLOOKUP(B146,Cadastroinsumos[],10,TRUE)) ->  | E146: =IF('Bebedouros '!AB64>0.01,'Bebedouros '!AB64," ") ->  | F146: =IF(" "=B146," ",G146*'Negociação '!$L$10%) ->  | G146: =IF('Bebedouros '!AF64>0.01,'Bebedouros '!AF64," ") -> 
B147: =IF('Bebedouros '!AC65>0.1,'Bebedouros '!AC65," ") ->  | C147: =IF(B147=" "," ",VLOOKUP(B147,Cadastroinsumos[],2,TRUE)) ->  | D147: =IF(B147=" "," ",VLOOKUP(B147,Cadastroinsumos[],10,TRUE)) ->  | E147: =IF('Bebedouros '!AB65>0.01,'Bebedouros '!AB65," ") ->  | F147: =IF(" "=B147," ",G147*'Negociação '!$L$10%) ->  | G147: =IF('Bebedouros '!AF65>0.01,'Bebedouros '!AF65," ") -> 
B148: =IF('Bebedouros '!AC66>0.1,'Bebedouros '!AC66," ") ->  | C148: =IF(B148=" "," ",VLOOKUP(B148,Cadastroinsumos[],2,TRUE)) ->  | D148: =IF(B148=" "," ",VLOOKUP(B148,Cadastroinsumos[],10,TRUE)) ->  | E148: =IF('Bebedouros '!AB66>0.01,'Bebedouros '!AB66," ") ->  | F148: =IF(" "=B148," ",G148*'Negociação '!$L$10%) ->  | G148: =IF('Bebedouros '!AF66>0.01,'Bebedouros '!AF66," ") -> 
B149: =IF('Bebedouros '!AC67>0.1,'Bebedouros '!AC67," ") ->  | C149: =IF(B149=" "," ",VLOOKUP(B149,Cadastroinsumos[],2,TRUE)) ->  | D149: =IF(B149=" "," ",VLOOKUP(B149,Cadastroinsumos[],10,TRUE)) ->  | E149: =IF('Bebedouros '!AB67>0.01,'Bebedouros '!AB67," ") ->  | F149: =IF(" "=B149," ",G149*'Negociação '!$L$10%) ->  | G149: =IF('Bebedouros '!AF67>0.01,'Bebedouros '!AF67," ") -> 
B150: =IF('Bebedouros '!AC68>0.1,'Bebedouros '!AC68," ") ->  | C150: =IF(B150=" "," ",VLOOKUP(B150,Cadastroinsumos[],2,TRUE)) ->  | D150: =IF(B150=" "," ",VLOOKUP(B150,Cadastroinsumos[],10,TRUE)) ->  | E150: =IF('Bebedouros '!AB68>0.01,'Bebedouros '!AB68," ") ->  | F150: =IF(" "=B150," ",G150*'Negociação '!$L$10%) ->  | G150: =IF('Bebedouros '!AF68>0.01,'Bebedouros '!AF68," ") -> 
B151: =IF('Bebedouros '!AC69>0.1,'Bebedouros '!AC69," ") ->  | C151: =IF(B151=" "," ",VLOOKUP(B151,Cadastroinsumos[],2,TRUE)) ->  | D151: =IF(B151=" "," ",VLOOKUP(B151,Cadastroinsumos[],10,TRUE)) ->  | E151: =IF('Bebedouros '!AB69>0.01,'Bebedouros '!AB69," ") ->  | F151: =IF(" "=B151," ",G151*'Negociação '!$L$10%) ->  | G151: =IF('Bebedouros '!AF69>0.01,'Bebedouros '!AF69," ") -> 
B152: =IF('Bebedouros '!AC70>0.1,'Bebedouros '!AC70," ") ->  | C152: =IF(B152=" "," ",VLOOKUP(B152,Cadastroinsumos[],2,TRUE)) ->  | D152: =IF(B152=" "," ",VLOOKUP(B152,Cadastroinsumos[],10,TRUE)) ->  | E152: =IF('Bebedouros '!AB70>0.01,'Bebedouros '!AB70," ") ->  | F152: =IF(" "=B152," ",G152*'Negociação '!$L$10%) ->  | G152: =IF('Bebedouros '!AF70>0.01,'Bebedouros '!AF70," ") -> 
B153: =IF('Bebedouros '!AC71>0.1,'Bebedouros '!AC71," ") ->  | C153: =IF(B153=" "," ",VLOOKUP(B153,Cadastroinsumos[],2,TRUE)) ->  | D153: =IF(B153=" "," ",VLOOKUP(B153,Cadastroinsumos[],10,TRUE)) ->  | E153: =IF('Bebedouros '!AB71>0.01,'Bebedouros '!AB71," ") ->  | F153: =IF(" "=B153," ",G153*'Negociação '!$L$10%) ->  | G153: =IF('Bebedouros '!AF71>0.01,'Bebedouros '!AF71," ") -> 
B154: =IF('Bebedouros '!AC72>0.1,'Bebedouros '!AC72," ") ->  | C154: =IF(B154=" "," ",VLOOKUP(B154,Cadastroinsumos[],2,TRUE)) ->  | D154: =IF(B154=" "," ",VLOOKUP(B154,Cadastroinsumos[],10,TRUE)) ->  | E154: =IF('Bebedouros '!AB72>0.01,'Bebedouros '!AB72," ") ->  | F154: =IF(" "=B154," ",G154*'Negociação '!$L$10%) ->  | G154: =IF('Bebedouros '!AF72>0.01,'Bebedouros '!AF72," ") -> 
B155: =IF('Bebedouros '!AC73>0.1,'Bebedouros '!AC73," ") ->  | C155: =IF(B155=" "," ",VLOOKUP(B155,Cadastroinsumos[],2,TRUE)) ->  | D155: =IF(B155=" "," ",VLOOKUP(B155,Cadastroinsumos[],10,TRUE)) ->  | E155: =IF('Bebedouros '!AB73>0.01,'Bebedouros '!AB73," ") ->  | F155: =IF(" "=B155," ",G155*'Negociação '!$L$10%) ->  | G155: =IF('Bebedouros '!AF73>0.01,'Bebedouros '!AF73," ") -> 
B156: =IF('Bebedouros '!AC74>0.1,'Bebedouros '!AC74," ") ->  | C156: =IF(B156=" "," ",VLOOKUP(B156,Cadastroinsumos[],2,TRUE)) ->  | D156: =IF(B156=" "," ",VLOOKUP(B156,Cadastroinsumos[],10,TRUE)) ->  | E156: =IF('Bebedouros '!AB74>0.01,'Bebedouros '!AB74," ") ->  | F156: =IF(" "=B156," ",G156*'Negociação '!$L$10%) ->  | G156: =IF('Bebedouros '!AF74>0.01,'Bebedouros '!AF74," ") -> 
B157: =IF('Bebedouros '!AC75>0.1,'Bebedouros '!AC75," ") ->  | C157: =IF(B157=" "," ",VLOOKUP(B157,Cadastroinsumos[],2,TRUE)) ->  | D157: =IF(B157=" "," ",VLOOKUP(B157,Cadastroinsumos[],10,TRUE)) ->  | E157: =IF('Bebedouros '!AB75>0.01,'Bebedouros '!AB75," ") ->  | F157: =IF(" "=B157," ",G157*'Negociação '!$L$10%) ->  | G157: =IF('Bebedouros '!AF75>0.01,'Bebedouros '!AF75," ") -> 
B158: =IF('Bebedouros '!AC76>0.1,'Bebedouros '!AC76," ") ->  | C158: =IF(B158=" "," ",VLOOKUP(B158,Cadastroinsumos[],2,TRUE)) ->  | D158: =IF(B158=" "," ",VLOOKUP(B158,Cadastroinsumos[],10,TRUE)) ->  | E158: =IF('Bebedouros '!AB76>0.01,'Bebedouros '!AB76," ") ->  | F158: =IF(" "=B158," ",G158*'Negociação '!$L$10%) ->  | G158: =IF('Bebedouros '!AF76>0.01,'Bebedouros '!AF76," ") -> 
B159: =IF('Bebedouros '!AC77>0.1,'Bebedouros '!AC77," ") ->  | C159: =IF(B159=" "," ",VLOOKUP(B159,Cadastroinsumos[],2,TRUE)) ->  | D159: =IF(B159=" "," ",VLOOKUP(B159,Cadastroinsumos[],10,TRUE)) ->  | E159: =IF('Bebedouros '!AB77>0.01,'Bebedouros '!AB77," ") ->  | F159: =IF(" "=B159," ",G159*'Negociação '!$L$10%) ->  | G159: =IF('Bebedouros '!AF77>0.01,'Bebedouros '!AF77," ") -> 
B160: =IF('Bebedouros '!AC78>0.1,'Bebedouros '!AC78," ") ->  | C160: =IF(B160=" "," ",VLOOKUP(B160,Cadastroinsumos[],2,TRUE)) ->  | D160: =IF(B160=" "," ",VLOOKUP(B160,Cadastroinsumos[],10,TRUE)) ->  | E160: =IF('Bebedouros '!AB78>0.01,'Bebedouros '!AB78," ") ->  | F160: =IF(" "=B160," ",G160*'Negociação '!$L$10%) ->  | G160: =IF('Bebedouros '!AF78>0.01,'Bebedouros '!AF78," ") -> 
B161: =IF('Bebedouros '!AC79>0.1,'Bebedouros '!AC79," ") ->  | C161: =IF(B161=" "," ",VLOOKUP(B161,Cadastroinsumos[],2,TRUE)) ->  | D161: =IF(B161=" "," ",VLOOKUP(B161,Cadastroinsumos[],10,TRUE)) ->  | E161: =IF('Bebedouros '!AB79>0.01,'Bebedouros '!AB79," ") ->  | F161: =IF(" "=B161," ",G161*'Negociação '!$L$10%) ->  | G161: =IF('Bebedouros '!AF79>0.01,'Bebedouros '!AF79," ") -> 
B162: =IF('Bebedouros '!AC80>0.1,'Bebedouros '!AC80," ") ->  | C162: =IF(B162=" "," ",VLOOKUP(B162,Cadastroinsumos[],2,TRUE)) ->  | D162: =IF(B162=" "," ",VLOOKUP(B162,Cadastroinsumos[],10,TRUE)) ->  | E162: =IF('Bebedouros '!AB80>0.01,'Bebedouros '!AB80," ") ->  | F162: =IF(" "=B162," ",G162*'Negociação '!$L$10%) ->  | G162: =IF('Bebedouros '!AF80>0.01,'Bebedouros '!AF80," ") -> 
B163: =IF(F163>0,"=>"," ") -> => | E163: SUBTOTAL | F163: =SUM(F128:F162) -> 4894.946496 | G163: =SUM(G128:G162) -> 4894.946496
B164: =IF(F168>0,"LONA DE ESTERQUEIRA"," ") -> 
B165: =IF(Outros!AB14>0.01,Outros!AB14," ") -> 1 | C165: =IF(B165=" "," ",VLOOKUP(B165,Cadastroinsumos[],2,TRUE)) -> RESERVATORIO EM PEAD 0,08 MM | D165: =IF(B165=" "," ",VLOOKUP(B165,Cadastroinsumos[],10,TRUE)) -> M² | E165: =IF(Outros!AA14>0.01,Outros!AA14," ") ->  | F165: =IF(" "=B165," ",G165*'Negociação '!$L$10%) ->  | G165: =IF(Outros!AG14>0.01,Outros!AG14," ") -> 
B166: =IF(Outros!AB15>0.01,Outros!AB15," ") ->  | C166: =IF(B166=" "," ",VLOOKUP(B166,Cadastroinsumos[],2,TRUE)) ->  | D166: =IF(B166=" "," ",VLOOKUP(B166,Cadastroinsumos[],10,TRUE)) ->  | E166: =IF(Outros!AA15>0.01,Outros!AA15," ") ->  | F166: =IF(" "=B166," ",G166*'Negociação '!$L$10%) ->  | G166: =IF(Outros!AG15>0.01,Outros!AG15," ") -> 
B167: =IF(Outros!AB16>0.01,Outros!AB16," ") ->  | C167: =IF(B167=" "," ",VLOOKUP(B167,Cadastroinsumos[],2,TRUE)) ->  | D167: =IF(B167=" "," ",VLOOKUP(B167,Cadastroinsumos[],10,TRUE)) ->  | E167: =IF(Outros!AA16>0.01,Outros!AA16," ") ->  | F167: =IF(" "=B167," ",G167*'Negociação '!$L$10%) ->  | G167: =IF(Outros!AG16>0.01,Outros!AG16," ") -> 
B168: =IF(F168>0,"=>"," ") ->  | E168: SUBTOTAL | F168: =SUM(F165:F167) ->  | G168: =SUM(G165:G167) -> 0
B169: =IF(F173>0,"AQUECIMENTO"," ") -> 
B170: =IF(Outros!AB21>0.01,Outros!AB21," ") ->  | C170: =IF(B170=" "," ",VLOOKUP(B170,Cadastroinsumos[],2,TRUE)) ->  | D170: =IF(B170=" "," ",VLOOKUP(B170,Cadastroinsumos[],10,TRUE)) ->  | E170: =IF(Outros!AA21>0.01,Outros!AA21," ") -> 1 | F170: =IF(" "=B170," ",G170*'Negociação '!$L$10%) ->  | G170: =IF(Outros!AG21>0.01,Outros!AG21," ") -> 
B171: =IF(Outros!AB22>0.01,Outros!AB22," ") ->  | C171: =IF(B171=" "," ",VLOOKUP(B171,Cadastroinsumos[],2,TRUE)) ->  | D171: =IF(B171=" "," ",VLOOKUP(B171,Cadastroinsumos[],10,TRUE)) ->  | E171: =IF(Outros!AA22>0.01,Outros!AA22," ") ->  | F171: =IF(" "=B171," ",G171*'Negociação '!$L$10%) ->  | G171: =IF(Outros!AG22>0.01,Outros!AG22," ") -> 
B172: =IF(Outros!AB23>0.01,Outros!AB23," ") ->  | C172: =IF(B172=" "," ",VLOOKUP(B172,Cadastroinsumos[],2,TRUE)) ->  | D172: =IF(B172=" "," ",VLOOKUP(B172,Cadastroinsumos[],10,TRUE)) ->  | E172: =IF(Outros!AA23>0.01,Outros!AA23," ") ->  | F172: =IF(" "=B172," ",G172*'Negociação '!$L$10%) ->  | G172: =IF(Outros!AG23>0.01,Outros!AG23," ") -> 
B173: =IF(F173>0,"=>"," ") ->  | E173: SUBTOTAL | F173: =SUM(F170:F172) -> 0 | G173: =SUM(G170:G172) -> 
B174: =IF(F191>0,"OUTROS (Lona, Aquecimento e Nebolização)"," ") -> 
B175: =IF(Outros!AB28>0.01,Outros!AB28," ") ->  | C175: =IF(B175=" "," ",VLOOKUP(B175,Cadastroinsumos[],2,TRUE)) ->  | D175: =IF(B175=" "," ",VLOOKUP(B175,Cadastroinsumos[],10,TRUE)) ->  | E175: =IF(Outros!AA28>0.01,Outros!AA28," ") -> 1 | F175: =IF(" "=B175," ",G175*'Negociação '!$L$10%) ->  | G175: =IF(Outros!AG28>0.01,Outros!AG28," ") -> 
B176: =IF(Outros!AB29>0.01,Outros!AB29," ") ->  | C176: =IF(B176=" "," ",VLOOKUP(B176,Cadastroinsumos[],2,TRUE)) ->  | D176: =IF(B176=" "," ",VLOOKUP(B176,Cadastroinsumos[],10,TRUE)) ->  | E176: =IF(Outros!AA29>0.01,Outros!AA29," ") ->  | F176: =IF(" "=B176," ",G176*'Negociação '!$L$10%) ->  | G176: =IF(Outros!AG29>0.01,Outros!AG29," ") -> 
B177: =IF(Outros!AB30>0.01,Outros!AB30," ") ->  | C177: =IF(B177=" "," ",VLOOKUP(B177,Cadastroinsumos[],2,TRUE)) ->  | D177: =IF(B177=" "," ",VLOOKUP(B177,Cadastroinsumos[],10,TRUE)) ->  | E177: =IF(Outros!AA30>0.01,Outros!AA30," ") ->  | F177: =IF(" "=B177," ",G177*'Negociação '!$L$10%) ->  | G177: =IF(Outros!AG30>0.01,Outros!AG30," ") -> 
B178: =IF(Outros!AB31>0.01,Outros!AB31," ") ->  | C178: =IF(B178=" "," ",VLOOKUP(B178,Cadastroinsumos[],2,TRUE)) ->  | D178: =IF(B178=" "," ",VLOOKUP(B178,Cadastroinsumos[],10,TRUE)) ->  | E178: =IF(Outros!AA31>0.01,Outros!AA31," ") ->  | F178: =IF(" "=B178," ",G178*'Negociação '!$L$10%) ->  | G178: =IF(Outros!AG31>0.01,Outros!AG31," ") -> 
B179: =IF(Outros!AB32>0.01,Outros!AB32," ") ->  | C179: =IF(B179=" "," ",VLOOKUP(B179,Cadastroinsumos[],2,TRUE)) ->  | D179: =IF(B179=" "," ",VLOOKUP(B179,Cadastroinsumos[],10,TRUE)) ->  | E179: =IF(Outros!AA32>0.01,Outros!AA32," ") ->  | F179: =IF(" "=B179," ",G179*'Negociação '!$L$10%) ->  | G179: =IF(Outros!AG32>0.01,Outros!AG32," ") -> 
B180: =IF(Outros!AB33>0.01,Outros!AB33," ") ->  | C180: =IF(B180=" "," ",VLOOKUP(B180,Cadastroinsumos[],2,TRUE)) ->  | D180: =IF(B180=" "," ",VLOOKUP(B180,Cadastroinsumos[],10,TRUE)) ->  | E180: =IF(Outros!AA33>0.01,Outros!AA33," ") ->  | F180: =IF(" "=B180," ",G180*'Negociação '!$L$10%) ->  | G180: =IF(Outros!AG33>0.01,Outros!AG33," ") -> 
B181: =IF(Outros!AB34>0.01,Outros!AB34," ") ->  | C181: =IF(B181=" "," ",VLOOKUP(B181,Cadastroinsumos[],2,TRUE)) ->  | D181: =IF(B181=" "," ",VLOOKUP(B181,Cadastroinsumos[],10,TRUE)) ->  | E181: =IF(Outros!AA34>0.01,Outros!AA34," ") ->  | F181: =IF(" "=B181," ",G181*'Negociação '!$L$10%) ->  | G181: =IF(Outros!AG34>0.01,Outros!AG34," ") -> 
B182: =IF(Outros!AB35>0.01,Outros!AB35," ") ->  | C182: =IF(B182=" "," ",VLOOKUP(B182,Cadastroinsumos[],2,TRUE)) ->  | D182: =IF(B182=" "," ",VLOOKUP(B182,Cadastroinsumos[],10,TRUE)) ->  | E182: =IF(Outros!AA35>0.01,Outros!AA35," ") ->  | F182: =IF(" "=B182," ",G182*'Negociação '!$L$10%) ->  | G182: =IF(Outros!AG35>0.01,Outros!AG35," ") -> 
B183: =IF(Outros!AB36>0.01,Outros!AB36," ") ->  | C183: =IF(B183=" "," ",VLOOKUP(B183,Cadastroinsumos[],2,TRUE)) ->  | D183: =IF(B183=" "," ",VLOOKUP(B183,Cadastroinsumos[],10,TRUE)) ->  | E183: =IF(Outros!AA36>0.01,Outros!AA36," ") ->  | F183: =IF(" "=B183," ",G183*'Negociação '!$L$10%) ->  | G183: =IF(Outros!AG36>0.01,Outros!AG36," ") -> 
B184: =IF(Outros!AB37>0.01,Outros!AB37," ") ->  | C184: =IF(B184=" "," ",VLOOKUP(B184,Cadastroinsumos[],2,TRUE)) ->  | D184: =IF(B184=" "," ",VLOOKUP(B184,Cadastroinsumos[],10,TRUE)) ->  | E184: =IF(Outros!AA37>0.01,Outros!AA37," ") ->  | F184: =IF(" "=B184," ",G184*'Negociação '!$L$10%) ->  | G184: =IF(Outros!AG37>0.01,Outros!AG37," ") -> 
B185: =IF(Outros!AB38>0.01,Outros!AB38," ") ->  | C185: =IF(B185=" "," ",VLOOKUP(B185,Cadastroinsumos[],2,TRUE)) ->  | D185: =IF(B185=" "," ",VLOOKUP(B185,Cadastroinsumos[],10,TRUE)) ->  | E185: =IF(Outros!AA38>0.01,Outros!AA38," ") ->  | F185: =IF(" "=B185," ",G185*'Negociação '!$L$10%) ->  | G185: =IF(Outros!AG38>0.01,Outros!AG38," ") -> 
B186: =IF(Outros!AB39>0.01,Outros!AB39," ") ->  | C186: =IF(B186=" "," ",VLOOKUP(B186,Cadastroinsumos[],2,TRUE)) ->  | D186: =IF(B186=" "," ",VLOOKUP(B186,Cadastroinsumos[],10,TRUE)) ->  | E186: =IF(Outros!AA39>0.01,Outros!AA39," ") ->  | F186: =IF(" "=B186," ",G186*'Negociação '!$L$10%) ->  | G186: =IF(Outros!AG39>0.01,Outros!AG39," ") -> 
B187: =IF(Outros!AB40>0.01,Outros!AB40," ") ->  | C187: =IF(B187=" "," ",VLOOKUP(B187,Cadastroinsumos[],2,TRUE)) ->  | D187: =IF(B187=" "," ",VLOOKUP(B187,Cadastroinsumos[],10,TRUE)) ->  | E187: =IF(Outros!AA40>0.01,Outros!AA40," ") ->  | F187: =IF(" "=B187," ",G187*'Negociação '!$L$10%) ->  | G187: =IF(Outros!AG40>0.01,Outros!AG40," ") -> 
B188: =IF(Outros!AB41>0.01,Outros!AB41," ") ->  | C188: =IF(B188=" "," ",VLOOKUP(B188,Cadastroinsumos[],2,TRUE)) ->  | D188: =IF(B188=" "," ",VLOOKUP(B188,Cadastroinsumos[],10,TRUE)) ->  | E188: =IF(Outros!AA41>0.01,Outros!AA41," ") ->  | F188: =IF(" "=B188," ",G188*'Negociação '!$L$10%) ->  | G188: =IF(Outros!AG41>0.01,Outros!AG41," ") -> 
B189: =IF(Outros!AB42>0.01,Outros!AB42," ") ->  | C189: =IF(B189=" "," ",VLOOKUP(B189,Cadastroinsumos[],2,TRUE)) ->  | D189: =IF(B189=" "," ",VLOOKUP(B189,Cadastroinsumos[],10,TRUE)) ->  | E189: =IF(Outros!AA42>0.01,Outros!AA42," ") ->  | F189: =IF(" "=B189," ",G189*'Negociação '!$L$10%) ->  | G189: =IF(Outros!AG42>0.01,Outros!AG42," ") -> 
B190: =IF(Outros!AB43>0.01,Outros!AB43," ") ->  | C190: =IF(B190=" "," ",VLOOKUP(B190,Cadastroinsumos[],2,TRUE)) ->  | D190: =IF(B190=" "," ",VLOOKUP(B190,Cadastroinsumos[],10,TRUE)) ->  | E190: =IF(Outros!AA43>0.01,Outros!AA43," ") ->  | F190: =IF(" "=B190," ",G190*'Negociação '!$L$10%) ->  | G190: =IF(Outros!AG43>0.01,Outros!AG43," ") -> 
B191: =IF(F191>0,"=>"," ") ->  | E191: SUBTOTAL | F191: =SUM(F175:F190) -> 0 | G191: =SUM(G176:G190) -> 0
B192: =IF(F239>0,"ARMAZENAGEM E RAÇÃO"," ") -> 
B193: =IF(ArmazenagemRação!AC13>0.01,ArmazenagemRação!AC13," ") -> 453 | C193: =IF(B193=" "," ",VLOOKUP(B193,Cadastroinsumos[],2,TRUE)) -> SILO 2,75 1,5 A 6 P 14,00 M³ | D193: =IF(B193=" "," ",VLOOKUP(B193,Cadastroinsumos[],10,TRUE)) -> CJ | E193: =IF(ArmazenagemRação!AB13>0.01,ArmazenagemRação!AB13," ") ->  | F193: =IF(" "=B193," ",G193*'Negociação '!$L$10%) ->  | G193: =IF(ArmazenagemRação!AF13>0.01,ArmazenagemRação!AF13," ") -> 
B194: =IF(ArmazenagemRação!AC14>0.01,ArmazenagemRação!AC14," ") ->  | C194: =IF(B194=" "," ",VLOOKUP(B194,Cadastroinsumos[],2,TRUE)) ->  | D194: =IF(B194=" "," ",VLOOKUP(B194,Cadastroinsumos[],10,TRUE)) ->  | E194: =IF(ArmazenagemRação!AB14>0.01,ArmazenagemRação!AB14," ") ->  | F194: =IF(" "=B194," ",G194*'Negociação '!$L$10%) ->  | G194: =IF(ArmazenagemRação!AF14>0.01,ArmazenagemRação!AF14," ") -> 
B195: =IF(ArmazenagemRação!AC15>0.01,ArmazenagemRação!AC15," ") ->  | C195: =IF(B195=" "," ",VLOOKUP(B195,Cadastroinsumos[],2,TRUE)) ->  | D195: =IF(B195=" "," ",VLOOKUP(B195,Cadastroinsumos[],10,TRUE)) ->  | E195: =IF(ArmazenagemRação!AB15>0.01,ArmazenagemRação!AB15," ") ->  | F195: =IF(" "=B195," ",G195*'Negociação '!$L$10%) ->  | G195: =IF(ArmazenagemRação!AF15>0.01,ArmazenagemRação!AF15," ") -> 
B196: =IF(ArmazenagemRação!AC16>0.01,ArmazenagemRação!AC16," ") ->  | C196: =IF(B196=" "," ",VLOOKUP(B196,Cadastroinsumos[],2,TRUE)) ->  | D196: =IF(B196=" "," ",VLOOKUP(B196,Cadastroinsumos[],10,TRUE)) ->  | E196: =IF(ArmazenagemRação!AB16>0.01,ArmazenagemRação!AB16," ") ->  | F196: =IF(" "=B196," ",G196*'Negociação '!$L$10%) ->  | G196: =IF(ArmazenagemRação!AF16>0.01,ArmazenagemRação!AF16," ") -> 
B197: =IF(ArmazenagemRação!AC17>0.01,ArmazenagemRação!AC17," ") ->  | C197: =IF(B197=" "," ",VLOOKUP(B197,Cadastroinsumos[],2,TRUE)) ->  | D197: =IF(B197=" "," ",VLOOKUP(B197,Cadastroinsumos[],10,TRUE)) ->  | E197: =IF(ArmazenagemRação!AB17>0.01,ArmazenagemRação!AB17," ") ->  | F197: =IF(" "=B197," ",G197*'Negociação '!$L$10%) ->  | G197: =IF(ArmazenagemRação!AF17>0.01,ArmazenagemRação!AF17," ") -> 
B198: =IF(ArmazenagemRação!AC18>0.01,ArmazenagemRação!AC18," ") ->  | C198: =IF(B198=" "," ",VLOOKUP(B198,Cadastroinsumos[],2,TRUE)) ->  | D198: =IF(B198=" "," ",VLOOKUP(B198,Cadastroinsumos[],10,TRUE)) ->  | E198: =IF(ArmazenagemRação!AB18>0.01,ArmazenagemRação!AB18," ") ->  | F198: =IF(" "=B198," ",G198*'Negociação '!$L$10%) ->  | G198: =IF(ArmazenagemRação!AF18>0.01,ArmazenagemRação!AF18," ") -> 
B199: =IF(ArmazenagemRação!AC19>0.01,ArmazenagemRação!AC19," ") ->  | C199: =IF(B199=" "," ",VLOOKUP(B199,Cadastroinsumos[],2,TRUE)) ->  | D199: =IF(B199=" "," ",VLOOKUP(B199,Cadastroinsumos[],10,TRUE)) ->  | E199: =IF(ArmazenagemRação!AB19>0.01,ArmazenagemRação!AB19," ") ->  | F199: =IF(" "=B199," ",G199*'Negociação '!$L$10%) ->  | G199: =IF(ArmazenagemRação!AF19>0.01,ArmazenagemRação!AF19," ") -> 
B200: =IF(ArmazenagemRação!AC20>0.01,ArmazenagemRação!AC20," ") ->  | C200: =IF(B200=" "," ",VLOOKUP(B200,Cadastroinsumos[],2,TRUE)) ->  | D200: =IF(B200=" "," ",VLOOKUP(B200,Cadastroinsumos[],10,TRUE)) ->  | E200: =IF(ArmazenagemRação!AB20>0.01,ArmazenagemRação!AB20," ") ->  | F200: =IF(" "=B200," ",G200*'Negociação '!$L$10%) ->  | G200: =IF(ArmazenagemRação!AF20>0.01,ArmazenagemRação!AF20," ") -> 
B201: =IF(ArmazenagemRação!AC21>0.01,ArmazenagemRação!AC21," ") ->  | C201: =IF(B201=" "," ",VLOOKUP(B201,Cadastroinsumos[],2,TRUE)) ->  | D201: =IF(B201=" "," ",VLOOKUP(B201,Cadastroinsumos[],10,TRUE)) ->  | E201: =IF(ArmazenagemRação!AB21>0.01,ArmazenagemRação!AB21," ") ->  | F201: =IF(" "=B201," ",G201*'Negociação '!$L$10%) ->  | G201: =IF(ArmazenagemRação!AF21>0.01,ArmazenagemRação!AF21," ") -> 
B202: =IF(ArmazenagemRação!AC22>0.01,ArmazenagemRação!AC22," ") ->  | C202: =IF(B202=" "," ",VLOOKUP(B202,Cadastroinsumos[],2,TRUE)) ->  | D202: =IF(B202=" "," ",VLOOKUP(B202,Cadastroinsumos[],10,TRUE)) ->  | E202: =IF(ArmazenagemRação!AB22>0.01,ArmazenagemRação!AB22," ") ->  | F202: =IF(" "=B202," ",G202*'Negociação '!$L$10%) ->  | G202: =IF(ArmazenagemRação!AF22>0.01,ArmazenagemRação!AF22," ") -> 
B203: =IF(ArmazenagemRação!AC23>0.01,ArmazenagemRação!AC23," ") -> 398 | C203: =IF(B203=" "," ",VLOOKUP(B203,Cadastroinsumos[],2,TRUE)) -> PAINEL CONTROLE MF 220 V 60 HZ PLAST P/ CORREIA 24 VCA (422) | D203: =IF(B203=" "," ",VLOOKUP(B203,Cadastroinsumos[],10,TRUE)) -> UN | E203: =IF(ArmazenagemRação!AB23>0.01,ArmazenagemRação!AB23," ") ->  | F203: =IF(" "=B203," ",G203*'Negociação '!$L$10%) ->  | G203: =IF(ArmazenagemRação!AF23>0.01,ArmazenagemRação!AF23," ") -> 
B204: =IF(ArmazenagemRação!AC24>0.01,ArmazenagemRação!AC24," ") ->  | C204: =IF(B204=" "," ",VLOOKUP(B204,Cadastroinsumos[],2,TRUE)) ->  | D204: =IF(B204=" "," ",VLOOKUP(B204,Cadastroinsumos[],10,TRUE)) ->  | E204: =IF(ArmazenagemRação!AB24>0.01,ArmazenagemRação!AB24," ") ->  | F204: =IF(" "=B204," ",G204*'Negociação '!$L$10%) ->  | G204: =IF(ArmazenagemRação!AF24>0.01,ArmazenagemRação!AF24," ") -> 
B205: =IF(ArmazenagemRação!AC25>0.01,ArmazenagemRação!AC25," ") ->  | C205: =IF(B205=" "," ",VLOOKUP(B205,Cadastroinsumos[],2,TRUE)) ->  | D205: =IF(B205=" "," ",VLOOKUP(B205,Cadastroinsumos[],10,TRUE)) ->  | E205: =IF(ArmazenagemRação!AB25>0.01,ArmazenagemRação!AB25," ") ->  | F205: =IF(" "=B205," ",G205*'Negociação '!$L$10%) ->  | G205: =IF(ArmazenagemRação!AF25>0.01,ArmazenagemRação!AF25," ") -> 
B206: =IF(ArmazenagemRação!AC26>0.01,ArmazenagemRação!AC26," ") ->  | C206: =IF(B206=" "," ",VLOOKUP(B206,Cadastroinsumos[],2,TRUE)) ->  | D206: =IF(B206=" "," ",VLOOKUP(B206,Cadastroinsumos[],10,TRUE)) ->  | E206: =IF(ArmazenagemRação!AB26>0.01,ArmazenagemRação!AB26," ") ->  | F206: =IF(" "=B206," ",G206*'Negociação '!$L$10%) ->  | G206: =IF(ArmazenagemRação!AF26>0.01,ArmazenagemRação!AF26," ") -> 
B207: =IF(ArmazenagemRação!AC27>0.01,ArmazenagemRação!AC27," ") ->  | C207: =IF(B207=" "," ",VLOOKUP(B207,Cadastroinsumos[],2,TRUE)) ->  | D207: =IF(B207=" "," ",VLOOKUP(B207,Cadastroinsumos[],10,TRUE)) ->  | E207: =IF(ArmazenagemRação!AB27>0.01,ArmazenagemRação!AB27," ") ->  | F207: =IF(" "=B207," ",G207*'Negociação '!$L$10%) ->  | G207: =IF(ArmazenagemRação!AF27>0.01,ArmazenagemRação!AF27," ") -> 
... 192 more rows

Sheet ConsultaItens
A4: COD | B4: DESCRIÇÃO | C4: UN | D4: GRUPO | E4: FORNECEDOR | F4: CUSTO DE COMPRA | G4: PREÇO DE COMPRA AJUSTADO | H4: PREÇO DE VENDA | I4: PREÇO DE VENDA 2 | J4: Coluna1 | K4: Coluna5 | L4: Coluna6 | M4: Coluna7 | N4: Coluna8 | O4: Coluna9 | P4: Coluna10 | Q4: COD ID | R4: COD 2
A5: =IF(TABELA_PRECO!A4=" "," ",TABELA_PRECO!A4) -> 1 | B5: =IF(TABELA_PRECO!B4=" "," ",TABELA_PRECO!B4) -> RESERVATORIO EM PEAD 0,08 MM | C5: =IF(TABELA_PRECO!C4=" "," ",TABELA_PRECO!C4) -> M² | D5: =IF(TABELA_PRECO!D4=" "," ",TABELA_PRECO!D4) -> EQUIPAMENTOS DIVERSOS | E5: =IF(TABELA_PRECO!E4=" "," ",TABELA_PRECO!E4) -> BIOTER | F5: =IF(TABELA_PRECO!F4=" "," ",TABELA_PRECO!F4) -> 21.5 | G5: =IF(TABELA_PRECO!G4=" "," ",TABELA_PRECO!G4) -> 25.37 | H5: =IF(TABELA_PRECO!H4=" "," ",TABELA_PRECO!H4) -> 32.046696 | I5: =IF(TABELA_PRECO!I4=" "," ",TABELA_PRECO!I4) -> 28.38 | J5: =IF(TABELA_PRECO!J4=" "," ",TABELA_PRECO!J4) -> 26.112782 | K5: =IF(TABELA_PRECO!P4=" "," ",TABELA_PRECO!P4) -> 10.546696 | L5: =IF(TABELA_PRECO!Q4=" "," ",TABELA_PRECO!Q4) -> 6.88 | M5: =IF(TABELA_PRECO!R4=" "," ",TABELA_PRECO!R4) -> 4.085 | N5: =IF(TABELA_PRECO!T4=" "," ",TABELA_PRECO!T4) -> 1.362633123 | O5: =IF(TABELA_PRECO!Y4=" "," ",TABELA_PRECO!Y4) -> 32.9104005 | P5: =IF(TABELA_PRECO!Z4=" "," ",TABELA_PRECO!Z4) -> 24.24242424 | Q5: =IF(TABELA_PRECO!AA4=" "," ",TABELA_PRECO!AA4) -> 1 | R5: =IF(TABELA_PRECO!AB4=" "," ",TABELA_PRECO!AB4) -> 0
A6: =IF(TABELA_PRECO!A5=" "," ",TABELA_PRECO!A5) -> 2 | B6: =IF(TABELA_PRECO!B5=" "," ",TABELA_PRECO!B5) -> CATRACA C/ ROSETA P/ EST.ARAME LISO | C6: =IF(TABELA_PRECO!C5=" "," ",TABELA_PRECO!C5) -> UN | D6: =IF(TABELA_PRECO!D5=" "," ",TABELA_PRECO!D5) -> CORTINADO-FORRAÇÃO | E6: =IF(TABELA_PRECO!E5=" "," ",TABELA_PRECO!E5) -> ICOFEPAR | F6: =IF(TABELA_PRECO!F5=" "," ",TABELA_PRECO!F5) -> 6.5 | G6: =IF(TABELA_PRECO!G5=" "," ",TABELA_PRECO!G5) -> 7.67 | H6: =IF(TABELA_PRECO!H5=" "," ",TABELA_PRECO!H5) -> 9.688536 | I6: =IF(TABELA_PRECO!I5=" "," ",TABELA_PRECO!I5) -> 8.58 | J6: =IF(TABELA_PRECO!J5=" "," ",TABELA_PRECO!J5) -> 7.894562 | K6: =IF(TABELA_PRECO!P5=" "," ",TABELA_PRECO!P5) -> 3.188536 | L6: =IF(TABELA_PRECO!Q5=" "," ",TABELA_PRECO!Q5) -> 2.08 | M6: =IF(TABELA_PRECO!R5=" "," ",TABELA_PRECO!R5) -> 1.235 | N6: =IF(TABELA_PRECO!T5=" "," ",TABELA_PRECO!T5) -> 0.4119588512 | O6: =IF(TABELA_PRECO!Y5=" "," ",TABELA_PRECO!Y5) -> 32.9104005 | P6: =IF(TABELA_PRECO!Z5=" "," ",TABELA_PRECO!Z5) -> 24.24242424 | Q6: =IF(TABELA_PRECO!AA5=" "," ",TABELA_PRECO!AA5) -> 2
A7: =IF(TABELA_PRECO!A6=" "," ",TABELA_PRECO!A6) -> 3 | B7: =IF(TABELA_PRECO!B6=" "," ",TABELA_PRECO!B6) -> TELA PLASTICA N4 2,0 X 50 M | C7: =IF(TABELA_PRECO!C6=" "," ",TABELA_PRECO!C6) -> M² | D7: =IF(TABELA_PRECO!D6=" "," ",TABELA_PRECO!D6) -> EQUIPAMENTOS DIVERSOS | E7: =IF(TABELA_PRECO!E6=" "," ",TABELA_PRECO!E6) -> TEC ROMA | F7: =IF(TABELA_PRECO!F6=" "," ",TABELA_PRECO!F6) -> 1 | G7: =IF(TABELA_PRECO!G6=" "," ",TABELA_PRECO!G6) -> 1.18 | H7: =IF(TABELA_PRECO!H6=" "," ",TABELA_PRECO!H6) -> 1.490544 | I7: =IF(TABELA_PRECO!I6=" "," ",TABELA_PRECO!I6) -> 1.32 | J7: =IF(TABELA_PRECO!J6=" "," ",TABELA_PRECO!J6) -> 1.214548 | K7: =IF(TABELA_PRECO!P6=" "," ",TABELA_PRECO!P6) -> 0.490544 | L7: =IF(TABELA_PRECO!Q6=" "," ",TABELA_PRECO!Q6) -> 0.32 | M7: =IF(TABELA_PRECO!R6=" "," ",TABELA_PRECO!R6) -> 0.19 | N7: =IF(TABELA_PRECO!T6=" "," ",TABELA_PRECO!T6) -> 0.0633782848 | O7: =IF(TABELA_PRECO!Y6=" "," ",TABELA_PRECO!Y6) -> 32.9104005 | P7: =IF(TABELA_PRECO!Z6=" "," ",TABELA_PRECO!Z6) -> 24.24242424 | Q7: =IF(TABELA_PRECO!AA6=" "," ",TABELA_PRECO!AA6) -> 3
A8: =IF(TABELA_PRECO!A7=" "," ",TABELA_PRECO!A7) -> 5 | B8: =IF(TABELA_PRECO!B7=" "," ",TABELA_PRECO!B7) -> ENGATE FLEXIVEL 50CM | C8: =IF(TABELA_PRECO!C7=" "," ",TABELA_PRECO!C7) -> PC | D8: =IF(TABELA_PRECO!D7=" "," ",TABELA_PRECO!D7) -> HIDRÁULICO | E8: =IF(TABELA_PRECO!E7=" "," ",TABELA_PRECO!E7) -> KRONA / FORTLEV | F8: =IF(TABELA_PRECO!F7=" "," ",TABELA_PRECO!F7) -> 1.86 | G8: =IF(TABELA_PRECO!G7=" "," ",TABELA_PRECO!G7) -> 2.1948 | H8: =IF(TABELA_PRECO!H7=" "," ",TABELA_PRECO!H7) -> 2.77241184 | I8: =IF(TABELA_PRECO!I7=" "," ",TABELA_PRECO!I7) -> 2.4552 | J8: =IF(TABELA_PRECO!J7=" "," ",TABELA_PRECO!J7) -> 2.25905928 | K8: =IF(TABELA_PRECO!P7=" "," ",TABELA_PRECO!P7) -> 0.91241184 | L8: =IF(TABELA_PRECO!Q7=" "," ",TABELA_PRECO!Q7) -> 0.5952 | M8: =IF(TABELA_PRECO!R7=" "," ",TABELA_PRECO!R7) -> 0.3534 | N8: =IF(TABELA_PRECO!T7=" "," ",TABELA_PRECO!T7) -> 0.1178836097 | O8: =IF(TABELA_PRECO!Y7=" "," ",TABELA_PRECO!Y7) -> 32.9104005 | P8: =IF(TABELA_PRECO!Z7=" "," ",TABELA_PRECO!Z7) -> 24.24242424 | Q8: =IF(TABELA_PRECO!AA7=" "," ",TABELA_PRECO!AA7) -> 5
A9: =IF(TABELA_PRECO!A8=" "," ",TABELA_PRECO!A8) -> 6 | B9: =IF(TABELA_PRECO!B8=" "," ",TABELA_PRECO!B8) -> LUVA L/R 32X1 | C9: =IF(TABELA_PRECO!C8=" "," ",TABELA_PRECO!C8) -> UM | D9: =IF(TABELA_PRECO!D8=" "," ",TABELA_PRECO!D8) -> HIDRÁULICO | E9: =IF(TABELA_PRECO!E8=" "," ",TABELA_PRECO!E8) -> KRONA / FORTLEV | F9: =IF(TABELA_PRECO!F8=" "," ",TABELA_PRECO!F8) -> 3.9 | G9: =IF(TABELA_PRECO!G8=" "," ",TABELA_PRECO!G8) -> 4.602 | H9: =IF(TABELA_PRECO!H8=" "," ",TABELA_PRECO!H8) -> 5.8131216 | I9: =IF(TABELA_PRECO!I8=" "," ",TABELA_PRECO!I8) -> 5.148 | J9: =IF(TABELA_PRECO!J8=" "," ",TABELA_PRECO!J8) -> 4.7367372 | K9: =IF(TABELA_PRECO!P8=" "," ",TABELA_PRECO!P8) -> 1.9131216 | L9: =IF(TABELA_PRECO!Q8=" "," ",TABELA_PRECO!Q8) -> 1.248 | M9: =IF(TABELA_PRECO!R8=" "," ",TABELA_PRECO!R8) -> 0.741 | N9: =IF(TABELA_PRECO!T8=" "," ",TABELA_PRECO!T8) -> 0.2471753107 | O9: =IF(TABELA_PRECO!Y8=" "," ",TABELA_PRECO!Y8) -> 32.9104005 | P9: =IF(TABELA_PRECO!Z8=" "," ",TABELA_PRECO!Z8) -> 24.24242424 | Q9: =IF(TABELA_PRECO!AA8=" "," ",TABELA_PRECO!AA8) -> 6
A10: =IF(TABELA_PRECO!A9=" "," ",TABELA_PRECO!A9) -> 7 | B10: =IF(TABELA_PRECO!B9=" "," ",TABELA_PRECO!B9) -> PAINEL CONTROLE MF 220 V 60 HZ PLAST 24 VCA(4-6.3)(3541) | C10: =IF(TABELA_PRECO!C9=" "," ",TABELA_PRECO!C9) -> UN | D10: =IF(TABELA_PRECO!D9=" "," ",TABELA_PRECO!D9) -> EQUIPAMENTOS BIG DUTCHMAN | E10: =IF(TABELA_PRECO!E9=" "," ",TABELA_PRECO!E9) -> BIG DUTCHMAN | F10: =IF(TABELA_PRECO!F9=" "," ",TABELA_PRECO!F9) -> 450 | G10: =IF(TABELA_PRECO!G9=" "," ",TABELA_PRECO!G9) -> 531 | H10: =IF(TABELA_PRECO!H9=" "," ",TABELA_PRECO!H9) -> 670.7448 | I10: =IF(TABELA_PRECO!I9=" "," ",TABELA_PRECO!I9) -> 594 | J10: =IF(TABELA_PRECO!J9=" "," ",TABELA_PRECO!J9) -> 546.5466 | K10: =IF(TABELA_PRECO!P9=" "," ",TABELA_PRECO!P9) -> 220.7448 | L10: =IF(TABELA_PRECO!Q9=" "," ",TABELA_PRECO!Q9) -> 144 | M10: =IF(TABELA_PRECO!R9=" "," ",TABELA_PRECO!R9) -> 85.5 | N10: =IF(TABELA_PRECO!T9=" "," ",TABELA_PRECO!T9) -> 28.52022816 | O10: =IF(TABELA_PRECO!Y9=" "," ",TABELA_PRECO!Y9) -> 32.9104005 | P10: =IF(TABELA_PRECO!Z9=" "," ",TABELA_PRECO!Z9) -> 24.24242424 | Q10: =IF(TABELA_PRECO!AA9=" "," ",TABELA_PRECO!AA9) -> 7
A11: =IF(TABELA_PRECO!A10=" "," ",TABELA_PRECO!A10) -> 8 | B11: =IF(TABELA_PRECO!B10=" "," ",TABELA_PRECO!B10) -> ADAPTADOR CURTO COM BOLSA E ROSCA 20 X 1/2 | C11: =IF(TABELA_PRECO!C10=" "," ",TABELA_PRECO!C10) -> UN | D11: =IF(TABELA_PRECO!D10=" "," ",TABELA_PRECO!D10) -> HIDRÁULICO | E11: =IF(TABELA_PRECO!E10=" "," ",TABELA_PRECO!E10) -> KRONA / FORTLEV | F11: =IF(TABELA_PRECO!F10=" "," ",TABELA_PRECO!F10) -> 0.4 | G11: =IF(TABELA_PRECO!G10=" "," ",TABELA_PRECO!G10) -> 0.472 | H11: =IF(TABELA_PRECO!H10=" "," ",TABELA_PRECO!H10) -> 0.5962176 | I11: =IF(TABELA_PRECO!I10=" "," ",TABELA_PRECO!I10) -> 0.528 | J11: =IF(TABELA_PRECO!J10=" "," ",TABELA_PRECO!J10) -> 0.4858192 | K11: =IF(TABELA_PRECO!P10=" "," ",TABELA_PRECO!P10) -> 0.1962176 | L11: =IF(TABELA_PRECO!Q10=" "," ",TABELA_PRECO!Q10) -> 0.128 | M11: =IF(TABELA_PRECO!R10=" "," ",TABELA_PRECO!R10) -> 0.076 | N11: =IF(TABELA_PRECO!T10=" "," ",TABELA_PRECO!T10) -> 0.02535131392 | O11: =IF(TABELA_PRECO!Y10=" "," ",TABELA_PRECO!Y10) -> 32.9104005 | P11: =IF(TABELA_PRECO!Z10=" "," ",TABELA_PRECO!Z10) -> 24.24242424 | Q11: =IF(TABELA_PRECO!AA10=" "," ",TABELA_PRECO!AA10) -> 8
A12: =IF(TABELA_PRECO!A11=" "," ",TABELA_PRECO!A11) -> 9 | B12: =IF(TABELA_PRECO!B11=" "," ",TABELA_PRECO!B11) -> JOELHO SOLD 90 25 MM | C12: =IF(TABELA_PRECO!C11=" "," ",TABELA_PRECO!C11) -> UN | D12: =IF(TABELA_PRECO!D11=" "," ",TABELA_PRECO!D11) -> HIDRÁULICO | E12: =IF(TABELA_PRECO!E11=" "," ",TABELA_PRECO!E11) -> KRONA / FORTLEV | F12: =IF(TABELA_PRECO!F11=" "," ",TABELA_PRECO!F11) -> 0.45 | G12: =IF(TABELA_PRECO!G11=" "," ",TABELA_PRECO!G11) -> 0.531 | H12: =IF(TABELA_PRECO!H11=" "," ",TABELA_PRECO!H11) -> 0.6707448 | I12: =IF(TABELA_PRECO!I11=" "," ",TABELA_PRECO!I11) -> 0.594 | J12: =IF(TABELA_PRECO!J11=" "," ",TABELA_PRECO!J11) -> 0.5465466 | K12: =IF(TABELA_PRECO!P11=" "," ",TABELA_PRECO!P11) -> 0.2207448 | L12: =IF(TABELA_PRECO!Q11=" "," ",TABELA_PRECO!Q11) -> 0.144 | M12: =IF(TABELA_PRECO!R11=" "," ",TABELA_PRECO!R11) -> 0.0855 | N12: =IF(TABELA_PRECO!T11=" "," ",TABELA_PRECO!T11) -> 0.02852022816 | O12: =IF(TABELA_PRECO!Y11=" "," ",TABELA_PRECO!Y11) -> 32.9104005 | P12: =IF(TABELA_PRECO!Z11=" "," ",TABELA_PRECO!Z11) -> 24.24242424 | Q12: =IF(TABELA_PRECO!AA11=" "," ",TABELA_PRECO!AA11) -> 9
A13: =IF(TABELA_PRECO!A12=" "," ",TABELA_PRECO!A12) -> 10 | B13: =IF(TABELA_PRECO!B12=" "," ",TABELA_PRECO!B12) -> CURVA SOLD 90 20 MM | C13: =IF(TABELA_PRECO!C12=" "," ",TABELA_PRECO!C12) -> UN | D13: =IF(TABELA_PRECO!D12=" "," ",TABELA_PRECO!D12) -> HIDRÁULICO | E13: =IF(TABELA_PRECO!E12=" "," ",TABELA_PRECO!E12) -> KRONA / FORTLEV | F13: =IF(TABELA_PRECO!F12=" "," ",TABELA_PRECO!F12) -> 1.65 | G13: =IF(TABELA_PRECO!G12=" "," ",TABELA_PRECO!G12) -> 1.947 | H13: =IF(TABELA_PRECO!H12=" "," ",TABELA_PRECO!H12) -> 2.4593976 | I13: =IF(TABELA_PRECO!I12=" "," ",TABELA_PRECO!I12) -> 2.178 | J13: =IF(TABELA_PRECO!J12=" "," ",TABELA_PRECO!J12) -> 2.0040042 | K13: =IF(TABELA_PRECO!P12=" "," ",TABELA_PRECO!P12) -> 0.8093976 | L13: =IF(TABELA_PRECO!Q12=" "," ",TABELA_PRECO!Q12) -> 0.528 | M13: =IF(TABELA_PRECO!R12=" "," ",TABELA_PRECO!R12) -> 0.3135 | N13: =IF(TABELA_PRECO!T12=" "," ",TABELA_PRECO!T12) -> 0.1045741699 | O13: =IF(TABELA_PRECO!Y12=" "," ",TABELA_PRECO!Y12) -> 32.9104005 | P13: =IF(TABELA_PRECO!Z12=" "," ",TABELA_PRECO!Z12) -> 24.24242424 | Q13: =IF(TABELA_PRECO!AA12=" "," ",TABELA_PRECO!AA12) -> 10
A14: =IF(TABELA_PRECO!A13=" "," ",TABELA_PRECO!A13) -> 11 | B14: =IF(TABELA_PRECO!B13=" "," ",TABELA_PRECO!B13) -> ABRACADEIRA TIPO U 3/4 | C14: =IF(TABELA_PRECO!C13=" "," ",TABELA_PRECO!C13) -> UN | D14: =IF(TABELA_PRECO!D13=" "," ",TABELA_PRECO!D13) -> HIDRÁULICO | E14: =IF(TABELA_PRECO!E13=" "," ",TABELA_PRECO!E13) -> DEPECIL | F14: =IF(TABELA_PRECO!F13=" "," ",TABELA_PRECO!F13) -> 0.1783 | G14: =IF(TABELA_PRECO!G13=" "," ",TABELA_PRECO!G13) -> 0.210394 | H14: =IF(TABELA_PRECO!H13=" "," ",TABELA_PRECO!H13) -> 0.2657639952 | I14: =IF(TABELA_PRECO!I13=" "," ",TABELA_PRECO!I13) -> 0.235356 | J14: =IF(TABELA_PRECO!J13=" "," ",TABELA_PRECO!J13) -> 0.2165539084 | K14: =IF(TABELA_PRECO!P13=" "," ",TABELA_PRECO!P13) -> 0.0874639952 | L14: =IF(TABELA_PRECO!Q13=" "," ",TABELA_PRECO!Q13) -> 0.057056 | M14: =IF(TABELA_PRECO!R13=" "," ",TABELA_PRECO!R13) -> 0.033877 | N14: =IF(TABELA_PRECO!T13=" "," ",TABELA_PRECO!T13) -> 0.01130034818 | O14: =IF(TABELA_PRECO!Y13=" "," ",TABELA_PRECO!Y13) -> 32.9104005 | P14: =IF(TABELA_PRECO!Z13=" "," ",TABELA_PRECO!Z13) -> 24.24242424 | Q14: =IF(TABELA_PRECO!AA13=" "," ",TABELA_PRECO!AA13) -> 11
A15: =IF(TABELA_PRECO!A14=" "," ",TABELA_PRECO!A14) -> 22 | B15: =IF(TABELA_PRECO!B14=" "," ",TABELA_PRECO!B14) -> TERMINAL S.ISOL A.N 3114 | C15: =IF(TABELA_PRECO!C14=" "," ",TABELA_PRECO!C14) -> UN | D15: =IF(TABELA_PRECO!D14=" "," ",TABELA_PRECO!D14) -> CORTINADO-FORRAÇÃO | E15: =IF(TABELA_PRECO!E14=" "," ",TABELA_PRECO!E14) -> CRIMPER | F15: =IF(TABELA_PRECO!F14=" "," ",TABELA_PRECO!F14) -> 1.4 | G15: =IF(TABELA_PRECO!G14=" "," ",TABELA_PRECO!G14) -> 1.652 | H15: =IF(TABELA_PRECO!H14=" "," ",TABELA_PRECO!H14) -> 2.0867616 | I15: =IF(TABELA_PRECO!I14=" "," ",TABELA_PRECO!I14) -> 1.848 | J15: =IF(TABELA_PRECO!J14=" "," ",TABELA_PRECO!J14) -> 1.7003672 | K15: =IF(TABELA_PRECO!P14=" "," ",TABELA_PRECO!P14) -> 0.6867616 | L15: =IF(TABELA_PRECO!Q14=" "," ",TABELA_PRECO!Q14) -> 0.448 | M15: =IF(TABELA_PRECO!R14=" "," ",TABELA_PRECO!R14) -> 0.266 | N15: =IF(TABELA_PRECO!T14=" "," ",TABELA_PRECO!T14) -> 0.08872959872 | O15: =IF(TABELA_PRECO!Y14=" "," ",TABELA_PRECO!Y14) -> 32.9104005 | P15: =IF(TABELA_PRECO!Z14=" "," ",TABELA_PRECO!Z14) -> 24.24242424 | Q15: =IF(TABELA_PRECO!AA14=" "," ",TABELA_PRECO!AA14) -> 22
A16: =IF(TABELA_PRECO!A15=" "," ",TABELA_PRECO!A15) -> 23 | B16: =IF(TABELA_PRECO!B15=" "," ",TABELA_PRECO!B15) -> CONE POLIETILENO TR 200 | C16: =IF(TABELA_PRECO!C15=" "," ",TABELA_PRECO!C15) -> UN | D16: =IF(TABELA_PRECO!D15=" "," ",TABELA_PRECO!D15) -> EQUIPAMENTOS DIVERSOS | E16: =IF(TABELA_PRECO!E15=" "," ",TABELA_PRECO!E15) -> CRE | F16: =IF(TABELA_PRECO!F15=" "," ",TABELA_PRECO!F15) -> 370 | G16: =IF(TABELA_PRECO!G15=" "," ",TABELA_PRECO!G15) -> 436.6 | H16: =IF(TABELA_PRECO!H15=" "," ",TABELA_PRECO!H15) -> 551.50128 | I16: =IF(TABELA_PRECO!I15=" "," ",TABELA_PRECO!I15) -> 488.4 | J16: =IF(TABELA_PRECO!J15=" "," ",TABELA_PRECO!J15) -> 449.38276 | K16: =IF(TABELA_PRECO!P15=" "," ",TABELA_PRECO!P15) -> 181.50128 | L16: =IF(TABELA_PRECO!Q15=" "," ",TABELA_PRECO!Q15) -> 118.4 | M16: =IF(TABELA_PRECO!R15=" "," ",TABELA_PRECO!R15) -> 70.3 | N16: =IF(TABELA_PRECO!T15=" "," ",TABELA_PRECO!T15) -> 23.44996538 | O16: =IF(TABELA_PRECO!Y15=" "," ",TABELA_PRECO!Y15) -> 32.9104005 | P16: =IF(TABELA_PRECO!Z15=" "," ",TABELA_PRECO!Z15) -> 24.24242424 | Q16: =IF(TABELA_PRECO!AA15=" "," ",TABELA_PRECO!AA15) -> 23
A17: =IF(TABELA_PRECO!A16=" "," ",TABELA_PRECO!A16) -> 24 | B17: =IF(TABELA_PRECO!B16=" "," ",TABELA_PRECO!B16) -> COMEDOURO PL 2 VERMELHO | C17: =IF(TABELA_PRECO!C16=" "," ",TABELA_PRECO!C16) -> UN | D17: =IF(TABELA_PRECO!D16=" "," ",TABELA_PRECO!D16) -> EQUIPAMENTOS DIVERSOS | E17: =IF(TABELA_PRECO!E16=" "," ",TABELA_PRECO!E16) -> CRE | F17: =IF(TABELA_PRECO!F16=" "," ",TABELA_PRECO!F16) -> 25 | G17: =IF(TABELA_PRECO!G16=" "," ",TABELA_PRECO!G16) -> 29.5 | H17: =IF(TABELA_PRECO!H16=" "," ",TABELA_PRECO!H16) -> 37.2636 | I17: =IF(TABELA_PRECO!I16=" "," ",TABELA_PRECO!I16) -> 33 | J17: =IF(TABELA_PRECO!J16=" "," ",TABELA_PRECO!J16) -> 30.3637 | K17: =IF(TABELA_PRECO!P16=" "," ",TABELA_PRECO!P16) -> 12.2636 | L17: =IF(TABELA_PRECO!Q16=" "," ",TABELA_PRECO!Q16) -> 8 | M17: =IF(TABELA_PRECO!R16=" "," ",TABELA_PRECO!R16) -> 4.75 | N17: =IF(TABELA_PRECO!T16=" "," ",TABELA_PRECO!T16) -> 1.58445712 | O17: =IF(TABELA_PRECO!Y16=" "," ",TABELA_PRECO!Y16) -> 32.9104005 | P17: =IF(TABELA_PRECO!Z16=" "," ",TABELA_PRECO!Z16) -> 24.24242424 | Q17: =IF(TABELA_PRECO!AA16=" "," ",TABELA_PRECO!AA16) -> 24
A18: =IF(TABELA_PRECO!A17=" "," ",TABELA_PRECO!A17) -> 25 | B18: =IF(TABELA_PRECO!B17=" "," ",TABELA_PRECO!B17) -> PARAFUSO 3/8 X 3/4 NC | C18: =IF(TABELA_PRECO!C17=" "," ",TABELA_PRECO!C17) -> UN | D18: =IF(TABELA_PRECO!D17=" "," ",TABELA_PRECO!D17) -> CORTINADO-FORRAÇÃO | E18: =IF(TABELA_PRECO!E17=" "," ",TABELA_PRECO!E17) -> COREMMA | F18: =IF(TABELA_PRECO!F17=" "," ",TABELA_PRECO!F17) -> 0.21 | G18: =IF(TABELA_PRECO!G17=" "," ",TABELA_PRECO!G17) -> 0.2478 | H18: =IF(TABELA_PRECO!H17=" "," ",TABELA_PRECO!H17) -> 0.31301424 | I18: =IF(TABELA_PRECO!I17=" "," ",TABELA_PRECO!I17) -> 0.2772 | J18: =IF(TABELA_PRECO!J17=" "," ",TABELA_PRECO!J17) -> 0.25505508 | K18: =IF(TABELA_PRECO!P17=" "," ",TABELA_PRECO!P17) -> 0.10301424 | L18: =IF(TABELA_PRECO!Q17=" "," ",TABELA_PRECO!Q17) -> 0.0672 | M18: =IF(TABELA_PRECO!R17=" "," ",TABELA_PRECO!R17) -> 0.0399 | N18: =IF(TABELA_PRECO!T17=" "," ",TABELA_PRECO!T17) -> 0.01330943981 | O18: =IF(TABELA_PRECO!Y17=" "," ",TABELA_PRECO!Y17) -> 32.9104005 | P18: =IF(TABELA_PRECO!Z17=" "," ",TABELA_PRECO!Z17) -> 24.24242424 | Q18: =IF(TABELA_PRECO!AA17=" "," ",TABELA_PRECO!AA17) -> 25
A19: =IF(TABELA_PRECO!A18=" "," ",TABELA_PRECO!A18) -> 26 | B19: =IF(TABELA_PRECO!B18=" "," ",TABELA_PRECO!B18) -> PORCA PARLOCK 3/8 AF | C19: =IF(TABELA_PRECO!C18=" "," ",TABELA_PRECO!C18) -> UN | D19: =IF(TABELA_PRECO!D18=" "," ",TABELA_PRECO!D18) -> CORTINADO-FORRAÇÃO | E19: =IF(TABELA_PRECO!E18=" "," ",TABELA_PRECO!E18) -> COREMMA | F19: =IF(TABELA_PRECO!F18=" "," ",TABELA_PRECO!F18) -> 0.23 | G19: =IF(TABELA_PRECO!G18=" "," ",TABELA_PRECO!G18) -> 0.2714 | H19: =IF(TABELA_PRECO!H18=" "," ",TABELA_PRECO!H18) -> 0.34282512 | I19: =IF(TABELA_PRECO!I18=" "," ",TABELA_PRECO!I18) -> 0.3036 | J19: =IF(TABELA_PRECO!J18=" "," ",TABELA_PRECO!J18) -> 0.27934604 | K19: =IF(TABELA_PRECO!P18=" "," ",TABELA_PRECO!P18) -> 0.11282512 | L19: =IF(TABELA_PRECO!Q18=" "," ",TABELA_PRECO!Q18) -> 0.0736 | M19: =IF(TABELA_PRECO!R18=" "," ",TABELA_PRECO!R18) -> 0.0437 | N19: =IF(TABELA_PRECO!T18=" "," ",TABELA_PRECO!T18) -> 0.0145770055 | O19: =IF(TABELA_PRECO!Y18=" "," ",TABELA_PRECO!Y18) -> 32.9104005 | P19: =IF(TABELA_PRECO!Z18=" "," ",TABELA_PRECO!Z18) -> 24.24242424 | Q19: =IF(TABELA_PRECO!AA18=" "," ",TABELA_PRECO!AA18) -> 26
A20: =IF(TABELA_PRECO!A19=" "," ",TABELA_PRECO!A19) -> 27 | B20: =IF(TABELA_PRECO!B19=" "," ",TABELA_PRECO!B19) -> CLIP PARA CABO DE ACO 5/8 | C20: =IF(TABELA_PRECO!C19=" "," ",TABELA_PRECO!C19) -> UN | D20: =IF(TABELA_PRECO!D19=" "," ",TABELA_PRECO!D19) -> CORTINADO-FORRAÇÃO | E20: =IF(TABELA_PRECO!E19=" "," ",TABELA_PRECO!E19) -> COREMMA | F20: =IF(TABELA_PRECO!F19=" "," ",TABELA_PRECO!F19) -> 2.85 | G20: =IF(TABELA_PRECO!G19=" "," ",TABELA_PRECO!G19) -> 3.363 | H20: =IF(TABELA_PRECO!H19=" "," ",TABELA_PRECO!H19) -> 4.2480504 | I20: =IF(TABELA_PRECO!I19=" "," ",TABELA_PRECO!I19) -> 3.762 | J20: =IF(TABELA_PRECO!J19=" "," ",TABELA_PRECO!J19) -> 3.4614618 | K20: =IF(TABELA_PRECO!P19=" "," ",TABELA_PRECO!P19) -> 1.3980504 | L20: =IF(TABELA_PRECO!Q19=" "," ",TABELA_PRECO!Q19) -> 0.912 | M20: =IF(TABELA_PRECO!R19=" "," ",TABELA_PRECO!R19) -> 0.5415 | N20: =IF(TABELA_PRECO!T19=" "," ",TABELA_PRECO!T19) -> 0.1806281117 | O20: =IF(TABELA_PRECO!Y19=" "," ",TABELA_PRECO!Y19) -> 32.9104005 | P20: =IF(TABELA_PRECO!Z19=" "," ",TABELA_PRECO!Z19) -> 24.24242424 | Q20: =IF(TABELA_PRECO!AA19=" "," ",TABELA_PRECO!AA19) -> 27
A21: =IF(TABELA_PRECO!A20=" "," ",TABELA_PRECO!A20) -> 28 | B21: =IF(TABELA_PRECO!B20=" "," ",TABELA_PRECO!B20) -> PARAFUSO 3,9 X 25 MM | C21: =IF(TABELA_PRECO!C20=" "," ",TABELA_PRECO!C20) -> UN | D21: =IF(TABELA_PRECO!D20=" "," ",TABELA_PRECO!D20) -> CORTINADO-FORRAÇÃO | E21: =IF(TABELA_PRECO!E20=" "," ",TABELA_PRECO!E20) -> COREMMA | F21: =IF(TABELA_PRECO!F20=" "," ",TABELA_PRECO!F20) -> 0.136 | G21: =IF(TABELA_PRECO!G20=" "," ",TABELA_PRECO!G20) -> 0.16048 | H21: =IF(TABELA_PRECO!H20=" "," ",TABELA_PRECO!H20) -> 0.202713984 | I21: =IF(TABELA_PRECO!I20=" "," ",TABELA_PRECO!I20) -> 0.17952 | J21: =IF(TABELA_PRECO!J20=" "," ",TABELA_PRECO!J20) -> 0.165178528 | K21: =IF(TABELA_PRECO!P20=" "," ",TABELA_PRECO!P20) -> 0.066713984 | L21: =IF(TABELA_PRECO!Q20=" "," ",TABELA_PRECO!Q20) -> 0.04352 | M21: =IF(TABELA_PRECO!R20=" "," ",TABELA_PRECO!R20) -> 0.02584 | N21: =IF(TABELA_PRECO!T20=" "," ",TABELA_PRECO!T20) -> 0.008619446733 | O21: =IF(TABELA_PRECO!Y20=" "," ",TABELA_PRECO!Y20) -> 32.9104005 | P21: =IF(TABELA_PRECO!Z20=" "," ",TABELA_PRECO!Z20) -> 24.24242424 | Q21: =IF(TABELA_PRECO!AA20=" "," ",TABELA_PRECO!AA20) -> 28
A22: =IF(TABELA_PRECO!A21=" "," ",TABELA_PRECO!A21) -> 29 | B22: =IF(TABELA_PRECO!B21=" "," ",TABELA_PRECO!B21) -> CLIP PARA CABO DE ACO 3/16 | C22: =IF(TABELA_PRECO!C21=" "," ",TABELA_PRECO!C21) -> UN | D22: =IF(TABELA_PRECO!D21=" "," ",TABELA_PRECO!D21) -> CORTINADO-FORRAÇÃO | E22: =IF(TABELA_PRECO!E21=" "," ",TABELA_PRECO!E21) -> RPA | F22: =IF(TABELA_PRECO!F21=" "," ",TABELA_PRECO!F21) -> 0.9 | G22: =IF(TABELA_PRECO!G21=" "," ",TABELA_PRECO!G21) -> 1.062 | H22: =IF(TABELA_PRECO!H21=" "," ",TABELA_PRECO!H21) -> 1.3414896 | I22: =IF(TABELA_PRECO!I21=" "," ",TABELA_PRECO!I21) -> 1.188 | J22: =IF(TABELA_PRECO!J21=" "," ",TABELA_PRECO!J21) -> 1.0930932 | K22: =IF(TABELA_PRECO!P21=" "," ",TABELA_PRECO!P21) -> 0.4414896 | L22: =IF(TABELA_PRECO!Q21=" "," ",TABELA_PRECO!Q21) -> 0.288 | M22: =IF(TABELA_PRECO!R21=" "," ",TABELA_PRECO!R21) -> 0.171 | N22: =IF(TABELA_PRECO!T21=" "," ",TABELA_PRECO!T21) -> 0.05704045632 | O22: =IF(TABELA_PRECO!Y21=" "," ",TABELA_PRECO!Y21) -> 32.9104005 | P22: =IF(TABELA_PRECO!Z21=" "," ",TABELA_PRECO!Z21) -> 24.24242424 | Q22: =IF(TABELA_PRECO!AA21=" "," ",TABELA_PRECO!AA21) -> 29
A23: =IF(TABELA_PRECO!A22=" "," ",TABELA_PRECO!A22) -> 30 | B23: =IF(TABELA_PRECO!B22=" "," ",TABELA_PRECO!B22) -> ABRACADEIRA ROSCA SF 13-19 | C23: =IF(TABELA_PRECO!C22=" "," ",TABELA_PRECO!C22) -> UN | D23: =IF(TABELA_PRECO!D22=" "," ",TABELA_PRECO!D22) -> HIDRÁULICO | E23: =IF(TABELA_PRECO!E22=" "," ",TABELA_PRECO!E22) -> BIG DUTCHMAN | F23: =IF(TABELA_PRECO!F22=" "," ",TABELA_PRECO!F22) -> 0.65 | G23: =IF(TABELA_PRECO!G22=" "," ",TABELA_PRECO!G22) -> 0.767 | H23: =IF(TABELA_PRECO!H22=" "," ",TABELA_PRECO!H22) -> 0.9688536 | I23: =IF(TABELA_PRECO!I22=" "," ",TABELA_PRECO!I22) -> 0.858 | J23: =IF(TABELA_PRECO!J22=" "," ",TABELA_PRECO!J22) -> 0.7894562 | K23: =IF(TABELA_PRECO!P22=" "," ",TABELA_PRECO!P22) -> 0.3188536 | L23: =IF(TABELA_PRECO!Q22=" "," ",TABELA_PRECO!Q22) -> 0.208 | M23: =IF(TABELA_PRECO!R22=" "," ",TABELA_PRECO!R22) -> 0.1235 | N23: =IF(TABELA_PRECO!T22=" "," ",TABELA_PRECO!T22) -> 0.04119588512 | O23: =IF(TABELA_PRECO!Y22=" "," ",TABELA_PRECO!Y22) -> 32.9104005 | P23: =IF(TABELA_PRECO!Z22=" "," ",TABELA_PRECO!Z22) -> 24.24242424 | Q23: =IF(TABELA_PRECO!AA22=" "," ",TABELA_PRECO!AA22) -> 30
A24: =IF(TABELA_PRECO!A23=" "," ",TABELA_PRECO!A23) -> 31 | B24: =IF(TABELA_PRECO!B23=" "," ",TABELA_PRECO!B23) -> PARAFUSO 5/16 X 50 PL X MM | C24: =IF(TABELA_PRECO!C23=" "," ",TABELA_PRECO!C23) -> UN | D24: =IF(TABELA_PRECO!D23=" "," ",TABELA_PRECO!D23) -> CORTINADO-FORRAÇÃO | E24: =IF(TABELA_PRECO!E23=" "," ",TABELA_PRECO!E23) -> COREMMA | F24: =IF(TABELA_PRECO!F23=" "," ",TABELA_PRECO!F23) -> 0.51 | G24: =IF(TABELA_PRECO!G23=" "," ",TABELA_PRECO!G23) -> 0.6018 | H24: =IF(TABELA_PRECO!H23=" "," ",TABELA_PRECO!H23) -> 0.76017744 | I24: =IF(TABELA_PRECO!I23=" "," ",TABELA_PRECO!I23) -> 0.6732 | J24: =IF(TABELA_PRECO!J23=" "," ",TABELA_PRECO!J23) -> 0.61941948 | K24: =IF(TABELA_PRECO!P23=" "," ",TABELA_PRECO!P23) -> 0.25017744 | L24: =IF(TABELA_PRECO!Q23=" "," ",TABELA_PRECO!Q23) -> 0.1632 | M24: =IF(TABELA_PRECO!R23=" "," ",TABELA_PRECO!R23) -> 0.0969 | N24: =IF(TABELA_PRECO!T23=" "," ",TABELA_PRECO!T23) -> 0.03232292525 | O24: =IF(TABELA_PRECO!Y23=" "," ",TABELA_PRECO!Y23) -> 32.9104005 | P24: =IF(TABELA_PRECO!Z23=" "," ",TABELA_PRECO!Z23) -> 24.24242424 | Q24: =IF(TABELA_PRECO!AA23=" "," ",TABELA_PRECO!AA23) -> 31
A25: =IF(TABELA_PRECO!A24=" "," ",TABELA_PRECO!A24) -> 32 | B25: =IF(TABELA_PRECO!B24=" "," ",TABELA_PRECO!B24) -> PORCA AF 1/4 NC | C25: =IF(TABELA_PRECO!C24=" "," ",TABELA_PRECO!C24) -> UN | D25: =IF(TABELA_PRECO!D24=" "," ",TABELA_PRECO!D24) -> CORTINADO-FORRAÇÃO | E25: =IF(TABELA_PRECO!E24=" "," ",TABELA_PRECO!E24) -> COREMMA | F25: =IF(TABELA_PRECO!F24=" "," ",TABELA_PRECO!F24) -> 0.15 | G25: =IF(TABELA_PRECO!G24=" "," ",TABELA_PRECO!G24) -> 0.177 | H25: =IF(TABELA_PRECO!H24=" "," ",TABELA_PRECO!H24) -> 0.2235816 | I25: =IF(TABELA_PRECO!I24=" "," ",TABELA_PRECO!I24) -> 0.198 | J25: =IF(TABELA_PRECO!J24=" "," ",TABELA_PRECO!J24) -> 0.1821822 | K25: =IF(TABELA_PRECO!P24=" "," ",TABELA_PRECO!P24) -> 0.0735816 | L25: =IF(TABELA_PRECO!Q24=" "," ",TABELA_PRECO!Q24) -> 0.048 | M25: =IF(TABELA_PRECO!R24=" "," ",TABELA_PRECO!R24) -> 0.0285 | N25: =IF(TABELA_PRECO!T24=" "," ",TABELA_PRECO!T24) -> 0.00950674272 | O25: =IF(TABELA_PRECO!Y24=" "," ",TABELA_PRECO!Y24) -> 32.9104005 | P25: =IF(TABELA_PRECO!Z24=" "," ",TABELA_PRECO!Z24) -> 24.24242424 | Q25: =IF(TABELA_PRECO!AA24=" "," ",TABELA_PRECO!AA24) -> 32
A26: =IF(TABELA_PRECO!A25=" "," ",TABELA_PRECO!A25) -> 33 | B26: =IF(TABELA_PRECO!B25=" "," ",TABELA_PRECO!B25) -> PARAFUSO 1/4 X 5/8 NC | C26: =IF(TABELA_PRECO!C25=" "," ",TABELA_PRECO!C25) -> UN | D26: =IF(TABELA_PRECO!D25=" "," ",TABELA_PRECO!D25) -> CORTINADO-FORRAÇÃO | E26: =IF(TABELA_PRECO!E25=" "," ",TABELA_PRECO!E25) -> COREMMA | F26: =IF(TABELA_PRECO!F25=" "," ",TABELA_PRECO!F25) -> 0.18 | G26: =IF(TABELA_PRECO!G25=" "," ",TABELA_PRECO!G25) -> 0.2124 | H26: =IF(TABELA_PRECO!H25=" "," ",TABELA_PRECO!H25) -> 0.26829792 | I26: =IF(TABELA_PRECO!I25=" "," ",TABELA_PRECO!I25) -> 0.2376 | J26: =IF(TABELA_PRECO!J25=" "," ",TABELA_PRECO!J25) -> 0.21861864 | K26: =IF(TABELA_PRECO!P25=" "," ",TABELA_PRECO!P25) -> 0.08829792 | L26: =IF(TABELA_PRECO!Q25=" "," ",TABELA_PRECO!Q25) -> 0.0576 | M26: =IF(TABELA_PRECO!R25=" "," ",TABELA_PRECO!R25) -> 0.0342 | N26: =IF(TABELA_PRECO!T25=" "," ",TABELA_PRECO!T25) -> 0.01140809126 | O26: =IF(TABELA_PRECO!Y25=" "," ",TABELA_PRECO!Y25) -> 32.9104005 | P26: =IF(TABELA_PRECO!Z25=" "," ",TABELA_PRECO!Z25) -> 24.24242424 | Q26: =IF(TABELA_PRECO!AA25=" "," ",TABELA_PRECO!AA25) -> 33
A27: =IF(TABELA_PRECO!A26=" "," ",TABELA_PRECO!A26) -> 34 | B27: =IF(TABELA_PRECO!B26=" "," ",TABELA_PRECO!B26) -> PARAFUSO 1/4 1.1/2 NC | C27: =IF(TABELA_PRECO!C26=" "," ",TABELA_PRECO!C26) -> UN | D27: =IF(TABELA_PRECO!D26=" "," ",TABELA_PRECO!D26) -> CORTINADO-FORRAÇÃO | E27: =IF(TABELA_PRECO!E26=" "," ",TABELA_PRECO!E26) -> COREMMA | F27: =IF(TABELA_PRECO!F26=" "," ",TABELA_PRECO!F26) -> 0.26 | G27: =IF(TABELA_PRECO!G26=" "," ",TABELA_PRECO!G26) -> 0.3068 | H27: =IF(TABELA_PRECO!H26=" "," ",TABELA_PRECO!H26) -> 0.38754144 | I27: =IF(TABELA_PRECO!I26=" "," ",TABELA_PRECO!I26) -> 0.3432 | J27: =IF(TABELA_PRECO!J26=" "," ",TABELA_PRECO!J26) -> 0.31578248 | K27: =IF(TABELA_PRECO!P26=" "," ",TABELA_PRECO!P26) -> 0.12754144 | L27: =IF(TABELA_PRECO!Q26=" "," ",TABELA_PRECO!Q26) -> 0.0832 | M27: =IF(TABELA_PRECO!R26=" "," ",TABELA_PRECO!R26) -> 0.0494 | N27: =IF(TABELA_PRECO!T26=" "," ",TABELA_PRECO!T26) -> 0.01647835405 | O27: =IF(TABELA_PRECO!Y26=" "," ",TABELA_PRECO!Y26) -> 32.9104005 | P27: =IF(TABELA_PRECO!Z26=" "," ",TABELA_PRECO!Z26) -> 24.24242424 | Q27: =IF(TABELA_PRECO!AA26=" "," ",TABELA_PRECO!AA26) -> 34
A28: =IF(TABELA_PRECO!A27=" "," ",TABELA_PRECO!A27) -> 35 | B28: =IF(TABELA_PRECO!B27=" "," ",TABELA_PRECO!B27) -> CORDA TRANCADA PP 5,0 MM NATURAL | C28: =IF(TABELA_PRECO!C27=" "," ",TABELA_PRECO!C27) -> MT | D28: =IF(TABELA_PRECO!D27=" "," ",TABELA_PRECO!D27) -> CORTINADO-FORRAÇÃO | E28: =IF(TABELA_PRECO!E27=" "," ",TABELA_PRECO!E27) -> CORDAVILLE/PLASMODIA | F28: =IF(TABELA_PRECO!F27=" "," ",TABELA_PRECO!F27) -> 0.4 | G28: =IF(TABELA_PRECO!G27=" "," ",TABELA_PRECO!G27) -> 0.472 | H28: =IF(TABELA_PRECO!H27=" "," ",TABELA_PRECO!H27) -> 0.5962176 | I28: =IF(TABELA_PRECO!I27=" "," ",TABELA_PRECO!I27) -> 0.528 | J28: =IF(TABELA_PRECO!J27=" "," ",TABELA_PRECO!J27) -> 0.4858192 | K28: =IF(TABELA_PRECO!P27=" "," ",TABELA_PRECO!P27) -> 0.1962176 | L28: =IF(TABELA_PRECO!Q27=" "," ",TABELA_PRECO!Q27) -> 0.128 | M28: =IF(TABELA_PRECO!R27=" "," ",TABELA_PRECO!R27) -> 0.076 | N28: =IF(TABELA_PRECO!T27=" "," ",TABELA_PRECO!T27) -> 0.02535131392 | O28: =IF(TABELA_PRECO!Y27=" "," ",TABELA_PRECO!Y27) -> 32.9104005 | P28: =IF(TABELA_PRECO!Z27=" "," ",TABELA_PRECO!Z27) -> 24.24242424 | Q28: =IF(TABELA_PRECO!AA27=" "," ",TABELA_PRECO!AA27) -> 35
A29: =IF(TABELA_PRECO!A28=" "," ",TABELA_PRECO!A28) -> 36 | B29: =IF(TABELA_PRECO!B28=" "," ",TABELA_PRECO!B28) -> FIO DE COSTURA PP 1260 NATURAL | C29: =IF(TABELA_PRECO!C28=" "," ",TABELA_PRECO!C28) -> MT | D29: =IF(TABELA_PRECO!D28=" "," ",TABELA_PRECO!D28) -> CORTINADO-FORRAÇÃO | E29: =IF(TABELA_PRECO!E28=" "," ",TABELA_PRECO!E28) -> CORDAVILLE | F29: =IF(TABELA_PRECO!F28=" "," ",TABELA_PRECO!F28) -> 0.03 | G29: =IF(TABELA_PRECO!G28=" "," ",TABELA_PRECO!G28) -> 0.0354 | H29: =IF(TABELA_PRECO!H28=" "," ",TABELA_PRECO!H28) -> 0.04471632 | I29: =IF(TABELA_PRECO!I28=" "," ",TABELA_PRECO!I28) -> 0.0396 | J29: =IF(TABELA_PRECO!J28=" "," ",TABELA_PRECO!J28) -> 0.03643644 | K29: =IF(TABELA_PRECO!P28=" "," ",TABELA_PRECO!P28) -> 0.01471632 | L29: =IF(TABELA_PRECO!Q28=" "," ",TABELA_PRECO!Q28) -> 0.0096 | M29: =IF(TABELA_PRECO!R28=" "," ",TABELA_PRECO!R28) -> 0.0057 | N29: =IF(TABELA_PRECO!T28=" "," ",TABELA_PRECO!T28) -> 0.001901348544 | O29: =IF(TABELA_PRECO!Y28=" "," ",TABELA_PRECO!Y28) -> 32.9104005 | P29: =IF(TABELA_PRECO!Z28=" "," ",TABELA_PRECO!Z28) -> 24.24242424 | Q29: =IF(TABELA_PRECO!AA28=" "," ",TABELA_PRECO!AA28) -> 36
A30: =IF(TABELA_PRECO!A29=" "," ",TABELA_PRECO!A29) -> 37 | B30: =IF(TABELA_PRECO!B29=" "," ",TABELA_PRECO!B29) -> ROLDANA ESTAMPADA DE TETO 80 MM | C30: =IF(TABELA_PRECO!C29=" "," ",TABELA_PRECO!C29) -> UM | D30: =IF(TABELA_PRECO!D29=" "," ",TABELA_PRECO!D29) -> CORTINADO-FORRAÇÃO | E30: =IF(TABELA_PRECO!E29=" "," ",TABELA_PRECO!E29) -> ROBUSTEC | F30: =IF(TABELA_PRECO!F29=" "," ",TABELA_PRECO!F29) -> 26 | G30: =IF(TABELA_PRECO!G29=" "," ",TABELA_PRECO!G29) -> 30.68 | H30: =IF(TABELA_PRECO!H29=" "," ",TABELA_PRECO!H29) -> 38.754144 | I30: =IF(TABELA_PRECO!I29=" "," ",TABELA_PRECO!I29) -> 34.32 | J30: =IF(TABELA_PRECO!J29=" "," ",TABELA_PRECO!J29) -> 31.578248 | K30: =IF(TABELA_PRECO!P29=" "," ",TABELA_PRECO!P29) -> 12.754144 | L30: =IF(TABELA_PRECO!Q29=" "," ",TABELA_PRECO!Q29) -> 8.32 | M30: =IF(TABELA_PRECO!R29=" "," ",TABELA_PRECO!R29) -> 4.94 | N30: =IF(TABELA_PRECO!T29=" "," ",TABELA_PRECO!T29) -> 1.647835405 | O30: =IF(TABELA_PRECO!Y29=" "," ",TABELA_PRECO!Y29) -> 32.9104005 | P30: =IF(TABELA_PRECO!Z29=" "," ",TABELA_PRECO!Z29) -> 24.24242424 | Q30: =IF(TABELA_PRECO!AA29=" "," ",TABELA_PRECO!AA29) -> 37
A31: =IF(TABELA_PRECO!A30=" "," ",TABELA_PRECO!A30) -> 38 | B31: =IF(TABELA_PRECO!B30=" "," ",TABELA_PRECO!B30) -> TORNEIRA BOIA CX AGUA 3/4 | C31: =IF(TABELA_PRECO!C30=" "," ",TABELA_PRECO!C30) -> UN | D31: =IF(TABELA_PRECO!D30=" "," ",TABELA_PRECO!D30) -> HIDRÁULICO | E31: =IF(TABELA_PRECO!E30=" "," ",TABELA_PRECO!E30) -> CIPLA | F31: =IF(TABELA_PRECO!F30=" "," ",TABELA_PRECO!F30) -> 8.25 | G31: =IF(TABELA_PRECO!G30=" "," ",TABELA_PRECO!G30) -> 9.735 | H31: =IF(TABELA_PRECO!H30=" "," ",TABELA_PRECO!H30) -> 12.296988 | I31: =IF(TABELA_PRECO!I30=" "," ",TABELA_PRECO!I30) -> 10.89 | J31: =IF(TABELA_PRECO!J30=" "," ",TABELA_PRECO!J30) -> 10.020021 | K31: =IF(TABELA_PRECO!P30=" "," ",TABELA_PRECO!P30) -> 4.046988 | L31: =IF(TABELA_PRECO!Q30=" "," ",TABELA_PRECO!Q30) -> 2.64 | M31: =IF(TABELA_PRECO!R30=" "," ",TABELA_PRECO!R30) -> 1.5675 | N31: =IF(TABELA_PRECO!T30=" "," ",TABELA_PRECO!T30) -> 0.5228708496 | O31: =IF(TABELA_PRECO!Y30=" "," ",TABELA_PRECO!Y30) -> 32.9104005 | P31: =IF(TABELA_PRECO!Z30=" "," ",TABELA_PRECO!Z30) -> 24.24242424 | Q31: =IF(TABELA_PRECO!AA30=" "," ",TABELA_PRECO!AA30) -> 38
A32: =IF(TABELA_PRECO!A31=" "," ",TABELA_PRECO!A31) -> 39 | B32: =IF(TABELA_PRECO!B31=" "," ",TABELA_PRECO!B31) -> BARRA ROSCADA ZINCADA 1/4 X 1M | C32: =IF(TABELA_PRECO!C31=" "," ",TABELA_PRECO!C31) -> MT | D32: =IF(TABELA_PRECO!D31=" "," ",TABELA_PRECO!D31) -> CORTINADO-FORRAÇÃO | E32: =IF(TABELA_PRECO!E31=" "," ",TABELA_PRECO!E31) -> DEPECIL | F32: =IF(TABELA_PRECO!F31=" "," ",TABELA_PRECO!F31) -> 2.69 | G32: =IF(TABELA_PRECO!G31=" "," ",TABELA_PRECO!G31) -> 3.1742 | H32: =IF(TABELA_PRECO!H31=" "," ",TABELA_PRECO!H31) -> 4.00956336 | I32: =IF(TABELA_PRECO!I31=" "," ",TABELA_PRECO!I31) -> 3.5508 | J32: =IF(TABELA_PRECO!J31=" "," ",TABELA_PRECO!J31) -> 3.26713412 | K32: =IF(TABELA_PRECO!P31=" "," ",TABELA_PRECO!P31) -> 1.31956336 | L32: =IF(TABELA_PRECO!Q31=" "," ",TABELA_PRECO!Q31) -> 0.8608 | M32: =IF(TABELA_PRECO!R31=" "," ",TABELA_PRECO!R31) -> 0.5111 | N32: =IF(TABELA_PRECO!T31=" "," ",TABELA_PRECO!T31) -> 0.1704875861 | O32: =IF(TABELA_PRECO!Y31=" "," ",TABELA_PRECO!Y31) -> 32.9104005 | P32: =IF(TABELA_PRECO!Z31=" "," ",TABELA_PRECO!Z31) -> 24.24242424 | Q32: =IF(TABELA_PRECO!AA31=" "," ",TABELA_PRECO!AA31) -> 39
A33: =IF(TABELA_PRECO!A32=" "," ",TABELA_PRECO!A32) -> 40 | B33: =IF(TABELA_PRECO!B32=" "," ",TABELA_PRECO!B32) -> BARRA ROSCADA ZINCADA 5/16 X 1M | C33: =IF(TABELA_PRECO!C32=" "," ",TABELA_PRECO!C32) -> MT | D33: =IF(TABELA_PRECO!D32=" "," ",TABELA_PRECO!D32) -> CORTINADO-FORRAÇÃO | E33: =IF(TABELA_PRECO!E32=" "," ",TABELA_PRECO!E32) -> DEPECIL | F33: =IF(TABELA_PRECO!F32=" "," ",TABELA_PRECO!F32) -> 2.91 | G33: =IF(TABELA_PRECO!G32=" "," ",TABELA_PRECO!G32) -> 3.4338 | H33: =IF(TABELA_PRECO!H32=" "," ",TABELA_PRECO!H32) -> 4.33748304 | I33: =IF(TABELA_PRECO!I32=" "," ",TABELA_PRECO!I32) -> 3.8412 | J33: =IF(TABELA_PRECO!J32=" "," ",TABELA_PRECO!J32) -> 3.53433468 | K33: =IF(TABELA_PRECO!P32=" "," ",TABELA_PRECO!P32) -> 1.42748304 | L33: =IF(TABELA_PRECO!Q32=" "," ",TABELA_PRECO!Q32) -> 0.9312 | M33: =IF(TABELA_PRECO!R32=" "," ",TABELA_PRECO!R32) -> 0.5529 | N33: =IF(TABELA_PRECO!T32=" "," ",TABELA_PRECO!T32) -> 0.1844308088 | O33: =IF(TABELA_PRECO!Y32=" "," ",TABELA_PRECO!Y32) -> 32.9104005 | P33: =IF(TABELA_PRECO!Z32=" "," ",TABELA_PRECO!Z32) -> 24.24242424 | Q33: =IF(TABELA_PRECO!AA32=" "," ",TABELA_PRECO!AA32) -> 40
A34: =IF(TABELA_PRECO!A33=" "," ",TABELA_PRECO!A33) -> 41 | B34: =IF(TABELA_PRECO!B33=" "," ",TABELA_PRECO!B33) -> HASTE ATERRAMENTO COBRE 1/2 X 200 MM | C34: =IF(TABELA_PRECO!C33=" "," ",TABELA_PRECO!C33) -> PC | D34: =IF(TABELA_PRECO!D33=" "," ",TABELA_PRECO!D33) -> EQUIPAMENTOS BIG DUTCHMAN | E34: =IF(TABELA_PRECO!E33=" "," ",TABELA_PRECO!E33) -> BIG DUTCHMAN | F34: =IF(TABELA_PRECO!F33=" "," ",TABELA_PRECO!F33) -> 49 | G34: =IF(TABELA_PRECO!G33=" "," ",TABELA_PRECO!G33) -> 57.82 | H34: =IF(TABELA_PRECO!H33=" "," ",TABELA_PRECO!H33) -> 73.036656 | I34: =IF(TABELA_PRECO!I33=" "," ",TABELA_PRECO!I33) -> 64.68 | J34: =IF(TABELA_PRECO!J33=" "," ",TABELA_PRECO!J33) -> 59.512852 | K34: =IF(TABELA_PRECO!P33=" "," ",TABELA_PRECO!P33) -> 24.036656 | L34: =IF(TABELA_PRECO!Q33=" "," ",TABELA_PRECO!Q33) -> 15.68 | M34: =IF(TABELA_PRECO!R33=" "," ",TABELA_PRECO!R33) -> 9.31 | N34: =IF(TABELA_PRECO!T33=" "," ",TABELA_PRECO!T33) -> 3.105535955 | O34: =IF(TABELA_PRECO!Y33=" "," ",TABELA_PRECO!Y33) -> 32.9104005 | P34: =IF(TABELA_PRECO!Z33=" "," ",TABELA_PRECO!Z33) -> 24.24242424 | Q34: =IF(TABELA_PRECO!AA33=" "," ",TABELA_PRECO!AA33) -> 41
A35: =IF(TABELA_PRECO!A34=" "," ",TABELA_PRECO!A34) -> 42 | B35: =IF(TABELA_PRECO!B34=" "," ",TABELA_PRECO!B34) -> ABRACADEIRA NYLON 100 X 2,5MM | C35: =IF(TABELA_PRECO!C34=" "," ",TABELA_PRECO!C34) -> UN | D35: =IF(TABELA_PRECO!D34=" "," ",TABELA_PRECO!D34) -> EQUIPAMENTOS DIVERSOS | E35: =IF(TABELA_PRECO!E34=" "," ",TABELA_PRECO!E34) -> FRONTEC | F35: =IF(TABELA_PRECO!F34=" "," ",TABELA_PRECO!F34) -> 0.4 | G35: =IF(TABELA_PRECO!G34=" "," ",TABELA_PRECO!G34) -> 0.472 | H35: =IF(TABELA_PRECO!H34=" "," ",TABELA_PRECO!H34) -> 0.5962176 | I35: =IF(TABELA_PRECO!I34=" "," ",TABELA_PRECO!I34) -> 0.528 | J35: =IF(TABELA_PRECO!J34=" "," ",TABELA_PRECO!J34) -> 0.4858192 | K35: =IF(TABELA_PRECO!P34=" "," ",TABELA_PRECO!P34) -> 0.1962176 | L35: =IF(TABELA_PRECO!Q34=" "," ",TABELA_PRECO!Q34) -> 0.128 | M35: =IF(TABELA_PRECO!R34=" "," ",TABELA_PRECO!R34) -> 0.076 | N35: =IF(TABELA_PRECO!T34=" "," ",TABELA_PRECO!T34) -> 0.02535131392 | O35: =IF(TABELA_PRECO!Y34=" "," ",TABELA_PRECO!Y34) -> 32.9104005 | P35: =IF(TABELA_PRECO!Z34=" "," ",TABELA_PRECO!Z34) -> 24.24242424 | Q35: =IF(TABELA_PRECO!AA34=" "," ",TABELA_PRECO!AA34) -> 42
A36: =IF(TABELA_PRECO!A35=" "," ",TABELA_PRECO!A35) -> 43 | B36: =IF(TABELA_PRECO!B35=" "," ",TABELA_PRECO!B35) -> ABRACADEIRA NYLON 200 X 2,5 MM | C36: =IF(TABELA_PRECO!C35=" "," ",TABELA_PRECO!C35) -> UN | D36: =IF(TABELA_PRECO!D35=" "," ",TABELA_PRECO!D35) -> EQUIPAMENTOS DIVERSOS | E36: =IF(TABELA_PRECO!E35=" "," ",TABELA_PRECO!E35) -> FRONTEC | F36: =IF(TABELA_PRECO!F35=" "," ",TABELA_PRECO!F35) -> 0.4 | G36: =IF(TABELA_PRECO!G35=" "," ",TABELA_PRECO!G35) -> 0.472 | H36: =IF(TABELA_PRECO!H35=" "," ",TABELA_PRECO!H35) -> 0.5962176 | I36: =IF(TABELA_PRECO!I35=" "," ",TABELA_PRECO!I35) -> 0.528 | J36: =IF(TABELA_PRECO!J35=" "," ",TABELA_PRECO!J35) -> 0.4858192 | K36: =IF(TABELA_PRECO!P35=" "," ",TABELA_PRECO!P35) -> 0.1962176 | L36: =IF(TABELA_PRECO!Q35=" "," ",TABELA_PRECO!Q35) -> 0.128 | M36: =IF(TABELA_PRECO!R35=" "," ",TABELA_PRECO!R35) -> 0.076 | N36: =IF(TABELA_PRECO!T35=" "," ",TABELA_PRECO!T35) -> 0.02535131392 | O36: =IF(TABELA_PRECO!Y35=" "," ",TABELA_PRECO!Y35) -> 32.9104005 | P36: =IF(TABELA_PRECO!Z35=" "," ",TABELA_PRECO!Z35) -> 24.24242424 | Q36: =IF(TABELA_PRECO!AA35=" "," ",TABELA_PRECO!AA35) -> 43
A37: =IF(TABELA_PRECO!A36=" "," ",TABELA_PRECO!A36) -> 44 | B37: =IF(TABELA_PRECO!B36=" "," ",TABELA_PRECO!B36) -> ADESIVO PLASTICO 850 GR | C37: =IF(TABELA_PRECO!C36=" "," ",TABELA_PRECO!C36) -> FR | D37: =IF(TABELA_PRECO!D36=" "," ",TABELA_PRECO!D36) -> HIDRÁULICO | E37: =IF(TABELA_PRECO!E36=" "," ",TABELA_PRECO!E36) -> KRONA / FORTLEV | F37: =IF(TABELA_PRECO!F36=" "," ",TABELA_PRECO!F36) -> 37 | G37: =IF(TABELA_PRECO!G36=" "," ",TABELA_PRECO!G36) -> 43.66 | H37: =IF(TABELA_PRECO!H36=" "," ",TABELA_PRECO!H36) -> 55.150128 | I37: =IF(TABELA_PRECO!I36=" "," ",TABELA_PRECO!I36) -> 48.84 | J37: =IF(TABELA_PRECO!J36=" "," ",TABELA_PRECO!J36) -> 44.938276 | K37: =IF(TABELA_PRECO!P36=" "," ",TABELA_PRECO!P36) -> 18.150128 | L37: =IF(TABELA_PRECO!Q36=" "," ",TABELA_PRECO!Q36) -> 11.84 | M37: =IF(TABELA_PRECO!R36=" "," ",TABELA_PRECO!R36) -> 7.03 | N37: =IF(TABELA_PRECO!T36=" "," ",TABELA_PRECO!T36) -> 2.344996538 | O37: =IF(TABELA_PRECO!Y36=" "," ",TABELA_PRECO!Y36) -> 32.9104005 | P37: =IF(TABELA_PRECO!Z36=" "," ",TABELA_PRECO!Z36) -> 24.24242424 | Q37: =IF(TABELA_PRECO!AA36=" "," ",TABELA_PRECO!AA36) -> 44
A38: =IF(TABELA_PRECO!A37=" "," ",TABELA_PRECO!A37) -> 45 | B38: =IF(TABELA_PRECO!B37=" "," ",TABELA_PRECO!B37) -> JOELHO L/R 25 MM X 1/2 | C38: =IF(TABELA_PRECO!C37=" "," ",TABELA_PRECO!C37) -> UN | D38: =IF(TABELA_PRECO!D37=" "," ",TABELA_PRECO!D37) -> HIDRÁULICO | E38: =IF(TABELA_PRECO!E37=" "," ",TABELA_PRECO!E37) -> KRONA / FORTLEV | F38: =IF(TABELA_PRECO!F37=" "," ",TABELA_PRECO!F37) -> 1.5 | G38: =IF(TABELA_PRECO!G37=" "," ",TABELA_PRECO!G37) -> 1.77 | H38: =IF(TABELA_PRECO!H37=" "," ",TABELA_PRECO!H37) -> 2.235816 | I38: =IF(TABELA_PRECO!I37=" "," ",TABELA_PRECO!I37) -> 1.98 | J38: =IF(TABELA_PRECO!J37=" "," ",TABELA_PRECO!J37) -> 1.821822 | K38: =IF(TABELA_PRECO!P37=" "," ",TABELA_PRECO!P37) -> 0.735816 | L38: =IF(TABELA_PRECO!Q37=" "," ",TABELA_PRECO!Q37) -> 0.48 | M38: =IF(TABELA_PRECO!R37=" "," ",TABELA_PRECO!R37) -> 0.285 | N38: =IF(TABELA_PRECO!T37=" "," ",TABELA_PRECO!T37) -> 0.0950674272 | O38: =IF(TABELA_PRECO!Y37=" "," ",TABELA_PRECO!Y37) -> 32.9104005 | P38: =IF(TABELA_PRECO!Z37=" "," ",TABELA_PRECO!Z37) -> 24.24242424 | Q38: =IF(TABELA_PRECO!AA37=" "," ",TABELA_PRECO!AA37) -> 45
A39: =IF(TABELA_PRECO!A38=" "," ",TABELA_PRECO!A38) -> 46 | B39: =IF(TABELA_PRECO!B38=" "," ",TABELA_PRECO!B38) -> TE SOLD COM ROSCA 25MM X 1/2 | C39: =IF(TABELA_PRECO!C38=" "," ",TABELA_PRECO!C38) -> UN | D39: =IF(TABELA_PRECO!D38=" "," ",TABELA_PRECO!D38) -> HIDRÁULICO | E39: =IF(TABELA_PRECO!E38=" "," ",TABELA_PRECO!E38) -> KRONA / FORTLEV | F39: =IF(TABELA_PRECO!F38=" "," ",TABELA_PRECO!F38) -> 2.8 | G39: =IF(TABELA_PRECO!G38=" "," ",TABELA_PRECO!G38) -> 3.304 | H39: =IF(TABELA_PRECO!H38=" "," ",TABELA_PRECO!H38) -> 4.1735232 | I39: =IF(TABELA_PRECO!I38=" "," ",TABELA_PRECO!I38) -> 3.696 | J39: =IF(TABELA_PRECO!J38=" "," ",TABELA_PRECO!J38) -> 3.4007344 | K39: =IF(TABELA_PRECO!P38=" "," ",TABELA_PRECO!P38) -> 1.3735232 | L39: =IF(TABELA_PRECO!Q38=" "," ",TABELA_PRECO!Q38) -> 0.896 | M39: =IF(TABELA_PRECO!R38=" "," ",TABELA_PRECO!R38) -> 0.532 | N39: =IF(TABELA_PRECO!T38=" "," ",TABELA_PRECO!T38) -> 0.1774591974 | O39: =IF(TABELA_PRECO!Y38=" "," ",TABELA_PRECO!Y38) -> 32.9104005 | P39: =IF(TABELA_PRECO!Z38=" "," ",TABELA_PRECO!Z38) -> 24.24242424 | Q39: =IF(TABELA_PRECO!AA38=" "," ",TABELA_PRECO!AA38) -> 46
A40: =IF(TABELA_PRECO!A39=" "," ",TABELA_PRECO!A39) -> 47 | B40: =IF(TABELA_PRECO!B39=" "," ",TABELA_PRECO!B39) -> REGISTRO ESFERA SOLD 25 MM | C40: =IF(TABELA_PRECO!C39=" "," ",TABELA_PRECO!C39) -> PC | D40: =IF(TABELA_PRECO!D39=" "," ",TABELA_PRECO!D39) -> HIDRÁULICO | E40: =IF(TABELA_PRECO!E39=" "," ",TABELA_PRECO!E39) -> KRONA / FORTLEV | F40: =IF(TABELA_PRECO!F39=" "," ",TABELA_PRECO!F39) -> 7.42 | G40: =IF(TABELA_PRECO!G39=" "," ",TABELA_PRECO!G39) -> 8.7556 | H40: =IF(TABELA_PRECO!H39=" "," ",TABELA_PRECO!H39) -> 11.05983648 | I40: =IF(TABELA_PRECO!I39=" "," ",TABELA_PRECO!I39) -> 9.7944 | J40: =IF(TABELA_PRECO!J39=" "," ",TABELA_PRECO!J39) -> 9.01194616 | K40: =IF(TABELA_PRECO!P39=" "," ",TABELA_PRECO!P39) -> 3.63983648 | L40: =IF(TABELA_PRECO!Q39=" "," ",TABELA_PRECO!Q39) -> 2.3744 | M40: =IF(TABELA_PRECO!R39=" "," ",TABELA_PRECO!R39) -> 1.4098 | N40: =IF(TABELA_PRECO!T39=" "," ",TABELA_PRECO!T39) -> 0.4702668732 | O40: =IF(TABELA_PRECO!Y39=" "," ",TABELA_PRECO!Y39) -> 32.9104005 | P40: =IF(TABELA_PRECO!Z39=" "," ",TABELA_PRECO!Z39) -> 24.24242424 | Q40: =IF(TABELA_PRECO!AA39=" "," ",TABELA_PRECO!AA39) -> 47
A41: =IF(TABELA_PRECO!A40=" "," ",TABELA_PRECO!A40) -> 48 | B41: =IF(TABELA_PRECO!B40=" "," ",TABELA_PRECO!B40) -> REGISTRO ESFERA SOLD 32 MM | C41: =IF(TABELA_PRECO!C40=" "," ",TABELA_PRECO!C40) -> PC | D41: =IF(TABELA_PRECO!D40=" "," ",TABELA_PRECO!D40) -> HIDRÁULICO | E41: =IF(TABELA_PRECO!E40=" "," ",TABELA_PRECO!E40) -> KRONA / FORTLEV | F41: =IF(TABELA_PRECO!F40=" "," ",TABELA_PRECO!F40) -> 13.9 | G41: =IF(TABELA_PRECO!G40=" "," ",TABELA_PRECO!G40) -> 16.402 | H41: =IF(TABELA_PRECO!H40=" "," ",TABELA_PRECO!H40) -> 20.7185616 | I41: =IF(TABELA_PRECO!I40=" "," ",TABELA_PRECO!I40) -> 18.348 | J41: =IF(TABELA_PRECO!J40=" "," ",TABELA_PRECO!J40) -> 16.8822172 | K41: =IF(TABELA_PRECO!P40=" "," ",TABELA_PRECO!P40) -> 6.8185616 | L41: =IF(TABELA_PRECO!Q40=" "," ",TABELA_PRECO!Q40) -> 4.448 | M41: =IF(TABELA_PRECO!R40=" "," ",TABELA_PRECO!R40) -> 2.641 | N41: =IF(TABELA_PRECO!T40=" "," ",TABELA_PRECO!T40) -> 0.8809581587 | O41: =IF(TABELA_PRECO!Y40=" "," ",TABELA_PRECO!Y40) -> 32.9104005 | P41: =IF(TABELA_PRECO!Z40=" "," ",TABELA_PRECO!Z40) -> 24.24242424 | Q41: =IF(TABELA_PRECO!AA40=" "," ",TABELA_PRECO!AA40) -> 48
A42: =IF(TABELA_PRECO!A41=" "," ",TABELA_PRECO!A41) -> 49 | B42: =IF(TABELA_PRECO!B41=" "," ",TABELA_PRECO!B41) -> REGISTRO ESFERA SOLD COM UNIAO 32 MM | C42: =IF(TABELA_PRECO!C41=" "," ",TABELA_PRECO!C41) -> PC | D42: =IF(TABELA_PRECO!D41=" "," ",TABELA_PRECO!D41) -> HIDRÁULICO | E42: =IF(TABELA_PRECO!E41=" "," ",TABELA_PRECO!E41) -> KRONA / FORTLEV | F42: =IF(TABELA_PRECO!F41=" "," ",TABELA_PRECO!F41) -> 10.1 | G42: =IF(TABELA_PRECO!G41=" "," ",TABELA_PRECO!G41) -> 11.918 | H42: =IF(TABELA_PRECO!H41=" "," ",TABELA_PRECO!H41) -> 15.0544944 | I42: =IF(TABELA_PRECO!I41=" "," ",TABELA_PRECO!I41) -> 13.332 | J42: =IF(TABELA_PRECO!J41=" "," ",TABELA_PRECO!J41) -> 12.2669348 | K42: =IF(TABELA_PRECO!P41=" "," ",TABELA_PRECO!P41) -> 4.9544944 | L42: =IF(TABELA_PRECO!Q41=" "," ",TABELA_PRECO!Q41) -> 3.232 | M42: =IF(TABELA_PRECO!R41=" "," ",TABELA_PRECO!R41) -> 1.919 | N42: =IF(TABELA_PRECO!T41=" "," ",TABELA_PRECO!T41) -> 0.6401206765 | O42: =IF(TABELA_PRECO!Y41=" "," ",TABELA_PRECO!Y41) -> 32.9104005 | P42: =IF(TABELA_PRECO!Z41=" "," ",TABELA_PRECO!Z41) -> 24.24242424 | Q42: =IF(TABELA_PRECO!AA41=" "," ",TABELA_PRECO!AA41) -> 49
A43: =IF(TABELA_PRECO!A42=" "," ",TABELA_PRECO!A42) -> 50 | B43: =IF(TABELA_PRECO!B42=" "," ",TABELA_PRECO!B42) -> CURVA SOLD 90 40 MM | C43: =IF(TABELA_PRECO!C42=" "," ",TABELA_PRECO!C42) -> UM | D43: =IF(TABELA_PRECO!D42=" "," ",TABELA_PRECO!D42) -> HIDRÁULICO | E43: =IF(TABELA_PRECO!E42=" "," ",TABELA_PRECO!E42) -> KRONA / FORTLEV | F43: =IF(TABELA_PRECO!F42=" "," ",TABELA_PRECO!F42) -> 8.6 | G43: =IF(TABELA_PRECO!G42=" "," ",TABELA_PRECO!G42) -> 10.148 | H43: =IF(TABELA_PRECO!H42=" "," ",TABELA_PRECO!H42) -> 12.8186784 | I43: =IF(TABELA_PRECO!I42=" "," ",TABELA_PRECO!I42) -> 11.352 | J43: =IF(TABELA_PRECO!J42=" "," ",TABELA_PRECO!J42) -> 10.4451128 | K43: =IF(TABELA_PRECO!P42=" "," ",TABELA_PRECO!P42) -> 4.2186784 | L43: =IF(TABELA_PRECO!Q42=" "," ",TABELA_PRECO!Q42) -> 2.752 | M43: =IF(TABELA_PRECO!R42=" "," ",TABELA_PRECO!R42) -> 1.634 | N43: =IF(TABELA_PRECO!T42=" "," ",TABELA_PRECO!T42) -> 0.5450532493 | O43: =IF(TABELA_PRECO!Y42=" "," ",TABELA_PRECO!Y42) -> 32.9104005 | P43: =IF(TABELA_PRECO!Z42=" "," ",TABELA_PRECO!Z42) -> 24.24242424 | Q43: =IF(TABELA_PRECO!AA42=" "," ",TABELA_PRECO!AA42) -> 50
A44: =IF(TABELA_PRECO!A43=" "," ",TABELA_PRECO!A43) -> 51 | B44: =IF(TABELA_PRECO!B43=" "," ",TABELA_PRECO!B43) -> BUCHA REDUCAO SOLD CURTA 40 X 32 MM | C44: =IF(TABELA_PRECO!C43=" "," ",TABELA_PRECO!C43) -> UM | D44: =IF(TABELA_PRECO!D43=" "," ",TABELA_PRECO!D43) -> HIDRÁULICO | E44: =IF(TABELA_PRECO!E43=" "," ",TABELA_PRECO!E43) -> KRONA / FORTLEV | F44: =IF(TABELA_PRECO!F43=" "," ",TABELA_PRECO!F43) -> 1.6 | G44: =IF(TABELA_PRECO!G43=" "," ",TABELA_PRECO!G43) -> 1.888 | H44: =IF(TABELA_PRECO!H43=" "," ",TABELA_PRECO!H43) -> 2.3848704 | I44: =IF(TABELA_PRECO!I43=" "," ",TABELA_PRECO!I43) -> 2.112 | J44: =IF(TABELA_PRECO!J43=" "," ",TABELA_PRECO!J43) -> 1.9432768 | K44: =IF(TABELA_PRECO!P43=" "," ",TABELA_PRECO!P43) -> 0.7848704 | L44: =IF(TABELA_PRECO!Q43=" "," ",TABELA_PRECO!Q43) -> 0.512 | M44: =IF(TABELA_PRECO!R43=" "," ",TABELA_PRECO!R43) -> 0.304 | N44: =IF(TABELA_PRECO!T43=" "," ",TABELA_PRECO!T43) -> 0.1014052557 | O44: =IF(TABELA_PRECO!Y43=" "," ",TABELA_PRECO!Y43) -> 32.9104005 | P44: =IF(TABELA_PRECO!Z43=" "," ",TABELA_PRECO!Z43) -> 24.24242424 | Q44: =IF(TABELA_PRECO!AA43=" "," ",TABELA_PRECO!AA43) -> 51
A45: =IF(TABELA_PRECO!A44=" "," ",TABELA_PRECO!A44) -> 52 | B45: =IF(TABELA_PRECO!B44=" "," ",TABELA_PRECO!B44) -> REGISTRO ESFERA SOLD 50 MM | C45: =IF(TABELA_PRECO!C44=" "," ",TABELA_PRECO!C44) -> PC | D45: =IF(TABELA_PRECO!D44=" "," ",TABELA_PRECO!D44) -> HIDRÁULICO | E45: =IF(TABELA_PRECO!E44=" "," ",TABELA_PRECO!E44) -> KRONA / FORTLEV | F45: =IF(TABELA_PRECO!F44=" "," ",TABELA_PRECO!F44) -> 20.35 | G45: =IF(TABELA_PRECO!G44=" "," ",TABELA_PRECO!G44) -> 24.013 | H45: =IF(TABELA_PRECO!H44=" "," ",TABELA_PRECO!H44) -> 30.3325704 | I45: =IF(TABELA_PRECO!I44=" "," ",TABELA_PRECO!I44) -> 26.862 | J45: =IF(TABELA_PRECO!J44=" "," ",TABELA_PRECO!J44) -> 24.7160518 | K45: =IF(TABELA_PRECO!P44=" "," ",TABELA_PRECO!P44) -> 9.9825704 | L45: =IF(TABELA_PRECO!Q44=" "," ",TABELA_PRECO!Q44) -> 6.512 | M45: =IF(TABELA_PRECO!R44=" "," ",TABELA_PRECO!R44) -> 3.8665 | N45: =IF(TABELA_PRECO!T44=" "," ",TABELA_PRECO!T44) -> 1.289748096 | O45: =IF(TABELA_PRECO!Y44=" "," ",TABELA_PRECO!Y44) -> 32.9104005 | P45: =IF(TABELA_PRECO!Z44=" "," ",TABELA_PRECO!Z44) -> 24.24242424 | Q45: =IF(TABELA_PRECO!AA44=" "," ",TABELA_PRECO!AA44) -> 52
A46: =IF(TABELA_PRECO!A45=" "," ",TABELA_PRECO!A45) -> 53 | B46: =IF(TABELA_PRECO!B45=" "," ",TABELA_PRECO!B45) -> JOELHO SOLD 90 32 MM | C46: =IF(TABELA_PRECO!C45=" "," ",TABELA_PRECO!C45) -> UN | D46: =IF(TABELA_PRECO!D45=" "," ",TABELA_PRECO!D45) -> HIDRÁULICO | E46: =IF(TABELA_PRECO!E45=" "," ",TABELA_PRECO!E45) -> KRONA / FORTLEV | F46: =IF(TABELA_PRECO!F45=" "," ",TABELA_PRECO!F45) -> 1.6 | G46: =IF(TABELA_PRECO!G45=" "," ",TABELA_PRECO!G45) -> 1.888 | H46: =IF(TABELA_PRECO!H45=" "," ",TABELA_PRECO!H45) -> 2.3848704 | I46: =IF(TABELA_PRECO!I45=" "," ",TABELA_PRECO!I45) -> 2.112 | J46: =IF(TABELA_PRECO!J45=" "," ",TABELA_PRECO!J45) -> 1.9432768 | K46: =IF(TABELA_PRECO!P45=" "," ",TABELA_PRECO!P45) -> 0.7848704 | L46: =IF(TABELA_PRECO!Q45=" "," ",TABELA_PRECO!Q45) -> 0.512 | M46: =IF(TABELA_PRECO!R45=" "," ",TABELA_PRECO!R45) -> 0.304 | N46: =IF(TABELA_PRECO!T45=" "," ",TABELA_PRECO!T45) -> 0.1014052557 | O46: =IF(TABELA_PRECO!Y45=" "," ",TABELA_PRECO!Y45) -> 32.9104005 | P46: =IF(TABELA_PRECO!Z45=" "," ",TABELA_PRECO!Z45) -> 24.24242424 | Q46: =IF(TABELA_PRECO!AA45=" "," ",TABELA_PRECO!AA45) -> 53
A47: =IF(TABELA_PRECO!A46=" "," ",TABELA_PRECO!A46) -> 54 | B47: =IF(TABELA_PRECO!B46=" "," ",TABELA_PRECO!B46) -> TE SOLD 32 MM | C47: =IF(TABELA_PRECO!C46=" "," ",TABELA_PRECO!C46) -> PC | D47: =IF(TABELA_PRECO!D46=" "," ",TABELA_PRECO!D46) -> HIDRÁULICO | E47: =IF(TABELA_PRECO!E46=" "," ",TABELA_PRECO!E46) -> KRONA / FORTLEV | F47: =IF(TABELA_PRECO!F46=" "," ",TABELA_PRECO!F46) -> 2.65 | G47: =IF(TABELA_PRECO!G46=" "," ",TABELA_PRECO!G46) -> 3.127 | H47: =IF(TABELA_PRECO!H46=" "," ",TABELA_PRECO!H46) -> 3.9499416 | I47: =IF(TABELA_PRECO!I46=" "," ",TABELA_PRECO!I46) -> 3.498 | J47: =IF(TABELA_PRECO!J46=" "," ",TABELA_PRECO!J46) -> 3.2185522 | K47: =IF(TABELA_PRECO!P46=" "," ",TABELA_PRECO!P46) -> 1.2999416 | L47: =IF(TABELA_PRECO!Q46=" "," ",TABELA_PRECO!Q46) -> 0.848 | M47: =IF(TABELA_PRECO!R46=" "," ",TABELA_PRECO!R46) -> 0.5035 | N47: =IF(TABELA_PRECO!T46=" "," ",TABELA_PRECO!T46) -> 0.1679524547 | O47: =IF(TABELA_PRECO!Y46=" "," ",TABELA_PRECO!Y46) -> 32.9104005 | P47: =IF(TABELA_PRECO!Z46=" "," ",TABELA_PRECO!Z46) -> 24.24242424 | Q47: =IF(TABELA_PRECO!AA46=" "," ",TABELA_PRECO!AA46) -> 54
A48: =IF(TABELA_PRECO!A47=" "," ",TABELA_PRECO!A47) -> 55 | B48: =IF(TABELA_PRECO!B47=" "," ",TABELA_PRECO!B47) -> TORNEIRA BOIA 1/2 E 3/4 MASTERFLUX | C48: =IF(TABELA_PRECO!C47=" "," ",TABELA_PRECO!C47) -> PC | D48: =IF(TABELA_PRECO!D47=" "," ",TABELA_PRECO!D47) -> HIDRÁULICO | E48: =IF(TABELA_PRECO!E47=" "," ",TABELA_PRECO!E47) -> CENSI | F48: =IF(TABELA_PRECO!F47=" "," ",TABELA_PRECO!F47) -> 44 | G48: =IF(TABELA_PRECO!G47=" "," ",TABELA_PRECO!G47) -> 51.92 | H48: =IF(TABELA_PRECO!H47=" "," ",TABELA_PRECO!H47) -> 65.583936 | I48: =IF(TABELA_PRECO!I47=" "," ",TABELA_PRECO!I47) -> 58.08 | J48: =IF(TABELA_PRECO!J47=" "," ",TABELA_PRECO!J47) -> 53.440112 | K48: =IF(TABELA_PRECO!P47=" "," ",TABELA_PRECO!P47) -> 21.583936 | L48: =IF(TABELA_PRECO!Q47=" "," ",TABELA_PRECO!Q47) -> 14.08 | M48: =IF(TABELA_PRECO!R47=" "," ",TABELA_PRECO!R47) -> 8.36 | N48: =IF(TABELA_PRECO!T47=" "," ",TABELA_PRECO!T47) -> 2.788644531 | O48: =IF(TABELA_PRECO!Y47=" "," ",TABELA_PRECO!Y47) -> 32.9104005 | P48: =IF(TABELA_PRECO!Z47=" "," ",TABELA_PRECO!Z47) -> 24.24242424 | Q48: =IF(TABELA_PRECO!AA47=" "," ",TABELA_PRECO!AA47) -> 55
A49: =IF(TABELA_PRECO!A48=" "," ",TABELA_PRECO!A48) -> 56 | B49: =IF(TABELA_PRECO!B48=" "," ",TABELA_PRECO!B48) -> BUCHA REDUCAO SOLD CURTA 50 X 40 MM | C49: =IF(TABELA_PRECO!C48=" "," ",TABELA_PRECO!C48) -> PC | D49: =IF(TABELA_PRECO!D48=" "," ",TABELA_PRECO!D48) -> HIDRÁULICO | E49: =IF(TABELA_PRECO!E48=" "," ",TABELA_PRECO!E48) -> KRONA / FORTLEV | F49: =IF(TABELA_PRECO!F48=" "," ",TABELA_PRECO!F48) -> 2.5 | G49: =IF(TABELA_PRECO!G48=" "," ",TABELA_PRECO!G48) -> 2.95 | H49: =IF(TABELA_PRECO!H48=" "," ",TABELA_PRECO!H48) -> 3.72636 | I49: =IF(TABELA_PRECO!I48=" "," ",TABELA_PRECO!I48) -> 3.3 | J49: =IF(TABELA_PRECO!J48=" "," ",TABELA_PRECO!J48) -> 3.03637 | K49: =IF(TABELA_PRECO!P48=" "," ",TABELA_PRECO!P48) -> 1.22636 | L49: =IF(TABELA_PRECO!Q48=" "," ",TABELA_PRECO!Q48) -> 0.8 | M49: =IF(TABELA_PRECO!R48=" "," ",TABELA_PRECO!R48) -> 0.475 | N49: =IF(TABELA_PRECO!T48=" "," ",TABELA_PRECO!T48) -> 0.158445712 | O49: =IF(TABELA_PRECO!Y48=" "," ",TABELA_PRECO!Y48) -> 32.9104005 | P49: =IF(TABELA_PRECO!Z48=" "," ",TABELA_PRECO!Z48) -> 24.24242424 | Q49: =IF(TABELA_PRECO!AA48=" "," ",TABELA_PRECO!AA48) -> 56
A50: =IF(TABELA_PRECO!A49=" "," ",TABELA_PRECO!A49) -> 57 | B50: =IF(TABELA_PRECO!B49=" "," ",TABELA_PRECO!B49) -> LUVA ROSCAVEL 1" | C50: =IF(TABELA_PRECO!C49=" "," ",TABELA_PRECO!C49) -> PC | D50: =IF(TABELA_PRECO!D49=" "," ",TABELA_PRECO!D49) -> HIDRÁULICO | E50: =IF(TABELA_PRECO!E49=" "," ",TABELA_PRECO!E49) -> KRONA / FORTLEV | F50: =IF(TABELA_PRECO!F49=" "," ",TABELA_PRECO!F49) -> 0.4 | G50: =IF(TABELA_PRECO!G49=" "," ",TABELA_PRECO!G49) -> 0.472 | H50: =IF(TABELA_PRECO!H49=" "," ",TABELA_PRECO!H49) -> 0.5962176 | I50: =IF(TABELA_PRECO!I49=" "," ",TABELA_PRECO!I49) -> 0.528 | J50: =IF(TABELA_PRECO!J49=" "," ",TABELA_PRECO!J49) -> 0.4858192 | K50: =IF(TABELA_PRECO!P49=" "," ",TABELA_PRECO!P49) -> 0.1962176 | L50: =IF(TABELA_PRECO!Q49=" "," ",TABELA_PRECO!Q49) -> 0.128 | M50: =IF(TABELA_PRECO!R49=" "," ",TABELA_PRECO!R49) -> 0.076 | N50: =IF(TABELA_PRECO!T49=" "," ",TABELA_PRECO!T49) -> 0.02535131392 | O50: =IF(TABELA_PRECO!Y49=" "," ",TABELA_PRECO!Y49) -> 32.9104005 | P50: =IF(TABELA_PRECO!Z49=" "," ",TABELA_PRECO!Z49) -> 24.24242424 | Q50: =IF(TABELA_PRECO!AA49=" "," ",TABELA_PRECO!AA49) -> 57
A51: =IF(TABELA_PRECO!A50=" "," ",TABELA_PRECO!A50) -> 58 | B51: =IF(TABELA_PRECO!B50=" "," ",TABELA_PRECO!B50) -> JOELHO ROSCAVEL 1" | C51: =IF(TABELA_PRECO!C50=" "," ",TABELA_PRECO!C50) -> UN | D51: =IF(TABELA_PRECO!D50=" "," ",TABELA_PRECO!D50) -> HIDRÁULICO | E51: =IF(TABELA_PRECO!E50=" "," ",TABELA_PRECO!E50) -> KRONA / FORTLEV | F51: =IF(TABELA_PRECO!F50=" "," ",TABELA_PRECO!F50) -> 3.95 | G51: =IF(TABELA_PRECO!G50=" "," ",TABELA_PRECO!G50) -> 4.661 | H51: =IF(TABELA_PRECO!H50=" "," ",TABELA_PRECO!H50) -> 5.8876488 | I51: =IF(TABELA_PRECO!I50=" "," ",TABELA_PRECO!I50) -> 5.214 | J51: =IF(TABELA_PRECO!J50=" "," ",TABELA_PRECO!J50) -> 4.7974646 | K51: =IF(TABELA_PRECO!P50=" "," ",TABELA_PRECO!P50) -> 1.9376488 | L51: =IF(TABELA_PRECO!Q50=" "," ",TABELA_PRECO!Q50) -> 1.264 | M51: =IF(TABELA_PRECO!R50=" "," ",TABELA_PRECO!R50) -> 0.7505 | N51: =IF(TABELA_PRECO!T50=" "," ",TABELA_PRECO!T50) -> 0.250344225 | O51: =IF(TABELA_PRECO!Y50=" "," ",TABELA_PRECO!Y50) -> 32.9104005 | P51: =IF(TABELA_PRECO!Z50=" "," ",TABELA_PRECO!Z50) -> 24.24242424 | Q51: =IF(TABELA_PRECO!AA50=" "," ",TABELA_PRECO!AA50) -> 58
A52: =IF(TABELA_PRECO!A51=" "," ",TABELA_PRECO!A51) -> 59 | B52: =IF(TABELA_PRECO!B51=" "," ",TABELA_PRECO!B51) -> UNIAO SOLD 25 MM | C52: =IF(TABELA_PRECO!C51=" "," ",TABELA_PRECO!C51) -> PC | D52: =IF(TABELA_PRECO!D51=" "," ",TABELA_PRECO!D51) -> HIDRÁULICO | E52: =IF(TABELA_PRECO!E51=" "," ",TABELA_PRECO!E51) -> KRONA / FORTLEV | F52: =IF(TABELA_PRECO!F51=" "," ",TABELA_PRECO!F51) -> 4.65 | G52: =IF(TABELA_PRECO!G51=" "," ",TABELA_PRECO!G51) -> 5.487 | H52: =IF(TABELA_PRECO!H51=" "," ",TABELA_PRECO!H51) -> 6.9310296 | I52: =IF(TABELA_PRECO!I51=" "," ",TABELA_PRECO!I51) -> 6.138 | J52: =IF(TABELA_PRECO!J51=" "," ",TABELA_PRECO!J51) -> 5.6476482 | K52: =IF(TABELA_PRECO!P51=" "," ",TABELA_PRECO!P51) -> 2.2810296 | L52: =IF(TABELA_PRECO!Q51=" "," ",TABELA_PRECO!Q51) -> 1.488 | M52: =IF(TABELA_PRECO!R51=" "," ",TABELA_PRECO!R51) -> 0.8835 | N52: =IF(TABELA_PRECO!T51=" "," ",TABELA_PRECO!T51) -> 0.2947090243 | O52: =IF(TABELA_PRECO!Y51=" "," ",TABELA_PRECO!Y51) -> 32.9104005 | P52: =IF(TABELA_PRECO!Z51=" "," ",TABELA_PRECO!Z51) -> 24.24242424 | Q52: =IF(TABELA_PRECO!AA51=" "," ",TABELA_PRECO!AA51) -> 59
A53: =IF(TABELA_PRECO!A52=" "," ",TABELA_PRECO!A52) -> 60 | B53: =IF(TABELA_PRECO!B52=" "," ",TABELA_PRECO!B52) -> ADAPTADOR CURTO COM BOLSA E ROSCA 32 X 1 | C53: =IF(TABELA_PRECO!C52=" "," ",TABELA_PRECO!C52) -> PC | D53: =IF(TABELA_PRECO!D52=" "," ",TABELA_PRECO!D52) -> HIDRÁULICO | E53: =IF(TABELA_PRECO!E52=" "," ",TABELA_PRECO!E52) -> KRONA / FORTLEV | F53: =IF(TABELA_PRECO!F52=" "," ",TABELA_PRECO!F52) -> 1.4 | G53: =IF(TABELA_PRECO!G52=" "," ",TABELA_PRECO!G52) -> 1.652 | H53: =IF(TABELA_PRECO!H52=" "," ",TABELA_PRECO!H52) -> 2.0867616 | I53: =IF(TABELA_PRECO!I52=" "," ",TABELA_PRECO!I52) -> 1.848 | J53: =IF(TABELA_PRECO!J52=" "," ",TABELA_PRECO!J52) -> 1.7003672 | K53: =IF(TABELA_PRECO!P52=" "," ",TABELA_PRECO!P52) -> 0.6867616 | L53: =IF(TABELA_PRECO!Q52=" "," ",TABELA_PRECO!Q52) -> 0.448 | M53: =IF(TABELA_PRECO!R52=" "," ",TABELA_PRECO!R52) -> 0.266 | N53: =IF(TABELA_PRECO!T52=" "," ",TABELA_PRECO!T52) -> 0.08872959872 | O53: =IF(TABELA_PRECO!Y52=" "," ",TABELA_PRECO!Y52) -> 32.9104005 | P53: =IF(TABELA_PRECO!Z52=" "," ",TABELA_PRECO!Z52) -> 24.24242424 | Q53: =IF(TABELA_PRECO!AA52=" "," ",TABELA_PRECO!AA52) -> 60
A54: =IF(TABELA_PRECO!A53=" "," ",TABELA_PRECO!A53) -> 61 | B54: =IF(TABELA_PRECO!B53=" "," ",TABELA_PRECO!B53) -> REGISTRO ESFERA SOLD 40 MM | C54: =IF(TABELA_PRECO!C53=" "," ",TABELA_PRECO!C53) -> PC | D54: =IF(TABELA_PRECO!D53=" "," ",TABELA_PRECO!D53) -> HIDRÁULICO | E54: =IF(TABELA_PRECO!E53=" "," ",TABELA_PRECO!E53) -> KRONA / FORTLEV | F54: =IF(TABELA_PRECO!F53=" "," ",TABELA_PRECO!F53) -> 18.4 | G54: =IF(TABELA_PRECO!G53=" "," ",TABELA_PRECO!G53) -> 21.712 | H54: =IF(TABELA_PRECO!H53=" "," ",TABELA_PRECO!H53) -> 27.4260096 | I54: =IF(TABELA_PRECO!I53=" "," ",TABELA_PRECO!I53) -> 24.288 | J54: =IF(TABELA_PRECO!J53=" "," ",TABELA_PRECO!J53) -> 22.3476832 | K54: =IF(TABELA_PRECO!P53=" "," ",TABELA_PRECO!P53) -> 9.0260096 | L54: =IF(TABELA_PRECO!Q53=" "," ",TABELA_PRECO!Q53) -> 5.888 | M54: =IF(TABELA_PRECO!R53=" "," ",TABELA_PRECO!R53) -> 3.496 | N54: =IF(TABELA_PRECO!T53=" "," ",TABELA_PRECO!T53) -> 1.16616044 | O54: =IF(TABELA_PRECO!Y53=" "," ",TABELA_PRECO!Y53) -> 32.9104005 | P54: =IF(TABELA_PRECO!Z53=" "," ",TABELA_PRECO!Z53) -> 24.24242424 | Q54: =IF(TABELA_PRECO!AA53=" "," ",TABELA_PRECO!AA53) -> 61
A55: =IF(TABELA_PRECO!A54=" "," ",TABELA_PRECO!A54) -> 62 | B55: =IF(TABELA_PRECO!B54=" "," ",TABELA_PRECO!B54) -> REGISTRO ESFERA SOLD COM UNIAO 25 MM | C55: =IF(TABELA_PRECO!C54=" "," ",TABELA_PRECO!C54) -> PC | D55: =IF(TABELA_PRECO!D54=" "," ",TABELA_PRECO!D54) -> HIDRÁULICO | E55: =IF(TABELA_PRECO!E54=" "," ",TABELA_PRECO!E54) -> KRONA / FORTLEV | F55: =IF(TABELA_PRECO!F54=" "," ",TABELA_PRECO!F54) -> 6.782 | G55: =IF(TABELA_PRECO!G54=" "," ",TABELA_PRECO!G54) -> 8.00276 | H55: =IF(TABELA_PRECO!H54=" "," ",TABELA_PRECO!H54) -> 10.10886941 | I55: =IF(TABELA_PRECO!I54=" "," ",TABELA_PRECO!I54) -> 8.95224 | J55: =IF(TABELA_PRECO!J54=" "," ",TABELA_PRECO!J54) -> 8.237064536 | K55: =IF(TABELA_PRECO!P54=" "," ",TABELA_PRECO!P54) -> 3.326869408 | L55: =IF(TABELA_PRECO!Q54=" "," ",TABELA_PRECO!Q54) -> 2.17024 | M55: =IF(TABELA_PRECO!R54=" "," ",TABELA_PRECO!R54) -> 1.28858 | N55: =IF(TABELA_PRECO!T54=" "," ",TABELA_PRECO!T54) -> 0.4298315275 | O55: =IF(TABELA_PRECO!Y54=" "," ",TABELA_PRECO!Y54) -> 32.9104005 | P55: =IF(TABELA_PRECO!Z54=" "," ",TABELA_PRECO!Z54) -> 24.24242424 | Q55: =IF(TABELA_PRECO!AA54=" "," ",TABELA_PRECO!AA54) -> 62
A56: =IF(TABELA_PRECO!A55=" "," ",TABELA_PRECO!A55) -> 63 | B56: =IF(TABELA_PRECO!B55=" "," ",TABELA_PRECO!B55) -> BUCHA REDUCAO SOLD CURTA 32 X 25 MM | C56: =IF(TABELA_PRECO!C55=" "," ",TABELA_PRECO!C55) -> PC | D56: =IF(TABELA_PRECO!D55=" "," ",TABELA_PRECO!D55) -> HIDRÁULICO | E56: =IF(TABELA_PRECO!E55=" "," ",TABELA_PRECO!E55) -> KRONA / FORTLEV | F56: =IF(TABELA_PRECO!F55=" "," ",TABELA_PRECO!F55) -> 0.7 | G56: =IF(TABELA_PRECO!G55=" "," ",TABELA_PRECO!G55) -> 0.826 | H56: =IF(TABELA_PRECO!H55=" "," ",TABELA_PRECO!H55) -> 1.0433808 | I56: =IF(TABELA_PRECO!I55=" "," ",TABELA_PRECO!I55) -> 0.924 | J56: =IF(TABELA_PRECO!J55=" "," ",TABELA_PRECO!J55) -> 0.8501836 | K56: =IF(TABELA_PRECO!P55=" "," ",TABELA_PRECO!P55) -> 0.3433808 | L56: =IF(TABELA_PRECO!Q55=" "," ",TABELA_PRECO!Q55) -> 0.224 | M56: =IF(TABELA_PRECO!R55=" "," ",TABELA_PRECO!R55) -> 0.133 | N56: =IF(TABELA_PRECO!T55=" "," ",TABELA_PRECO!T55) -> 0.04436479936 | O56: =IF(TABELA_PRECO!Y55=" "," ",TABELA_PRECO!Y55) -> 32.9104005 | P56: =IF(TABELA_PRECO!Z55=" "," ",TABELA_PRECO!Z55) -> 24.24242424 | Q56: =IF(TABELA_PRECO!AA55=" "," ",TABELA_PRECO!AA55) -> 63
A57: =IF(TABELA_PRECO!A56=" "," ",TABELA_PRECO!A56) -> 64 | B57: =IF(TABELA_PRECO!B56=" "," ",TABELA_PRECO!B56) -> JOELHO SOLD 45 40 MM | C57: =IF(TABELA_PRECO!C56=" "," ",TABELA_PRECO!C56) -> UN | D57: =IF(TABELA_PRECO!D56=" "," ",TABELA_PRECO!D56) -> HIDRÁULICO | E57: =IF(TABELA_PRECO!E56=" "," ",TABELA_PRECO!E56) -> KRONA / FORTLEV | F57: =IF(TABELA_PRECO!F56=" "," ",TABELA_PRECO!F56) -> 5.05 | G57: =IF(TABELA_PRECO!G56=" "," ",TABELA_PRECO!G56) -> 5.959 | H57: =IF(TABELA_PRECO!H56=" "," ",TABELA_PRECO!H56) -> 7.5272472 | I57: =IF(TABELA_PRECO!I56=" "," ",TABELA_PRECO!I56) -> 6.666 | J57: =IF(TABELA_PRECO!J56=" "," ",TABELA_PRECO!J56) -> 6.1334674 | K57: =IF(TABELA_PRECO!P56=" "," ",TABELA_PRECO!P56) -> 2.4772472 | L57: =IF(TABELA_PRECO!Q56=" "," ",TABELA_PRECO!Q56) -> 1.616 | M57: =IF(TABELA_PRECO!R56=" "," ",TABELA_PRECO!R56) -> 0.9595 | N57: =IF(TABELA_PRECO!T56=" "," ",TABELA_PRECO!T56) -> 0.3200603382 | O57: =IF(TABELA_PRECO!Y56=" "," ",TABELA_PRECO!Y56) -> 32.9104005 | P57: =IF(TABELA_PRECO!Z56=" "," ",TABELA_PRECO!Z56) -> 24.24242424 | Q57: =IF(TABELA_PRECO!AA56=" "," ",TABELA_PRECO!AA56) -> 64
A58: =IF(TABELA_PRECO!A57=" "," ",TABELA_PRECO!A57) -> 65 | B58: =IF(TABELA_PRECO!B57=" "," ",TABELA_PRECO!B57) -> ABRACADEIRA TIPO U 1" | C58: =IF(TABELA_PRECO!C57=" "," ",TABELA_PRECO!C57) -> PC | D58: =IF(TABELA_PRECO!D57=" "," ",TABELA_PRECO!D57) -> HIDRÁULICO | E58: =IF(TABELA_PRECO!E57=" "," ",TABELA_PRECO!E57) -> DEPECIL | F58: =IF(TABELA_PRECO!F57=" "," ",TABELA_PRECO!F57) -> 0.35 | G58: =IF(TABELA_PRECO!G57=" "," ",TABELA_PRECO!G57) -> 0.413 | H58: =IF(TABELA_PRECO!H57=" "," ",TABELA_PRECO!H57) -> 0.5216904 | I58: =IF(TABELA_PRECO!I57=" "," ",TABELA_PRECO!I57) -> 0.462 | J58: =IF(TABELA_PRECO!J57=" "," ",TABELA_PRECO!J57) -> 0.4250918 | K58: =IF(TABELA_PRECO!P57=" "," ",TABELA_PRECO!P57) -> 0.1716904 | L58: =IF(TABELA_PRECO!Q57=" "," ",TABELA_PRECO!Q57) -> 0.112 | M58: =IF(TABELA_PRECO!R57=" "," ",TABELA_PRECO!R57) -> 0.0665 | N58: =IF(TABELA_PRECO!T57=" "," ",TABELA_PRECO!T57) -> 0.02218239968 | O58: =IF(TABELA_PRECO!Y57=" "," ",TABELA_PRECO!Y57) -> 32.9104005 | P58: =IF(TABELA_PRECO!Z57=" "," ",TABELA_PRECO!Z57) -> 24.24242424 | Q58: =IF(TABELA_PRECO!AA57=" "," ",TABELA_PRECO!AA57) -> 65
A59: =IF(TABELA_PRECO!A58=" "," ",TABELA_PRECO!A58) -> 66 | B59: =IF(TABELA_PRECO!B58=" "," ",TABELA_PRECO!B58) -> CUBO HELICE VENTILADOR 36" | C59: =IF(TABELA_PRECO!C58=" "," ",TABELA_PRECO!C58) -> UN | D59: =IF(TABELA_PRECO!D58=" "," ",TABELA_PRECO!D58) -> EQUIPAMENTOS BIG DUTCHMAN | E59: =IF(TABELA_PRECO!E58=" "," ",TABELA_PRECO!E58) -> BIG DUTCHMAN | F59: =IF(TABELA_PRECO!F58=" "," ",TABELA_PRECO!F58) -> 20 | G59: =IF(TABELA_PRECO!G58=" "," ",TABELA_PRECO!G58) -> 23.6 | H59: =IF(TABELA_PRECO!H58=" "," ",TABELA_PRECO!H58) -> 29.81088 | I59: =IF(TABELA_PRECO!I58=" "," ",TABELA_PRECO!I58) -> 26.4 | J59: =IF(TABELA_PRECO!J58=" "," ",TABELA_PRECO!J58) -> 24.29096 | K59: =IF(TABELA_PRECO!P58=" "," ",TABELA_PRECO!P58) -> 9.81088 | L59: =IF(TABELA_PRECO!Q58=" "," ",TABELA_PRECO!Q58) -> 6.4 | M59: =IF(TABELA_PRECO!R58=" "," ",TABELA_PRECO!R58) -> 3.8 | N59: =IF(TABELA_PRECO!T58=" "," ",TABELA_PRECO!T58) -> 1.267565696 | O59: =IF(TABELA_PRECO!Y58=" "," ",TABELA_PRECO!Y58) -> 32.9104005 | P59: =IF(TABELA_PRECO!Z58=" "," ",TABELA_PRECO!Z58) -> 24.24242424 | Q59: =IF(TABELA_PRECO!AA58=" "," ",TABELA_PRECO!AA58) -> 66
A60: =IF(TABELA_PRECO!A59=" "," ",TABELA_PRECO!A59) -> 67 | B60: =IF(TABELA_PRECO!B59=" "," ",TABELA_PRECO!B59) -> PA HELICE VENTILADOR 36" 3 PAS | C60: =IF(TABELA_PRECO!C59=" "," ",TABELA_PRECO!C59) -> CJ | D60: =IF(TABELA_PRECO!D59=" "," ",TABELA_PRECO!D59) -> EQUIPAMENTOS BIG DUTCHMAN | E60: =IF(TABELA_PRECO!E59=" "," ",TABELA_PRECO!E59) -> BIG DUTCHMAN | F60: =IF(TABELA_PRECO!F59=" "," ",TABELA_PRECO!F59) -> 45 | G60: =IF(TABELA_PRECO!G59=" "," ",TABELA_PRECO!G59) -> 53.1 | H60: =IF(TABELA_PRECO!H59=" "," ",TABELA_PRECO!H59) -> 67.07448 | I60: =IF(TABELA_PRECO!I59=" "," ",TABELA_PRECO!I59) -> 59.4 | J60: =IF(TABELA_PRECO!J59=" "," ",TABELA_PRECO!J59) -> 54.65466 | K60: =IF(TABELA_PRECO!P59=" "," ",TABELA_PRECO!P59) -> 22.07448 | L60: =IF(TABELA_PRECO!Q59=" "," ",TABELA_PRECO!Q59) -> 14.4 | M60: =IF(TABELA_PRECO!R59=" "," ",TABELA_PRECO!R59) -> 8.55 | N60: =IF(TABELA_PRECO!T59=" "," ",TABELA_PRECO!T59) -> 2.852022816 | O60: =IF(TABELA_PRECO!Y59=" "," ",TABELA_PRECO!Y59) -> 32.9104005 | P60: =IF(TABELA_PRECO!Z59=" "," ",TABELA_PRECO!Z59) -> 24.24242424 | Q60: =IF(TABELA_PRECO!AA59=" "," ",TABELA_PRECO!AA59) -> 67
A61: =IF(TABELA_PRECO!A60=" "," ",TABELA_PRECO!A60) -> 70 | B61: =IF(TABELA_PRECO!B60=" "," ",TABELA_PRECO!B60) -> TUBETE BRANCO ALTA PRESSAO 5 CM | C61: =IF(TABELA_PRECO!C60=" "," ",TABELA_PRECO!C60) -> UN | D61: =IF(TABELA_PRECO!D60=" "," ",TABELA_PRECO!D60) -> EQUIPAMENTOS BIG DUTCHMAN | E61: =IF(TABELA_PRECO!E60=" "," ",TABELA_PRECO!E60) -> BIG DUTCHMAN | F61: =IF(TABELA_PRECO!F60=" "," ",TABELA_PRECO!F60) -> 0.5 | G61: =IF(TABELA_PRECO!G60=" "," ",TABELA_PRECO!G60) -> 0.59 | H61: =IF(TABELA_PRECO!H60=" "," ",TABELA_PRECO!H60) -> 0.745272 | I61: =IF(TABELA_PRECO!I60=" "," ",TABELA_PRECO!I60) -> 0.66 | J61: =IF(TABELA_PRECO!J60=" "," ",TABELA_PRECO!J60) -> 0.607274 | K61: =IF(TABELA_PRECO!P60=" "," ",TABELA_PRECO!P60) -> 0.245272 | L61: =IF(TABELA_PRECO!Q60=" "," ",TABELA_PRECO!Q60) -> 0.16 | M61: =IF(TABELA_PRECO!R60=" "," ",TABELA_PRECO!R60) -> 0.095 | N61: =IF(TABELA_PRECO!T60=" "," ",TABELA_PRECO!T60) -> 0.0316891424 | O61: =IF(TABELA_PRECO!Y60=" "," ",TABELA_PRECO!Y60) -> 32.9104005 | P61: =IF(TABELA_PRECO!Z60=" "," ",TABELA_PRECO!Z60) -> 24.24242424 | Q61: =IF(TABELA_PRECO!AA60=" "," ",TABELA_PRECO!AA60) -> 70
A62: =IF(TABELA_PRECO!A61=" "," ",TABELA_PRECO!A61) -> 71 | B62: =IF(TABELA_PRECO!B61=" "," ",TABELA_PRECO!B61) -> REGULADOR DE ALTURA 3 MM | C62: =IF(TABELA_PRECO!C61=" "," ",TABELA_PRECO!C61) -> UN | D62: =IF(TABELA_PRECO!D61=" "," ",TABELA_PRECO!D61) -> EQUIPAMENTOS DIVERSOS | E62: =IF(TABELA_PRECO!E61=" "," ",TABELA_PRECO!E61) -> PLASMATTE | F62: =IF(TABELA_PRECO!F61=" "," ",TABELA_PRECO!F61) -> 0.41 | G62: =IF(TABELA_PRECO!G61=" "," ",TABELA_PRECO!G61) -> 0.4838 | H62: =IF(TABELA_PRECO!H61=" "," ",TABELA_PRECO!H61) -> 0.61112304 | I62: =IF(TABELA_PRECO!I61=" "," ",TABELA_PRECO!I61) -> 0.5412 | J62: =IF(TABELA_PRECO!J61=" "," ",TABELA_PRECO!J61) -> 0.49796468 | K62: =IF(TABELA_PRECO!P61=" "," ",TABELA_PRECO!P61) -> 0.20112304 | L62: =IF(TABELA_PRECO!Q61=" "," ",TABELA_PRECO!Q61) -> 0.1312 | M62: =IF(TABELA_PRECO!R61=" "," ",TABELA_PRECO!R61) -> 0.0779 | N62: =IF(TABELA_PRECO!T61=" "," ",TABELA_PRECO!T61) -> 0.02598509677 | O62: =IF(TABELA_PRECO!Y61=" "," ",TABELA_PRECO!Y61) -> 32.9104005 | P62: =IF(TABELA_PRECO!Z61=" "," ",TABELA_PRECO!Z61) -> 24.24242424 | Q62: =IF(TABELA_PRECO!AA61=" "," ",TABELA_PRECO!AA61) -> 71
A63: =IF(TABELA_PRECO!A62=" "," ",TABELA_PRECO!A62) -> 72 | B63: =IF(TABELA_PRECO!B62=" "," ",TABELA_PRECO!B62) -> CONJUNTO ABRACADEIRA TUBO BEBEDOURO C/ANEL ORING | C63: =IF(TABELA_PRECO!C62=" "," ",TABELA_PRECO!C62) -> CJ | D63: =IF(TABELA_PRECO!D62=" "," ",TABELA_PRECO!D62) -> EQUIPAMENTOS BIG DUTCHMAN | E63: =IF(TABELA_PRECO!E62=" "," ",TABELA_PRECO!E62) -> BIG DUTCHMAN | F63: =IF(TABELA_PRECO!F62=" "," ",TABELA_PRECO!F62) -> 1.2 | G63: =IF(TABELA_PRECO!G62=" "," ",TABELA_PRECO!G62) -> 1.416 | H63: =IF(TABELA_PRECO!H62=" "," ",TABELA_PRECO!H62) -> 1.7886528 | I63: =IF(TABELA_PRECO!I62=" "," ",TABELA_PRECO!I62) -> 1.584 | J63: =IF(TABELA_PRECO!J62=" "," ",TABELA_PRECO!J62) -> 1.4574576 | K63: =IF(TABELA_PRECO!P62=" "," ",TABELA_PRECO!P62) -> 0.5886528 | L63: =IF(TABELA_PRECO!Q62=" "," ",TABELA_PRECO!Q62) -> 0.384 | M63: =IF(TABELA_PRECO!R62=" "," ",TABELA_PRECO!R62) -> 0.228 | N63: =IF(TABELA_PRECO!T62=" "," ",TABELA_PRECO!T62) -> 0.07605394176 | O63: =IF(TABELA_PRECO!Y62=" "," ",TABELA_PRECO!Y62) -> 32.9104005 | P63: =IF(TABELA_PRECO!Z62=" "," ",TABELA_PRECO!Z62) -> 24.24242424 | Q63: =IF(TABELA_PRECO!AA62=" "," ",TABELA_PRECO!AA62) -> 72
A64: =IF(TABELA_PRECO!A63=" "," ",TABELA_PRECO!A63) -> 73 | B64: =IF(TABELA_PRECO!B63=" "," ",TABELA_PRECO!B63) -> MANGUEIRA PVC LARANJA 6X 9 SH75A80 30 M | C64: =IF(TABELA_PRECO!C63=" "," ",TABELA_PRECO!C63) -> MT | D64: =IF(TABELA_PRECO!D63=" "," ",TABELA_PRECO!D63) -> EQUIPAMENTOS BIG DUTCHMAN | E64: =IF(TABELA_PRECO!E63=" "," ",TABELA_PRECO!E63) -> BIG DUTCHMAN | F64: =IF(TABELA_PRECO!F63=" "," ",TABELA_PRECO!F63) -> 0.95 | G64: =IF(TABELA_PRECO!G63=" "," ",TABELA_PRECO!G63) -> 1.121 | H64: =IF(TABELA_PRECO!H63=" "," ",TABELA_PRECO!H63) -> 1.4160168 | I64: =IF(TABELA_PRECO!I63=" "," ",TABELA_PRECO!I63) -> 1.254 | J64: =IF(TABELA_PRECO!J63=" "," ",TABELA_PRECO!J63) -> 1.1538206 | K64: =IF(TABELA_PRECO!P63=" "," ",TABELA_PRECO!P63) -> 0.4660168 | L64: =IF(TABELA_PRECO!Q63=" "," ",TABELA_PRECO!Q63) -> 0.304 | M64: =IF(TABELA_PRECO!R63=" "," ",TABELA_PRECO!R63) -> 0.1805 | N64: =IF(TABELA_PRECO!T63=" "," ",TABELA_PRECO!T63) -> 0.06020937056 | O64: =IF(TABELA_PRECO!Y63=" "," ",TABELA_PRECO!Y63) -> 32.9104005 | P64: =IF(TABELA_PRECO!Z63=" "," ",TABELA_PRECO!Z63) -> 24.24242424 | Q64: =IF(TABELA_PRECO!AA63=" "," ",TABELA_PRECO!AA63) -> 73
A65: =IF(TABELA_PRECO!A64=" "," ",TABELA_PRECO!A64) -> 74 | B65: =IF(TABELA_PRECO!B64=" "," ",TABELA_PRECO!B64) -> TUBO SILICONE 4X5,8X1000 REDONDO LARANJA | C65: =IF(TABELA_PRECO!C64=" "," ",TABELA_PRECO!C64) -> MT | D65: =IF(TABELA_PRECO!D64=" "," ",TABELA_PRECO!D64) -> EQUIPAMENTOS BIG DUTCHMAN | E65: =IF(TABELA_PRECO!E64=" "," ",TABELA_PRECO!E64) -> BIG DUTCHMAN | F65: =IF(TABELA_PRECO!F64=" "," ",TABELA_PRECO!F64) -> 1.5 | G65: =IF(TABELA_PRECO!G64=" "," ",TABELA_PRECO!G64) -> 1.77 | H65: =IF(TABELA_PRECO!H64=" "," ",TABELA_PRECO!H64) -> 2.235816 | I65: =IF(TABELA_PRECO!I64=" "," ",TABELA_PRECO!I64) -> 1.98 | J65: =IF(TABELA_PRECO!J64=" "," ",TABELA_PRECO!J64) -> 1.821822 | K65: =IF(TABELA_PRECO!P64=" "," ",TABELA_PRECO!P64) -> 0.735816 | L65: =IF(TABELA_PRECO!Q64=" "," ",TABELA_PRECO!Q64) -> 0.48 | M65: =IF(TABELA_PRECO!R64=" "," ",TABELA_PRECO!R64) -> 0.285 | N65: =IF(TABELA_PRECO!T64=" "," ",TABELA_PRECO!T64) -> 0.0950674272 | O65: =IF(TABELA_PRECO!Y64=" "," ",TABELA_PRECO!Y64) -> 32.9104005 | P65: =IF(TABELA_PRECO!Z64=" "," ",TABELA_PRECO!Z64) -> 24.24242424 | Q65: =IF(TABELA_PRECO!AA64=" "," ",TABELA_PRECO!AA64) -> 74
A66: =IF(TABELA_PRECO!A65=" "," ",TABELA_PRECO!A65) -> 75 | B66: =IF(TABELA_PRECO!B65=" "," ",TABELA_PRECO!B65) -> VENTILADOR CLIMAX 36" 3F 0,37 KW 220/380 V 60 HZ -TF | C66: =IF(TABELA_PRECO!C65=" "," ",TABELA_PRECO!C65) -> CJ | D66: =IF(TABELA_PRECO!D65=" "," ",TABELA_PRECO!D65) -> EQUIPAMENTOS BIG DUTCHMAN | E66: =IF(TABELA_PRECO!E65=" "," ",TABELA_PRECO!E65) -> BIG DUTCHMAN | F66: =IF(TABELA_PRECO!F65=" "," ",TABELA_PRECO!F65) -> 860.8 | G66: =IF(TABELA_PRECO!G65=" "," ",TABELA_PRECO!G65) -> 1015.744 | H66: =IF(TABELA_PRECO!H65=" "," ",TABELA_PRECO!H65) -> 1283.060275 | I66: =IF(TABELA_PRECO!I65=" "," ",TABELA_PRECO!I65) -> 1136.256 | J66: =IF(TABELA_PRECO!J65=" "," ",TABELA_PRECO!J65) -> 1045.482918 | K66: =IF(TABELA_PRECO!P65=" "," ",TABELA_PRECO!P65) -> 422.2602752 | L66: =IF(TABELA_PRECO!Q65=" "," ",TABELA_PRECO!Q65) -> 275.456 | M66: =IF(TABELA_PRECO!R65=" "," ",TABELA_PRECO!R65) -> 163.552 | N66: =IF(TABELA_PRECO!T65=" "," ",TABELA_PRECO!T65) -> 54.55602756 | O66: =IF(TABELA_PRECO!Y65=" "," ",TABELA_PRECO!Y65) -> 32.9104005 | P66: =IF(TABELA_PRECO!Z65=" "," ",TABELA_PRECO!Z65) -> 24.24242424 | Q66: =IF(TABELA_PRECO!AA65=" "," ",TABELA_PRECO!AA65) -> 75
A67: =IF(TABELA_PRECO!A66=" "," ",TABELA_PRECO!A66) -> 76 | B67: =IF(TABELA_PRECO!B66=" "," ",TABELA_PRECO!B66) -> VENTILADOR CLIMAX 36" 1F 0,37 KW 220/440 V 60 HZ -MF (2428) | C67: =IF(TABELA_PRECO!C66=" "," ",TABELA_PRECO!C66) -> CJ | D67: =IF(TABELA_PRECO!D66=" "," ",TABELA_PRECO!D66) -> EQUIPAMENTOS BIG DUTCHMAN | E67: =IF(TABELA_PRECO!E66=" "," ",TABELA_PRECO!E66) -> BIG DUTCHMAN | F67: =IF(TABELA_PRECO!F66=" "," ",TABELA_PRECO!F66) -> 861.8 | G67: =IF(TABELA_PRECO!G66=" "," ",TABELA_PRECO!G66) -> 1016.924 | H67: =IF(TABELA_PRECO!H66=" "," ",TABELA_PRECO!H66) -> 1284.550819 | I67: =IF(TABELA_PRECO!I66=" "," ",TABELA_PRECO!I66) -> 1137.576 | J67: =IF(TABELA_PRECO!J66=" "," ",TABELA_PRECO!J66) -> 1046.697466 | K67: =IF(TABELA_PRECO!P66=" "," ",TABELA_PRECO!P66) -> 422.7508192 | L67: =IF(TABELA_PRECO!Q66=" "," ",TABELA_PRECO!Q66) -> 275.776 | M67: =IF(TABELA_PRECO!R66=" "," ",TABELA_PRECO!R66) -> 163.742 | N67: =IF(TABELA_PRECO!T66=" "," ",TABELA_PRECO!T66) -> 54.61940584 | O67: =IF(TABELA_PRECO!Y66=" "," ",TABELA_PRECO!Y66) -> 32.9104005 | P67: =IF(TABELA_PRECO!Z66=" "," ",TABELA_PRECO!Z66) -> 24.24242424 | Q67: =IF(TABELA_PRECO!AA66=" "," ",TABELA_PRECO!AA66) -> 76
A68: =IF(TABELA_PRECO!A67=" "," ",TABELA_PRECO!A67) -> 77 | B68: =IF(TABELA_PRECO!B67=" "," ",TABELA_PRECO!B67) -> TERMOMETRO AMB BASE PLASTICA -10 +50 | C68: =IF(TABELA_PRECO!C67=" "," ",TABELA_PRECO!C67) -> UN | D68: =IF(TABELA_PRECO!D67=" "," ",TABELA_PRECO!D67) -> EQUIPAMENTOS DIVERSOS | E68: =IF(TABELA_PRECO!E67=" "," ",TABELA_PRECO!E67) -> INCOTERM | F68: =IF(TABELA_PRECO!F67=" "," ",TABELA_PRECO!F67) -> 23.75 | G68: =IF(TABELA_PRECO!G67=" "," ",TABELA_PRECO!G67) -> 28.025 | H68: =IF(TABELA_PRECO!H67=" "," ",TABELA_PRECO!H67) -> 35.40042 | I68: =IF(TABELA_PRECO!I67=" "," ",TABELA_PRECO!I67) -> 31.35 | J68: =IF(TABELA_PRECO!J67=" "," ",TABELA_PRECO!J67) -> 28.845515 | K68: =IF(TABELA_PRECO!P67=" "," ",TABELA_PRECO!P67) -> 11.65042 | L68: =IF(TABELA_PRECO!Q67=" "," ",TABELA_PRECO!Q67) -> 7.6 | M68: =IF(TABELA_PRECO!R67=" "," ",TABELA_PRECO!R67) -> 4.5125 | N68: =IF(TABELA_PRECO!T67=" "," ",TABELA_PRECO!T67) -> 1.505234264 | O68: =IF(TABELA_PRECO!Y67=" "," ",TABELA_PRECO!Y67) -> 32.9104005 | P68: =IF(TABELA_PRECO!Z67=" "," ",TABELA_PRECO!Z67) -> 24.24242424 | Q68: =IF(TABELA_PRECO!AA67=" "," ",TABELA_PRECO!AA67) -> 77
A69: =IF(TABELA_PRECO!A68=" "," ",TABELA_PRECO!A68) -> 78 | B69: =IF(TABELA_PRECO!B68=" "," ",TABELA_PRECO!B68) -> TERMOHIGROMETRO DIGITAL -10 C +60 | C69: =IF(TABELA_PRECO!C68=" "," ",TABELA_PRECO!C68) -> UN | D69: =IF(TABELA_PRECO!D68=" "," ",TABELA_PRECO!D68) -> EQUIPAMENTOS DIVERSOS | E69: =IF(TABELA_PRECO!E68=" "," ",TABELA_PRECO!E68) -> INCOTERM | F69: =IF(TABELA_PRECO!F68=" "," ",TABELA_PRECO!F68) -> 125 | G69: =IF(TABELA_PRECO!G68=" "," ",TABELA_PRECO!G68) -> 147.5 | H69: =IF(TABELA_PRECO!H68=" "," ",TABELA_PRECO!H68) -> 186.318 | I69: =IF(TABELA_PRECO!I68=" "," ",TABELA_PRECO!I68) -> 165 | J69: =IF(TABELA_PRECO!J68=" "," ",TABELA_PRECO!J68) -> 151.8185 | K69: =IF(TABELA_PRECO!P68=" "," ",TABELA_PRECO!P68) -> 61.318 | L69: =IF(TABELA_PRECO!Q68=" "," ",TABELA_PRECO!Q68) -> 40 | M69: =IF(TABELA_PRECO!R68=" "," ",TABELA_PRECO!R68) -> 23.75 | N69: =IF(TABELA_PRECO!T68=" "," ",TABELA_PRECO!T68) -> 7.9222856 | O69: =IF(TABELA_PRECO!Y68=" "," ",TABELA_PRECO!Y68) -> 32.9104005 | P69: =IF(TABELA_PRECO!Z68=" "," ",TABELA_PRECO!Z68) -> 24.24242424 | Q69: =IF(TABELA_PRECO!AA68=" "," ",TABELA_PRECO!AA68) -> 78
A70: =IF(TABELA_PRECO!A69=" "," ",TABELA_PRECO!A69) -> 79 | B70: =IF(TABELA_PRECO!B69=" "," ",TABELA_PRECO!B69) -> TERMOMETRO MAXIMO E MINIMA -38 +50 C | C70: =IF(TABELA_PRECO!C69=" "," ",TABELA_PRECO!C69) -> UN | D70: =IF(TABELA_PRECO!D69=" "," ",TABELA_PRECO!D69) -> EQUIPAMENTOS DIVERSOS | E70: =IF(TABELA_PRECO!E69=" "," ",TABELA_PRECO!E69) -> INCOTERM | F70: =IF(TABELA_PRECO!F69=" "," ",TABELA_PRECO!F69) -> 85 | G70: =IF(TABELA_PRECO!G69=" "," ",TABELA_PRECO!G69) -> 100.3 | H70: =IF(TABELA_PRECO!H69=" "," ",TABELA_PRECO!H69) -> 126.69624 | I70: =IF(TABELA_PRECO!I69=" "," ",TABELA_PRECO!I69) -> 112.2 | J70: =IF(TABELA_PRECO!J69=" "," ",TABELA_PRECO!J69) -> 103.23658 | K70: =IF(TABELA_PRECO!P69=" "," ",TABELA_PRECO!P69) -> 41.69624 | L70: =IF(TABELA_PRECO!Q69=" "," ",TABELA_PRECO!Q69) -> 27.2 | M70: =IF(TABELA_PRECO!R69=" "," ",TABELA_PRECO!R69) -> 16.15 | N70: =IF(TABELA_PRECO!T69=" "," ",TABELA_PRECO!T69) -> 5.387154208 | O70: =IF(TABELA_PRECO!Y69=" "," ",TABELA_PRECO!Y69) -> 32.9104005 | P70: =IF(TABELA_PRECO!Z69=" "," ",TABELA_PRECO!Z69) -> 24.24242424 | Q70: =IF(TABELA_PRECO!AA69=" "," ",TABELA_PRECO!AA69) -> 79
A71: =IF(TABELA_PRECO!A70=" "," ",TABELA_PRECO!A70) -> 80 | B71: =IF(TABELA_PRECO!B70=" "," ",TABELA_PRECO!B70) -> FINAL DE LINHA P/MONTAGEM C/TUBO CONEXÃO | C71: =IF(TABELA_PRECO!C70=" "," ",TABELA_PRECO!C70) -> PC | D71: =IF(TABELA_PRECO!D70=" "," ",TABELA_PRECO!D70) -> EQUIPAMENTOS BIG DUTCHMAN | E71: =IF(TABELA_PRECO!E70=" "," ",TABELA_PRECO!E70) -> BIG DUTCHMAN | F71: =IF(TABELA_PRECO!F70=" "," ",TABELA_PRECO!F70) -> 103 | G71: =IF(TABELA_PRECO!G70=" "," ",TABELA_PRECO!G70) -> 121.54 | H71: =IF(TABELA_PRECO!H70=" "," ",TABELA_PRECO!H70) -> 153.526032 | I71: =IF(TABELA_PRECO!I70=" "," ",TABELA_PRECO!I70) -> 135.96 | J71: =IF(TABELA_PRECO!J70=" "," ",TABELA_PRECO!J70) -> 125.098444 | K71: =IF(TABELA_PRECO!P70=" "," ",TABELA_PRECO!P70) -> 50.526032 | L71: =IF(TABELA_PRECO!Q70=" "," ",TABELA_PRECO!Q70) -> 32.96 | M71: =IF(TABELA_PRECO!R70=" "," ",TABELA_PRECO!R70) -> 19.57 | N71: =IF(TABELA_PRECO!T70=" "," ",TABELA_PRECO!T70) -> 6.527963334 | O71: =IF(TABELA_PRECO!Y70=" "," ",TABELA_PRECO!Y70) -> 32.9104005 | P71: =IF(TABELA_PRECO!Z70=" "," ",TABELA_PRECO!Z70) -> 24.24242424 | Q71: =IF(TABELA_PRECO!AA70=" "," ",TABELA_PRECO!AA70) -> 80
A72: =IF(TABELA_PRECO!A71=" "," ",TABELA_PRECO!A71) -> 81 | B72: =IF(TABELA_PRECO!B71=" "," ",TABELA_PRECO!B71) -> CAIXA D'AGUA 1 SAIDA | C72: =IF(TABELA_PRECO!C71=" "," ",TABELA_PRECO!C71) -> UN | D72: =IF(TABELA_PRECO!D71=" "," ",TABELA_PRECO!D71) -> EQUIPAMENTOS BIG DUTCHMAN | E72: =IF(TABELA_PRECO!E71=" "," ",TABELA_PRECO!E71) -> LUBING | F72: =IF(TABELA_PRECO!F71=" "," ",TABELA_PRECO!F71) -> 120 | G72: =IF(TABELA_PRECO!G71=" "," ",TABELA_PRECO!G71) -> 141.6 | H72: =IF(TABELA_PRECO!H71=" "," ",TABELA_PRECO!H71) -> 178.86528 | I72: =IF(TABELA_PRECO!I71=" "," ",TABELA_PRECO!I71) -> 158.4 | J72: =IF(TABELA_PRECO!J71=" "," ",TABELA_PRECO!J71) -> 145.74576 | K72: =IF(TABELA_PRECO!P71=" "," ",TABELA_PRECO!P71) -> 58.86528 | L72: =IF(TABELA_PRECO!Q71=" "," ",TABELA_PRECO!Q71) -> 38.4 | M72: =IF(TABELA_PRECO!R71=" "," ",TABELA_PRECO!R71) -> 22.8 | N72: =IF(TABELA_PRECO!T71=" "," ",TABELA_PRECO!T71) -> 7.605394176 | O72: =IF(TABELA_PRECO!Y71=" "," ",TABELA_PRECO!Y71) -> 32.9104005 | P72: =IF(TABELA_PRECO!Z71=" "," ",TABELA_PRECO!Z71) -> 24.24242424 | Q72: =IF(TABELA_PRECO!AA71=" "," ",TABELA_PRECO!AA71) -> 81
A73: =IF(TABELA_PRECO!A72=" "," ",TABELA_PRECO!A72) -> 82 | B73: =IF(TABELA_PRECO!B72=" "," ",TABELA_PRECO!B72) -> TUBO PVC AGUA FRIA SOLD 40MM | C73: =IF(TABELA_PRECO!C72=" "," ",TABELA_PRECO!C72) -> MT | D73: =IF(TABELA_PRECO!D72=" "," ",TABELA_PRECO!D72) -> HIDRÁULICO | E73: =IF(TABELA_PRECO!E72=" "," ",TABELA_PRECO!E72) -> KRONA / FORTLEV | F73: =IF(TABELA_PRECO!F72=" "," ",TABELA_PRECO!F72) -> 9.5 | G73: =IF(TABELA_PRECO!G72=" "," ",TABELA_PRECO!G72) -> 11.21 | H73: =IF(TABELA_PRECO!H72=" "," ",TABELA_PRECO!H72) -> 14.160168 | I73: =IF(TABELA_PRECO!I72=" "," ",TABELA_PRECO!I72) -> 12.54 | J73: =IF(TABELA_PRECO!J72=" "," ",TABELA_PRECO!J72) -> 11.538206 | K73: =IF(TABELA_PRECO!P72=" "," ",TABELA_PRECO!P72) -> 4.660168 | L73: =IF(TABELA_PRECO!Q72=" "," ",TABELA_PRECO!Q72) -> 3.04 | M73: =IF(TABELA_PRECO!R72=" "," ",TABELA_PRECO!R72) -> 1.805 | N73: =IF(TABELA_PRECO!T72=" "," ",TABELA_PRECO!T72) -> 0.6020937056 | O73: =IF(TABELA_PRECO!Y72=" "," ",TABELA_PRECO!Y72) -> 32.9104005 | P73: =IF(TABELA_PRECO!Z72=" "," ",TABELA_PRECO!Z72) -> 24.24242424 | Q73: =IF(TABELA_PRECO!AA72=" "," ",TABELA_PRECO!AA72) -> 82
A74: =IF(TABELA_PRECO!A73=" "," ",TABELA_PRECO!A73) -> 83 | B74: =IF(TABELA_PRECO!B73=" "," ",TABELA_PRECO!B73) -> TUBO PVC AGUA FRIA SOLD 25 MM | C74: =IF(TABELA_PRECO!C73=" "," ",TABELA_PRECO!C73) -> MT | D74: =IF(TABELA_PRECO!D73=" "," ",TABELA_PRECO!D73) -> HIDRÁULICO | E74: =IF(TABELA_PRECO!E73=" "," ",TABELA_PRECO!E73) -> KRONA / FORTLEV | F74: =IF(TABELA_PRECO!F73=" "," ",TABELA_PRECO!F73) -> 2.95 | G74: =IF(TABELA_PRECO!G73=" "," ",TABELA_PRECO!G73) -> 3.481 | H74: =IF(TABELA_PRECO!H73=" "," ",TABELA_PRECO!H73) -> 4.3971048 | I74: =IF(TABELA_PRECO!I73=" "," ",TABELA_PRECO!I73) -> 3.894 | J74: =IF(TABELA_PRECO!J73=" "," ",TABELA_PRECO!J73) -> 3.5829166 | K74: =IF(TABELA_PRECO!P73=" "," ",TABELA_PRECO!P73) -> 1.4471048 | L74: =IF(TABELA_PRECO!Q73=" "," ",TABELA_PRECO!Q73) -> 0.944 | M74: =IF(TABELA_PRECO!R73=" "," ",TABELA_PRECO!R73) -> 0.5605 | N74: =IF(TABELA_PRECO!T73=" "," ",TABELA_PRECO!T73) -> 0.1869659402 | O74: =IF(TABELA_PRECO!Y73=" "," ",TABELA_PRECO!Y73) -> 32.9104005 | P74: =IF(TABELA_PRECO!Z73=" "," ",TABELA_PRECO!Z73) -> 24.24242424 | Q74: =IF(TABELA_PRECO!AA73=" "," ",TABELA_PRECO!AA73) -> 83
A75: =IF(TABELA_PRECO!A74=" "," ",TABELA_PRECO!A74) -> 84 | B75: =IF(TABELA_PRECO!B74=" "," ",TABELA_PRECO!B74) -> TUBO CURVADO INOX 304 500 MM -ROSCA INTERNA NA PARTE SUPERIOR | C75: =IF(TABELA_PRECO!C74=" "," ",TABELA_PRECO!C74) -> PC | D75: =IF(TABELA_PRECO!D74=" "," ",TABELA_PRECO!D74) -> EQUIPAMENTOS DIVERSOS | E75: =IF(TABELA_PRECO!E74=" "," ",TABELA_PRECO!E74) -> KAIZENMACH | F75: =IF(TABELA_PRECO!F74=" "," ",TABELA_PRECO!F74) -> 2.95 | G75: =IF(TABELA_PRECO!G74=" "," ",TABELA_PRECO!G74) -> 3.481 | H75: =IF(TABELA_PRECO!H74=" "," ",TABELA_PRECO!H74) -> 4.3971048 | I75: =IF(TABELA_PRECO!I74=" "," ",TABELA_PRECO!I74) -> 3.894 | J75: =IF(TABELA_PRECO!J74=" "," ",TABELA_PRECO!J74) -> 3.5829166 | K75: =IF(TABELA_PRECO!P74=" "," ",TABELA_PRECO!P74) -> 1.4471048 | L75: =IF(TABELA_PRECO!Q74=" "," ",TABELA_PRECO!Q74) -> 0.944 | M75: =IF(TABELA_PRECO!R74=" "," ",TABELA_PRECO!R74) -> 0.5605 | N75: =IF(TABELA_PRECO!T74=" "," ",TABELA_PRECO!T74) -> 0.1869659402 | O75: =IF(TABELA_PRECO!Y74=" "," ",TABELA_PRECO!Y74) -> 32.9104005 | P75: =IF(TABELA_PRECO!Z74=" "," ",TABELA_PRECO!Z74) -> 24.24242424 | Q75: =IF(TABELA_PRECO!AA74=" "," ",TABELA_PRECO!AA74) -> 84
A76: =IF(TABELA_PRECO!A75=" "," ",TABELA_PRECO!A75) -> 85 | B76: =IF(TABELA_PRECO!B75=" "," ",TABELA_PRECO!B75) -> CONECTOR PARA MANGUEIRA -ROSCA E MANG 1/2 (REGULADOR DE PRESSAO) | C76: =IF(TABELA_PRECO!C75=" "," ",TABELA_PRECO!C75) -> PC | D76: =IF(TABELA_PRECO!D75=" "," ",TABELA_PRECO!D75) -> EQUIPAMENTOS DIVERSOS | E76: =IF(TABELA_PRECO!E75=" "," ",TABELA_PRECO!E75) -> BIG DUTCHMAN | F76: =IF(TABELA_PRECO!F75=" "," ",TABELA_PRECO!F75) -> 0 | G76: =IF(TABELA_PRECO!G75=" "," ",TABELA_PRECO!G75) -> 0 | H76: =IF(TABELA_PRECO!H75=" "," ",TABELA_PRECO!H75) -> 0 | I76: =IF(TABELA_PRECO!I75=" "," ",TABELA_PRECO!I75) -> 0 | J76: =IF(TABELA_PRECO!J75=" "," ",TABELA_PRECO!J75) -> 0 | K76: =IF(TABELA_PRECO!P75=" "," ",TABELA_PRECO!P75) -> 0 | L76: =IF(TABELA_PRECO!Q75=" "," ",TABELA_PRECO!Q75) -> 0 | M76: =IF(TABELA_PRECO!R75=" "," ",TABELA_PRECO!R75) -> 0 | N76: =IF(TABELA_PRECO!T75=" "," ",TABELA_PRECO!T75) -> 0 | O76: =IF(TABELA_PRECO!Y75=" "," ",TABELA_PRECO!Y75) ->  | P76: =IF(TABELA_PRECO!Z75=" "," ",TABELA_PRECO!Z75) ->  | Q76: =IF(TABELA_PRECO!AA75=" "," ",TABELA_PRECO!AA75) -> 85
A77: =IF(TABELA_PRECO!A76=" "," ",TABELA_PRECO!A76) -> 86 | B77: =IF(TABELA_PRECO!B76=" "," ",TABELA_PRECO!B76) -> PREGOS GERDAU 12 X 15 | C77: =IF(TABELA_PRECO!C76=" "," ",TABELA_PRECO!C76) -> KG | D77: =IF(TABELA_PRECO!D76=" "," ",TABELA_PRECO!D76) -> CORTINADO-FORRAÇÃO | E77: =IF(TABELA_PRECO!E76=" "," ",TABELA_PRECO!E76) -> TIDAO TELAS | F77: =IF(TABELA_PRECO!F76=" "," ",TABELA_PRECO!F76) -> 11.25 | G77: =IF(TABELA_PRECO!G76=" "," ",TABELA_PRECO!G76) -> 13.275 | H77: =IF(TABELA_PRECO!H76=" "," ",TABELA_PRECO!H76) -> 16.76862 | I77: =IF(TABELA_PRECO!I76=" "," ",TABELA_PRECO!I76) -> 14.85 | J77: =IF(TABELA_PRECO!J76=" "," ",TABELA_PRECO!J76) -> 13.663665 | K77: =IF(TABELA_PRECO!P76=" "," ",TABELA_PRECO!P76) -> 5.51862 | L77: =IF(TABELA_PRECO!Q76=" "," ",TABELA_PRECO!Q76) -> 3.6 | M77: =IF(TABELA_PRECO!R76=" "," ",TABELA_PRECO!R76) -> 2.1375 | N77: =IF(TABELA_PRECO!T76=" "," ",TABELA_PRECO!T76) -> 0.713005704 | O77: =IF(TABELA_PRECO!Y76=" "," ",TABELA_PRECO!Y76) -> 32.9104005 | P77: =IF(TABELA_PRECO!Z76=" "," ",TABELA_PRECO!Z76) -> 24.24242424 | Q77: =IF(TABELA_PRECO!AA76=" "," ",TABELA_PRECO!AA76) -> 86
A78: =IF(TABELA_PRECO!A77=" "," ",TABELA_PRECO!A77) -> 87 | B78: =IF(TABELA_PRECO!B77=" "," ",TABELA_PRECO!B77) -> ARAME GL FRUTIFIO | C78: =IF(TABELA_PRECO!C77=" "," ",TABELA_PRECO!C77) -> MT | D78: =IF(TABELA_PRECO!D77=" "," ",TABELA_PRECO!D77) -> CORTINADO-FORRAÇÃO | E78: =IF(TABELA_PRECO!E77=" "," ",TABELA_PRECO!E77) -> TIDAO TELAS | F78: =IF(TABELA_PRECO!F77=" "," ",TABELA_PRECO!F77) -> 0.65 | G78: =IF(TABELA_PRECO!G77=" "," ",TABELA_PRECO!G77) -> 0.767 | H78: =IF(TABELA_PRECO!H77=" "," ",TABELA_PRECO!H77) -> 0.9688536 | I78: =IF(TABELA_PRECO!I77=" "," ",TABELA_PRECO!I77) -> 0.858 | J78: =IF(TABELA_PRECO!J77=" "," ",TABELA_PRECO!J77) -> 0.7894562 | K78: =IF(TABELA_PRECO!P77=" "," ",TABELA_PRECO!P77) -> 0.3188536 | L78: =IF(TABELA_PRECO!Q77=" "," ",TABELA_PRECO!Q77) -> 0.208 | M78: =IF(TABELA_PRECO!R77=" "," ",TABELA_PRECO!R77) -> 0.1235 | N78: =IF(TABELA_PRECO!T77=" "," ",TABELA_PRECO!T77) -> 0.04119588512 | O78: =IF(TABELA_PRECO!Y77=" "," ",TABELA_PRECO!Y77) -> 32.9104005 | P78: =IF(TABELA_PRECO!Z77=" "," ",TABELA_PRECO!Z77) -> 24.24242424 | Q78: =IF(TABELA_PRECO!AA77=" "," ",TABELA_PRECO!AA77) -> 87
A79: =IF(TABELA_PRECO!A78=" "," ",TABELA_PRECO!A78) -> 88 | B79: =IF(TABELA_PRECO!B78=" "," ",TABELA_PRECO!B78) -> MANG HIGIEN NANIFLEX N 3031-12-3/4 AZUL | C79: =IF(TABELA_PRECO!C78=" "," ",TABELA_PRECO!C78) -> MT | D79: =IF(TABELA_PRECO!D78=" "," ",TABELA_PRECO!D78) -> HIDRÁULICO | E79: =IF(TABELA_PRECO!E78=" "," ",TABELA_PRECO!E78) -> MANNES | F79: =IF(TABELA_PRECO!F78=" "," ",TABELA_PRECO!F78) -> 15 | G79: =IF(TABELA_PRECO!G78=" "," ",TABELA_PRECO!G78) -> 17.7 | H79: =IF(TABELA_PRECO!H78=" "," ",TABELA_PRECO!H78) -> 22.35816 | I79: =IF(TABELA_PRECO!I78=" "," ",TABELA_PRECO!I78) -> 19.8 | J79: =IF(TABELA_PRECO!J78=" "," ",TABELA_PRECO!J78) -> 18.21822 | K79: =IF(TABELA_PRECO!P78=" "," ",TABELA_PRECO!P78) -> 7.35816 | L79: =IF(TABELA_PRECO!Q78=" "," ",TABELA_PRECO!Q78) -> 4.8 | M79: =IF(TABELA_PRECO!R78=" "," ",TABELA_PRECO!R78) -> 2.85 | N79: =IF(TABELA_PRECO!T78=" "," ",TABELA_PRECO!T78) -> 0.950674272 | O79: =IF(TABELA_PRECO!Y78=" "," ",TABELA_PRECO!Y78) -> 32.9104005 | P79: =IF(TABELA_PRECO!Z78=" "," ",TABELA_PRECO!Z78) -> 24.24242424 | Q79: =IF(TABELA_PRECO!AA78=" "," ",TABELA_PRECO!AA78) -> 88
A80: =IF(TABELA_PRECO!A79=" "," ",TABELA_PRECO!A79) -> 89 | B80: =IF(TABELA_PRECO!B79=" "," ",TABELA_PRECO!B79) -> ADAPTADOR RETO NPT JIC 37 GR 5021-16-12 | C80: =IF(TABELA_PRECO!C79=" "," ",TABELA_PRECO!C79) -> UN | D80: =IF(TABELA_PRECO!D79=" "," ",TABELA_PRECO!D79) -> HIDRÁULICO | E80: =IF(TABELA_PRECO!E79=" "," ",TABELA_PRECO!E79) -> MANNES | F80: =IF(TABELA_PRECO!F79=" "," ",TABELA_PRECO!F79) -> 8 | G80: =IF(TABELA_PRECO!G79=" "," ",TABELA_PRECO!G79) -> 9.44 | H80: =IF(TABELA_PRECO!H79=" "," ",TABELA_PRECO!H79) -> 11.924352 | I80: =IF(TABELA_PRECO!I79=" "," ",TABELA_PRECO!I79) -> 10.56 | J80: =IF(TABELA_PRECO!J79=" "," ",TABELA_PRECO!J79) -> 9.716384 | K80: =IF(TABELA_PRECO!P79=" "," ",TABELA_PRECO!P79) -> 3.924352 | L80: =IF(TABELA_PRECO!Q79=" "," ",TABELA_PRECO!Q79) -> 2.56 | M80: =IF(TABELA_PRECO!R79=" "," ",TABELA_PRECO!R79) -> 1.52 | N80: =IF(TABELA_PRECO!T79=" "," ",TABELA_PRECO!T79) -> 0.5070262784 | O80: =IF(TABELA_PRECO!Y79=" "," ",TABELA_PRECO!Y79) -> 32.9104005 | P80: =IF(TABELA_PRECO!Z79=" "," ",TABELA_PRECO!Z79) -> 24.24242424 | Q80: =IF(TABELA_PRECO!AA79=" "," ",TABELA_PRECO!AA79) -> 89
A81: =IF(TABELA_PRECO!A80=" "," ",TABELA_PRECO!A80) -> 90 | B81: =IF(TABELA_PRECO!B80=" "," ",TABELA_PRECO!B80) -> CAPA P/1 E 2TR SERIE 7 7022-12 | C81: =IF(TABELA_PRECO!C80=" "," ",TABELA_PRECO!C80) -> PC | D81: =IF(TABELA_PRECO!D80=" "," ",TABELA_PRECO!D80) -> HIDRÁULICO | E81: =IF(TABELA_PRECO!E80=" "," ",TABELA_PRECO!E80) -> MANNES | F81: =IF(TABELA_PRECO!F80=" "," ",TABELA_PRECO!F80) -> 9 | G81: =IF(TABELA_PRECO!G80=" "," ",TABELA_PRECO!G80) -> 10.62 | H81: =IF(TABELA_PRECO!H80=" "," ",TABELA_PRECO!H80) -> 13.414896 | I81: =IF(TABELA_PRECO!I80=" "," ",TABELA_PRECO!I80) -> 11.88 | J81: =IF(TABELA_PRECO!J80=" "," ",TABELA_PRECO!J80) -> 10.930932 | K81: =IF(TABELA_PRECO!P80=" "," ",TABELA_PRECO!P80) -> 4.414896 | L81: =IF(TABELA_PRECO!Q80=" "," ",TABELA_PRECO!Q80) -> 2.88 | M81: =IF(TABELA_PRECO!R80=" "," ",TABELA_PRECO!R80) -> 1.71 | N81: =IF(TABELA_PRECO!T80=" "," ",TABELA_PRECO!T80) -> 0.5704045632 | O81: =IF(TABELA_PRECO!Y80=" "," ",TABELA_PRECO!Y80) -> 32.9104005 | P81: =IF(TABELA_PRECO!Z80=" "," ",TABELA_PRECO!Z80) -> 24.24242424 | Q81: =IF(TABELA_PRECO!AA80=" "," ",TABELA_PRECO!AA80) -> 90
A82: =IF(TABELA_PRECO!A81=" "," ",TABELA_PRECO!A81) -> 91 | B82: =IF(TABELA_PRECO!B81=" "," ",TABELA_PRECO!B81) -> TERM-FG RETA UNF JIC -7100-16-12 | C82: =IF(TABELA_PRECO!C81=" "," ",TABELA_PRECO!C81) -> PC | D82: =IF(TABELA_PRECO!D81=" "," ",TABELA_PRECO!D81) -> HIDRÁULICO | E82: =IF(TABELA_PRECO!E81=" "," ",TABELA_PRECO!E81) -> MANNES | F82: =IF(TABELA_PRECO!F81=" "," ",TABELA_PRECO!F81) -> 12 | G82: =IF(TABELA_PRECO!G81=" "," ",TABELA_PRECO!G81) -> 14.16 | H82: =IF(TABELA_PRECO!H81=" "," ",TABELA_PRECO!H81) -> 17.886528 | I82: =IF(TABELA_PRECO!I81=" "," ",TABELA_PRECO!I81) -> 15.84 | J82: =IF(TABELA_PRECO!J81=" "," ",TABELA_PRECO!J81) -> 14.574576 | K82: =IF(TABELA_PRECO!P81=" "," ",TABELA_PRECO!P81) -> 5.886528 | L82: =IF(TABELA_PRECO!Q81=" "," ",TABELA_PRECO!Q81) -> 3.84 | M82: =IF(TABELA_PRECO!R81=" "," ",TABELA_PRECO!R81) -> 2.28 | N82: =IF(TABELA_PRECO!T81=" "," ",TABELA_PRECO!T81) -> 0.7605394176 | O82: =IF(TABELA_PRECO!Y81=" "," ",TABELA_PRECO!Y81) -> 32.9104005 | P82: =IF(TABELA_PRECO!Z81=" "," ",TABELA_PRECO!Z81) -> 24.24242424 | Q82: =IF(TABELA_PRECO!AA81=" "," ",TABELA_PRECO!AA81) -> 91
A83: =IF(TABELA_PRECO!A82=" "," ",TABELA_PRECO!A82) -> 92 | B83: =IF(TABELA_PRECO!B82=" "," ",TABELA_PRECO!B82) -> TERM-FG RETA UNF JIC -7100-12-12 | C83: =IF(TABELA_PRECO!C82=" "," ",TABELA_PRECO!C82) -> PC | D83: =IF(TABELA_PRECO!D82=" "," ",TABELA_PRECO!D82) -> HIDRÁULICO | E83: =IF(TABELA_PRECO!E82=" "," ",TABELA_PRECO!E82) -> MANNES | F83: =IF(TABELA_PRECO!F82=" "," ",TABELA_PRECO!F82) -> 11 | G83: =IF(TABELA_PRECO!G82=" "," ",TABELA_PRECO!G82) -> 12.98 | H83: =IF(TABELA_PRECO!H82=" "," ",TABELA_PRECO!H82) -> 16.395984 | I83: =IF(TABELA_PRECO!I82=" "," ",TABELA_PRECO!I82) -> 14.52 | J83: =IF(TABELA_PRECO!J82=" "," ",TABELA_PRECO!J82) -> 13.360028 | K83: =IF(TABELA_PRECO!P82=" "," ",TABELA_PRECO!P82) -> 5.395984 | L83: =IF(TABELA_PRECO!Q82=" "," ",TABELA_PRECO!Q82) -> 3.52 | M83: =IF(TABELA_PRECO!R82=" "," ",TABELA_PRECO!R82) -> 2.09 | N83: =IF(TABELA_PRECO!T82=" "," ",TABELA_PRECO!T82) -> 0.6971611328 | O83: =IF(TABELA_PRECO!Y82=" "," ",TABELA_PRECO!Y82) -> 32.9104005 | P83: =IF(TABELA_PRECO!Z82=" "," ",TABELA_PRECO!Z82) -> 24.24242424 | Q83: =IF(TABELA_PRECO!AA82=" "," ",TABELA_PRECO!AA82) -> 92
A84: =IF(TABELA_PRECO!A83=" "," ",TABELA_PRECO!A83) -> 93 | B84: =IF(TABELA_PRECO!B83=" "," ",TABELA_PRECO!B83) -> ADAPTADOR RETO NPT JIC 37 GR 5021-08-12 | C84: =IF(TABELA_PRECO!C83=" "," ",TABELA_PRECO!C83) -> UN | D84: =IF(TABELA_PRECO!D83=" "," ",TABELA_PRECO!D83) -> HIDRÁULICO | E84: =IF(TABELA_PRECO!E83=" "," ",TABELA_PRECO!E83) -> MANNES | F84: =IF(TABELA_PRECO!F83=" "," ",TABELA_PRECO!F83) -> 12 | G84: =IF(TABELA_PRECO!G83=" "," ",TABELA_PRECO!G83) -> 14.16 | H84: =IF(TABELA_PRECO!H83=" "," ",TABELA_PRECO!H83) -> 17.886528 | I84: =IF(TABELA_PRECO!I83=" "," ",TABELA_PRECO!I83) -> 15.84 | J84: =IF(TABELA_PRECO!J83=" "," ",TABELA_PRECO!J83) -> 14.574576 | K84: =IF(TABELA_PRECO!P83=" "," ",TABELA_PRECO!P83) -> 5.886528 | L84: =IF(TABELA_PRECO!Q83=" "," ",TABELA_PRECO!Q83) -> 3.84 | M84: =IF(TABELA_PRECO!R83=" "," ",TABELA_PRECO!R83) -> 2.28 | N84: =IF(TABELA_PRECO!T83=" "," ",TABELA_PRECO!T83) -> 0.7605394176 | O84: =IF(TABELA_PRECO!Y83=" "," ",TABELA_PRECO!Y83) -> 32.9104005 | P84: =IF(TABELA_PRECO!Z83=" "," ",TABELA_PRECO!Z83) -> 24.24242424 | Q84: =IF(TABELA_PRECO!AA83=" "," ",TABELA_PRECO!AA83) -> 93
A85: =IF(TABELA_PRECO!A84=" "," ",TABELA_PRECO!A84) -> 94 | B85: =IF(TABELA_PRECO!B84=" "," ",TABELA_PRECO!B84) -> ESGUCHO REGULAVEL NYLON | C85: =IF(TABELA_PRECO!C84=" "," ",TABELA_PRECO!C84) -> PC | D85: =IF(TABELA_PRECO!D84=" "," ",TABELA_PRECO!D84) -> HIDRÁULICO | E85: =IF(TABELA_PRECO!E84=" "," ",TABELA_PRECO!E84) -> MANNES | F85: =IF(TABELA_PRECO!F84=" "," ",TABELA_PRECO!F84) -> 38 | G85: =IF(TABELA_PRECO!G84=" "," ",TABELA_PRECO!G84) -> 44.84 | H85: =IF(TABELA_PRECO!H84=" "," ",TABELA_PRECO!H84) -> 56.640672 | I85: =IF(TABELA_PRECO!I84=" "," ",TABELA_PRECO!I84) -> 50.16 | J85: =IF(TABELA_PRECO!J84=" "," ",TABELA_PRECO!J84) -> 46.152824 | K85: =IF(TABELA_PRECO!P84=" "," ",TABELA_PRECO!P84) -> 18.640672 | L85: =IF(TABELA_PRECO!Q84=" "," ",TABELA_PRECO!Q84) -> 12.16 | M85: =IF(TABELA_PRECO!R84=" "," ",TABELA_PRECO!R84) -> 7.22 | N85: =IF(TABELA_PRECO!T84=" "," ",TABELA_PRECO!T84) -> 2.408374822 | O85: =IF(TABELA_PRECO!Y84=" "," ",TABELA_PRECO!Y84) -> 32.9104005 | P85: =IF(TABELA_PRECO!Z84=" "," ",TABELA_PRECO!Z84) -> 24.24242424 | Q85: =IF(TABELA_PRECO!AA84=" "," ",TABELA_PRECO!AA84) -> 94
A86: =IF(TABELA_PRECO!A85=" "," ",TABELA_PRECO!A85) -> 95 | B86: =IF(TABELA_PRECO!B85=" "," ",TABELA_PRECO!B85) -> GRAMPO GALV 1 X 9 | C86: =IF(TABELA_PRECO!C85=" "," ",TABELA_PRECO!C85) -> KG | D86: =IF(TABELA_PRECO!D85=" "," ",TABELA_PRECO!D85) -> CORTINADO-FORRAÇÃO | E86: =IF(TABELA_PRECO!E85=" "," ",TABELA_PRECO!E85) -> TIDAO TELAS | F86: =IF(TABELA_PRECO!F85=" "," ",TABELA_PRECO!F85) -> 15.9 | G86: =IF(TABELA_PRECO!G85=" "," ",TABELA_PRECO!G85) -> 18.762 | H86: =IF(TABELA_PRECO!H85=" "," ",TABELA_PRECO!H85) -> 23.6996496 | I86: =IF(TABELA_PRECO!I85=" "," ",TABELA_PRECO!I85) -> 20.988 | J86: =IF(TABELA_PRECO!J85=" "," ",TABELA_PRECO!J85) -> 19.3113132 | K86: =IF(TABELA_PRECO!P85=" "," ",TABELA_PRECO!P85) -> 7.7996496 | L86: =IF(TABELA_PRECO!Q85=" "," ",TABELA_PRECO!Q85) -> 5.088 | M86: =IF(TABELA_PRECO!R85=" "," ",TABELA_PRECO!R85) -> 3.021 | N86: =IF(TABELA_PRECO!T85=" "," ",TABELA_PRECO!T85) -> 1.007714728 | O86: =IF(TABELA_PRECO!Y85=" "," ",TABELA_PRECO!Y85) -> 32.9104005 | P86: =IF(TABELA_PRECO!Z85=" "," ",TABELA_PRECO!Z85) -> 24.24242424 | Q86: =IF(TABELA_PRECO!AA85=" "," ",TABELA_PRECO!AA85) -> 95
A87: =IF(TABELA_PRECO!A86=" "," ",TABELA_PRECO!A86) -> 96 | B87: =IF(TABELA_PRECO!B86=" "," ",TABELA_PRECO!B86) -> PREGO 17 X 27 | C87: =IF(TABELA_PRECO!C86=" "," ",TABELA_PRECO!C86) -> PC | D87: =IF(TABELA_PRECO!D86=" "," ",TABELA_PRECO!D86) -> CORTINADO-FORRAÇÃO | E87: =IF(TABELA_PRECO!E86=" "," ",TABELA_PRECO!E86) -> TIDAO TELAS | F87: =IF(TABELA_PRECO!F86=" "," ",TABELA_PRECO!F86) -> 14.9 | G87: =IF(TABELA_PRECO!G86=" "," ",TABELA_PRECO!G86) -> 17.582 | H87: =IF(TABELA_PRECO!H86=" "," ",TABELA_PRECO!H86) -> 22.2091056 | I87: =IF(TABELA_PRECO!I86=" "," ",TABELA_PRECO!I86) -> 19.668 | J87: =IF(TABELA_PRECO!J86=" "," ",TABELA_PRECO!J86) -> 18.0967652 | K87: =IF(TABELA_PRECO!P86=" "," ",TABELA_PRECO!P86) -> 7.3091056 | L87: =IF(TABELA_PRECO!Q86=" "," ",TABELA_PRECO!Q86) -> 4.768 | M87: =IF(TABELA_PRECO!R86=" "," ",TABELA_PRECO!R86) -> 2.831 | N87: =IF(TABELA_PRECO!T86=" "," ",TABELA_PRECO!T86) -> 0.9443364435 | O87: =IF(TABELA_PRECO!Y86=" "," ",TABELA_PRECO!Y86) -> 32.9104005 | P87: =IF(TABELA_PRECO!Z86=" "," ",TABELA_PRECO!Z86) -> 24.24242424 | Q87: =IF(TABELA_PRECO!AA86=" "," ",TABELA_PRECO!AA86) -> 96
A88: =IF(TABELA_PRECO!A87=" "," ",TABELA_PRECO!A87) -> 112 | B88: =IF(TABELA_PRECO!B87=" "," ",TABELA_PRECO!B87) -> ENTRADA AGUA 22 R-1 -COPINHO CODORNA | C88: =IF(TABELA_PRECO!C87=" "," ",TABELA_PRECO!C87) -> UN | D88: =IF(TABELA_PRECO!D87=" "," ",TABELA_PRECO!D87) -> EQUIPAMENTOS DIVERSOS | E88: =IF(TABELA_PRECO!E87=" "," ",TABELA_PRECO!E87) -> PLASSON | F88: =IF(TABELA_PRECO!F87=" "," ",TABELA_PRECO!F87) -> 2.43 | G88: =IF(TABELA_PRECO!G87=" "," ",TABELA_PRECO!G87) -> 2.8674 | H88: =IF(TABELA_PRECO!H87=" "," ",TABELA_PRECO!H87) -> 3.62202192 | I88: =IF(TABELA_PRECO!I87=" "," ",TABELA_PRECO!I87) -> 3.2076 | J88: =IF(TABELA_PRECO!J87=" "," ",TABELA_PRECO!J87) -> 2.95135164 | K88: =IF(TABELA_PRECO!P87=" "," ",TABELA_PRECO!P87) -> 1.19202192 | L88: =IF(TABELA_PRECO!Q87=" "," ",TABELA_PRECO!Q87) -> 0.7776 | M88: =IF(TABELA_PRECO!R87=" "," ",TABELA_PRECO!R87) -> 0.4617 | N88: =IF(TABELA_PRECO!T87=" "," ",TABELA_PRECO!T87) -> 0.1540092321 | O88: =IF(TABELA_PRECO!Y87=" "," ",TABELA_PRECO!Y87) -> 32.9104005 | P88: =IF(TABELA_PRECO!Z87=" "," ",TABELA_PRECO!Z87) -> 24.24242424 | Q88: =IF(TABELA_PRECO!AA87=" "," ",TABELA_PRECO!AA87) -> 112
A89: =IF(TABELA_PRECO!A88=" "," ",TABELA_PRECO!A88) -> 113 | B89: =IF(TABELA_PRECO!B88=" "," ",TABELA_PRECO!B88) -> ROLDANA PLASTICA DIAM 22 | C89: =IF(TABELA_PRECO!C88=" "," ",TABELA_PRECO!C88) -> PC | D89: =IF(TABELA_PRECO!D88=" "," ",TABELA_PRECO!D88) -> CORTINADO-FORRAÇÃO | E89: =IF(TABELA_PRECO!E88=" "," ",TABELA_PRECO!E88) -> ROBUSTEC | F89: =IF(TABELA_PRECO!F88=" "," ",TABELA_PRECO!F88) -> 1.4 | G89: =IF(TABELA_PRECO!G88=" "," ",TABELA_PRECO!G88) -> 1.652 | H89: =IF(TABELA_PRECO!H88=" "," ",TABELA_PRECO!H88) -> 2.0867616 | I89: =IF(TABELA_PRECO!I88=" "," ",TABELA_PRECO!I88) -> 1.848 | J89: =IF(TABELA_PRECO!J88=" "," ",TABELA_PRECO!J88) -> 1.7003672 | K89: =IF(TABELA_PRECO!P88=" "," ",TABELA_PRECO!P88) -> 0.6867616 | L89: =IF(TABELA_PRECO!Q88=" "," ",TABELA_PRECO!Q88) -> 0.448 | M89: =IF(TABELA_PRECO!R88=" "," ",TABELA_PRECO!R88) -> 0.266 | N89: =IF(TABELA_PRECO!T88=" "," ",TABELA_PRECO!T88) -> 0.08872959872 | O89: =IF(TABELA_PRECO!Y88=" "," ",TABELA_PRECO!Y88) -> 32.9104005 | P89: =IF(TABELA_PRECO!Z88=" "," ",TABELA_PRECO!Z88) -> 24.24242424 | Q89: =IF(TABELA_PRECO!AA88=" "," ",TABELA_PRECO!AA88) -> 113
A90: =IF(TABELA_PRECO!A89=" "," ",TABELA_PRECO!A89) -> 115 | B90: =IF(TABELA_PRECO!B89=" "," ",TABELA_PRECO!B89) -> ROLDANA 100 MM COM ROLAMENTO | C90: =IF(TABELA_PRECO!C89=" "," ",TABELA_PRECO!C89) -> UN | D90: =IF(TABELA_PRECO!D89=" "," ",TABELA_PRECO!D89) -> EQUIPAMENTOS DIVERSOS | E90: =IF(TABELA_PRECO!E89=" "," ",TABELA_PRECO!E89) -> ROBUSTEC | F90: =IF(TABELA_PRECO!F89=" "," ",TABELA_PRECO!F89) -> 54 | G90: =IF(TABELA_PRECO!G89=" "," ",TABELA_PRECO!G89) -> 63.72 | H90: =IF(TABELA_PRECO!H89=" "," ",TABELA_PRECO!H89) -> 80.489376 | I90: =IF(TABELA_PRECO!I89=" "," ",TABELA_PRECO!I89) -> 71.28 | J90: =IF(TABELA_PRECO!J89=" "," ",TABELA_PRECO!J89) -> 65.585592 | K90: =IF(TABELA_PRECO!P89=" "," ",TABELA_PRECO!P89) -> 26.489376 | L90: =IF(TABELA_PRECO!Q89=" "," ",TABELA_PRECO!Q89) -> 17.28 | M90: =IF(TABELA_PRECO!R89=" "," ",TABELA_PRECO!R89) -> 10.26 | N90: =IF(TABELA_PRECO!T89=" "," ",TABELA_PRECO!T89) -> 3.422427379 | O90: =IF(TABELA_PRECO!Y89=" "," ",TABELA_PRECO!Y89) -> 32.9104005 | P90: =IF(TABELA_PRECO!Z89=" "," ",TABELA_PRECO!Z89) -> 24.24242424 | Q90: =IF(TABELA_PRECO!AA89=" "," ",TABELA_PRECO!AA89) -> 115
A91: =IF(TABELA_PRECO!A90=" "," ",TABELA_PRECO!A90) -> 116 | B91: =IF(TABELA_PRECO!B90=" "," ",TABELA_PRECO!B90) -> CABO DE ACIONAMENTO P/GUINCHO 3,5 M | C91: =IF(TABELA_PRECO!C90=" "," ",TABELA_PRECO!C90) -> PC | D91: =IF(TABELA_PRECO!D90=" "," ",TABELA_PRECO!D90) -> EQUIPAMENTOS DIVERSOS | E91: =IF(TABELA_PRECO!E90=" "," ",TABELA_PRECO!E90) -> ROBUSTEC | F91: =IF(TABELA_PRECO!F90=" "," ",TABELA_PRECO!F90) -> 30.97 | G91: =IF(TABELA_PRECO!G90=" "," ",TABELA_PRECO!G90) -> 36.5446 | H91: =IF(TABELA_PRECO!H90=" "," ",TABELA_PRECO!H90) -> 46.16214768 | I91: =IF(TABELA_PRECO!I90=" "," ",TABELA_PRECO!I90) -> 40.8804 | J91: =IF(TABELA_PRECO!J90=" "," ",TABELA_PRECO!J90) -> 37.61455156 | K91: =IF(TABELA_PRECO!P90=" "," ",TABELA_PRECO!P90) -> 15.19214768 | L91: =IF(TABELA_PRECO!Q90=" "," ",TABELA_PRECO!Q90) -> 9.9104 | M91: =IF(TABELA_PRECO!R90=" "," ",TABELA_PRECO!R90) -> 5.8843 | N91: =IF(TABELA_PRECO!T90=" "," ",TABELA_PRECO!T90) -> 1.96282548 | O91: =IF(TABELA_PRECO!Y90=" "," ",TABELA_PRECO!Y90) -> 32.9104005 | P91: =IF(TABELA_PRECO!Z90=" "," ",TABELA_PRECO!Z90) -> 24.24242424 | Q91: =IF(TABELA_PRECO!AA90=" "," ",TABELA_PRECO!AA90) -> 116
A92: =IF(TABELA_PRECO!A91=" "," ",TABELA_PRECO!A91) -> 117 | B92: =IF(TABELA_PRECO!B91=" "," ",TABELA_PRECO!B91) -> ROLDANA ESTAMPADA 80 MM | C92: =IF(TABELA_PRECO!C91=" "," ",TABELA_PRECO!C91) -> UN | D92: =IF(TABELA_PRECO!D91=" "," ",TABELA_PRECO!D91) -> CORTINADO-FORRAÇÃO | E92: =IF(TABELA_PRECO!E91=" "," ",TABELA_PRECO!E91) -> ROBUSTEC | F92: =IF(TABELA_PRECO!F91=" "," ",TABELA_PRECO!F91) -> 17 | G92: =IF(TABELA_PRECO!G91=" "," ",TABELA_PRECO!G91) -> 20.06 | H92: =IF(TABELA_PRECO!H91=" "," ",TABELA_PRECO!H91) -> 25.339248 | I92: =IF(TABELA_PRECO!I91=" "," ",TABELA_PRECO!I91) -> 22.44 | J92: =IF(TABELA_PRECO!J91=" "," ",TABELA_PRECO!J91) -> 20.647316 | K92: =IF(TABELA_PRECO!P91=" "," ",TABELA_PRECO!P91) -> 8.339248 | L92: =IF(TABELA_PRECO!Q91=" "," ",TABELA_PRECO!Q91) -> 5.44 | M92: =IF(TABELA_PRECO!R91=" "," ",TABELA_PRECO!R91) -> 3.23 | N92: =IF(TABELA_PRECO!T91=" "," ",TABELA_PRECO!T91) -> 1.077430842 | O92: =IF(TABELA_PRECO!Y91=" "," ",TABELA_PRECO!Y91) -> 32.9104005 | P92: =IF(TABELA_PRECO!Z91=" "," ",TABELA_PRECO!Z91) -> 24.24242424 | Q92: =IF(TABELA_PRECO!AA91=" "," ",TABELA_PRECO!AA91) -> 117
A93: =IF(TABELA_PRECO!A92=" "," ",TABELA_PRECO!A92) -> 118 | B93: =IF(TABELA_PRECO!B92=" "," ",TABELA_PRECO!B92) -> CARRETEL DE LEVANTAMENTO 540 KG MOD.1825 | C93: =IF(TABELA_PRECO!C92=" "," ",TABELA_PRECO!C92) -> PC | D93: =IF(TABELA_PRECO!D92=" "," ",TABELA_PRECO!D92) -> EQUIPAMENTOS DIVERSOS | E93: =IF(TABELA_PRECO!E92=" "," ",TABELA_PRECO!E92) -> ROBUSTEC | F93: =IF(TABELA_PRECO!F92=" "," ",TABELA_PRECO!F92) -> 285 | G93: =IF(TABELA_PRECO!G92=" "," ",TABELA_PRECO!G92) -> 336.3 | H93: =IF(TABELA_PRECO!H92=" "," ",TABELA_PRECO!H92) -> 424.80504 | I93: =IF(TABELA_PRECO!I92=" "," ",TABELA_PRECO!I92) -> 376.2 | J93: =IF(TABELA_PRECO!J92=" "," ",TABELA_PRECO!J92) -> 346.14618 | K93: =IF(TABELA_PRECO!P92=" "," ",TABELA_PRECO!P92) -> 139.80504 | L93: =IF(TABELA_PRECO!Q92=" "," ",TABELA_PRECO!Q92) -> 91.2 | M93: =IF(TABELA_PRECO!R92=" "," ",TABELA_PRECO!R92) -> 54.15 | N93: =IF(TABELA_PRECO!T92=" "," ",TABELA_PRECO!T92) -> 18.06281117 | O93: =IF(TABELA_PRECO!Y92=" "," ",TABELA_PRECO!Y92) -> 32.9104005 | P93: =IF(TABELA_PRECO!Z92=" "," ",TABELA_PRECO!Z92) -> 24.24242424 | Q93: =IF(TABELA_PRECO!AA92=" "," ",TABELA_PRECO!AA92) -> 118
A94: =IF(TABELA_PRECO!A93=" "," ",TABELA_PRECO!A93) -> 119 | B94: =IF(TABELA_PRECO!B93=" "," ",TABELA_PRECO!B93) -> MANIVELA DE ACIONAMENTO CUINCHO | C94: =IF(TABELA_PRECO!C93=" "," ",TABELA_PRECO!C93) -> UN | D94: =IF(TABELA_PRECO!D93=" "," ",TABELA_PRECO!D93) -> EQUIPAMENTOS DIVERSOS | E94: =IF(TABELA_PRECO!E93=" "," ",TABELA_PRECO!E93) -> ROBUSTEC | F94: =IF(TABELA_PRECO!F93=" "," ",TABELA_PRECO!F93) -> 56 | G94: =IF(TABELA_PRECO!G93=" "," ",TABELA_PRECO!G93) -> 66.08 | H94: =IF(TABELA_PRECO!H93=" "," ",TABELA_PRECO!H93) -> 83.470464 | I94: =IF(TABELA_PRECO!I93=" "," ",TABELA_PRECO!I93) -> 73.92 | J94: =IF(TABELA_PRECO!J93=" "," ",TABELA_PRECO!J93) -> 68.014688 | K94: =IF(TABELA_PRECO!P93=" "," ",TABELA_PRECO!P93) -> 27.470464 | L94: =IF(TABELA_PRECO!Q93=" "," ",TABELA_PRECO!Q93) -> 17.92 | M94: =IF(TABELA_PRECO!R93=" "," ",TABELA_PRECO!R93) -> 10.64 | N94: =IF(TABELA_PRECO!T93=" "," ",TABELA_PRECO!T93) -> 3.549183949 | O94: =IF(TABELA_PRECO!Y93=" "," ",TABELA_PRECO!Y93) -> 32.9104005 | P94: =IF(TABELA_PRECO!Z93=" "," ",TABELA_PRECO!Z93) -> 24.24242424 | Q94: =IF(TABELA_PRECO!AA93=" "," ",TABELA_PRECO!AA93) -> 119
A95: =IF(TABELA_PRECO!A94=" "," ",TABELA_PRECO!A94) -> 120 | B95: =IF(TABELA_PRECO!B94=" "," ",TABELA_PRECO!B94) -> GUINCHO LEVANTAMENTO MOD .1010 | C95: =IF(TABELA_PRECO!C94=" "," ",TABELA_PRECO!C94) -> CJ | D95: =IF(TABELA_PRECO!D94=" "," ",TABELA_PRECO!D94) -> EQUIPAMENTOS DIVERSOS | E95: =IF(TABELA_PRECO!E94=" "," ",TABELA_PRECO!E94) -> ROBUSTEC | F95: =IF(TABELA_PRECO!F94=" "," ",TABELA_PRECO!F94) -> 93.23 | G95: =IF(TABELA_PRECO!G94=" "," ",TABELA_PRECO!G94) -> 110.0114 | H95: =IF(TABELA_PRECO!H94=" "," ",TABELA_PRECO!H94) -> 138.9634171 | I95: =IF(TABELA_PRECO!I94=" "," ",TABELA_PRECO!I94) -> 123.0636 | J95: =IF(TABELA_PRECO!J94=" "," ",TABELA_PRECO!J94) -> 113.23231 | K95: =IF(TABELA_PRECO!P94=" "," ",TABELA_PRECO!P94) -> 45.73341712 | L95: =IF(TABELA_PRECO!Q94=" "," ",TABELA_PRECO!Q94) -> 29.8336 | M95: =IF(TABELA_PRECO!R94=" "," ",TABELA_PRECO!R94) -> 17.7137 | N95: =IF(TABELA_PRECO!T94=" "," ",TABELA_PRECO!T94) -> 5.908757492 | O95: =IF(TABELA_PRECO!Y94=" "," ",TABELA_PRECO!Y94) -> 32.9104005 | P95: =IF(TABELA_PRECO!Z94=" "," ",TABELA_PRECO!Z94) -> 24.24242424 | Q95: =IF(TABELA_PRECO!AA94=" "," ",TABELA_PRECO!AA94) -> 120
A96: =IF(TABELA_PRECO!A95=" "," ",TABELA_PRECO!A95) -> 121 | B96: =IF(TABELA_PRECO!B95=" "," ",TABELA_PRECO!B95) -> KIT TRAVA CATRACA 1015 | C96: =IF(TABELA_PRECO!C95=" "," ",TABELA_PRECO!C95) -> PC | D96: =IF(TABELA_PRECO!D95=" "," ",TABELA_PRECO!D95) -> EQUIPAMENTOS DIVERSOS | E96: =IF(TABELA_PRECO!E95=" "," ",TABELA_PRECO!E95) -> ROBUSTEC | F96: =IF(TABELA_PRECO!F95=" "," ",TABELA_PRECO!F95) -> 3.68 | G96: =IF(TABELA_PRECO!G95=" "," ",TABELA_PRECO!G95) -> 4.3424 | H96: =IF(TABELA_PRECO!H95=" "," ",TABELA_PRECO!H95) -> 5.48520192 | I96: =IF(TABELA_PRECO!I95=" "," ",TABELA_PRECO!I95) -> 4.8576 | J96: =IF(TABELA_PRECO!J95=" "," ",TABELA_PRECO!J95) -> 4.46953664 | K96: =IF(TABELA_PRECO!P95=" "," ",TABELA_PRECO!P95) -> 1.80520192 | L96: =IF(TABELA_PRECO!Q95=" "," ",TABELA_PRECO!Q95) -> 1.1776 | M96: =IF(TABELA_PRECO!R95=" "," ",TABELA_PRECO!R95) -> 0.6992 | N96: =IF(TABELA_PRECO!T95=" "," ",TABELA_PRECO!T95) -> 0.2332320881 | O96: =IF(TABELA_PRECO!Y95=" "," ",TABELA_PRECO!Y95) -> 32.9104005 | P96: =IF(TABELA_PRECO!Z95=" "," ",TABELA_PRECO!Z95) -> 24.24242424 | Q96: =IF(TABELA_PRECO!AA95=" "," ",TABELA_PRECO!AA95) -> 121
A97: =IF(TABELA_PRECO!A96=" "," ",TABELA_PRECO!A96) -> 122 | B97: =IF(TABELA_PRECO!B96=" "," ",TABELA_PRECO!B96) -> ROLDANA PLASTICA DIAM 40 MM | C97: =IF(TABELA_PRECO!C96=" "," ",TABELA_PRECO!C96) -> PC | D97: =IF(TABELA_PRECO!D96=" "," ",TABELA_PRECO!D96) -> EQUIPAMENTOS DIVERSOS | E97: =IF(TABELA_PRECO!E96=" "," ",TABELA_PRECO!E96) -> ROBUSTEC | F97: =IF(TABELA_PRECO!F96=" "," ",TABELA_PRECO!F96) -> 3.35 | G97: =IF(TABELA_PRECO!G96=" "," ",TABELA_PRECO!G96) -> 3.953 | H97: =IF(TABELA_PRECO!H96=" "," ",TABELA_PRECO!H96) -> 4.9933224 | I97: =IF(TABELA_PRECO!I96=" "," ",TABELA_PRECO!I96) -> 4.422 | J97: =IF(TABELA_PRECO!J96=" "," ",TABELA_PRECO!J96) -> 4.0687358 | K97: =IF(TABELA_PRECO!P96=" "," ",TABELA_PRECO!P96) -> 1.6433224 | L97: =IF(TABELA_PRECO!Q96=" "," ",TABELA_PRECO!Q96) -> 1.072 | M97: =IF(TABELA_PRECO!R96=" "," ",TABELA_PRECO!R96) -> 0.6365 | N97: =IF(TABELA_PRECO!T96=" "," ",TABELA_PRECO!T96) -> 0.2123172541 | O97: =IF(TABELA_PRECO!Y96=" "," ",TABELA_PRECO!Y96) -> 32.9104005 | P97: =IF(TABELA_PRECO!Z96=" "," ",TABELA_PRECO!Z96) -> 24.24242424 | Q97: =IF(TABELA_PRECO!AA96=" "," ",TABELA_PRECO!AA96) -> 122
A98: =IF(TABELA_PRECO!A97=" "," ",TABELA_PRECO!A97) -> 123 | B98: =IF(TABELA_PRECO!B97=" "," ",TABELA_PRECO!B97) -> CARRETEL DE LEVANTAMENTO 540 KG MD 10155 C/SUP/L | C98: =IF(TABELA_PRECO!C97=" "," ",TABELA_PRECO!C97) -> UN | D98: =IF(TABELA_PRECO!D97=" "," ",TABELA_PRECO!D97) -> EQUIPAMENTOS DIVERSOS | E98: =IF(TABELA_PRECO!E97=" "," ",TABELA_PRECO!E97) -> ROBUSTEC | F98: =IF(TABELA_PRECO!F97=" "," ",TABELA_PRECO!F97) -> 60 | G98: =IF(TABELA_PRECO!G97=" "," ",TABELA_PRECO!G97) -> 70.8 | H98: =IF(TABELA_PRECO!H97=" "," ",TABELA_PRECO!H97) -> 89.43264 | I98: =IF(TABELA_PRECO!I97=" "," ",TABELA_PRECO!I97) -> 79.2 | J98: =IF(TABELA_PRECO!J97=" "," ",TABELA_PRECO!J97) -> 72.87288 | K98: =IF(TABELA_PRECO!P97=" "," ",TABELA_PRECO!P97) -> 29.43264 | L98: =IF(TABELA_PRECO!Q97=" "," ",TABELA_PRECO!Q97) -> 19.2 | M98: =IF(TABELA_PRECO!R97=" "," ",TABELA_PRECO!R97) -> 11.4 | N98: =IF(TABELA_PRECO!T97=" "," ",TABELA_PRECO!T97) -> 3.802697088 | O98: =IF(TABELA_PRECO!Y97=" "," ",TABELA_PRECO!Y97) -> 32.9104005 | P98: =IF(TABELA_PRECO!Z97=" "," ",TABELA_PRECO!Z97) -> 24.24242424 | Q98: =IF(TABELA_PRECO!AA97=" "," ",TABELA_PRECO!AA97) -> 123
A99: =IF(TABELA_PRECO!A98=" "," ",TABELA_PRECO!A98) -> 124 | B99: =IF(TABELA_PRECO!B98=" "," ",TABELA_PRECO!B98) -> FIXADOR OLHAL CABO DE ACO | C99: =IF(TABELA_PRECO!C98=" "," ",TABELA_PRECO!C98) -> UN | D99: =IF(TABELA_PRECO!D98=" "," ",TABELA_PRECO!D98) -> EQUIPAMENTOS DIVERSOS | E99: =IF(TABELA_PRECO!E98=" "," ",TABELA_PRECO!E98) -> ROBUSTEC | F99: =IF(TABELA_PRECO!F98=" "," ",TABELA_PRECO!F98) -> 0.3 | G99: =IF(TABELA_PRECO!G98=" "," ",TABELA_PRECO!G98) -> 0.354 | H99: =IF(TABELA_PRECO!H98=" "," ",TABELA_PRECO!H98) -> 0.4471632 | I99: =IF(TABELA_PRECO!I98=" "," ",TABELA_PRECO!I98) -> 0.396 | J99: =IF(TABELA_PRECO!J98=" "," ",TABELA_PRECO!J98) -> 0.3643644 | K99: =IF(TABELA_PRECO!P98=" "," ",TABELA_PRECO!P98) -> 0.1471632 | L99: =IF(TABELA_PRECO!Q98=" "," ",TABELA_PRECO!Q98) -> 0.096 | M99: =IF(TABELA_PRECO!R98=" "," ",TABELA_PRECO!R98) -> 0.057 | N99: =IF(TABELA_PRECO!T98=" "," ",TABELA_PRECO!T98) -> 0.01901348544 | O99: =IF(TABELA_PRECO!Y98=" "," ",TABELA_PRECO!Y98) -> 32.9104005 | P99: =IF(TABELA_PRECO!Z98=" "," ",TABELA_PRECO!Z98) -> 24.24242424 | Q99: =IF(TABELA_PRECO!AA98=" "," ",TABELA_PRECO!AA98) -> 124
A100: =IF(TABELA_PRECO!A99=" "," ",TABELA_PRECO!A99) -> 129 | B100: =IF(TABELA_PRECO!B99=" "," ",TABELA_PRECO!B99) -> TELA PLASTICA N 4 2,5 X 50 M | C100: =IF(TABELA_PRECO!C99=" "," ",TABELA_PRECO!C99) -> M² | D100: =IF(TABELA_PRECO!D99=" "," ",TABELA_PRECO!D99) -> CORTINADO-FORRAÇÃO | E100: =IF(TABELA_PRECO!E99=" "," ",TABELA_PRECO!E99) -> TEC ROMA | F100: =IF(TABELA_PRECO!F99=" "," ",TABELA_PRECO!F99) -> 7.8 | G100: =IF(TABELA_PRECO!G99=" "," ",TABELA_PRECO!G99) -> 9.204 | H100: =IF(TABELA_PRECO!H99=" "," ",TABELA_PRECO!H99) -> 11.6262432 | I100: =IF(TABELA_PRECO!I99=" "," ",TABELA_PRECO!I99) -> 10.296 | J100: =IF(TABELA_PRECO!J99=" "," ",TABELA_PRECO!J99) -> 9.4734744 | K100: =IF(TABELA_PRECO!P99=" "," ",TABELA_PRECO!P99) -> 3.8262432 | L100: =IF(TABELA_PRECO!Q99=" "," ",TABELA_PRECO!Q99) -> 2.496 | M100: =IF(TABELA_PRECO!R99=" "," ",TABELA_PRECO!R99) -> 1.482 | N100: =IF(TABELA_PRECO!T99=" "," ",TABELA_PRECO!T99) -> 0.4943506214 | O100: =IF(TABELA_PRECO!Y99=" "," ",TABELA_PRECO!Y99) -> 32.9104005 | P100: =IF(TABELA_PRECO!Z99=" "," ",TABELA_PRECO!Z99) -> 24.24242424 | Q100: =IF(TABELA_PRECO!AA99=" "," ",TABELA_PRECO!AA99) -> 129
A101: =IF(TABELA_PRECO!A100=" "," ",TABELA_PRECO!A100) -> 130 | B101: =IF(TABELA_PRECO!B100=" "," ",TABELA_PRECO!B100) -> CHUMBADOR 5/8 X 5 (SILO) | C101: =IF(TABELA_PRECO!C100=" "," ",TABELA_PRECO!C100) -> PC | D101: =IF(TABELA_PRECO!D100=" "," ",TABELA_PRECO!D100) -> EQUIPAMENTOS DIVERSOS | E101: =IF(TABELA_PRECO!E100=" "," ",TABELA_PRECO!E100) -> BIG DUTCHMAN | F101: =IF(TABELA_PRECO!F100=" "," ",TABELA_PRECO!F100) -> 12 | G101: =IF(TABELA_PRECO!G100=" "," ",TABELA_PRECO!G100) -> 14.16 | H101: =IF(TABELA_PRECO!H100=" "," ",TABELA_PRECO!H100) -> 17.886528 | I101: =IF(TABELA_PRECO!I100=" "," ",TABELA_PRECO!I100) -> 15.84 | J101: =IF(TABELA_PRECO!J100=" "," ",TABELA_PRECO!J100) -> 14.574576 | K101: =IF(TABELA_PRECO!P100=" "," ",TABELA_PRECO!P100) -> 5.886528 | L101: =IF(TABELA_PRECO!Q100=" "," ",TABELA_PRECO!Q100) -> 3.84 | M101: =IF(TABELA_PRECO!R100=" "," ",TABELA_PRECO!R100) -> 2.28 | N101: =IF(TABELA_PRECO!T100=" "," ",TABELA_PRECO!T100) -> 0.7605394176 | O101: =IF(TABELA_PRECO!Y100=" "," ",TABELA_PRECO!Y100) -> 32.9104005 | P101: =IF(TABELA_PRECO!Z100=" "," ",TABELA_PRECO!Z100) -> 24.24242424 | Q101: =IF(TABELA_PRECO!AA100=" "," ",TABELA_PRECO!AA100) -> 130
A102: =IF(TABELA_PRECO!A101=" "," ",TABELA_PRECO!A101) -> 132 | B102: =IF(TABELA_PRECO!B101=" "," ",TABELA_PRECO!B101) -> PERFIL N 19 (Trilho de cima)7,00 kg | C102: =IF(TABELA_PRECO!C101=" "," ",TABELA_PRECO!C101) -> BR | D102: =IF(TABELA_PRECO!D101=" "," ",TABELA_PRECO!D101) -> EQUIPAMENTOS DIVERSOS | E102: =IF(TABELA_PRECO!E101=" "," ",TABELA_PRECO!E101) -> KIFERRO | F102: =IF(TABELA_PRECO!F101=" "," ",TABELA_PRECO!F101) -> 43.47 | G102: =IF(TABELA_PRECO!G101=" "," ",TABELA_PRECO!G101) -> 51.2946 | H102: =IF(TABELA_PRECO!H101=" "," ",TABELA_PRECO!H101) -> 64.79394768 | I102: =IF(TABELA_PRECO!I101=" "," ",TABELA_PRECO!I101) -> 57.3804 | J102: =IF(TABELA_PRECO!J101=" "," ",TABELA_PRECO!J101) -> 52.79640156 | K102: =IF(TABELA_PRECO!P101=" "," ",TABELA_PRECO!P101) -> 21.32394768 | L102: =IF(TABELA_PRECO!Q101=" "," ",TABELA_PRECO!Q101) -> 13.9104 | M102: =IF(TABELA_PRECO!R101=" "," ",TABELA_PRECO!R101) -> 8.2593 | N102: =IF(TABELA_PRECO!T101=" "," ",TABELA_PRECO!T101) -> 2.75505404 | O102: =IF(TABELA_PRECO!Y101=" "," ",TABELA_PRECO!Y101) -> 32.9104005 | P102: =IF(TABELA_PRECO!Z101=" "," ",TABELA_PRECO!Z101) -> 24.24242424 | Q102: =IF(TABELA_PRECO!AA101=" "," ",TABELA_PRECO!AA101) -> 132
A103: =IF(TABELA_PRECO!A102=" "," ",TABELA_PRECO!A102) -> 133 | B103: =IF(TABELA_PRECO!B102=" "," ",TABELA_PRECO!B102) -> RODIZIO 1 1.12 | C103: =IF(TABELA_PRECO!C102=" "," ",TABELA_PRECO!C102) -> PC | D103: =IF(TABELA_PRECO!D102=" "," ",TABELA_PRECO!D102) -> EQUIPAMENTOS DIVERSOS | E103: =IF(TABELA_PRECO!E102=" "," ",TABELA_PRECO!E102) -> KIFERRO | F103: =IF(TABELA_PRECO!F102=" "," ",TABELA_PRECO!F102) -> 9.8 | G103: =IF(TABELA_PRECO!G102=" "," ",TABELA_PRECO!G102) -> 11.564 | H103: =IF(TABELA_PRECO!H102=" "," ",TABELA_PRECO!H102) -> 14.6073312 | I103: =IF(TABELA_PRECO!I102=" "," ",TABELA_PRECO!I102) -> 12.936 | J103: =IF(TABELA_PRECO!J102=" "," ",TABELA_PRECO!J102) -> 11.9025704 | K103: =IF(TABELA_PRECO!P102=" "," ",TABELA_PRECO!P102) -> 4.8073312 | L103: =IF(TABELA_PRECO!Q102=" "," ",TABELA_PRECO!Q102) -> 3.136 | M103: =IF(TABELA_PRECO!R102=" "," ",TABELA_PRECO!R102) -> 1.862 | N103: =IF(TABELA_PRECO!T102=" "," ",TABELA_PRECO!T102) -> 0.621107191 | O103: =IF(TABELA_PRECO!Y102=" "," ",TABELA_PRECO!Y102) -> 32.9104005 | P103: =IF(TABELA_PRECO!Z102=" "," ",TABELA_PRECO!Z102) -> 24.24242424 | Q103: =IF(TABELA_PRECO!AA102=" "," ",TABELA_PRECO!AA102) -> 133
A104: =IF(TABELA_PRECO!A103=" "," ",TABELA_PRECO!A103) -> 134 | B104: =IF(TABELA_PRECO!B103=" "," ",TABELA_PRECO!B103) -> TAMPAO 12 GALV | C104: =IF(TABELA_PRECO!C103=" "," ",TABELA_PRECO!C103) -> UN | D104: =IF(TABELA_PRECO!D103=" "," ",TABELA_PRECO!D103) -> EQUIPAMENTOS DIVERSOS | E104: =IF(TABELA_PRECO!E103=" "," ",TABELA_PRECO!E103) -> KIFERRO | F104: =IF(TABELA_PRECO!F103=" "," ",TABELA_PRECO!F103) -> 8 | G104: =IF(TABELA_PRECO!G103=" "," ",TABELA_PRECO!G103) -> 9.44 | H104: =IF(TABELA_PRECO!H103=" "," ",TABELA_PRECO!H103) -> 11.924352 | I104: =IF(TABELA_PRECO!I103=" "," ",TABELA_PRECO!I103) -> 10.56 | J104: =IF(TABELA_PRECO!J103=" "," ",TABELA_PRECO!J103) -> 9.716384 | K104: =IF(TABELA_PRECO!P103=" "," ",TABELA_PRECO!P103) -> 3.924352 | L104: =IF(TABELA_PRECO!Q103=" "," ",TABELA_PRECO!Q103) -> 2.56 | M104: =IF(TABELA_PRECO!R103=" "," ",TABELA_PRECO!R103) -> 1.52 | N104: =IF(TABELA_PRECO!T103=" "," ",TABELA_PRECO!T103) -> 0.5070262784 | O104: =IF(TABELA_PRECO!Y103=" "," ",TABELA_PRECO!Y103) -> 32.9104005 | P104: =IF(TABELA_PRECO!Z103=" "," ",TABELA_PRECO!Z103) -> 24.24242424 | Q104: =IF(TABELA_PRECO!AA103=" "," ",TABELA_PRECO!AA103) -> 134
A105: =IF(TABELA_PRECO!A104=" "," ",TABELA_PRECO!A104) -> 135 | B105: =IF(TABELA_PRECO!B104=" "," ",TABELA_PRECO!B104) -> LUVA PARALELA 12 GALV | C105: =IF(TABELA_PRECO!C104=" "," ",TABELA_PRECO!C104) -> UN | D105: =IF(TABELA_PRECO!D104=" "," ",TABELA_PRECO!D104) -> EQUIPAMENTOS DIVERSOS | E105: =IF(TABELA_PRECO!E104=" "," ",TABELA_PRECO!E104) -> KIFERRO | F105: =IF(TABELA_PRECO!F104=" "," ",TABELA_PRECO!F104) -> 9 | G105: =IF(TABELA_PRECO!G104=" "," ",TABELA_PRECO!G104) -> 10.62 | H105: =IF(TABELA_PRECO!H104=" "," ",TABELA_PRECO!H104) -> 13.414896 | I105: =IF(TABELA_PRECO!I104=" "," ",TABELA_PRECO!I104) -> 11.88 | J105: =IF(TABELA_PRECO!J104=" "," ",TABELA_PRECO!J104) -> 10.930932 | K105: =IF(TABELA_PRECO!P104=" "," ",TABELA_PRECO!P104) -> 4.414896 | L105: =IF(TABELA_PRECO!Q104=" "," ",TABELA_PRECO!Q104) -> 2.88 | M105: =IF(TABELA_PRECO!R104=" "," ",TABELA_PRECO!R104) -> 1.71 | N105: =IF(TABELA_PRECO!T104=" "," ",TABELA_PRECO!T104) -> 0.5704045632 | O105: =IF(TABELA_PRECO!Y104=" "," ",TABELA_PRECO!Y104) -> 32.9104005 | P105: =IF(TABELA_PRECO!Z104=" "," ",TABELA_PRECO!Z104) -> 24.24242424 | Q105: =IF(TABELA_PRECO!AA104=" "," ",TABELA_PRECO!AA104) -> 135
A106: =IF(TABELA_PRECO!A105=" "," ",TABELA_PRECO!A105) -> 136 | B106: =IF(TABELA_PRECO!B105=" "," ",TABELA_PRECO!B105) -> CURVA F 90 12 GALV | C106: =IF(TABELA_PRECO!C105=" "," ",TABELA_PRECO!C105) -> PC | D106: =IF(TABELA_PRECO!D105=" "," ",TABELA_PRECO!D105) -> EQUIPAMENTOS DIVERSOS | E106: =IF(TABELA_PRECO!E105=" "," ",TABELA_PRECO!E105) -> KIFERRO | F106: =IF(TABELA_PRECO!F105=" "," ",TABELA_PRECO!F105) -> 8 | G106: =IF(TABELA_PRECO!G105=" "," ",TABELA_PRECO!G105) -> 9.44 | H106: =IF(TABELA_PRECO!H105=" "," ",TABELA_PRECO!H105) -> 11.924352 | I106: =IF(TABELA_PRECO!I105=" "," ",TABELA_PRECO!I105) -> 10.56 | J106: =IF(TABELA_PRECO!J105=" "," ",TABELA_PRECO!J105) -> 9.716384 | K106: =IF(TABELA_PRECO!P105=" "," ",TABELA_PRECO!P105) -> 3.924352 | L106: =IF(TABELA_PRECO!Q105=" "," ",TABELA_PRECO!Q105) -> 2.56 | M106: =IF(TABELA_PRECO!R105=" "," ",TABELA_PRECO!R105) -> 1.52 | N106: =IF(TABELA_PRECO!T105=" "," ",TABELA_PRECO!T105) -> 0.5070262784 | O106: =IF(TABELA_PRECO!Y105=" "," ",TABELA_PRECO!Y105) -> 32.9104005 | P106: =IF(TABELA_PRECO!Z105=" "," ",TABELA_PRECO!Z105) -> 24.24242424 | Q106: =IF(TABELA_PRECO!AA105=" "," ",TABELA_PRECO!AA105) -> 136
A107: =IF(TABELA_PRECO!A106=" "," ",TABELA_PRECO!A106) -> 137 | B107: =IF(TABELA_PRECO!B106=" "," ",TABELA_PRECO!B106) -> TUBO INDUSTRIAL 30 X 40 X2,00 X 12,80 KG /BR | C107: =IF(TABELA_PRECO!C106=" "," ",TABELA_PRECO!C106) -> BR | D107: =IF(TABELA_PRECO!D106=" "," ",TABELA_PRECO!D106) -> EQUIPAMENTOS DIVERSOS | E107: =IF(TABELA_PRECO!E106=" "," ",TABELA_PRECO!E106) -> TUPER | F107: =IF(TABELA_PRECO!F106=" "," ",TABELA_PRECO!F106) -> 22.5 | G107: =IF(TABELA_PRECO!G106=" "," ",TABELA_PRECO!G106) -> 26.55 | H107: =IF(TABELA_PRECO!H106=" "," ",TABELA_PRECO!H106) -> 33.53724 | I107: =IF(TABELA_PRECO!I106=" "," ",TABELA_PRECO!I106) -> 29.7 | J107: =IF(TABELA_PRECO!J106=" "," ",TABELA_PRECO!J106) -> 27.32733 | K107: =IF(TABELA_PRECO!P106=" "," ",TABELA_PRECO!P106) -> 11.03724 | L107: =IF(TABELA_PRECO!Q106=" "," ",TABELA_PRECO!Q106) -> 7.2 | M107: =IF(TABELA_PRECO!R106=" "," ",TABELA_PRECO!R106) -> 4.275 | N107: =IF(TABELA_PRECO!T106=" "," ",TABELA_PRECO!T106) -> 1.426011408 | O107: =IF(TABELA_PRECO!Y106=" "," ",TABELA_PRECO!Y106) -> 32.9104005 | P107: =IF(TABELA_PRECO!Z106=" "," ",TABELA_PRECO!Z106) -> 24.24242424 | Q107: =IF(TABELA_PRECO!AA106=" "," ",TABELA_PRECO!AA106) -> 137
A108: =IF(TABELA_PRECO!A107=" "," ",TABELA_PRECO!A107) -> 138 | B108: =IF(TABELA_PRECO!B107=" "," ",TABELA_PRECO!B107) -> CANO GALV 12 X 2,25 6,90 KH/BR | C108: =IF(TABELA_PRECO!C107=" "," ",TABELA_PRECO!C107) -> BR | D108: =IF(TABELA_PRECO!D107=" "," ",TABELA_PRECO!D107) -> EQUIPAMENTOS DIVERSOS | E108: =IF(TABELA_PRECO!E107=" "," ",TABELA_PRECO!E107) -> TUPER | F108: =IF(TABELA_PRECO!F107=" "," ",TABELA_PRECO!F107) -> 32 | G108: =IF(TABELA_PRECO!G107=" "," ",TABELA_PRECO!G107) -> 37.76 | H108: =IF(TABELA_PRECO!H107=" "," ",TABELA_PRECO!H107) -> 47.697408 | I108: =IF(TABELA_PRECO!I107=" "," ",TABELA_PRECO!I107) -> 42.24 | J108: =IF(TABELA_PRECO!J107=" "," ",TABELA_PRECO!J107) -> 38.865536 | K108: =IF(TABELA_PRECO!P107=" "," ",TABELA_PRECO!P107) -> 15.697408 | L108: =IF(TABELA_PRECO!Q107=" "," ",TABELA_PRECO!Q107) -> 10.24 | M108: =IF(TABELA_PRECO!R107=" "," ",TABELA_PRECO!R107) -> 6.08 | N108: =IF(TABELA_PRECO!T107=" "," ",TABELA_PRECO!T107) -> 2.028105114 | O108: =IF(TABELA_PRECO!Y107=" "," ",TABELA_PRECO!Y107) -> 32.9104005 | P108: =IF(TABELA_PRECO!Z107=" "," ",TABELA_PRECO!Z107) -> 24.24242424 | Q108: =IF(TABELA_PRECO!AA107=" "," ",TABELA_PRECO!AA107) -> 138
A109: =IF(TABELA_PRECO!A108=" "," ",TABELA_PRECO!A108) -> 139 | B109: =IF(TABELA_PRECO!B108=" "," ",TABELA_PRECO!B108) -> CABO DE ACO AFGCTD 6 X 7 3/16 | C109: =IF(TABELA_PRECO!C108=" "," ",TABELA_PRECO!C108) -> MT | D109: =IF(TABELA_PRECO!D108=" "," ",TABELA_PRECO!D108) -> CORTINADO-FORRAÇÃO | E109: =IF(TABELA_PRECO!E108=" "," ",TABELA_PRECO!E108) -> RPA | F109: =IF(TABELA_PRECO!F108=" "," ",TABELA_PRECO!F108) -> 3.3 | G109: =IF(TABELA_PRECO!G108=" "," ",TABELA_PRECO!G108) -> 3.894 | H109: =IF(TABELA_PRECO!H108=" "," ",TABELA_PRECO!H108) -> 4.9187952 | I109: =IF(TABELA_PRECO!I108=" "," ",TABELA_PRECO!I108) -> 4.356 | J109: =IF(TABELA_PRECO!J108=" "," ",TABELA_PRECO!J108) -> 4.0080084 | K109: =IF(TABELA_PRECO!P108=" "," ",TABELA_PRECO!P108) -> 1.6187952 | L109: =IF(TABELA_PRECO!Q108=" "," ",TABELA_PRECO!Q108) -> 1.056 | M109: =IF(TABELA_PRECO!R108=" "," ",TABELA_PRECO!R108) -> 0.627 | N109: =IF(TABELA_PRECO!T108=" "," ",TABELA_PRECO!T108) -> 0.2091483398 | O109: =IF(TABELA_PRECO!Y108=" "," ",TABELA_PRECO!Y108) -> 32.9104005 | P109: =IF(TABELA_PRECO!Z108=" "," ",TABELA_PRECO!Z108) -> 24.24242424 | Q109: =IF(TABELA_PRECO!AA108=" "," ",TABELA_PRECO!AA108) -> 139
A110: =IF(TABELA_PRECO!A109=" "," ",TABELA_PRECO!A109) -> 140 | B110: =IF(TABELA_PRECO!B109=" "," ",TABELA_PRECO!B109) -> CABO DE ACO AFGCTD 6 X 7 1/8 | C110: =IF(TABELA_PRECO!C109=" "," ",TABELA_PRECO!C109) -> MT | D110: =IF(TABELA_PRECO!D109=" "," ",TABELA_PRECO!D109) -> CORTINADO-FORRAÇÃO | E110: =IF(TABELA_PRECO!E109=" "," ",TABELA_PRECO!E109) -> RPA | F110: =IF(TABELA_PRECO!F109=" "," ",TABELA_PRECO!F109) -> 1.2 | G110: =IF(TABELA_PRECO!G109=" "," ",TABELA_PRECO!G109) -> 1.416 | H110: =IF(TABELA_PRECO!H109=" "," ",TABELA_PRECO!H109) -> 1.7886528 | I110: =IF(TABELA_PRECO!I109=" "," ",TABELA_PRECO!I109) -> 1.584 | J110: =IF(TABELA_PRECO!J109=" "," ",TABELA_PRECO!J109) -> 1.4574576 | K110: =IF(TABELA_PRECO!P109=" "," ",TABELA_PRECO!P109) -> 0.5886528 | L110: =IF(TABELA_PRECO!Q109=" "," ",TABELA_PRECO!Q109) -> 0.384 | M110: =IF(TABELA_PRECO!R109=" "," ",TABELA_PRECO!R109) -> 0.228 | N110: =IF(TABELA_PRECO!T109=" "," ",TABELA_PRECO!T109) -> 0.07605394176 | O110: =IF(TABELA_PRECO!Y109=" "," ",TABELA_PRECO!Y109) -> 32.9104005 | P110: =IF(TABELA_PRECO!Z109=" "," ",TABELA_PRECO!Z109) -> 24.24242424 | Q110: =IF(TABELA_PRECO!AA109=" "," ",TABELA_PRECO!AA109) -> 140
A111: =IF(TABELA_PRECO!A110=" "," ",TABELA_PRECO!A110) -> 141 | B111: =IF(TABELA_PRECO!B110=" "," ",TABELA_PRECO!B110) -> TUBO ACO ZINCADO 0.80 X 19,05 X 600 NBR7008 ZC VER Z 27 | C111: =IF(TABELA_PRECO!C110=" "," ",TABELA_PRECO!C110) -> BR | D111: =IF(TABELA_PRECO!D110=" "," ",TABELA_PRECO!D110) -> CORTINADO-FORRAÇÃO | E111: =IF(TABELA_PRECO!E110=" "," ",TABELA_PRECO!E110) -> PANATLANTICA | F111: =IF(TABELA_PRECO!F110=" "," ",TABELA_PRECO!F110) -> 32 | G111: =IF(TABELA_PRECO!G110=" "," ",TABELA_PRECO!G110) -> 37.76 | H111: =IF(TABELA_PRECO!H110=" "," ",TABELA_PRECO!H110) -> 47.697408 | I111: =IF(TABELA_PRECO!I110=" "," ",TABELA_PRECO!I110) -> 42.24 | J111: =IF(TABELA_PRECO!J110=" "," ",TABELA_PRECO!J110) -> 38.865536 | K111: =IF(TABELA_PRECO!P110=" "," ",TABELA_PRECO!P110) -> 15.697408 | L111: =IF(TABELA_PRECO!Q110=" "," ",TABELA_PRECO!Q110) -> 10.24 | M111: =IF(TABELA_PRECO!R110=" "," ",TABELA_PRECO!R110) -> 6.08 | N111: =IF(TABELA_PRECO!T110=" "," ",TABELA_PRECO!T110) -> 2.028105114 | O111: =IF(TABELA_PRECO!Y110=" "," ",TABELA_PRECO!Y110) -> 32.9104005 | P111: =IF(TABELA_PRECO!Z110=" "," ",TABELA_PRECO!Z110) -> 24.24242424 | Q111: =IF(TABELA_PRECO!AA110=" "," ",TABELA_PRECO!AA110) -> 141
A112: =IF(TABELA_PRECO!A111=" "," ",TABELA_PRECO!A111) -> 190 | B112: =IF(TABELA_PRECO!B111=" "," ",TABELA_PRECO!B111) -> TE SOLD 50 MM | C112: =IF(TABELA_PRECO!C111=" "," ",TABELA_PRECO!C111) -> UN | D112: =IF(TABELA_PRECO!D111=" "," ",TABELA_PRECO!D111) -> HIDRÁULICO | E112: =IF(TABELA_PRECO!E111=" "," ",TABELA_PRECO!E111) -> KRONA / FORTLEV | F112: =IF(TABELA_PRECO!F111=" "," ",TABELA_PRECO!F111) -> 6.8 | G112: =IF(TABELA_PRECO!G111=" "," ",TABELA_PRECO!G111) -> 8.024 | H112: =IF(TABELA_PRECO!H111=" "," ",TABELA_PRECO!H111) -> 10.1356992 | I112: =IF(TABELA_PRECO!I111=" "," ",TABELA_PRECO!I111) -> 8.976 | J112: =IF(TABELA_PRECO!J111=" "," ",TABELA_PRECO!J111) -> 8.2589264 | K112: =IF(TABELA_PRECO!P111=" "," ",TABELA_PRECO!P111) -> 3.3356992 | L112: =IF(TABELA_PRECO!Q111=" "," ",TABELA_PRECO!Q111) -> 2.176 | M112: =IF(TABELA_PRECO!R111=" "," ",TABELA_PRECO!R111) -> 1.292 | N112: =IF(TABELA_PRECO!T111=" "," ",TABELA_PRECO!T111) -> 0.4309723366 | O112: =IF(TABELA_PRECO!Y111=" "," ",TABELA_PRECO!Y111) -> 32.9104005 | P112: =IF(TABELA_PRECO!Z111=" "," ",TABELA_PRECO!Z111) -> 24.24242424 | Q112: =IF(TABELA_PRECO!AA111=" "," ",TABELA_PRECO!AA111) -> 190
A113: =IF(TABELA_PRECO!A112=" "," ",TABELA_PRECO!A112) -> 191 | B113: =IF(TABELA_PRECO!B112=" "," ",TABELA_PRECO!B112) -> FLANGE SOLD 32 MM X 1 | C113: =IF(TABELA_PRECO!C112=" "," ",TABELA_PRECO!C112) -> UN | D113: =IF(TABELA_PRECO!D112=" "," ",TABELA_PRECO!D112) -> HIDRÁULICO | E113: =IF(TABELA_PRECO!E112=" "," ",TABELA_PRECO!E112) -> KRONA / FORTLEV | F113: =IF(TABELA_PRECO!F112=" "," ",TABELA_PRECO!F112) -> 15.4 | G113: =IF(TABELA_PRECO!G112=" "," ",TABELA_PRECO!G112) -> 18.172 | H113: =IF(TABELA_PRECO!H112=" "," ",TABELA_PRECO!H112) -> 22.9543776 | I113: =IF(TABELA_PRECO!I112=" "," ",TABELA_PRECO!I112) -> 20.328 | J113: =IF(TABELA_PRECO!J112=" "," ",TABELA_PRECO!J112) -> 18.7040392 | K113: =IF(TABELA_PRECO!P112=" "," ",TABELA_PRECO!P112) -> 7.5543776 | L113: =IF(TABELA_PRECO!Q112=" "," ",TABELA_PRECO!Q112) -> 4.928 | M113: =IF(TABELA_PRECO!R112=" "," ",TABELA_PRECO!R112) -> 2.926 | N113: =IF(TABELA_PRECO!T112=" "," ",TABELA_PRECO!T112) -> 0.9760255859 | O113: =IF(TABELA_PRECO!Y112=" "," ",TABELA_PRECO!Y112) -> 32.9104005 | P113: =IF(TABELA_PRECO!Z112=" "," ",TABELA_PRECO!Z112) -> 24.24242424 | Q113: =IF(TABELA_PRECO!AA112=" "," ",TABELA_PRECO!AA112) -> 191
A114: =IF(TABELA_PRECO!A113=" "," ",TABELA_PRECO!A113) -> 192 | B114: =IF(TABELA_PRECO!B113=" "," ",TABELA_PRECO!B113) -> FLANGE SOLD 25 MM X 3/4 | C114: =IF(TABELA_PRECO!C113=" "," ",TABELA_PRECO!C113) -> UN | D114: =IF(TABELA_PRECO!D113=" "," ",TABELA_PRECO!D113) -> HIDRÁULICO | E114: =IF(TABELA_PRECO!E113=" "," ",TABELA_PRECO!E113) -> KRONA / FORTLEV | F114: =IF(TABELA_PRECO!F113=" "," ",TABELA_PRECO!F113) -> 8.05 | G114: =IF(TABELA_PRECO!G113=" "," ",TABELA_PRECO!G113) -> 9.499 | H114: =IF(TABELA_PRECO!H113=" "," ",TABELA_PRECO!H113) -> 11.9988792 | I114: =IF(TABELA_PRECO!I113=" "," ",TABELA_PRECO!I113) -> 10.626 | J114: =IF(TABELA_PRECO!J113=" "," ",TABELA_PRECO!J113) -> 9.7771114 | K114: =IF(TABELA_PRECO!P113=" "," ",TABELA_PRECO!P113) -> 3.9488792 | L114: =IF(TABELA_PRECO!Q113=" "," ",TABELA_PRECO!Q113) -> 2.576 | M114: =IF(TABELA_PRECO!R113=" "," ",TABELA_PRECO!R113) -> 1.5295 | N114: =IF(TABELA_PRECO!T113=" "," ",TABELA_PRECO!T113) -> 0.5101951926 | O114: =IF(TABELA_PRECO!Y113=" "," ",TABELA_PRECO!Y113) -> 32.9104005 | P114: =IF(TABELA_PRECO!Z113=" "," ",TABELA_PRECO!Z113) -> 24.24242424 | Q114: =IF(TABELA_PRECO!AA113=" "," ",TABELA_PRECO!AA113) -> 192
A115: =IF(TABELA_PRECO!A114=" "," ",TABELA_PRECO!A114) -> 193 | B115: =IF(TABELA_PRECO!B114=" "," ",TABELA_PRECO!B114) -> UNIAO SOLD 40 MM | C115: =IF(TABELA_PRECO!C114=" "," ",TABELA_PRECO!C114) -> UN | D115: =IF(TABELA_PRECO!D114=" "," ",TABELA_PRECO!D114) -> HIDRÁULICO | E115: =IF(TABELA_PRECO!E114=" "," ",TABELA_PRECO!E114) -> KRONA / FORTLEV | F115: =IF(TABELA_PRECO!F114=" "," ",TABELA_PRECO!F114) -> 17.4 | G115: =IF(TABELA_PRECO!G114=" "," ",TABELA_PRECO!G114) -> 20.532 | H115: =IF(TABELA_PRECO!H114=" "," ",TABELA_PRECO!H114) -> 25.9354656 | I115: =IF(TABELA_PRECO!I114=" "," ",TABELA_PRECO!I114) -> 22.968 | J115: =IF(TABELA_PRECO!J114=" "," ",TABELA_PRECO!J114) -> 21.1331352 | K115: =IF(TABELA_PRECO!P114=" "," ",TABELA_PRECO!P114) -> 8.5354656 | L115: =IF(TABELA_PRECO!Q114=" "," ",TABELA_PRECO!Q114) -> 5.568 | M115: =IF(TABELA_PRECO!R114=" "," ",TABELA_PRECO!R114) -> 3.306 | N115: =IF(TABELA_PRECO!T114=" "," ",TABELA_PRECO!T114) -> 1.102782156 | O115: =IF(TABELA_PRECO!Y114=" "," ",TABELA_PRECO!Y114) -> 32.9104005 | P115: =IF(TABELA_PRECO!Z114=" "," ",TABELA_PRECO!Z114) -> 24.24242424 | Q115: =IF(TABELA_PRECO!AA114=" "," ",TABELA_PRECO!AA114) -> 193
A116: =IF(TABELA_PRECO!A115=" "," ",TABELA_PRECO!A115) -> 194 | B116: =IF(TABELA_PRECO!B115=" "," ",TABELA_PRECO!B115) -> UNIAO SOLD 32MM | C116: =IF(TABELA_PRECO!C115=" "," ",TABELA_PRECO!C115) -> UN | D116: =IF(TABELA_PRECO!D115=" "," ",TABELA_PRECO!D115) -> HIDRÁULICO | E116: =IF(TABELA_PRECO!E115=" "," ",TABELA_PRECO!E115) -> KRONA / FORTLEV | F116: =IF(TABELA_PRECO!F115=" "," ",TABELA_PRECO!F115) -> 8.2 | G116: =IF(TABELA_PRECO!G115=" "," ",TABELA_PRECO!G115) -> 9.676 | H116: =IF(TABELA_PRECO!H115=" "," ",TABELA_PRECO!H115) -> 12.2224608 | I116: =IF(TABELA_PRECO!I115=" "," ",TABELA_PRECO!I115) -> 10.824 | J116: =IF(TABELA_PRECO!J115=" "," ",TABELA_PRECO!J115) -> 9.9592936 | K116: =IF(TABELA_PRECO!P115=" "," ",TABELA_PRECO!P115) -> 4.0224608 | L116: =IF(TABELA_PRECO!Q115=" "," ",TABELA_PRECO!Q115) -> 2.624 | M116: =IF(TABELA_PRECO!R115=" "," ",TABELA_PRECO!R115) -> 1.558 | N116: =IF(TABELA_PRECO!T115=" "," ",TABELA_PRECO!T115) -> 0.5197019354 | O116: =IF(TABELA_PRECO!Y115=" "," ",TABELA_PRECO!Y115) -> 32.9104005 | P116: =IF(TABELA_PRECO!Z115=" "," ",TABELA_PRECO!Z115) -> 24.24242424 | Q116: =IF(TABELA_PRECO!AA115=" "," ",TABELA_PRECO!AA115) -> 194
A117: =IF(TABELA_PRECO!A116=" "," ",TABELA_PRECO!A116) -> 195 | B117: =IF(TABELA_PRECO!B116=" "," ",TABELA_PRECO!B116) -> UNIAO SOLD 50 MM | C117: =IF(TABELA_PRECO!C116=" "," ",TABELA_PRECO!C116) -> UN | D117: =IF(TABELA_PRECO!D116=" "," ",TABELA_PRECO!D116) -> HIDRÁULICO | E117: =IF(TABELA_PRECO!E116=" "," ",TABELA_PRECO!E116) -> KRONA / FORTLEV | F117: =IF(TABELA_PRECO!F116=" "," ",TABELA_PRECO!F116) -> 19.75 | G117: =IF(TABELA_PRECO!G116=" "," ",TABELA_PRECO!G116) -> 23.305 | H117: =IF(TABELA_PRECO!H116=" "," ",TABELA_PRECO!H116) -> 29.438244 | I117: =IF(TABELA_PRECO!I116=" "," ",TABELA_PRECO!I116) -> 26.07 | J117: =IF(TABELA_PRECO!J116=" "," ",TABELA_PRECO!J116) -> 23.987323 | K117: =IF(TABELA_PRECO!P116=" "," ",TABELA_PRECO!P116) -> 9.688244 | L117: =IF(TABELA_PRECO!Q116=" "," ",TABELA_PRECO!Q116) -> 6.32 | M117: =IF(TABELA_PRECO!R116=" "," ",TABELA_PRECO!R116) -> 3.7525 | N117: =IF(TABELA_PRECO!T116=" "," ",TABELA_PRECO!T116) -> 1.251721125 | O117: =IF(TABELA_PRECO!Y116=" "," ",TABELA_PRECO!Y116) -> 32.9104005 | P117: =IF(TABELA_PRECO!Z116=" "," ",TABELA_PRECO!Z116) -> 24.24242424 | Q117: =IF(TABELA_PRECO!AA116=" "," ",TABELA_PRECO!AA116) -> 195
A118: =IF(TABELA_PRECO!A117=" "," ",TABELA_PRECO!A117) -> 196 | B118: =IF(TABELA_PRECO!B117=" "," ",TABELA_PRECO!B117) -> FLANGE SOLD 50 MM | C118: =IF(TABELA_PRECO!C117=" "," ",TABELA_PRECO!C117) -> UN | D118: =IF(TABELA_PRECO!D117=" "," ",TABELA_PRECO!D117) -> HIDRÁULICO | E118: =IF(TABELA_PRECO!E117=" "," ",TABELA_PRECO!E117) -> KRONA / FORTLEV | F118: =IF(TABELA_PRECO!F117=" "," ",TABELA_PRECO!F117) -> 13 | G118: =IF(TABELA_PRECO!G117=" "," ",TABELA_PRECO!G117) -> 15.34 | H118: =IF(TABELA_PRECO!H117=" "," ",TABELA_PRECO!H117) -> 19.377072 | I118: =IF(TABELA_PRECO!I117=" "," ",TABELA_PRECO!I117) -> 17.16 | J118: =IF(TABELA_PRECO!J117=" "," ",TABELA_PRECO!J117) -> 15.789124 | K118: =IF(TABELA_PRECO!P117=" "," ",TABELA_PRECO!P117) -> 6.377072 | L118: =IF(TABELA_PRECO!Q117=" "," ",TABELA_PRECO!Q117) -> 4.16 | M118: =IF(TABELA_PRECO!R117=" "," ",TABELA_PRECO!R117) -> 2.47 | N118: =IF(TABELA_PRECO!T117=" "," ",TABELA_PRECO!T117) -> 0.8239177024 | O118: =IF(TABELA_PRECO!Y117=" "," ",TABELA_PRECO!Y117) -> 32.9104005 | P118: =IF(TABELA_PRECO!Z117=" "," ",TABELA_PRECO!Z117) -> 24.24242424 | Q118: =IF(TABELA_PRECO!AA117=" "," ",TABELA_PRECO!AA117) -> 196
A119: =IF(TABELA_PRECO!A118=" "," ",TABELA_PRECO!A118) -> 197 | B119: =IF(TABELA_PRECO!B118=" "," ",TABELA_PRECO!B118) -> FLANGE SOLD 40 MM | C119: =IF(TABELA_PRECO!C118=" "," ",TABELA_PRECO!C118) -> UN | D119: =IF(TABELA_PRECO!D118=" "," ",TABELA_PRECO!D118) -> HIDRÁULICO | E119: =IF(TABELA_PRECO!E118=" "," ",TABELA_PRECO!E118) -> KRONA / FORTLEV | F119: =IF(TABELA_PRECO!F118=" "," ",TABELA_PRECO!F118) -> 17 | G119: =IF(TABELA_PRECO!G118=" "," ",TABELA_PRECO!G118) -> 20.06 | H119: =IF(TABELA_PRECO!H118=" "," ",TABELA_PRECO!H118) -> 25.339248 | I119: =IF(TABELA_PRECO!I118=" "," ",TABELA_PRECO!I118) -> 22.44 | J119: =IF(TABELA_PRECO!J118=" "," ",TABELA_PRECO!J118) -> 20.647316 | K119: =IF(TABELA_PRECO!P118=" "," ",TABELA_PRECO!P118) -> 8.339248 | L119: =IF(TABELA_PRECO!Q118=" "," ",TABELA_PRECO!Q118) -> 5.44 | M119: =IF(TABELA_PRECO!R118=" "," ",TABELA_PRECO!R118) -> 3.23 | N119: =IF(TABELA_PRECO!T118=" "," ",TABELA_PRECO!T118) -> 1.077430842 | O119: =IF(TABELA_PRECO!Y118=" "," ",TABELA_PRECO!Y118) -> 32.9104005 | P119: =IF(TABELA_PRECO!Z118=" "," ",TABELA_PRECO!Z118) -> 24.24242424 | Q119: =IF(TABELA_PRECO!AA118=" "," ",TABELA_PRECO!AA118) -> 197
A120: =IF(TABELA_PRECO!A119=" "," ",TABELA_PRECO!A119) -> 198 | B120: =IF(TABELA_PRECO!B119=" "," ",TABELA_PRECO!B119) -> CURVA SOLD 90 32 MM | C120: =IF(TABELA_PRECO!C119=" "," ",TABELA_PRECO!C119) -> PC | D120: =IF(TABELA_PRECO!D119=" "," ",TABELA_PRECO!D119) -> HIDRÁULICO | E120: =IF(TABELA_PRECO!E119=" "," ",TABELA_PRECO!E119) -> KRONA / FORTLEV | F120: =IF(TABELA_PRECO!F119=" "," ",TABELA_PRECO!F119) -> 4.9 | G120: =IF(TABELA_PRECO!G119=" "," ",TABELA_PRECO!G119) -> 5.782 | H120: =IF(TABELA_PRECO!H119=" "," ",TABELA_PRECO!H119) -> 7.3036656 | I120: =IF(TABELA_PRECO!I119=" "," ",TABELA_PRECO!I119) -> 6.468 | J120: =IF(TABELA_PRECO!J119=" "," ",TABELA_PRECO!J119) -> 5.9512852 | K120: =IF(TABELA_PRECO!P119=" "," ",TABELA_PRECO!P119) -> 2.4036656 | L120: =IF(TABELA_PRECO!Q119=" "," ",TABELA_PRECO!Q119) -> 1.568 | M120: =IF(TABELA_PRECO!R119=" "," ",TABELA_PRECO!R119) -> 0.931 | N120: =IF(TABELA_PRECO!T119=" "," ",TABELA_PRECO!T119) -> 0.3105535955 | O120: =IF(TABELA_PRECO!Y119=" "," ",TABELA_PRECO!Y119) -> 32.9104005 | P120: =IF(TABELA_PRECO!Z119=" "," ",TABELA_PRECO!Z119) -> 24.24242424 | Q120: =IF(TABELA_PRECO!AA119=" "," ",TABELA_PRECO!AA119) -> 198
A121: =IF(TABELA_PRECO!A120=" "," ",TABELA_PRECO!A120) -> 199 | B121: =IF(TABELA_PRECO!B120=" "," ",TABELA_PRECO!B120) -> CURVA SOLD 90 25 MM | C121: =IF(TABELA_PRECO!C120=" "," ",TABELA_PRECO!C120) -> PC | D121: =IF(TABELA_PRECO!D120=" "," ",TABELA_PRECO!D120) -> HIDRÁULICO | E121: =IF(TABELA_PRECO!E120=" "," ",TABELA_PRECO!E120) -> KRONA / FORTLEV | F121: =IF(TABELA_PRECO!F120=" "," ",TABELA_PRECO!F120) -> 2.2 | G121: =IF(TABELA_PRECO!G120=" "," ",TABELA_PRECO!G120) -> 2.596 | H121: =IF(TABELA_PRECO!H120=" "," ",TABELA_PRECO!H120) -> 3.2791968 | I121: =IF(TABELA_PRECO!I120=" "," ",TABELA_PRECO!I120) -> 2.904 | J121: =IF(TABELA_PRECO!J120=" "," ",TABELA_PRECO!J120) -> 2.6720056 | K121: =IF(TABELA_PRECO!P120=" "," ",TABELA_PRECO!P120) -> 1.0791968 | L121: =IF(TABELA_PRECO!Q120=" "," ",TABELA_PRECO!Q120) -> 0.704 | M121: =IF(TABELA_PRECO!R120=" "," ",TABELA_PRECO!R120) -> 0.418 | N121: =IF(TABELA_PRECO!T120=" "," ",TABELA_PRECO!T120) -> 0.1394322266 | O121: =IF(TABELA_PRECO!Y120=" "," ",TABELA_PRECO!Y120) -> 32.9104005 | P121: =IF(TABELA_PRECO!Z120=" "," ",TABELA_PRECO!Z120) -> 24.24242424 | Q121: =IF(TABELA_PRECO!AA120=" "," ",TABELA_PRECO!AA120) -> 199
A122: =IF(TABELA_PRECO!A121=" "," ",TABELA_PRECO!A121) -> 200 | B122: =IF(TABELA_PRECO!B121=" "," ",TABELA_PRECO!B121) -> CAP SOLD 20 MM | C122: =IF(TABELA_PRECO!C121=" "," ",TABELA_PRECO!C121) -> UN | D122: =IF(TABELA_PRECO!D121=" "," ",TABELA_PRECO!D121) -> HIDRÁULICO | E122: =IF(TABELA_PRECO!E121=" "," ",TABELA_PRECO!E121) -> KRONA / FORTLEV | F122: =IF(TABELA_PRECO!F121=" "," ",TABELA_PRECO!F121) -> 0.6 | G122: =IF(TABELA_PRECO!G121=" "," ",TABELA_PRECO!G121) -> 0.708 | H122: =IF(TABELA_PRECO!H121=" "," ",TABELA_PRECO!H121) -> 0.8943264 | I122: =IF(TABELA_PRECO!I121=" "," ",TABELA_PRECO!I121) -> 0.792 | J122: =IF(TABELA_PRECO!J121=" "," ",TABELA_PRECO!J121) -> 0.7287288 | K122: =IF(TABELA_PRECO!P121=" "," ",TABELA_PRECO!P121) -> 0.2943264 | L122: =IF(TABELA_PRECO!Q121=" "," ",TABELA_PRECO!Q121) -> 0.192 | M122: =IF(TABELA_PRECO!R121=" "," ",TABELA_PRECO!R121) -> 0.114 | N122: =IF(TABELA_PRECO!T121=" "," ",TABELA_PRECO!T121) -> 0.03802697088 | O122: =IF(TABELA_PRECO!Y121=" "," ",TABELA_PRECO!Y121) -> 32.9104005 | P122: =IF(TABELA_PRECO!Z121=" "," ",TABELA_PRECO!Z121) -> 24.24242424 | Q122: =IF(TABELA_PRECO!AA121=" "," ",TABELA_PRECO!AA121) -> 200
A123: =IF(TABELA_PRECO!A122=" "," ",TABELA_PRECO!A122) -> 201 | B123: =IF(TABELA_PRECO!B122=" "," ",TABELA_PRECO!B122) -> CAP SOLD 25MM | C123: =IF(TABELA_PRECO!C122=" "," ",TABELA_PRECO!C122) -> UN | D123: =IF(TABELA_PRECO!D122=" "," ",TABELA_PRECO!D122) -> HIDRÁULICO | E123: =IF(TABELA_PRECO!E122=" "," ",TABELA_PRECO!E122) -> KRONA / FORTLEV | F123: =IF(TABELA_PRECO!F122=" "," ",TABELA_PRECO!F122) -> 0.75 | G123: =IF(TABELA_PRECO!G122=" "," ",TABELA_PRECO!G122) -> 0.885 | H123: =IF(TABELA_PRECO!H122=" "," ",TABELA_PRECO!H122) -> 1.117908 | I123: =IF(TABELA_PRECO!I122=" "," ",TABELA_PRECO!I122) -> 0.99 | J123: =IF(TABELA_PRECO!J122=" "," ",TABELA_PRECO!J122) -> 0.910911 | K123: =IF(TABELA_PRECO!P122=" "," ",TABELA_PRECO!P122) -> 0.367908 | L123: =IF(TABELA_PRECO!Q122=" "," ",TABELA_PRECO!Q122) -> 0.24 | M123: =IF(TABELA_PRECO!R122=" "," ",TABELA_PRECO!R122) -> 0.1425 | N123: =IF(TABELA_PRECO!T122=" "," ",TABELA_PRECO!T122) -> 0.0475337136 | O123: =IF(TABELA_PRECO!Y122=" "," ",TABELA_PRECO!Y122) -> 32.9104005 | P123: =IF(TABELA_PRECO!Z122=" "," ",TABELA_PRECO!Z122) -> 24.24242424 | Q123: =IF(TABELA_PRECO!AA122=" "," ",TABELA_PRECO!AA122) -> 201
A124: =IF(TABELA_PRECO!A123=" "," ",TABELA_PRECO!A123) -> 202 | B124: =IF(TABELA_PRECO!B123=" "," ",TABELA_PRECO!B123) -> CAP SOLD 40 MM | C124: =IF(TABELA_PRECO!C123=" "," ",TABELA_PRECO!C123) -> UN | D124: =IF(TABELA_PRECO!D123=" "," ",TABELA_PRECO!D123) -> HIDRÁULICO | E124: =IF(TABELA_PRECO!E123=" "," ",TABELA_PRECO!E123) -> KRONA / FORTLEV | F124: =IF(TABELA_PRECO!F123=" "," ",TABELA_PRECO!F123) -> 2.25 | G124: =IF(TABELA_PRECO!G123=" "," ",TABELA_PRECO!G123) -> 2.655 | H124: =IF(TABELA_PRECO!H123=" "," ",TABELA_PRECO!H123) -> 3.353724 | I124: =IF(TABELA_PRECO!I123=" "," ",TABELA_PRECO!I123) -> 2.97 | J124: =IF(TABELA_PRECO!J123=" "," ",TABELA_PRECO!J123) -> 2.732733 | K124: =IF(TABELA_PRECO!P123=" "," ",TABELA_PRECO!P123) -> 1.103724 | L124: =IF(TABELA_PRECO!Q123=" "," ",TABELA_PRECO!Q123) -> 0.72 | M124: =IF(TABELA_PRECO!R123=" "," ",TABELA_PRECO!R123) -> 0.4275 | N124: =IF(TABELA_PRECO!T123=" "," ",TABELA_PRECO!T123) -> 0.1426011408 | O124: =IF(TABELA_PRECO!Y123=" "," ",TABELA_PRECO!Y123) -> 32.9104005 | P124: =IF(TABELA_PRECO!Z123=" "," ",TABELA_PRECO!Z123) -> 24.24242424 | Q124: =IF(TABELA_PRECO!AA123=" "," ",TABELA_PRECO!AA123) -> 202
A125: =IF(TABELA_PRECO!A124=" "," ",TABELA_PRECO!A124) -> 203 | B125: =IF(TABELA_PRECO!B124=" "," ",TABELA_PRECO!B124) -> PECA DE TRANSICAO AMARELA 22 X 22 | C125: =IF(TABELA_PRECO!C124=" "," ",TABELA_PRECO!C124) -> UN | D125: =IF(TABELA_PRECO!D124=" "," ",TABELA_PRECO!D124) -> HIDRÁULICO | E125: =IF(TABELA_PRECO!E124=" "," ",TABELA_PRECO!E124) -> LUBING | F125: =IF(TABELA_PRECO!F124=" "," ",TABELA_PRECO!F124) -> 6.11 | G125: =IF(TABELA_PRECO!G124=" "," ",TABELA_PRECO!G124) -> 7.2098 | H125: =IF(TABELA_PRECO!H124=" "," ",TABELA_PRECO!H124) -> 9.10722384 | I125: =IF(TABELA_PRECO!I124=" "," ",TABELA_PRECO!I124) -> 8.0652 | J125: =IF(TABELA_PRECO!J124=" "," ",TABELA_PRECO!J124) -> 7.42088828 | K125: =IF(TABELA_PRECO!P124=" "," ",TABELA_PRECO!P124) -> 2.99722384 | L125: =IF(TABELA_PRECO!Q124=" "," ",TABELA_PRECO!Q124) -> 1.9552 | M125: =IF(TABELA_PRECO!R124=" "," ",TABELA_PRECO!R124) -> 1.1609 | N125: =IF(TABELA_PRECO!T124=" "," ",TABELA_PRECO!T124) -> 0.3872413201 | O125: =IF(TABELA_PRECO!Y124=" "," ",TABELA_PRECO!Y124) -> 32.9104005 | P125: =IF(TABELA_PRECO!Z124=" "," ",TABELA_PRECO!Z124) -> 24.24242424 | Q125: =IF(TABELA_PRECO!AA124=" "," ",TABELA_PRECO!AA124) -> 203
A126: =IF(TABELA_PRECO!A125=" "," ",TABELA_PRECO!A125) -> 204 | B126: =IF(TABELA_PRECO!B125=" "," ",TABELA_PRECO!B125) -> COTOVELO TUBO QUADRADO 22X 22 | C126: =IF(TABELA_PRECO!C125=" "," ",TABELA_PRECO!C125) -> UN | D126: =IF(TABELA_PRECO!D125=" "," ",TABELA_PRECO!D125) -> HIDRÁULICO | E126: =IF(TABELA_PRECO!E125=" "," ",TABELA_PRECO!E125) -> LUBING | F126: =IF(TABELA_PRECO!F125=" "," ",TABELA_PRECO!F125) -> 6.95 | G126: =IF(TABELA_PRECO!G125=" "," ",TABELA_PRECO!G125) -> 8.201 | H126: =IF(TABELA_PRECO!H125=" "," ",TABELA_PRECO!H125) -> 10.3592808 | I126: =IF(TABELA_PRECO!I125=" "," ",TABELA_PRECO!I125) -> 9.174 | J126: =IF(TABELA_PRECO!J125=" "," ",TABELA_PRECO!J125) -> 8.4411086 | K126: =IF(TABELA_PRECO!P125=" "," ",TABELA_PRECO!P125) -> 3.4092808 | L126: =IF(TABELA_PRECO!Q125=" "," ",TABELA_PRECO!Q125) -> 2.224 | M126: =IF(TABELA_PRECO!R125=" "," ",TABELA_PRECO!R125) -> 1.3205 | N126: =IF(TABELA_PRECO!T125=" "," ",TABELA_PRECO!T125) -> 0.4404790794 | O126: =IF(TABELA_PRECO!Y125=" "," ",TABELA_PRECO!Y125) -> 32.9104005 | P126: =IF(TABELA_PRECO!Z125=" "," ",TABELA_PRECO!Z125) -> 24.24242424 | Q126: =IF(TABELA_PRECO!AA125=" "," ",TABELA_PRECO!AA125) -> 204
A127: =IF(TABELA_PRECO!A126=" "," ",TABELA_PRECO!A126) -> 205 | B127: =IF(TABELA_PRECO!B126=" "," ",TABELA_PRECO!B126) -> CURVA DE TRANSPOSICAO 20MM | C127: =IF(TABELA_PRECO!C126=" "," ",TABELA_PRECO!C126) -> UN | D127: =IF(TABELA_PRECO!D126=" "," ",TABELA_PRECO!D126) -> HIDRÁULICO | E127: =IF(TABELA_PRECO!E126=" "," ",TABELA_PRECO!E126) -> KRONA / FORTLEV | F127: =IF(TABELA_PRECO!F126=" "," ",TABELA_PRECO!F126) -> 2.33 | G127: =IF(TABELA_PRECO!G126=" "," ",TABELA_PRECO!G126) -> 2.7494 | H127: =IF(TABELA_PRECO!H126=" "," ",TABELA_PRECO!H126) -> 3.47296752 | I127: =IF(TABELA_PRECO!I126=" "," ",TABELA_PRECO!I126) -> 3.0756 | J127: =IF(TABELA_PRECO!J126=" "," ",TABELA_PRECO!J126) -> 2.82989684 | K127: =IF(TABELA_PRECO!P126=" "," ",TABELA_PRECO!P126) -> 1.14296752 | L127: =IF(TABELA_PRECO!Q126=" "," ",TABELA_PRECO!Q126) -> 0.7456 | M127: =IF(TABELA_PRECO!R126=" "," ",TABELA_PRECO!R126) -> 0.4427 | N127: =IF(TABELA_PRECO!T126=" "," ",TABELA_PRECO!T126) -> 0.1476714036 | O127: =IF(TABELA_PRECO!Y126=" "," ",TABELA_PRECO!Y126) -> 32.9104005 | P127: =IF(TABELA_PRECO!Z126=" "," ",TABELA_PRECO!Z126) -> 24.24242424 | Q127: =IF(TABELA_PRECO!AA126=" "," ",TABELA_PRECO!AA126) -> 205
A128: =IF(TABELA_PRECO!A127=" "," ",TABELA_PRECO!A127) -> 206 | B128: =IF(TABELA_PRECO!B127=" "," ",TABELA_PRECO!B127) -> PECA DE TRANSICAO TUBO QUADRADO 25 | C128: =IF(TABELA_PRECO!C127=" "," ",TABELA_PRECO!C127) -> UN | D128: =IF(TABELA_PRECO!D127=" "," ",TABELA_PRECO!D127) -> HIDRÁULICO | E128: =IF(TABELA_PRECO!E127=" "," ",TABELA_PRECO!E127) -> LUBING | F128: =IF(TABELA_PRECO!F127=" "," ",TABELA_PRECO!F127) -> 1.57 | G128: =IF(TABELA_PRECO!G127=" "," ",TABELA_PRECO!G127) -> 1.8526 | H128: =IF(TABELA_PRECO!H127=" "," ",TABELA_PRECO!H127) -> 2.34015408 | I128: =IF(TABELA_PRECO!I127=" "," ",TABELA_PRECO!I127) -> 2.0724 | J128: =IF(TABELA_PRECO!J127=" "," ",TABELA_PRECO!J127) -> 1.90684036 | K128: =IF(TABELA_PRECO!P127=" "," ",TABELA_PRECO!P127) -> 0.77015408 | L128: =IF(TABELA_PRECO!Q127=" "," ",TABELA_PRECO!Q127) -> 0.5024 | M128: =IF(TABELA_PRECO!R127=" "," ",TABELA_PRECO!R127) -> 0.2983 | N128: =IF(TABELA_PRECO!T127=" "," ",TABELA_PRECO!T127) -> 0.09950390714 | O128: =IF(TABELA_PRECO!Y127=" "," ",TABELA_PRECO!Y127) -> 32.9104005 | P128: =IF(TABELA_PRECO!Z127=" "," ",TABELA_PRECO!Z127) -> 24.24242424 | Q128: =IF(TABELA_PRECO!AA127=" "," ",TABELA_PRECO!AA127) -> 206
A129: =IF(TABELA_PRECO!A128=" "," ",TABELA_PRECO!A128) -> 207 | B129: =IF(TABELA_PRECO!B128=" "," ",TABELA_PRECO!B128) -> CONEXAO TUBO QUADRADO 22 X 22 | C129: =IF(TABELA_PRECO!C128=" "," ",TABELA_PRECO!C128) -> UN | D129: =IF(TABELA_PRECO!D128=" "," ",TABELA_PRECO!D128) -> EQUIPAMENTOS BIG DUTCHMAN | E129: =IF(TABELA_PRECO!E128=" "," ",TABELA_PRECO!E128) -> LUBING | F129: =IF(TABELA_PRECO!F128=" "," ",TABELA_PRECO!F128) -> 1.15 | G129: =IF(TABELA_PRECO!G128=" "," ",TABELA_PRECO!G128) -> 1.357 | H129: =IF(TABELA_PRECO!H128=" "," ",TABELA_PRECO!H128) -> 1.7141256 | I129: =IF(TABELA_PRECO!I128=" "," ",TABELA_PRECO!I128) -> 1.518 | J129: =IF(TABELA_PRECO!J128=" "," ",TABELA_PRECO!J128) -> 1.3967302 | K129: =IF(TABELA_PRECO!P128=" "," ",TABELA_PRECO!P128) -> 0.5641256 | L129: =IF(TABELA_PRECO!Q128=" "," ",TABELA_PRECO!Q128) -> 0.368 | M129: =IF(TABELA_PRECO!R128=" "," ",TABELA_PRECO!R128) -> 0.2185 | N129: =IF(TABELA_PRECO!T128=" "," ",TABELA_PRECO!T128) -> 0.07288502752 | O129: =IF(TABELA_PRECO!Y128=" "," ",TABELA_PRECO!Y128) -> 32.9104005 | P129: =IF(TABELA_PRECO!Z128=" "," ",TABELA_PRECO!Z128) -> 24.24242424 | Q129: =IF(TABELA_PRECO!AA128=" "," ",TABELA_PRECO!AA128) -> 207
A130: =IF(TABELA_PRECO!A129=" "," ",TABELA_PRECO!A129) -> 208 | B130: =IF(TABELA_PRECO!B129=" "," ",TABELA_PRECO!B129) -> PECA DE TRANSICAO QUADRADA P/REDONDA 22 X 22 | C130: =IF(TABELA_PRECO!C129=" "," ",TABELA_PRECO!C129) -> PC | D130: =IF(TABELA_PRECO!D129=" "," ",TABELA_PRECO!D129) -> HIDRÁULICO | E130: =IF(TABELA_PRECO!E129=" "," ",TABELA_PRECO!E129) -> 18258 | F130: =IF(TABELA_PRECO!F129=" "," ",TABELA_PRECO!F129) -> 22 | G130: =IF(TABELA_PRECO!G129=" "," ",TABELA_PRECO!G129) -> 25.96 | H130: =IF(TABELA_PRECO!H129=" "," ",TABELA_PRECO!H129) -> 32.791968 | I130: =IF(TABELA_PRECO!I129=" "," ",TABELA_PRECO!I129) -> 29.04 | J130: =IF(TABELA_PRECO!J129=" "," ",TABELA_PRECO!J129) -> 26.720056 | K130: =IF(TABELA_PRECO!P129=" "," ",TABELA_PRECO!P129) -> 10.791968 | L130: =IF(TABELA_PRECO!Q129=" "," ",TABELA_PRECO!Q129) -> 7.04 | M130: =IF(TABELA_PRECO!R129=" "," ",TABELA_PRECO!R129) -> 4.18 | N130: =IF(TABELA_PRECO!T129=" "," ",TABELA_PRECO!T129) -> 1.394322266 | O130: =IF(TABELA_PRECO!Y129=" "," ",TABELA_PRECO!Y129) -> 32.9104005 | P130: =IF(TABELA_PRECO!Z129=" "," ",TABELA_PRECO!Z129) -> 24.24242424 | Q130: =IF(TABELA_PRECO!AA129=" "," ",TABELA_PRECO!AA129) -> 208
A131: =IF(TABELA_PRECO!A130=" "," ",TABELA_PRECO!A130) -> 209 | B131: =IF(TABELA_PRECO!B130=" "," ",TABELA_PRECO!B130) -> PECA DE TRANSICAO TUBO QUADRADO 3/4 | C131: =IF(TABELA_PRECO!C130=" "," ",TABELA_PRECO!C130) -> PC | D131: =IF(TABELA_PRECO!D130=" "," ",TABELA_PRECO!D130) -> HIDRÁULICO | E131: =IF(TABELA_PRECO!E130=" "," ",TABELA_PRECO!E130) -> LUBING | F131: =IF(TABELA_PRECO!F130=" "," ",TABELA_PRECO!F130) -> 1.98 | G131: =IF(TABELA_PRECO!G130=" "," ",TABELA_PRECO!G130) -> 2.3364 | H131: =IF(TABELA_PRECO!H130=" "," ",TABELA_PRECO!H130) -> 2.95127712 | I131: =IF(TABELA_PRECO!I130=" "," ",TABELA_PRECO!I130) -> 2.6136 | J131: =IF(TABELA_PRECO!J130=" "," ",TABELA_PRECO!J130) -> 2.40480504 | K131: =IF(TABELA_PRECO!P130=" "," ",TABELA_PRECO!P130) -> 0.97127712 | L131: =IF(TABELA_PRECO!Q130=" "," ",TABELA_PRECO!Q130) -> 0.6336 | M131: =IF(TABELA_PRECO!R130=" "," ",TABELA_PRECO!R130) -> 0.3762 | N131: =IF(TABELA_PRECO!T130=" "," ",TABELA_PRECO!T130) -> 0.1254890039 | O131: =IF(TABELA_PRECO!Y130=" "," ",TABELA_PRECO!Y130) -> 32.9104005 | P131: =IF(TABELA_PRECO!Z130=" "," ",TABELA_PRECO!Z130) -> 24.24242424 | Q131: =IF(TABELA_PRECO!AA130=" "," ",TABELA_PRECO!AA130) -> 209
A132: =IF(TABELA_PRECO!A131=" "," ",TABELA_PRECO!A131) -> 210 | B132: =IF(TABELA_PRECO!B131=" "," ",TABELA_PRECO!B131) -> JOELHO SOLD 90 50 MM | C132: =IF(TABELA_PRECO!C131=" "," ",TABELA_PRECO!C131) -> UN | D132: =IF(TABELA_PRECO!D131=" "," ",TABELA_PRECO!D131) -> HIDRÁULICO | E132: =IF(TABELA_PRECO!E131=" "," ",TABELA_PRECO!E131) -> KRONA / FORTLEV | F132: =IF(TABELA_PRECO!F131=" "," ",TABELA_PRECO!F131) -> 3.25 | G132: =IF(TABELA_PRECO!G131=" "," ",TABELA_PRECO!G131) -> 3.835 | H132: =IF(TABELA_PRECO!H131=" "," ",TABELA_PRECO!H131) -> 4.844268 | I132: =IF(TABELA_PRECO!I131=" "," ",TABELA_PRECO!I131) -> 4.29 | J132: =IF(TABELA_PRECO!J131=" "," ",TABELA_PRECO!J131) -> 3.947281 | K132: =IF(TABELA_PRECO!P131=" "," ",TABELA_PRECO!P131) -> 1.594268 | L132: =IF(TABELA_PRECO!Q131=" "," ",TABELA_PRECO!Q131) -> 1.04 | M132: =IF(TABELA_PRECO!R131=" "," ",TABELA_PRECO!R131) -> 0.6175 | N132: =IF(TABELA_PRECO!T131=" "," ",TABELA_PRECO!T131) -> 0.2059794256 | O132: =IF(TABELA_PRECO!Y131=" "," ",TABELA_PRECO!Y131) -> 32.9104005 | P132: =IF(TABELA_PRECO!Z131=" "," ",TABELA_PRECO!Z131) -> 24.24242424 | Q132: =IF(TABELA_PRECO!AA131=" "," ",TABELA_PRECO!AA131) -> 210
A133: =IF(TABELA_PRECO!A132=" "," ",TABELA_PRECO!A132) -> 211 | B133: =IF(TABELA_PRECO!B132=" "," ",TABELA_PRECO!B132) -> JOELHO SOLD 90 40 MM | C133: =IF(TABELA_PRECO!C132=" "," ",TABELA_PRECO!C132) -> UN | D133: =IF(TABELA_PRECO!D132=" "," ",TABELA_PRECO!D132) -> HIDRÁULICO | E133: =IF(TABELA_PRECO!E132=" "," ",TABELA_PRECO!E132) -> KRONA / FORTLEV | F133: =IF(TABELA_PRECO!F132=" "," ",TABELA_PRECO!F132) -> 3.45 | G133: =IF(TABELA_PRECO!G132=" "," ",TABELA_PRECO!G132) -> 4.071 | H133: =IF(TABELA_PRECO!H132=" "," ",TABELA_PRECO!H132) -> 5.1423768 | I133: =IF(TABELA_PRECO!I132=" "," ",TABELA_PRECO!I132) -> 4.554 | J133: =IF(TABELA_PRECO!J132=" "," ",TABELA_PRECO!J132) -> 4.1901906 | K133: =IF(TABELA_PRECO!P132=" "," ",TABELA_PRECO!P132) -> 1.6923768 | L133: =IF(TABELA_PRECO!Q132=" "," ",TABELA_PRECO!Q132) -> 1.104 | M133: =IF(TABELA_PRECO!R132=" "," ",TABELA_PRECO!R132) -> 0.6555 | N133: =IF(TABELA_PRECO!T132=" "," ",TABELA_PRECO!T132) -> 0.2186550826 | O133: =IF(TABELA_PRECO!Y132=" "," ",TABELA_PRECO!Y132) -> 32.9104005 | P133: =IF(TABELA_PRECO!Z132=" "," ",TABELA_PRECO!Z132) -> 24.24242424 | Q133: =IF(TABELA_PRECO!AA132=" "," ",TABELA_PRECO!AA132) -> 211
A134: =IF(TABELA_PRECO!A133=" "," ",TABELA_PRECO!A133) -> 212 | B134: =IF(TABELA_PRECO!B133=" "," ",TABELA_PRECO!B133) -> JOELHO SOLD 90 20 MM | C134: =IF(TABELA_PRECO!C133=" "," ",TABELA_PRECO!C133) -> UN | D134: =IF(TABELA_PRECO!D133=" "," ",TABELA_PRECO!D133) -> HIDRÁULICO | E134: =IF(TABELA_PRECO!E133=" "," ",TABELA_PRECO!E133) -> KRONA / FORTLEV | F134: =IF(TABELA_PRECO!F133=" "," ",TABELA_PRECO!F133) -> 0.4 | G134: =IF(TABELA_PRECO!G133=" "," ",TABELA_PRECO!G133) -> 0.472 | H134: =IF(TABELA_PRECO!H133=" "," ",TABELA_PRECO!H133) -> 0.5962176 | I134: =IF(TABELA_PRECO!I133=" "," ",TABELA_PRECO!I133) -> 0.528 | J134: =IF(TABELA_PRECO!J133=" "," ",TABELA_PRECO!J133) -> 0.4858192 | K134: =IF(TABELA_PRECO!P133=" "," ",TABELA_PRECO!P133) -> 0.1962176 | L134: =IF(TABELA_PRECO!Q133=" "," ",TABELA_PRECO!Q133) -> 0.128 | M134: =IF(TABELA_PRECO!R133=" "," ",TABELA_PRECO!R133) -> 0.076 | N134: =IF(TABELA_PRECO!T133=" "," ",TABELA_PRECO!T133) -> 0.02535131392 | O134: =IF(TABELA_PRECO!Y133=" "," ",TABELA_PRECO!Y133) -> 32.9104005 | P134: =IF(TABELA_PRECO!Z133=" "," ",TABELA_PRECO!Z133) -> 24.24242424 | Q134: =IF(TABELA_PRECO!AA133=" "," ",TABELA_PRECO!AA133) -> 212
A135: =IF(TABELA_PRECO!A134=" "," ",TABELA_PRECO!A134) -> 213 | B135: =IF(TABELA_PRECO!B134=" "," ",TABELA_PRECO!B134) -> JOELHO SOLD 45 50 MM | C135: =IF(TABELA_PRECO!C134=" "," ",TABELA_PRECO!C134) -> UN | D135: =IF(TABELA_PRECO!D134=" "," ",TABELA_PRECO!D134) -> HIDRÁULICO | E135: =IF(TABELA_PRECO!E134=" "," ",TABELA_PRECO!E134) -> KRONA / FORTLEV | F135: =IF(TABELA_PRECO!F134=" "," ",TABELA_PRECO!F134) -> 5.25 | G135: =IF(TABELA_PRECO!G134=" "," ",TABELA_PRECO!G134) -> 6.195 | H135: =IF(TABELA_PRECO!H134=" "," ",TABELA_PRECO!H134) -> 7.825356 | I135: =IF(TABELA_PRECO!I134=" "," ",TABELA_PRECO!I134) -> 6.93 | J135: =IF(TABELA_PRECO!J134=" "," ",TABELA_PRECO!J134) -> 6.376377 | K135: =IF(TABELA_PRECO!P134=" "," ",TABELA_PRECO!P134) -> 2.575356 | L135: =IF(TABELA_PRECO!Q134=" "," ",TABELA_PRECO!Q134) -> 1.68 | M135: =IF(TABELA_PRECO!R134=" "," ",TABELA_PRECO!R134) -> 0.9975 | N135: =IF(TABELA_PRECO!T134=" "," ",TABELA_PRECO!T134) -> 0.3327359952 | O135: =IF(TABELA_PRECO!Y134=" "," ",TABELA_PRECO!Y134) -> 32.9104005 | P135: =IF(TABELA_PRECO!Z134=" "," ",TABELA_PRECO!Z134) -> 24.24242424 | Q135: =IF(TABELA_PRECO!AA134=" "," ",TABELA_PRECO!AA134) -> 213
A136: =IF(TABELA_PRECO!A135=" "," ",TABELA_PRECO!A135) -> 214 | B136: =IF(TABELA_PRECO!B135=" "," ",TABELA_PRECO!B135) -> TE SOLD 20 MM | C136: =IF(TABELA_PRECO!C135=" "," ",TABELA_PRECO!C135) -> UN | D136: =IF(TABELA_PRECO!D135=" "," ",TABELA_PRECO!D135) -> HIDRÁULICO | E136: =IF(TABELA_PRECO!E135=" "," ",TABELA_PRECO!E135) -> KRONA / FORTLEV | F136: =IF(TABELA_PRECO!F135=" "," ",TABELA_PRECO!F135) -> 0.6 | G136: =IF(TABELA_PRECO!G135=" "," ",TABELA_PRECO!G135) -> 0.708 | H136: =IF(TABELA_PRECO!H135=" "," ",TABELA_PRECO!H135) -> 0.8943264 | I136: =IF(TABELA_PRECO!I135=" "," ",TABELA_PRECO!I135) -> 0.792 | J136: =IF(TABELA_PRECO!J135=" "," ",TABELA_PRECO!J135) -> 0.7287288 | K136: =IF(TABELA_PRECO!P135=" "," ",TABELA_PRECO!P135) -> 0.2943264 | L136: =IF(TABELA_PRECO!Q135=" "," ",TABELA_PRECO!Q135) -> 0.192 | M136: =IF(TABELA_PRECO!R135=" "," ",TABELA_PRECO!R135) -> 0.114 | N136: =IF(TABELA_PRECO!T135=" "," ",TABELA_PRECO!T135) -> 0.03802697088 | O136: =IF(TABELA_PRECO!Y135=" "," ",TABELA_PRECO!Y135) -> 32.9104005 | P136: =IF(TABELA_PRECO!Z135=" "," ",TABELA_PRECO!Z135) -> 24.24242424 | Q136: =IF(TABELA_PRECO!AA135=" "," ",TABELA_PRECO!AA135) -> 214
A137: =IF(TABELA_PRECO!A136=" "," ",TABELA_PRECO!A136) -> 215 | B137: =IF(TABELA_PRECO!B136=" "," ",TABELA_PRECO!B136) -> TE SOLD 40MM | C137: =IF(TABELA_PRECO!C136=" "," ",TABELA_PRECO!C136) -> UN | D137: =IF(TABELA_PRECO!D136=" "," ",TABELA_PRECO!D136) -> HIDRÁULICO | E137: =IF(TABELA_PRECO!E136=" "," ",TABELA_PRECO!E136) -> KRONA / FORTLEV | F137: =IF(TABELA_PRECO!F136=" "," ",TABELA_PRECO!F136) -> 6.95 | G137: =IF(TABELA_PRECO!G136=" "," ",TABELA_PRECO!G136) -> 8.201 | H137: =IF(TABELA_PRECO!H136=" "," ",TABELA_PRECO!H136) -> 10.3592808 | I137: =IF(TABELA_PRECO!I136=" "," ",TABELA_PRECO!I136) -> 9.174 | J137: =IF(TABELA_PRECO!J136=" "," ",TABELA_PRECO!J136) -> 8.4411086 | K137: =IF(TABELA_PRECO!P136=" "," ",TABELA_PRECO!P136) -> 3.4092808 | L137: =IF(TABELA_PRECO!Q136=" "," ",TABELA_PRECO!Q136) -> 2.224 | M137: =IF(TABELA_PRECO!R136=" "," ",TABELA_PRECO!R136) -> 1.3205 | N137: =IF(TABELA_PRECO!T136=" "," ",TABELA_PRECO!T136) -> 0.4404790794 | O137: =IF(TABELA_PRECO!Y136=" "," ",TABELA_PRECO!Y136) -> 32.9104005 | P137: =IF(TABELA_PRECO!Z136=" "," ",TABELA_PRECO!Z136) -> 24.24242424 | Q137: =IF(TABELA_PRECO!AA136=" "," ",TABELA_PRECO!AA136) -> 215
A138: =IF(TABELA_PRECO!A137=" "," ",TABELA_PRECO!A137) -> 216 | B138: =IF(TABELA_PRECO!B137=" "," ",TABELA_PRECO!B137) -> TE SOLD 25 MM | C138: =IF(TABELA_PRECO!C137=" "," ",TABELA_PRECO!C137) -> UN | D138: =IF(TABELA_PRECO!D137=" "," ",TABELA_PRECO!D137) -> HIDRÁULICO | E138: =IF(TABELA_PRECO!E137=" "," ",TABELA_PRECO!E137) -> KRONA / FORTLEV | F138: =IF(TABELA_PRECO!F137=" "," ",TABELA_PRECO!F137) -> 0.65 | G138: =IF(TABELA_PRECO!G137=" "," ",TABELA_PRECO!G137) -> 0.767 | H138: =IF(TABELA_PRECO!H137=" "," ",TABELA_PRECO!H137) -> 0.9688536 | I138: =IF(TABELA_PRECO!I137=" "," ",TABELA_PRECO!I137) -> 0.858 | J138: =IF(TABELA_PRECO!J137=" "," ",TABELA_PRECO!J137) -> 0.7894562 | K138: =IF(TABELA_PRECO!P137=" "," ",TABELA_PRECO!P137) -> 0.3188536 | L138: =IF(TABELA_PRECO!Q137=" "," ",TABELA_PRECO!Q137) -> 0.208 | M138: =IF(TABELA_PRECO!R137=" "," ",TABELA_PRECO!R137) -> 0.1235 | N138: =IF(TABELA_PRECO!T137=" "," ",TABELA_PRECO!T137) -> 0.04119588512 | O138: =IF(TABELA_PRECO!Y137=" "," ",TABELA_PRECO!Y137) -> 32.9104005 | P138: =IF(TABELA_PRECO!Z137=" "," ",TABELA_PRECO!Z137) -> 24.24242424 | Q138: =IF(TABELA_PRECO!AA137=" "," ",TABELA_PRECO!AA137) -> 216
A139: =IF(TABELA_PRECO!A138=" "," ",TABELA_PRECO!A138) -> 217 | B139: =IF(TABELA_PRECO!B138=" "," ",TABELA_PRECO!B138) -> LUVA L/R 25 X 3/4 | C139: =IF(TABELA_PRECO!C138=" "," ",TABELA_PRECO!C138) -> UN | D139: =IF(TABELA_PRECO!D138=" "," ",TABELA_PRECO!D138) -> HIDRÁULICO | E139: =IF(TABELA_PRECO!E138=" "," ",TABELA_PRECO!E138) -> KRONA / FORTLEV | F139: =IF(TABELA_PRECO!F138=" "," ",TABELA_PRECO!F138) -> 1.2 | G139: =IF(TABELA_PRECO!G138=" "," ",TABELA_PRECO!G138) -> 1.416 | H139: =IF(TABELA_PRECO!H138=" "," ",TABELA_PRECO!H138) -> 1.7886528 | I139: =IF(TABELA_PRECO!I138=" "," ",TABELA_PRECO!I138) -> 1.584 | J139: =IF(TABELA_PRECO!J138=" "," ",TABELA_PRECO!J138) -> 1.4574576 | K139: =IF(TABELA_PRECO!P138=" "," ",TABELA_PRECO!P138) -> 0.5886528 | L139: =IF(TABELA_PRECO!Q138=" "," ",TABELA_PRECO!Q138) -> 0.384 | M139: =IF(TABELA_PRECO!R138=" "," ",TABELA_PRECO!R138) -> 0.228 | N139: =IF(TABELA_PRECO!T138=" "," ",TABELA_PRECO!T138) -> 0.07605394176 | O139: =IF(TABELA_PRECO!Y138=" "," ",TABELA_PRECO!Y138) -> 32.9104005 | P139: =IF(TABELA_PRECO!Z138=" "," ",TABELA_PRECO!Z138) -> 24.24242424 | Q139: =IF(TABELA_PRECO!AA138=" "," ",TABELA_PRECO!AA138) -> 217
A140: =IF(TABELA_PRECO!A139=" "," ",TABELA_PRECO!A139) -> 218 | B140: =IF(TABELA_PRECO!B139=" "," ",TABELA_PRECO!B139) -> LUVA L/R 25 X 1/2 | C140: =IF(TABELA_PRECO!C139=" "," ",TABELA_PRECO!C139) -> PC | D140: =IF(TABELA_PRECO!D139=" "," ",TABELA_PRECO!D139) -> HIDRÁULICO | E140: =IF(TABELA_PRECO!E139=" "," ",TABELA_PRECO!E139) -> KRONA / FORTLEV | F140: =IF(TABELA_PRECO!F139=" "," ",TABELA_PRECO!F139) -> 1.55 | G140: =IF(TABELA_PRECO!G139=" "," ",TABELA_PRECO!G139) -> 1.829 | H140: =IF(TABELA_PRECO!H139=" "," ",TABELA_PRECO!H139) -> 2.3103432 | I140: =IF(TABELA_PRECO!I139=" "," ",TABELA_PRECO!I139) -> 2.046 | J140: =IF(TABELA_PRECO!J139=" "," ",TABELA_PRECO!J139) -> 1.8825494 | K140: =IF(TABELA_PRECO!P139=" "," ",TABELA_PRECO!P139) -> 0.7603432 | L140: =IF(TABELA_PRECO!Q139=" "," ",TABELA_PRECO!Q139) -> 0.496 | M140: =IF(TABELA_PRECO!R139=" "," ",TABELA_PRECO!R139) -> 0.2945 | N140: =IF(TABELA_PRECO!T139=" "," ",TABELA_PRECO!T139) -> 0.09823634144 | O140: =IF(TABELA_PRECO!Y139=" "," ",TABELA_PRECO!Y139) -> 32.9104005 | P140: =IF(TABELA_PRECO!Z139=" "," ",TABELA_PRECO!Z139) -> 24.24242424 | Q140: =IF(TABELA_PRECO!AA139=" "," ",TABELA_PRECO!AA139) -> 218
A141: =IF(TABELA_PRECO!A140=" "," ",TABELA_PRECO!A140) -> 219 | B141: =IF(TABELA_PRECO!B140=" "," ",TABELA_PRECO!B140) -> LUVA SOLD 20 MM | C141: =IF(TABELA_PRECO!C140=" "," ",TABELA_PRECO!C140) -> PC | D141: =IF(TABELA_PRECO!D140=" "," ",TABELA_PRECO!D140) -> HIDRÁULICO | E141: =IF(TABELA_PRECO!E140=" "," ",TABELA_PRECO!E140) -> KRONA / FORTLEV | F141: =IF(TABELA_PRECO!F140=" "," ",TABELA_PRECO!F140) -> 0.4 | G141: =IF(TABELA_PRECO!G140=" "," ",TABELA_PRECO!G140) -> 0.472 | H141: =IF(TABELA_PRECO!H140=" "," ",TABELA_PRECO!H140) -> 0.5962176 | I141: =IF(TABELA_PRECO!I140=" "," ",TABELA_PRECO!I140) -> 0.528 | J141: =IF(TABELA_PRECO!J140=" "," ",TABELA_PRECO!J140) -> 0.4858192 | K141: =IF(TABELA_PRECO!P140=" "," ",TABELA_PRECO!P140) -> 0.1962176 | L141: =IF(TABELA_PRECO!Q140=" "," ",TABELA_PRECO!Q140) -> 0.128 | M141: =IF(TABELA_PRECO!R140=" "," ",TABELA_PRECO!R140) -> 0.076 | N141: =IF(TABELA_PRECO!T140=" "," ",TABELA_PRECO!T140) -> 0.02535131392 | O141: =IF(TABELA_PRECO!Y140=" "," ",TABELA_PRECO!Y140) -> 32.9104005 | P141: =IF(TABELA_PRECO!Z140=" "," ",TABELA_PRECO!Z140) -> 24.24242424 | Q141: =IF(TABELA_PRECO!AA140=" "," ",TABELA_PRECO!AA140) -> 219
A142: =IF(TABELA_PRECO!A141=" "," ",TABELA_PRECO!A141) -> 220 | B142: =IF(TABELA_PRECO!B141=" "," ",TABELA_PRECO!B141) -> LUVA SOLD 25 MM | C142: =IF(TABELA_PRECO!C141=" "," ",TABELA_PRECO!C141) -> UN | D142: =IF(TABELA_PRECO!D141=" "," ",TABELA_PRECO!D141) -> HIDRÁULICO | E142: =IF(TABELA_PRECO!E141=" "," ",TABELA_PRECO!E141) -> KRONA / FORTLEV | F142: =IF(TABELA_PRECO!F141=" "," ",TABELA_PRECO!F141) -> 0.5 | G142: =IF(TABELA_PRECO!G141=" "," ",TABELA_PRECO!G141) -> 0.59 | H142: =IF(TABELA_PRECO!H141=" "," ",TABELA_PRECO!H141) -> 0.745272 | I142: =IF(TABELA_PRECO!I141=" "," ",TABELA_PRECO!I141) -> 0.66 | J142: =IF(TABELA_PRECO!J141=" "," ",TABELA_PRECO!J141) -> 0.607274 | K142: =IF(TABELA_PRECO!P141=" "," ",TABELA_PRECO!P141) -> 0.245272 | L142: =IF(TABELA_PRECO!Q141=" "," ",TABELA_PRECO!Q141) -> 0.16 | M142: =IF(TABELA_PRECO!R141=" "," ",TABELA_PRECO!R141) -> 0.095 | N142: =IF(TABELA_PRECO!T141=" "," ",TABELA_PRECO!T141) -> 0.0316891424 | O142: =IF(TABELA_PRECO!Y141=" "," ",TABELA_PRECO!Y141) -> 32.9104005 | P142: =IF(TABELA_PRECO!Z141=" "," ",TABELA_PRECO!Z141) -> 24.24242424 | Q142: =IF(TABELA_PRECO!AA141=" "," ",TABELA_PRECO!AA141) -> 220
A143: =IF(TABELA_PRECO!A142=" "," ",TABELA_PRECO!A142) -> 221 | B143: =IF(TABELA_PRECO!B142=" "," ",TABELA_PRECO!B142) -> LUVA SOLD 32 MM | C143: =IF(TABELA_PRECO!C142=" "," ",TABELA_PRECO!C142) -> PC | D143: =IF(TABELA_PRECO!D142=" "," ",TABELA_PRECO!D142) -> HIDRÁULICO | E143: =IF(TABELA_PRECO!E142=" "," ",TABELA_PRECO!E142) -> KRONA / FORTLEV | F143: =IF(TABELA_PRECO!F142=" "," ",TABELA_PRECO!F142) -> 1.45 | G143: =IF(TABELA_PRECO!G142=" "," ",TABELA_PRECO!G142) -> 1.711 | H143: =IF(TABELA_PRECO!H142=" "," ",TABELA_PRECO!H142) -> 2.1612888 | I143: =IF(TABELA_PRECO!I142=" "," ",TABELA_PRECO!I142) -> 1.914 | J143: =IF(TABELA_PRECO!J142=" "," ",TABELA_PRECO!J142) -> 1.7610946 | K143: =IF(TABELA_PRECO!P142=" "," ",TABELA_PRECO!P142) -> 0.7112888 | L143: =IF(TABELA_PRECO!Q142=" "," ",TABELA_PRECO!Q142) -> 0.464 | M143: =IF(TABELA_PRECO!R142=" "," ",TABELA_PRECO!R142) -> 0.2755 | N143: =IF(TABELA_PRECO!T142=" "," ",TABELA_PRECO!T142) -> 0.09189851296 | O143: =IF(TABELA_PRECO!Y142=" "," ",TABELA_PRECO!Y142) -> 32.9104005 | P143: =IF(TABELA_PRECO!Z142=" "," ",TABELA_PRECO!Z142) -> 24.24242424 | Q143: =IF(TABELA_PRECO!AA142=" "," ",TABELA_PRECO!AA142) -> 221
A144: =IF(TABELA_PRECO!A143=" "," ",TABELA_PRECO!A143) -> 222 | B144: =IF(TABELA_PRECO!B143=" "," ",TABELA_PRECO!B143) -> LUVA SOLD 40 MM | C144: =IF(TABELA_PRECO!C143=" "," ",TABELA_PRECO!C143) -> UN | D144: =IF(TABELA_PRECO!D143=" "," ",TABELA_PRECO!D143) -> HIDRÁULICO | E144: =IF(TABELA_PRECO!E143=" "," ",TABELA_PRECO!E143) -> KRONA / FORTLEV | F144: =IF(TABELA_PRECO!F143=" "," ",TABELA_PRECO!F143) -> 2.46 | G144: =IF(TABELA_PRECO!G143=" "," ",TABELA_PRECO!G143) -> 2.9028 | H144: =IF(TABELA_PRECO!H143=" "," ",TABELA_PRECO!H143) -> 3.66673824 | I144: =IF(TABELA_PRECO!I143=" "," ",TABELA_PRECO!I143) -> 3.2472 | J144: =IF(TABELA_PRECO!J143=" "," ",TABELA_PRECO!J143) -> 2.98778808 | K144: =IF(TABELA_PRECO!P143=" "," ",TABELA_PRECO!P143) -> 1.20673824 | L144: =IF(TABELA_PRECO!Q143=" "," ",TABELA_PRECO!Q143) -> 0.7872 | M144: =IF(TABELA_PRECO!R143=" "," ",TABELA_PRECO!R143) -> 0.4674 | N144: =IF(TABELA_PRECO!T143=" "," ",TABELA_PRECO!T143) -> 0.1559105806 | O144: =IF(TABELA_PRECO!Y143=" "," ",TABELA_PRECO!Y143) -> 32.9104005 | P144: =IF(TABELA_PRECO!Z143=" "," ",TABELA_PRECO!Z143) -> 24.24242424 | Q144: =IF(TABELA_PRECO!AA143=" "," ",TABELA_PRECO!AA143) -> 222
A145: =IF(TABELA_PRECO!A144=" "," ",TABELA_PRECO!A144) -> 223 | B145: =IF(TABELA_PRECO!B144=" "," ",TABELA_PRECO!B144) -> LUVA SOLD 50 MM | C145: =IF(TABELA_PRECO!C144=" "," ",TABELA_PRECO!C144) -> UN | D145: =IF(TABELA_PRECO!D144=" "," ",TABELA_PRECO!D144) -> HIDRÁULICO | E145: =IF(TABELA_PRECO!E144=" "," ",TABELA_PRECO!E144) -> KRONA / FORTLEV | F145: =IF(TABELA_PRECO!F144=" "," ",TABELA_PRECO!F144) -> 2.9 | G145: =IF(TABELA_PRECO!G144=" "," ",TABELA_PRECO!G144) -> 3.422 | H145: =IF(TABELA_PRECO!H144=" "," ",TABELA_PRECO!H144) -> 4.3225776 | I145: =IF(TABELA_PRECO!I144=" "," ",TABELA_PRECO!I144) -> 3.828 | J145: =IF(TABELA_PRECO!J144=" "," ",TABELA_PRECO!J144) -> 3.5221892 | K145: =IF(TABELA_PRECO!P144=" "," ",TABELA_PRECO!P144) -> 1.4225776 | L145: =IF(TABELA_PRECO!Q144=" "," ",TABELA_PRECO!Q144) -> 0.928 | M145: =IF(TABELA_PRECO!R144=" "," ",TABELA_PRECO!R144) -> 0.551 | N145: =IF(TABELA_PRECO!T144=" "," ",TABELA_PRECO!T144) -> 0.1837970259 | O145: =IF(TABELA_PRECO!Y144=" "," ",TABELA_PRECO!Y144) -> 32.9104005 | P145: =IF(TABELA_PRECO!Z144=" "," ",TABELA_PRECO!Z144) -> 24.24242424 | Q145: =IF(TABELA_PRECO!AA144=" "," ",TABELA_PRECO!AA144) -> 223
A146: =IF(TABELA_PRECO!A145=" "," ",TABELA_PRECO!A145) -> 224 | B146: =IF(TABELA_PRECO!B145=" "," ",TABELA_PRECO!B145) -> TORNEIRA PLASTICA JARDIM PRETA 3/4 | C146: =IF(TABELA_PRECO!C145=" "," ",TABELA_PRECO!C145) -> UN | D146: =IF(TABELA_PRECO!D145=" "," ",TABELA_PRECO!D145) -> HIDRÁULICO | E146: =IF(TABELA_PRECO!E145=" "," ",TABELA_PRECO!E145) -> GASPARZINHO | F146: =IF(TABELA_PRECO!F145=" "," ",TABELA_PRECO!F145) -> 2 | G146: =IF(TABELA_PRECO!G145=" "," ",TABELA_PRECO!G145) -> 2.36 | H146: =IF(TABELA_PRECO!H145=" "," ",TABELA_PRECO!H145) -> 2.981088 | I146: =IF(TABELA_PRECO!I145=" "," ",TABELA_PRECO!I145) -> 2.64 | J146: =IF(TABELA_PRECO!J145=" "," ",TABELA_PRECO!J145) -> 2.429096 | K146: =IF(TABELA_PRECO!P145=" "," ",TABELA_PRECO!P145) -> 0.981088 | L146: =IF(TABELA_PRECO!Q145=" "," ",TABELA_PRECO!Q145) -> 0.64 | M146: =IF(TABELA_PRECO!R145=" "," ",TABELA_PRECO!R145) -> 0.38 | N146: =IF(TABELA_PRECO!T145=" "," ",TABELA_PRECO!T145) -> 0.1267565696 | O146: =IF(TABELA_PRECO!Y145=" "," ",TABELA_PRECO!Y145) -> 32.9104005 | P146: =IF(TABELA_PRECO!Z145=" "," ",TABELA_PRECO!Z145) -> 24.24242424 | Q146: =IF(TABELA_PRECO!AA145=" "," ",TABELA_PRECO!AA145) -> 224
A147: =IF(TABELA_PRECO!A146=" "," ",TABELA_PRECO!A146) -> 225 | B147: =IF(TABELA_PRECO!B146=" "," ",TABELA_PRECO!B146) -> REGISTRO ESFERA SOLD 20 MM | C147: =IF(TABELA_PRECO!C146=" "," ",TABELA_PRECO!C146) -> PC | D147: =IF(TABELA_PRECO!D146=" "," ",TABELA_PRECO!D146) -> HIDRÁULICO | E147: =IF(TABELA_PRECO!E146=" "," ",TABELA_PRECO!E146) -> KRONA / FORTLEV | F147: =IF(TABELA_PRECO!F146=" "," ",TABELA_PRECO!F146) -> 6.35 | G147: =IF(TABELA_PRECO!G146=" "," ",TABELA_PRECO!G146) -> 7.493 | H147: =IF(TABELA_PRECO!H146=" "," ",TABELA_PRECO!H146) -> 9.4649544 | I147: =IF(TABELA_PRECO!I146=" "," ",TABELA_PRECO!I146) -> 8.382 | J147: =IF(TABELA_PRECO!J146=" "," ",TABELA_PRECO!J146) -> 7.7123798 | K147: =IF(TABELA_PRECO!P146=" "," ",TABELA_PRECO!P146) -> 3.1149544 | L147: =IF(TABELA_PRECO!Q146=" "," ",TABELA_PRECO!Q146) -> 2.032 | M147: =IF(TABELA_PRECO!R146=" "," ",TABELA_PRECO!R146) -> 1.2065 | N147: =IF(TABELA_PRECO!T146=" "," ",TABELA_PRECO!T146) -> 0.4024521085 | O147: =IF(TABELA_PRECO!Y146=" "," ",TABELA_PRECO!Y146) -> 32.9104005 | P147: =IF(TABELA_PRECO!Z146=" "," ",TABELA_PRECO!Z146) -> 24.24242424 | Q147: =IF(TABELA_PRECO!AA146=" "," ",TABELA_PRECO!AA146) -> 225
A148: =IF(TABELA_PRECO!A147=" "," ",TABELA_PRECO!A147) -> 226 | B148: =IF(TABELA_PRECO!B147=" "," ",TABELA_PRECO!B147) -> REGISTRO ESFERA SOLD COM UNIAO 20 MM | C148: =IF(TABELA_PRECO!C147=" "," ",TABELA_PRECO!C147) -> PC | D148: =IF(TABELA_PRECO!D147=" "," ",TABELA_PRECO!D147) -> HIDRÁULICO | E148: =IF(TABELA_PRECO!E147=" "," ",TABELA_PRECO!E147) -> KRONA / FORTLEV | F148: =IF(TABELA_PRECO!F147=" "," ",TABELA_PRECO!F147) -> 5.427 | G148: =IF(TABELA_PRECO!G147=" "," ",TABELA_PRECO!G147) -> 6.40386 | H148: =IF(TABELA_PRECO!H147=" "," ",TABELA_PRECO!H147) -> 8.089182288 | I148: =IF(TABELA_PRECO!I147=" "," ",TABELA_PRECO!I147) -> 7.16364 | J148: =IF(TABELA_PRECO!J147=" "," ",TABELA_PRECO!J147) -> 6.591351996 | K148: =IF(TABELA_PRECO!P147=" "," ",TABELA_PRECO!P147) -> 2.662182288 | L148: =IF(TABELA_PRECO!Q147=" "," ",TABELA_PRECO!Q147) -> 1.73664 | M148: =IF(TABELA_PRECO!R147=" "," ",TABELA_PRECO!R147) -> 1.03113 | N148: =IF(TABELA_PRECO!T147=" "," ",TABELA_PRECO!T147) -> 0.3439539516 | O148: =IF(TABELA_PRECO!Y147=" "," ",TABELA_PRECO!Y147) -> 32.9104005 | P148: =IF(TABELA_PRECO!Z147=" "," ",TABELA_PRECO!Z147) -> 24.24242424 | Q148: =IF(TABELA_PRECO!AA147=" "," ",TABELA_PRECO!AA147) -> 226
A149: =IF(TABELA_PRECO!A148=" "," ",TABELA_PRECO!A148) -> 227 | B149: =IF(TABELA_PRECO!B148=" "," ",TABELA_PRECO!B148) -> CLIP PARA CABO DE ACO 1/8 | C149: =IF(TABELA_PRECO!C148=" "," ",TABELA_PRECO!C148) -> UN | D149: =IF(TABELA_PRECO!D148=" "," ",TABELA_PRECO!D148) -> CORTINADO-FORRAÇÃO | E149: =IF(TABELA_PRECO!E148=" "," ",TABELA_PRECO!E148) -> RPA | F149: =IF(TABELA_PRECO!F148=" "," ",TABELA_PRECO!F148) -> 0.3 | G149: =IF(TABELA_PRECO!G148=" "," ",TABELA_PRECO!G148) -> 0.354 | H149: =IF(TABELA_PRECO!H148=" "," ",TABELA_PRECO!H148) -> 0.4471632 | I149: =IF(TABELA_PRECO!I148=" "," ",TABELA_PRECO!I148) -> 0.396 | J149: =IF(TABELA_PRECO!J148=" "," ",TABELA_PRECO!J148) -> 0.3643644 | K149: =IF(TABELA_PRECO!P148=" "," ",TABELA_PRECO!P148) -> 0.1471632 | L149: =IF(TABELA_PRECO!Q148=" "," ",TABELA_PRECO!Q148) -> 0.096 | M149: =IF(TABELA_PRECO!R148=" "," ",TABELA_PRECO!R148) -> 0.057 | N149: =IF(TABELA_PRECO!T148=" "," ",TABELA_PRECO!T148) -> 0.01901348544 | O149: =IF(TABELA_PRECO!Y148=" "," ",TABELA_PRECO!Y148) -> 32.9104005 | P149: =IF(TABELA_PRECO!Z148=" "," ",TABELA_PRECO!Z148) -> 24.24242424 | Q149: =IF(TABELA_PRECO!AA148=" "," ",TABELA_PRECO!AA148) -> 227
A150: =IF(TABELA_PRECO!A149=" "," ",TABELA_PRECO!A149) -> 228 | B150: =IF(TABELA_PRECO!B149=" "," ",TABELA_PRECO!B149) -> CLIP PARA CABO DE ACO 3/16 | C150: =IF(TABELA_PRECO!C149=" "," ",TABELA_PRECO!C149) -> MT | D150: =IF(TABELA_PRECO!D149=" "," ",TABELA_PRECO!D149) -> CORTINADO-FORRAÇÃO | E150: =IF(TABELA_PRECO!E149=" "," ",TABELA_PRECO!E149) -> RPA | F150: =IF(TABELA_PRECO!F149=" "," ",TABELA_PRECO!F149) -> 0.36 | G150: =IF(TABELA_PRECO!G149=" "," ",TABELA_PRECO!G149) -> 0.4248 | H150: =IF(TABELA_PRECO!H149=" "," ",TABELA_PRECO!H149) -> 0.53659584 | I150: =IF(TABELA_PRECO!I149=" "," ",TABELA_PRECO!I149) -> 0.4752 | J150: =IF(TABELA_PRECO!J149=" "," ",TABELA_PRECO!J149) -> 0.43723728 | K150: =IF(TABELA_PRECO!P149=" "," ",TABELA_PRECO!P149) -> 0.17659584 | L150: =IF(TABELA_PRECO!Q149=" "," ",TABELA_PRECO!Q149) -> 0.1152 | M150: =IF(TABELA_PRECO!R149=" "," ",TABELA_PRECO!R149) -> 0.0684 | N150: =IF(TABELA_PRECO!T149=" "," ",TABELA_PRECO!T149) -> 0.02281618253 | O150: =IF(TABELA_PRECO!Y149=" "," ",TABELA_PRECO!Y149) -> 32.9104005 | P150: =IF(TABELA_PRECO!Z149=" "," ",TABELA_PRECO!Z149) -> 24.24242424 | Q150: =IF(TABELA_PRECO!AA149=" "," ",TABELA_PRECO!AA149) -> 228
A151: =IF(TABELA_PRECO!A150=" "," ",TABELA_PRECO!A150) -> 229 | B151: =IF(TABELA_PRECO!B150=" "," ",TABELA_PRECO!B150) -> CLIP PARA CABO DE ACO 5/16 | C151: =IF(TABELA_PRECO!C150=" "," ",TABELA_PRECO!C150) -> UN | D151: =IF(TABELA_PRECO!D150=" "," ",TABELA_PRECO!D150) -> CORTINADO-FORRAÇÃO | E151: =IF(TABELA_PRECO!E150=" "," ",TABELA_PRECO!E150) -> RPA | F151: =IF(TABELA_PRECO!F150=" "," ",TABELA_PRECO!F150) -> 0.5 | G151: =IF(TABELA_PRECO!G150=" "," ",TABELA_PRECO!G150) -> 0.59 | H151: =IF(TABELA_PRECO!H150=" "," ",TABELA_PRECO!H150) -> 0.745272 | I151: =IF(TABELA_PRECO!I150=" "," ",TABELA_PRECO!I150) -> 0.66 | J151: =IF(TABELA_PRECO!J150=" "," ",TABELA_PRECO!J150) -> 0.607274 | K151: =IF(TABELA_PRECO!P150=" "," ",TABELA_PRECO!P150) -> 0.245272 | L151: =IF(TABELA_PRECO!Q150=" "," ",TABELA_PRECO!Q150) -> 0.16 | M151: =IF(TABELA_PRECO!R150=" "," ",TABELA_PRECO!R150) -> 0.095 | N151: =IF(TABELA_PRECO!T150=" "," ",TABELA_PRECO!T150) -> 0.0316891424 | O151: =IF(TABELA_PRECO!Y150=" "," ",TABELA_PRECO!Y150) -> 32.9104005 | P151: =IF(TABELA_PRECO!Z150=" "," ",TABELA_PRECO!Z150) -> 24.24242424 | Q151: =IF(TABELA_PRECO!AA150=" "," ",TABELA_PRECO!AA150) -> 229
A152: =IF(TABELA_PRECO!A151=" "," ",TABELA_PRECO!A151) -> 230 | B152: =IF(TABELA_PRECO!B151=" "," ",TABELA_PRECO!B151) -> PREGO 19 X 36 | C152: =IF(TABELA_PRECO!C151=" "," ",TABELA_PRECO!C151) -> KG | D152: =IF(TABELA_PRECO!D151=" "," ",TABELA_PRECO!D151) -> CORTINADO-FORRAÇÃO | E152: =IF(TABELA_PRECO!E151=" "," ",TABELA_PRECO!E151) -> TIDAO TELAS | F152: =IF(TABELA_PRECO!F151=" "," ",TABELA_PRECO!F151) -> 9.2 | G152: =IF(TABELA_PRECO!G151=" "," ",TABELA_PRECO!G151) -> 10.856 | H152: =IF(TABELA_PRECO!H151=" "," ",TABELA_PRECO!H151) -> 13.7130048 | I152: =IF(TABELA_PRECO!I151=" "," ",TABELA_PRECO!I151) -> 12.144 | J152: =IF(TABELA_PRECO!J151=" "," ",TABELA_PRECO!J151) -> 11.1738416 | K152: =IF(TABELA_PRECO!P151=" "," ",TABELA_PRECO!P151) -> 4.5130048 | L152: =IF(TABELA_PRECO!Q151=" "," ",TABELA_PRECO!Q151) -> 2.944 | M152: =IF(TABELA_PRECO!R151=" "," ",TABELA_PRECO!R151) -> 1.748 | N152: =IF(TABELA_PRECO!T151=" "," ",TABELA_PRECO!T151) -> 0.5830802202 | O152: =IF(TABELA_PRECO!Y151=" "," ",TABELA_PRECO!Y151) -> 32.9104005 | P152: =IF(TABELA_PRECO!Z151=" "," ",TABELA_PRECO!Z151) -> 24.24242424 | Q152: =IF(TABELA_PRECO!AA151=" "," ",TABELA_PRECO!AA151) -> 230
A153: =IF(TABELA_PRECO!A152=" "," ",TABELA_PRECO!A152) -> 231 | B153: =IF(TABELA_PRECO!B152=" "," ",TABELA_PRECO!B152) -> PREGO 20 X 48 | C153: =IF(TABELA_PRECO!C152=" "," ",TABELA_PRECO!C152) -> KG | D153: =IF(TABELA_PRECO!D152=" "," ",TABELA_PRECO!D152) -> CORTINADO-FORRAÇÃO | E153: =IF(TABELA_PRECO!E152=" "," ",TABELA_PRECO!E152) -> TIDAO TELAS | F153: =IF(TABELA_PRECO!F152=" "," ",TABELA_PRECO!F152) -> 8.75 | G153: =IF(TABELA_PRECO!G152=" "," ",TABELA_PRECO!G152) -> 10.325 | H153: =IF(TABELA_PRECO!H152=" "," ",TABELA_PRECO!H152) -> 13.04226 | I153: =IF(TABELA_PRECO!I152=" "," ",TABELA_PRECO!I152) -> 11.55 | J153: =IF(TABELA_PRECO!J152=" "," ",TABELA_PRECO!J152) -> 10.627295 | K153: =IF(TABELA_PRECO!P152=" "," ",TABELA_PRECO!P152) -> 4.29226 | L153: =IF(TABELA_PRECO!Q152=" "," ",TABELA_PRECO!Q152) -> 2.8 | M153: =IF(TABELA_PRECO!R152=" "," ",TABELA_PRECO!R152) -> 1.6625 | N153: =IF(TABELA_PRECO!T152=" "," ",TABELA_PRECO!T152) -> 0.554559992 | O153: =IF(TABELA_PRECO!Y152=" "," ",TABELA_PRECO!Y152) -> 32.9104005 | P153: =IF(TABELA_PRECO!Z152=" "," ",TABELA_PRECO!Z152) -> 24.24242424 | Q153: =IF(TABELA_PRECO!AA152=" "," ",TABELA_PRECO!AA152) -> 231
A154: =IF(TABELA_PRECO!A153=" "," ",TABELA_PRECO!A153) -> 233 | B154: =IF(TABELA_PRECO!B153=" "," ",TABELA_PRECO!B153) -> BICO NEBULIZADOR COD NH1 BRISA | C154: =IF(TABELA_PRECO!C153=" "," ",TABELA_PRECO!C153) -> PC | D154: =IF(TABELA_PRECO!D153=" "," ",TABELA_PRECO!D153) -> HIDRÁULICO | E154: =IF(TABELA_PRECO!E153=" "," ",TABELA_PRECO!E153) -> BRISA | F154: =IF(TABELA_PRECO!F153=" "," ",TABELA_PRECO!F153) -> 4.6 | G154: =IF(TABELA_PRECO!G153=" "," ",TABELA_PRECO!G153) -> 5.428 | H154: =IF(TABELA_PRECO!H153=" "," ",TABELA_PRECO!H153) -> 6.8565024 | I154: =IF(TABELA_PRECO!I153=" "," ",TABELA_PRECO!I153) -> 6.072 | J154: =IF(TABELA_PRECO!J153=" "," ",TABELA_PRECO!J153) -> 5.5869208 | K154: =IF(TABELA_PRECO!P153=" "," ",TABELA_PRECO!P153) -> 2.2565024 | L154: =IF(TABELA_PRECO!Q153=" "," ",TABELA_PRECO!Q153) -> 1.472 | M154: =IF(TABELA_PRECO!R153=" "," ",TABELA_PRECO!R153) -> 0.874 | N154: =IF(TABELA_PRECO!T153=" "," ",TABELA_PRECO!T153) -> 0.2915401101 | O154: =IF(TABELA_PRECO!Y153=" "," ",TABELA_PRECO!Y153) -> 32.9104005 | P154: =IF(TABELA_PRECO!Z153=" "," ",TABELA_PRECO!Z153) -> 24.24242424 | Q154: =IF(TABELA_PRECO!AA153=" "," ",TABELA_PRECO!AA153) -> 233
A155: =IF(TABELA_PRECO!A154=" "," ",TABELA_PRECO!A154) -> 234 | B155: =IF(TABELA_PRECO!B154=" "," ",TABELA_PRECO!B154) -> CORDA PE AZUL 8MM | C155: =IF(TABELA_PRECO!C154=" "," ",TABELA_PRECO!C154) -> MT | D155: =IF(TABELA_PRECO!D154=" "," ",TABELA_PRECO!D154) -> CORTINADO-FORRAÇÃO | E155: =IF(TABELA_PRECO!E154=" "," ",TABELA_PRECO!E154) -> CORDAVILLE | F155: =IF(TABELA_PRECO!F154=" "," ",TABELA_PRECO!F154) -> 11.4 | G155: =IF(TABELA_PRECO!G154=" "," ",TABELA_PRECO!G154) -> 13.452 | H155: =IF(TABELA_PRECO!H154=" "," ",TABELA_PRECO!H154) -> 16.9922016 | I155: =IF(TABELA_PRECO!I154=" "," ",TABELA_PRECO!I154) -> 15.048 | J155: =IF(TABELA_PRECO!J154=" "," ",TABELA_PRECO!J154) -> 13.8458472 | K155: =IF(TABELA_PRECO!P154=" "," ",TABELA_PRECO!P154) -> 5.5922016 | L155: =IF(TABELA_PRECO!Q154=" "," ",TABELA_PRECO!Q154) -> 3.648 | M155: =IF(TABELA_PRECO!R154=" "," ",TABELA_PRECO!R154) -> 2.166 | N155: =IF(TABELA_PRECO!T154=" "," ",TABELA_PRECO!T154) -> 0.7225124467 | O155: =IF(TABELA_PRECO!Y154=" "," ",TABELA_PRECO!Y154) -> 32.9104005 | P155: =IF(TABELA_PRECO!Z154=" "," ",TABELA_PRECO!Z154) -> 24.24242424 | Q155: =IF(TABELA_PRECO!AA154=" "," ",TABELA_PRECO!AA154) -> 234
A156: =IF(TABELA_PRECO!A155=" "," ",TABELA_PRECO!A155) -> 235 | B156: =IF(TABELA_PRECO!B155=" "," ",TABELA_PRECO!B155) -> CORDA TRANCADA PP 4,0 MM NATURAL | C156: =IF(TABELA_PRECO!C155=" "," ",TABELA_PRECO!C155) -> MT | D156: =IF(TABELA_PRECO!D155=" "," ",TABELA_PRECO!D155) -> CORTINADO-FORRAÇÃO | E156: =IF(TABELA_PRECO!E155=" "," ",TABELA_PRECO!E155) -> CORDAVILLE/PLASMODIA | F156: =IF(TABELA_PRECO!F155=" "," ",TABELA_PRECO!F155) -> 0.3 | G156: =IF(TABELA_PRECO!G155=" "," ",TABELA_PRECO!G155) -> 0.354 | H156: =IF(TABELA_PRECO!H155=" "," ",TABELA_PRECO!H155) -> 0.4471632 | I156: =IF(TABELA_PRECO!I155=" "," ",TABELA_PRECO!I155) -> 0.396 | J156: =IF(TABELA_PRECO!J155=" "," ",TABELA_PRECO!J155) -> 0.3643644 | K156: =IF(TABELA_PRECO!P155=" "," ",TABELA_PRECO!P155) -> 0.1471632 | L156: =IF(TABELA_PRECO!Q155=" "," ",TABELA_PRECO!Q155) -> 0.096 | M156: =IF(TABELA_PRECO!R155=" "," ",TABELA_PRECO!R155) -> 0.057 | N156: =IF(TABELA_PRECO!T155=" "," ",TABELA_PRECO!T155) -> 0.01901348544 | O156: =IF(TABELA_PRECO!Y155=" "," ",TABELA_PRECO!Y155) -> 32.9104005 | P156: =IF(TABELA_PRECO!Z155=" "," ",TABELA_PRECO!Z155) -> 24.24242424 | Q156: =IF(TABELA_PRECO!AA155=" "," ",TABELA_PRECO!AA155) -> 235
A157: =IF(TABELA_PRECO!A156=" "," ",TABELA_PRECO!A156) -> 236 | B157: =IF(TABELA_PRECO!B156=" "," ",TABELA_PRECO!B156) -> CORDA TRANCADA PP 3,0 MM NATURAL | C157: =IF(TABELA_PRECO!C156=" "," ",TABELA_PRECO!C156) -> MT | D157: =IF(TABELA_PRECO!D156=" "," ",TABELA_PRECO!D156) -> CORTINADO-FORRAÇÃO | E157: =IF(TABELA_PRECO!E156=" "," ",TABELA_PRECO!E156) -> CORDAVILLE/PLASMODIA | F157: =IF(TABELA_PRECO!F156=" "," ",TABELA_PRECO!F156) -> 0.2 | G157: =IF(TABELA_PRECO!G156=" "," ",TABELA_PRECO!G156) -> 0.236 | H157: =IF(TABELA_PRECO!H156=" "," ",TABELA_PRECO!H156) -> 0.2981088 | I157: =IF(TABELA_PRECO!I156=" "," ",TABELA_PRECO!I156) -> 0.264 | J157: =IF(TABELA_PRECO!J156=" "," ",TABELA_PRECO!J156) -> 0.2429096 | K157: =IF(TABELA_PRECO!P156=" "," ",TABELA_PRECO!P156) -> 0.0981088 | L157: =IF(TABELA_PRECO!Q156=" "," ",TABELA_PRECO!Q156) -> 0.064 | M157: =IF(TABELA_PRECO!R156=" "," ",TABELA_PRECO!R156) -> 0.038 | N157: =IF(TABELA_PRECO!T156=" "," ",TABELA_PRECO!T156) -> 0.01267565696 | O157: =IF(TABELA_PRECO!Y156=" "," ",TABELA_PRECO!Y156) -> 32.9104005 | P157: =IF(TABELA_PRECO!Z156=" "," ",TABELA_PRECO!Z156) -> 24.24242424 | Q157: =IF(TABELA_PRECO!AA156=" "," ",TABELA_PRECO!AA156) -> 236
A158: =IF(TABELA_PRECO!A157=" "," ",TABELA_PRECO!A157) -> 237 | B158: =IF(TABELA_PRECO!B157=" "," ",TABELA_PRECO!B157) -> CONJUNTO MICRO CHAVE BALANCA ESTADEIRA | C158: =IF(TABELA_PRECO!C157=" "," ",TABELA_PRECO!C157) -> CJ | D158: =IF(TABELA_PRECO!D157=" "," ",TABELA_PRECO!D157) -> EQUIPAMENTOS BIG DUTCHMAN | E158: =IF(TABELA_PRECO!E157=" "," ",TABELA_PRECO!E157) -> BIG DUTCHMAN | F158: =IF(TABELA_PRECO!F157=" "," ",TABELA_PRECO!F157) -> 49.22 | G158: =IF(TABELA_PRECO!G157=" "," ",TABELA_PRECO!G157) -> 58.0796 | H158: =IF(TABELA_PRECO!H157=" "," ",TABELA_PRECO!H157) -> 73.36457568 | I158: =IF(TABELA_PRECO!I157=" "," ",TABELA_PRECO!I157) -> 64.9704 | J158: =IF(TABELA_PRECO!J157=" "," ",TABELA_PRECO!J157) -> 59.78005256 | K158: =IF(TABELA_PRECO!P157=" "," ",TABELA_PRECO!P157) -> 24.14457568 | L158: =IF(TABELA_PRECO!Q157=" "," ",TABELA_PRECO!Q157) -> 15.7504 | M158: =IF(TABELA_PRECO!R157=" "," ",TABELA_PRECO!R157) -> 9.3518 | N158: =IF(TABELA_PRECO!T157=" "," ",TABELA_PRECO!T157) -> 3.119479178 | O158: =IF(TABELA_PRECO!Y157=" "," ",TABELA_PRECO!Y157) -> 32.9104005 | P158: =IF(TABELA_PRECO!Z157=" "," ",TABELA_PRECO!Z157) -> 24.24242424 | Q158: =IF(TABELA_PRECO!AA157=" "," ",TABELA_PRECO!AA157) -> 237
A159: =IF(TABELA_PRECO!A158=" "," ",TABELA_PRECO!A158) -> 238 | B159: =IF(TABELA_PRECO!B158=" "," ",TABELA_PRECO!B158) -> CONJUNTO REGULADOR DE PRESSAO 2 SAIDAS | C159: =IF(TABELA_PRECO!C158=" "," ",TABELA_PRECO!C158) -> CJ | D159: =IF(TABELA_PRECO!D158=" "," ",TABELA_PRECO!D158) -> EQUIPAMENTOS BIG DUTCHMAN | E159: =IF(TABELA_PRECO!E158=" "," ",TABELA_PRECO!E158) -> BIG DUTCHMAN | F159: =IF(TABELA_PRECO!F158=" "," ",TABELA_PRECO!F158) -> 450 | G159: =IF(TABELA_PRECO!G158=" "," ",TABELA_PRECO!G158) -> 531 | H159: =IF(TABELA_PRECO!H158=" "," ",TABELA_PRECO!H158) -> 670.7448 | I159: =IF(TABELA_PRECO!I158=" "," ",TABELA_PRECO!I158) -> 594 | J159: =IF(TABELA_PRECO!J158=" "," ",TABELA_PRECO!J158) -> 546.5466 | K159: =IF(TABELA_PRECO!P158=" "," ",TABELA_PRECO!P158) -> 220.7448 | L159: =IF(TABELA_PRECO!Q158=" "," ",TABELA_PRECO!Q158) -> 144 | M159: =IF(TABELA_PRECO!R158=" "," ",TABELA_PRECO!R158) -> 85.5 | N159: =IF(TABELA_PRECO!T158=" "," ",TABELA_PRECO!T158) -> 28.52022816 | O159: =IF(TABELA_PRECO!Y158=" "," ",TABELA_PRECO!Y158) -> 32.9104005 | P159: =IF(TABELA_PRECO!Z158=" "," ",TABELA_PRECO!Z158) -> 24.24242424 | Q159: =IF(TABELA_PRECO!AA158=" "," ",TABELA_PRECO!AA158) -> 238
A160: =IF(TABELA_PRECO!A159=" "," ",TABELA_PRECO!A159) -> 239 | B160: =IF(TABELA_PRECO!B159=" "," ",TABELA_PRECO!B159) -> FILTRO PARA MOTOBOMBA C/ ADAPTADOR | C160: =IF(TABELA_PRECO!C159=" "," ",TABELA_PRECO!C159) -> UN | D160: =IF(TABELA_PRECO!D159=" "," ",TABELA_PRECO!D159) -> EQUIPAMENTOS BIG DUTCHMAN | E160: =IF(TABELA_PRECO!E159=" "," ",TABELA_PRECO!E159) -> BIG DUTCHMAN | F160: =IF(TABELA_PRECO!F159=" "," ",TABELA_PRECO!F159) -> 46.5 | G160: =IF(TABELA_PRECO!G159=" "," ",TABELA_PRECO!G159) -> 54.87 | H160: =IF(TABELA_PRECO!H159=" "," ",TABELA_PRECO!H159) -> 69.310296 | I160: =IF(TABELA_PRECO!I159=" "," ",TABELA_PRECO!I159) -> 61.38 | J160: =IF(TABELA_PRECO!J159=" "," ",TABELA_PRECO!J159) -> 56.476482 | K160: =IF(TABELA_PRECO!P159=" "," ",TABELA_PRECO!P159) -> 22.810296 | L160: =IF(TABELA_PRECO!Q159=" "," ",TABELA_PRECO!Q159) -> 14.88 | M160: =IF(TABELA_PRECO!R159=" "," ",TABELA_PRECO!R159) -> 8.835 | N160: =IF(TABELA_PRECO!T159=" "," ",TABELA_PRECO!T159) -> 2.947090243 | O160: =IF(TABELA_PRECO!Y159=" "," ",TABELA_PRECO!Y159) -> 32.9104005 | P160: =IF(TABELA_PRECO!Z159=" "," ",TABELA_PRECO!Z159) -> 24.24242424 | Q160: =IF(TABELA_PRECO!AA159=" "," ",TABELA_PRECO!AA159) -> 239
A161: =IF(TABELA_PRECO!A160=" "," ",TABELA_PRECO!A160) -> 240 | B161: =IF(TABELA_PRECO!B160=" "," ",TABELA_PRECO!B160) -> MANGUEIRA FLEXIVEL 3,0 X 3/4X500 | C161: =IF(TABELA_PRECO!C160=" "," ",TABELA_PRECO!C160) -> MT | D161: =IF(TABELA_PRECO!D160=" "," ",TABELA_PRECO!D160) -> EQUIPAMENTOS BIG DUTCHMAN | E161: =IF(TABELA_PRECO!E160=" "," ",TABELA_PRECO!E160) -> BIG DUTCHMAN | F161: =IF(TABELA_PRECO!F160=" "," ",TABELA_PRECO!F160) -> 8.05 | G161: =IF(TABELA_PRECO!G160=" "," ",TABELA_PRECO!G160) -> 9.499 | H161: =IF(TABELA_PRECO!H160=" "," ",TABELA_PRECO!H160) -> 11.9988792 | I161: =IF(TABELA_PRECO!I160=" "," ",TABELA_PRECO!I160) -> 10.626 | J161: =IF(TABELA_PRECO!J160=" "," ",TABELA_PRECO!J160) -> 9.7771114 | K161: =IF(TABELA_PRECO!P160=" "," ",TABELA_PRECO!P160) -> 3.9488792 | L161: =IF(TABELA_PRECO!Q160=" "," ",TABELA_PRECO!Q160) -> 2.576 | M161: =IF(TABELA_PRECO!R160=" "," ",TABELA_PRECO!R160) -> 1.5295 | N161: =IF(TABELA_PRECO!T160=" "," ",TABELA_PRECO!T160) -> 0.5101951926 | O161: =IF(TABELA_PRECO!Y160=" "," ",TABELA_PRECO!Y160) -> 32.9104005 | P161: =IF(TABELA_PRECO!Z160=" "," ",TABELA_PRECO!Z160) -> 24.24242424 | Q161: =IF(TABELA_PRECO!AA160=" "," ",TABELA_PRECO!AA160) -> 240
A162: =IF(TABELA_PRECO!A161=" "," ",TABELA_PRECO!A161) -> 241 | B162: =IF(TABELA_PRECO!B161=" "," ",TABELA_PRECO!B161) -> CONJUNTO FILTRO INOX DIAM 1,5 | C162: =IF(TABELA_PRECO!C161=" "," ",TABELA_PRECO!C161) -> CJ | D162: =IF(TABELA_PRECO!D161=" "," ",TABELA_PRECO!D161) -> EQUIPAMENTOS BIG DUTCHMAN | E162: =IF(TABELA_PRECO!E161=" "," ",TABELA_PRECO!E161) -> BIG DUTCHMAN | F162: =IF(TABELA_PRECO!F161=" "," ",TABELA_PRECO!F161) -> 98.95 | G162: =IF(TABELA_PRECO!G161=" "," ",TABELA_PRECO!G161) -> 116.761 | H162: =IF(TABELA_PRECO!H161=" "," ",TABELA_PRECO!H161) -> 147.4893288 | I162: =IF(TABELA_PRECO!I161=" "," ",TABELA_PRECO!I161) -> 130.614 | J162: =IF(TABELA_PRECO!J161=" "," ",TABELA_PRECO!J161) -> 120.1795246 | K162: =IF(TABELA_PRECO!P161=" "," ",TABELA_PRECO!P161) -> 48.5393288 | L162: =IF(TABELA_PRECO!Q161=" "," ",TABELA_PRECO!Q161) -> 31.664 | M162: =IF(TABELA_PRECO!R161=" "," ",TABELA_PRECO!R161) -> 18.8005 | N162: =IF(TABELA_PRECO!T161=" "," ",TABELA_PRECO!T161) -> 6.271281281 | O162: =IF(TABELA_PRECO!Y161=" "," ",TABELA_PRECO!Y161) -> 32.9104005 | P162: =IF(TABELA_PRECO!Z161=" "," ",TABELA_PRECO!Z161) -> 24.24242424 | Q162: =IF(TABELA_PRECO!AA161=" "," ",TABELA_PRECO!AA161) -> 241
A163: =IF(TABELA_PRECO!A162=" "," ",TABELA_PRECO!A162) -> 242 | B163: =IF(TABELA_PRECO!B162=" "," ",TABELA_PRECO!B162) -> ELEMENTO FILTRANTE P/FILTRO 9 3/4X 3/4 | C163: =IF(TABELA_PRECO!C162=" "," ",TABELA_PRECO!C162) -> UN | D163: =IF(TABELA_PRECO!D162=" "," ",TABELA_PRECO!D162) -> EQUIPAMENTOS BIG DUTCHMAN | E163: =IF(TABELA_PRECO!E162=" "," ",TABELA_PRECO!E162) -> BIG DUTCHMAN | F163: =IF(TABELA_PRECO!F162=" "," ",TABELA_PRECO!F162) -> 44.8 | G163: =IF(TABELA_PRECO!G162=" "," ",TABELA_PRECO!G162) -> 52.864 | H163: =IF(TABELA_PRECO!H162=" "," ",TABELA_PRECO!H162) -> 66.7763712 | I163: =IF(TABELA_PRECO!I162=" "," ",TABELA_PRECO!I162) -> 59.136 | J163: =IF(TABELA_PRECO!J162=" "," ",TABELA_PRECO!J162) -> 54.4117504 | K163: =IF(TABELA_PRECO!P162=" "," ",TABELA_PRECO!P162) -> 21.9763712 | L163: =IF(TABELA_PRECO!Q162=" "," ",TABELA_PRECO!Q162) -> 14.336 | M163: =IF(TABELA_PRECO!R162=" "," ",TABELA_PRECO!R162) -> 8.512 | N163: =IF(TABELA_PRECO!T162=" "," ",TABELA_PRECO!T162) -> 2.839347159 | O163: =IF(TABELA_PRECO!Y162=" "," ",TABELA_PRECO!Y162) -> 32.9104005 | P163: =IF(TABELA_PRECO!Z162=" "," ",TABELA_PRECO!Z162) -> 24.24242424 | Q163: =IF(TABELA_PRECO!AA162=" "," ",TABELA_PRECO!AA162) -> 242
A164: =IF(TABELA_PRECO!A163=" "," ",TABELA_PRECO!A163) -> 243 | B164: =IF(TABELA_PRECO!B163=" "," ",TABELA_PRECO!B163) -> BUCHA REDUCAO 1/2"X 1/4" NPT(MANOMETRO) | C164: =IF(TABELA_PRECO!C163=" "," ",TABELA_PRECO!C163) -> UN | D164: =IF(TABELA_PRECO!D163=" "," ",TABELA_PRECO!D163) -> EQUIPAMENTOS BIG DUTCHMAN | E164: =IF(TABELA_PRECO!E163=" "," ",TABELA_PRECO!E163) -> BIG DUTCHMAN | F164: =IF(TABELA_PRECO!F163=" "," ",TABELA_PRECO!F163) -> 5.7 | G164: =IF(TABELA_PRECO!G163=" "," ",TABELA_PRECO!G163) -> 6.726 | H164: =IF(TABELA_PRECO!H163=" "," ",TABELA_PRECO!H163) -> 8.4961008 | I164: =IF(TABELA_PRECO!I163=" "," ",TABELA_PRECO!I163) -> 7.524 | J164: =IF(TABELA_PRECO!J163=" "," ",TABELA_PRECO!J163) -> 6.9229236 | K164: =IF(TABELA_PRECO!P163=" "," ",TABELA_PRECO!P163) -> 2.7961008 | L164: =IF(TABELA_PRECO!Q163=" "," ",TABELA_PRECO!Q163) -> 1.824 | M164: =IF(TABELA_PRECO!R163=" "," ",TABELA_PRECO!R163) -> 1.083 | N164: =IF(TABELA_PRECO!T163=" "," ",TABELA_PRECO!T163) -> 0.3612562234 | O164: =IF(TABELA_PRECO!Y163=" "," ",TABELA_PRECO!Y163) -> 32.9104005 | P164: =IF(TABELA_PRECO!Z163=" "," ",TABELA_PRECO!Z163) -> 24.24242424 | Q164: =IF(TABELA_PRECO!AA163=" "," ",TABELA_PRECO!AA163) -> 243
A165: =IF(TABELA_PRECO!A164=" "," ",TABELA_PRECO!A164) -> 244 | B165: =IF(TABELA_PRECO!B164=" "," ",TABELA_PRECO!B164) -> MANOMETRO 0-10 KGF/CM² 150 PSI 1/2 NPT | C165: =IF(TABELA_PRECO!C164=" "," ",TABELA_PRECO!C164) -> UN | D165: =IF(TABELA_PRECO!D164=" "," ",TABELA_PRECO!D164) -> EQUIPAMENTOS BIG DUTCHMAN | E165: =IF(TABELA_PRECO!E164=" "," ",TABELA_PRECO!E164) -> BIG DUTCHMAN | F165: =IF(TABELA_PRECO!F164=" "," ",TABELA_PRECO!F164) -> 72 | G165: =IF(TABELA_PRECO!G164=" "," ",TABELA_PRECO!G164) -> 84.96 | H165: =IF(TABELA_PRECO!H164=" "," ",TABELA_PRECO!H164) -> 107.319168 | I165: =IF(TABELA_PRECO!I164=" "," ",TABELA_PRECO!I164) -> 95.04 | J165: =IF(TABELA_PRECO!J164=" "," ",TABELA_PRECO!J164) -> 87.447456 | K165: =IF(TABELA_PRECO!P164=" "," ",TABELA_PRECO!P164) -> 35.319168 | L165: =IF(TABELA_PRECO!Q164=" "," ",TABELA_PRECO!Q164) -> 23.04 | M165: =IF(TABELA_PRECO!R164=" "," ",TABELA_PRECO!R164) -> 13.68 | N165: =IF(TABELA_PRECO!T164=" "," ",TABELA_PRECO!T164) -> 4.563236506 | O165: =IF(TABELA_PRECO!Y164=" "," ",TABELA_PRECO!Y164) -> 32.9104005 | P165: =IF(TABELA_PRECO!Z164=" "," ",TABELA_PRECO!Z164) -> 24.24242424 | Q165: =IF(TABELA_PRECO!AA164=" "," ",TABELA_PRECO!AA164) -> 244
A166: =IF(TABELA_PRECO!A165=" "," ",TABELA_PRECO!A165) -> 245 | B166: =IF(TABELA_PRECO!B165=" "," ",TABELA_PRECO!B165) -> MANIVELA ROBUSTEC 1,5 M | C166: =IF(TABELA_PRECO!C165=" "," ",TABELA_PRECO!C165) -> MT | D166: =IF(TABELA_PRECO!D165=" "," ",TABELA_PRECO!D165) -> EQUIPAMENTOS DIVERSOS | E166: =IF(TABELA_PRECO!E165=" "," ",TABELA_PRECO!E165) -> ROBUSTEC | F166: =IF(TABELA_PRECO!F165=" "," ",TABELA_PRECO!F165) -> 29.58 | G166: =IF(TABELA_PRECO!G165=" "," ",TABELA_PRECO!G165) -> 34.9044 | H166: =IF(TABELA_PRECO!H165=" "," ",TABELA_PRECO!H165) -> 44.09029152 | I166: =IF(TABELA_PRECO!I165=" "," ",TABELA_PRECO!I165) -> 39.0456 | J166: =IF(TABELA_PRECO!J165=" "," ",TABELA_PRECO!J165) -> 35.92632984 | K166: =IF(TABELA_PRECO!P165=" "," ",TABELA_PRECO!P165) -> 14.51029152 | L166: =IF(TABELA_PRECO!Q165=" "," ",TABELA_PRECO!Q165) -> 9.4656 | M166: =IF(TABELA_PRECO!R165=" "," ",TABELA_PRECO!R165) -> 5.6202 | N166: =IF(TABELA_PRECO!T165=" "," ",TABELA_PRECO!T165) -> 1.874729664 | O166: =IF(TABELA_PRECO!Y165=" "," ",TABELA_PRECO!Y165) -> 32.9104005 | P166: =IF(TABELA_PRECO!Z165=" "," ",TABELA_PRECO!Z165) -> 24.24242424 | Q166: =IF(TABELA_PRECO!AA165=" "," ",TABELA_PRECO!AA165) -> 245
A167: =IF(TABELA_PRECO!A166=" "," ",TABELA_PRECO!A166) -> 246 | B167: =IF(TABELA_PRECO!B166=" "," ",TABELA_PRECO!B166) -> TUBO MANIVELA 1,5 M | C167: =IF(TABELA_PRECO!C166=" "," ",TABELA_PRECO!C166) -> MT | D167: =IF(TABELA_PRECO!D166=" "," ",TABELA_PRECO!D166) -> EQUIPAMENTOS DIVERSOS | E167: =IF(TABELA_PRECO!E166=" "," ",TABELA_PRECO!E166) -> ROBUSTEC | F167: =IF(TABELA_PRECO!F166=" "," ",TABELA_PRECO!F166) -> 9.86 | G167: =IF(TABELA_PRECO!G166=" "," ",TABELA_PRECO!G166) -> 11.6348 | H167: =IF(TABELA_PRECO!H166=" "," ",TABELA_PRECO!H166) -> 14.69676384 | I167: =IF(TABELA_PRECO!I166=" "," ",TABELA_PRECO!I166) -> 13.0152 | J167: =IF(TABELA_PRECO!J166=" "," ",TABELA_PRECO!J166) -> 11.97544328 | K167: =IF(TABELA_PRECO!P166=" "," ",TABELA_PRECO!P166) -> 4.83676384 | L167: =IF(TABELA_PRECO!Q166=" "," ",TABELA_PRECO!Q166) -> 3.1552 | M167: =IF(TABELA_PRECO!R166=" "," ",TABELA_PRECO!R166) -> 1.8734 | N167: =IF(TABELA_PRECO!T166=" "," ",TABELA_PRECO!T166) -> 0.6249098881 | O167: =IF(TABELA_PRECO!Y166=" "," ",TABELA_PRECO!Y166) -> 32.9104005 | P167: =IF(TABELA_PRECO!Z166=" "," ",TABELA_PRECO!Z166) -> 24.24242424 | Q167: =IF(TABELA_PRECO!AA166=" "," ",TABELA_PRECO!AA166) -> 246
A168: =IF(TABELA_PRECO!A167=" "," ",TABELA_PRECO!A167) -> 247 | B168: =IF(TABELA_PRECO!B167=" "," ",TABELA_PRECO!B167) -> CONJUNTO FLANGE QUADRADA 75 MM(1401) | C168: =IF(TABELA_PRECO!C167=" "," ",TABELA_PRECO!C167) -> PC | D168: =IF(TABELA_PRECO!D167=" "," ",TABELA_PRECO!D167) -> EQUIPAMENTOS BIG DUTCHMAN | E168: =IF(TABELA_PRECO!E167=" "," ",TABELA_PRECO!E167) -> BIG DUTCHMAN | F168: =IF(TABELA_PRECO!F167=" "," ",TABELA_PRECO!F167) -> 38 | G168: =IF(TABELA_PRECO!G167=" "," ",TABELA_PRECO!G167) -> 44.84 | H168: =IF(TABELA_PRECO!H167=" "," ",TABELA_PRECO!H167) -> 56.640672 | I168: =IF(TABELA_PRECO!I167=" "," ",TABELA_PRECO!I167) -> 50.16 | J168: =IF(TABELA_PRECO!J167=" "," ",TABELA_PRECO!J167) -> 46.152824 | K168: =IF(TABELA_PRECO!P167=" "," ",TABELA_PRECO!P167) -> 18.640672 | L168: =IF(TABELA_PRECO!Q167=" "," ",TABELA_PRECO!Q167) -> 12.16 | M168: =IF(TABELA_PRECO!R167=" "," ",TABELA_PRECO!R167) -> 7.22 | N168: =IF(TABELA_PRECO!T167=" "," ",TABELA_PRECO!T167) -> 2.408374822 | O168: =IF(TABELA_PRECO!Y167=" "," ",TABELA_PRECO!Y167) -> 32.9104005 | P168: =IF(TABELA_PRECO!Z167=" "," ",TABELA_PRECO!Z167) -> 24.24242424 | Q168: =IF(TABELA_PRECO!AA167=" "," ",TABELA_PRECO!AA167) -> 247
A169: =IF(TABELA_PRECO!A168=" "," ",TABELA_PRECO!A168) -> 248 | B169: =IF(TABELA_PRECO!B168=" "," ",TABELA_PRECO!B168) -> PRATO LISO 400 5,1 L | C169: =IF(TABELA_PRECO!C168=" "," ",TABELA_PRECO!C168) -> PC | D169: =IF(TABELA_PRECO!D168=" "," ",TABELA_PRECO!D168) -> EQUIPAMENTOS BIG DUTCHMAN | E169: =IF(TABELA_PRECO!E168=" "," ",TABELA_PRECO!E168) -> BIG DUTCHMAN | F169: =IF(TABELA_PRECO!F168=" "," ",TABELA_PRECO!F168) -> 9.8 | G169: =IF(TABELA_PRECO!G168=" "," ",TABELA_PRECO!G168) -> 11.564 | H169: =IF(TABELA_PRECO!H168=" "," ",TABELA_PRECO!H168) -> 14.6073312 | I169: =IF(TABELA_PRECO!I168=" "," ",TABELA_PRECO!I168) -> 12.936 | J169: =IF(TABELA_PRECO!J168=" "," ",TABELA_PRECO!J168) -> 11.9025704 | K169: =IF(TABELA_PRECO!P168=" "," ",TABELA_PRECO!P168) -> 4.8073312 | L169: =IF(TABELA_PRECO!Q168=" "," ",TABELA_PRECO!Q168) -> 3.136 | M169: =IF(TABELA_PRECO!R168=" "," ",TABELA_PRECO!R168) -> 1.862 | N169: =IF(TABELA_PRECO!T168=" "," ",TABELA_PRECO!T168) -> 0.621107191 | O169: =IF(TABELA_PRECO!Y168=" "," ",TABELA_PRECO!Y168) -> 32.9104005 | P169: =IF(TABELA_PRECO!Z168=" "," ",TABELA_PRECO!Z168) -> 24.24242424 | Q169: =IF(TABELA_PRECO!AA168=" "," ",TABELA_PRECO!AA168) -> 248
A170: =IF(TABELA_PRECO!A169=" "," ",TABELA_PRECO!A169) -> 250 | B170: =IF(TABELA_PRECO!B169=" "," ",TABELA_PRECO!B169) -> CONJUNTO VALVULA AVI 95 | C170: =IF(TABELA_PRECO!C169=" "," ",TABELA_PRECO!C169) -> PC | D170: =IF(TABELA_PRECO!D169=" "," ",TABELA_PRECO!D169) -> EQUIPAMENTOS BIG DUTCHMAN | E170: =IF(TABELA_PRECO!E169=" "," ",TABELA_PRECO!E169) -> BIG DUTCHMAN | F170: =IF(TABELA_PRECO!F169=" "," ",TABELA_PRECO!F169) -> 3.6 | G170: =IF(TABELA_PRECO!G169=" "," ",TABELA_PRECO!G169) -> 4.248 | H170: =IF(TABELA_PRECO!H169=" "," ",TABELA_PRECO!H169) -> 5.3659584 | I170: =IF(TABELA_PRECO!I169=" "," ",TABELA_PRECO!I169) -> 4.752 | J170: =IF(TABELA_PRECO!J169=" "," ",TABELA_PRECO!J169) -> 4.3723728 | K170: =IF(TABELA_PRECO!P169=" "," ",TABELA_PRECO!P169) -> 1.7659584 | L170: =IF(TABELA_PRECO!Q169=" "," ",TABELA_PRECO!Q169) -> 1.152 | M170: =IF(TABELA_PRECO!R169=" "," ",TABELA_PRECO!R169) -> 0.684 | N170: =IF(TABELA_PRECO!T169=" "," ",TABELA_PRECO!T169) -> 0.2281618253 | O170: =IF(TABELA_PRECO!Y169=" "," ",TABELA_PRECO!Y169) -> 32.9104005 | P170: =IF(TABELA_PRECO!Z169=" "," ",TABELA_PRECO!Z169) -> 24.24242424 | Q170: =IF(TABELA_PRECO!AA169=" "," ",TABELA_PRECO!AA169) -> 250
A171: =IF(TABELA_PRECO!A170=" "," ",TABELA_PRECO!A170) -> 252 | B171: =IF(TABELA_PRECO!B170=" "," ",TABELA_PRECO!B170) -> CAIXA DA AGUA PE 500 LITROS | C171: =IF(TABELA_PRECO!C170=" "," ",TABELA_PRECO!C170) -> PC | D171: =IF(TABELA_PRECO!D170=" "," ",TABELA_PRECO!D170) -> HIDRÁULICO | E171: =IF(TABELA_PRECO!E170=" "," ",TABELA_PRECO!E170) -> FORTLEV | F171: =IF(TABELA_PRECO!F170=" "," ",TABELA_PRECO!F170) -> 164 | G171: =IF(TABELA_PRECO!G170=" "," ",TABELA_PRECO!G170) -> 193.52 | H171: =IF(TABELA_PRECO!H170=" "," ",TABELA_PRECO!H170) -> 244.449216 | I171: =IF(TABELA_PRECO!I170=" "," ",TABELA_PRECO!I170) -> 216.48 | J171: =IF(TABELA_PRECO!J170=" "," ",TABELA_PRECO!J170) -> 199.185872 | K171: =IF(TABELA_PRECO!P170=" "," ",TABELA_PRECO!P170) -> 80.449216 | L171: =IF(TABELA_PRECO!Q170=" "," ",TABELA_PRECO!Q170) -> 52.48 | M171: =IF(TABELA_PRECO!R170=" "," ",TABELA_PRECO!R170) -> 31.16 | N171: =IF(TABELA_PRECO!T170=" "," ",TABELA_PRECO!T170) -> 10.39403871 | O171: =IF(TABELA_PRECO!Y170=" "," ",TABELA_PRECO!Y170) -> 32.9104005 | P171: =IF(TABELA_PRECO!Z170=" "," ",TABELA_PRECO!Z170) -> 24.24242424 | Q171: =IF(TABELA_PRECO!AA170=" "," ",TABELA_PRECO!AA170) -> 252
